Workbook

Sheet 試験問題（関数）
A1: ='関数（書き）'!$C$2 -> 79 | B1: ='関数（書き）'!$C$3 -> 101 | C1: ='関数（書き）'!$C$4 -> 188 | D1: ='関数（書き）'!$C$5 -> 121 | E1: ='関数（書き）'!$C$6 -> 34 | F1: ='関数（書き）'!$C$7 -> 105 | G1: ='関数（書き）'!$C$8 -> 123 | H1: ='関数（書き）'!$C$9 -> 171 | I1: ='関数（書き）'!$C$10 -> 1 | J1: ='関数（書き）'!$C$11 -> 166 | K1: ='関数（読み）'!$C$2 -> 128 | L1: ='関数（読み）'!$C$3 -> 38 | M1: ='関数（読み）'!$C$4 -> 33 | N1: ='関数（読み）'!$C$5 -> 141 | O1: ='関数（読み）'!$C$6 -> 191 | P1: ='関数（読み）'!$C$7 -> 146 | Q1: ='関数（読み）'!$C$8 -> 76 | R1: ='関数（読み）'!$C$9 -> 173 | S1: ='関数（読み）'!$C$10 -> 26 | T1: ='関数（読み）'!$C$11 -> 91
A2: ⑳ | B2: ⑲ | C2: ⑱ | D2: ⑰ | E2: ⑯ | F2: ⑮ | G2: ⑭ | H2: ⑬ | I2: ⑫ | J2: ⑪ | K2: ⑩ | L2: ⑨ | M2: ⑧ | N2: ⑦ | O2: ⑥ | P2: ⑤ | Q2: ④ | R2: ③ | S2: ② | T2: ① | U2: 次の［ ］の部分の漢字には読みがなをひらがなで書き、カタカナは漢字に直しなさい。 | V2: 10 | W2: 「漢字の博士検定試験」練習問題
A3: =IF(A1="","",VLOOKUP(A1,漢字書き!$A$2:$N$506,6,0)) -> 花が［チ］る | B3: =IF(B1="","",VLOOKUP(B1,漢字書き!$A$2:$N$506,6,0)) -> ［ウシナ］われた自然 | C3: =IF(C1="","",VLOOKUP(C1,漢字書き!$A$2:$N$506,6,0)) -> ［オンガクタイ］が来る | D3: =IF(D1="","",VLOOKUP(D1,漢字書き!$A$2:$N$506,6,0)) -> にっこりと[ワラ]う | E3: =IF(E1="","",VLOOKUP(E1,漢字書き!$A$2:$N$506,6,0)) -> [ケツ]ろんをのべる | F3: =IF(F1="","",VLOOKUP(F1,漢字書き!$A$2:$N$506,6,0)) -> ［タネ］をまく | G3: =IF(G1="","",VLOOKUP(G1,漢字書き!$A$2:$N$506,6,0)) -> 平和を［トナ］える | H3: =IF(H1="","",VLOOKUP(H1,漢字書き!$A$2:$N$506,6,0)) -> ［シゼン］を大切にする | I3: =IF(I1="","",VLOOKUP(I1,漢字書き!$A$2:$N$506,6,0)) -> おいしい［キュウショク］ | J3: =IF(J1="","",VLOOKUP(J1,漢字書き!$A$2:$N$506,6,0)) -> 決勝[セン]に出る | K3: =IF(K1="","",VLOOKUP(K1,漢字読み!$A$2:$I$506,6,0)) -> ［石焼］きいも | L3: =IF(L1="","",VLOOKUP(L1,漢字読み!$A$2:$I$506,6,0)) -> 家を［建］てる | M3: =IF(M1="","",VLOOKUP(M1,漢字読み!$A$2:$I$506,6,0)) -> 月が［欠］ける | N3: =IF(N1="","",VLOOKUP(N1,漢字読み!$A$2:$I$506,6,0)) -> 絵が［完成］する | O3: =IF(O1="","",VLOOKUP(O1,漢字読み!$A$2:$I$506,6,0)) -> ［孫］と遊ぶ | P3: =IF(P1="","",VLOOKUP(P1,漢字読み!$A$2:$I$506,6,0)) -> 説明を［省］く | Q3: =IF(Q1="","",VLOOKUP(Q1,漢字読み!$A$2:$I$506,6,0)) -> お宮［参］り | R3: =IF(R1="","",VLOOKUP(R1,漢字読み!$A$2:$I$506,6,0)) -> ［戦争］が起こる | S3: =IF(S1="","",VLOOKUP(S1,漢字読み!$A$2:$I$506,6,0)) -> ［泣］きっ面にハチ | T3: =IF(T1="","",VLOOKUP(T1,漢字読み!$A$2:$I$506,6,0)) -> ［試合］の結果 | V3: 級
V4: 名前
A5: =IF(A1="","",IF(VLOOKUP(A1,漢字書き!$A$2:$N$502,7,0)=0,"",VLOOKUP(A1,漢字書き!$A$2:$N$502,7,0))) -> る | B5: =IF(B1="","",IF(VLOOKUP(B1,漢字書き!$A$2:$N$502,7,0)=0,"",VLOOKUP(B1,漢字書き!$A$2:$N$502,7,0))) -> われた | C5: =IF(C1="","",IF(VLOOKUP(C1,漢字書き!$A$2:$N$502,7,0)=0,"",VLOOKUP(C1,漢字書き!$A$2:$N$502,7,0))) ->  | D5: =IF(D1="","",IF(VLOOKUP(D1,漢字書き!$A$2:$N$502,7,0)=0,"",VLOOKUP(D1,漢字書き!$A$2:$N$502,7,0))) -> う | E5: =IF(E1="","",IF(VLOOKUP(E1,漢字書き!$A$2:$N$502,7,0)=0,"",VLOOKUP(E1,漢字書き!$A$2:$N$502,7,0))) -> ろん | F5: =IF(F1="","",IF(VLOOKUP(F1,漢字書き!$A$2:$N$502,7,0)=0,"",VLOOKUP(F1,漢字書き!$A$2:$N$502,7,0))) ->  | G5: =IF(G1="","",IF(VLOOKUP(G1,漢字書き!$A$2:$N$502,7,0)=0,"",VLOOKUP(G1,漢字書き!$A$2:$N$502,7,0))) -> える | H5: =IF(H1="","",IF(VLOOKUP(H1,漢字書き!$A$2:$N$502,7,0)=0,"",VLOOKUP(H1,漢字書き!$A$2:$N$502,7,0))) ->  | I5: =IF(I1="","",IF(VLOOKUP(I1,漢字書き!$A$2:$N$502,7,0)=0,"",VLOOKUP(I1,漢字書き!$A$2:$N$502,7,0))) ->  | J5: =IF(J1="","",IF(VLOOKUP(J1,漢字書き!$A$2:$N$502,7,0)=0,"",VLOOKUP(J1,漢字書き!$A$2:$N$502,7,0))) ->  | K5: =IF(K1="","",IF(VLOOKUP(K1,漢字読み!$A$2:$I$502,7,0)=0,"",VLOOKUP(K1,漢字読み!$A$2:$I$502,7,0))) -> き | L5: =IF(L1="","",IF(VLOOKUP(L1,漢字読み!$A$2:$I$502,7,0)=0,"",VLOOKUP(L1,漢字読み!$A$2:$I$502,7,0))) -> てる | M5: =IF(M1="","",IF(VLOOKUP(M1,漢字読み!$A$2:$I$502,7,0)=0,"",VLOOKUP(M1,漢字読み!$A$2:$I$502,7,0))) -> ける | N5: =IF(N1="","",IF(VLOOKUP(N1,漢字読み!$A$2:$I$502,7,0)=0,"",VLOOKUP(N1,漢字読み!$A$2:$I$502,7,0))) -> する | O5: =IF(O1="","",IF(VLOOKUP(O1,漢字読み!$A$2:$I$502,7,0)=0,"",VLOOKUP(O1,漢字読み!$A$2:$I$502,7,0))) ->  | P5: =IF(P1="","",IF(VLOOKUP(P1,漢字読み!$A$2:$I$502,7,0)=0,"",VLOOKUP(P1,漢字読み!$A$2:$I$502,7,0))) -> く | Q5: =IF(Q1="","",IF(VLOOKUP(Q1,漢字読み!$A$2:$I$502,7,0)=0,"",VLOOKUP(Q1,漢字読み!$A$2:$I$502,7,0))) -> り | R5: =IF(R1="","",IF(VLOOKUP(R1,漢字読み!$A$2:$I$502,7,0)=0,"",VLOOKUP(R1,漢字読み!$A$2:$I$502,7,0))) ->  | S5: =IF(S1="","",IF(VLOOKUP(S1,漢字読み!$A$2:$I$502,7,0)=0,"",VLOOKUP(S1,漢字読み!$A$2:$I$502,7,0))) -> きっ面 | T5: =IF(T1="","",IF(VLOOKUP(T1,漢字読み!$A$2:$I$502,7,0)=0,"",VLOOKUP(T1,漢字読み!$A$2:$I$502,7,0))) ->  | W5: 和歌山県教育委員会
A6: ='関数（書き）'!$C$12 -> 150 | B6: ='関数（書き）'!$C$13 -> 91 | C6: ='関数（書き）'!$C$14 -> 44 | D6: ='関数（書き）'!$C$15 -> 25 | E6: ='関数（書き）'!$C$16 -> 109 | F6: ='関数（書き）'!$C$17 -> 179 | G6: ='関数（書き）'!$C$18 -> 58 | H6: ='関数（書き）'!$C$19 -> 180 | I6: ='関数（書き）'!$C$20 -> 100 | J6: ='関数（書き）'!$C$21 -> 70 | K6: ='関数（読み）'!$C$12 -> 150 | L6: ='関数（読み）'!$C$13 -> 104 | M6: ='関数（読み）'!$C$14 -> 105 | N6: ='関数（読み）'!$C$15 -> 80 | O6: ='関数（読み）'!$C$16 -> 47 | P6: ='関数（読み）'!$C$17 -> 172 | Q6: ='関数（読み）'!$C$18 -> 113 | R6: ='関数（読み）'!$C$19 -> 89 | S6: ='関数（読み）'!$C$20 -> 149 | T6: ='関数（読み）'!$C$21 -> 131
A7: ⑳ | B7: ⑲ | C7: ⑱ | D7: ⑰ | E7: ⑯ | F7: ⑮ | G7: ⑭ | H7: ⑬ | I7: ⑫ | J7: ⑪ | K7: ⑩ | L7: ⑨ | M7: ⑧ | N7: ⑦ | O7: ⑥ | P7: ⑤ | Q7: ④ | R7: ③ | S7: ② | T7: ① | U7: 次の［ ］の部分の漢字には読みがなをひらがなで書き、カタカナは漢字に直しなさい。 | V7: 10 | W7: 「漢字の博士検定試験」練習問題
A8: =IF(A6="","",VLOOKUP(A6,漢字書き!$A$2:$N$506,6,0)) -> ［セキ］にすわる | B8: =IF(B6="","",VLOOKUP(B6,漢字書き!$A$2:$N$506,6,0)) -> [イクジ]休かをとる | C8: =IF(C6="","",VLOOKUP(C6,漢字書き!$A$2:$N$506,6,0)) -> ［カタ］くしばる | D8: =IF(D6="","",VLOOKUP(D6,漢字書き!$A$2:$N$506,6,0)) -> 赤ちゃんが［ナ］き止む | E8: =IF(E6="","",VLOOKUP(E6,漢字書き!$A$2:$N$506,6,0)) -> たん生日を［イワ］う | F8: =IF(F6="","",VLOOKUP(F6,漢字書き!$A$2:$N$506,6,0)) -> 花を［タバ］ねる | G8: =IF(G6="","",VLOOKUP(G6,漢字書き!$A$2:$N$506,6,0)) -> ［ナ］の花 | H8: =IF(H6="","",VLOOKUP(H6,漢字書き!$A$2:$N$506,6,0)) -> 円柱の［ソクメン］ | I8: =IF(I6="","",VLOOKUP(I6,漢字書き!$A$2:$N$506,6,0)) -> ［シツレイ］します | J8: =IF(J6="","",VLOOKUP(J6,漢字書き!$A$2:$N$506,6,0)) -> ［カオ］りのよい部屋 | K8: =IF(K6="","",VLOOKUP(K6,漢字読み!$A$2:$I$506,6,0)) -> ［静］かな音楽 | L8: =IF(L6="","",VLOOKUP(L6,漢字読み!$A$2:$I$506,6,0)) -> 気を［失］う | M8: =IF(M6="","",VLOOKUP(M6,漢字読み!$A$2:$I$506,6,0)) -> ［借金］をする | N8: =IF(N6="","",VLOOKUP(N6,漢字読み!$A$2:$I$506,6,0)) -> 卵が［産］まれる | O8: =IF(O6="","",VLOOKUP(O6,漢字読み!$A$2:$I$506,6,0)) -> 犬が［好］き | P8: =IF(P6="","",VLOOKUP(P6,漢字読み!$A$2:$I$506,6,0)) -> ［天然］のうなぎ | Q8: =IF(Q6="","",VLOOKUP(Q6,漢字読み!$A$2:$I$506,6,0)) -> ［順調］に進む | R8: =IF(R6="","",VLOOKUP(R6,漢字読み!$A$2:$I$506,6,0)) -> ［滋賀県］にある湖 | S8: =IF(S6="","",VLOOKUP(S6,漢字読み!$A$2:$I$506,6,0)) -> ［静物］画をかく | T8: =IF(T6="","",VLOOKUP(T6,漢字読み!$A$2:$I$506,6,0)) -> 部屋の［照明］ | V8: 級
V9: 名前
A10: =IF(A6="","",IF(VLOOKUP(A6,漢字書き!$A$2:$N$502,7,0)=0,"",(VLOOKUP(A6,漢字書き!$A$2:$N$502,7,0)))) ->  | B10: =IF(B6="","",IF(VLOOKUP(B6,漢字書き!$A$2:$N$502,7,0)=0,"",(VLOOKUP(B6,漢字書き!$A$2:$N$502,7,0)))) -> 休か | C10: =IF(X6="","",IF(VLOOKUP(X6,漢字書き!$A$2:$N$502,7,0)=0,"",VLOOKUP(X6,漢字書き!$A$2:$N$502,7,0))) ->  | D10: =IF(D6="","",IF(VLOOKUP(D6,漢字書き!$A$2:$N$502,7,0)=0,"",VLOOKUP(D6,漢字書き!$A$2:$N$502,7,0))) -> き止む | E10: =IF(E6="","",IF(VLOOKUP(E6,漢字書き!$A$2:$N$502,7,0)=0,"",(VLOOKUP(E6,漢字書き!$A$2:$N$502,7,0)))) -> う | F10: =IF(F6="","",IF(VLOOKUP(F6,漢字書き!$A$2:$N$502,7,0)=0,"",(VLOOKUP(F6,漢字書き!$A$2:$N$502,7,0)))) -> ねる | G10: =IF(G6="","",IF(VLOOKUP(G6,漢字書き!$A$2:$N$502,7,0)=0,"",VLOOKUP(G6,漢字書き!$A$2:$N$502,7,0))) ->  | H10: =IF(H6="","",IF(VLOOKUP(H6,漢字書き!$A$2:$N$502,7,0)=0,"",VLOOKUP(H6,漢字書き!$A$2:$N$502,7,0))) ->  | I10: =IF(I6="","",IF(VLOOKUP(I6,漢字書き!$A$2:$N$502,7,0)=0,"",VLOOKUP(I6,漢字書き!$A$2:$N$502,7,0))) ->  | J10: =IF(J6="","",IF(VLOOKUP(J6,漢字書き!$A$2:$N$502,7,0)=0,"",VLOOKUP(J6,漢字書き!$A$2:$N$502,7,0))) -> り | K10: =IF(K6="","",IF(VLOOKUP(K6,漢字読み!$A$2:$I$502,7,0)=0,"",VLOOKUP(K6,漢字読み!$A$2:$I$502,7,0))) -> かな | L10: =IF(L6="","",IF(VLOOKUP(L6,漢字読み!$A$2:$I$502,7,0)=0,"",VLOOKUP(L6,漢字読み!$A$2:$I$502,7,0))) -> う | M10: =IF(M6="","",IF(VLOOKUP(M6,漢字読み!$A$2:$I$502,7,0)=0,"",VLOOKUP(M6,漢字読み!$A$2:$I$502,7,0))) ->  | N10: =IF(N6="","",IF(VLOOKUP(N6,漢字読み!$A$2:$I$502,7,0)=0,"",VLOOKUP(N6,漢字読み!$A$2:$I$502,7,0))) -> まれる | O10: =IF(O6="","",IF(VLOOKUP(O6,漢字読み!$A$2:$I$502,7,0)=0,"",VLOOKUP(O6,漢字読み!$A$2:$I$502,7,0))) -> き | P10: =IF(P6="","",IF(VLOOKUP(P6,漢字読み!$A$2:$I$502,7,0)=0,"",VLOOKUP(P6,漢字読み!$A$2:$I$502,7,0))) ->  | Q10: =IF(Q6="","",IF(VLOOKUP(Q6,漢字読み!$A$2:$I$502,7,0)=0,"",VLOOKUP(Q6,漢字読み!$A$2:$I$502,7,0))) -> に | R10: =IF(R6="","",IF(VLOOKUP(R6,漢字読み!$A$2:$I$502,7,0)=0,"",VLOOKUP(R6,漢字読み!$A$2:$I$502,7,0))) ->  | S10: =IF(S6="","",IF(VLOOKUP(S6,漢字読み!$A$2:$I$502,7,0)=0,"",VLOOKUP(S6,漢字読み!$A$2:$I$502,7,0))) -> 画 | T10: =IF(T6="","",IF(VLOOKUP(T6,漢字読み!$A$2:$I$502,7,0)=0,"",VLOOKUP(T6,漢字読み!$A$2:$I$502,7,0))) ->  | W10: 和歌山県教育委員会
A11: ='関数（書き）'!$C$2 -> 79 | B11: ='関数（書き）'!$C$3 -> 101 | C11: ='関数（書き）'!$C$4 -> 188 | D11: ='関数（書き）'!$C$5 -> 121 | E11: ='関数（書き）'!$C$6 -> 34 | F11: ='関数（書き）'!$C$7 -> 105 | G11: ='関数（書き）'!$C$8 -> 123 | H11: ='関数（書き）'!$C$9 -> 171 | I11: ='関数（書き）'!$C$10 -> 1 | J11: ='関数（書き）'!$C$11 -> 166 | K11: ='関数（読み）'!$C$2 -> 128 | L11: ='関数（読み）'!$C$3 -> 38 | M11: ='関数（読み）'!$C$4 -> 33 | N11: ='関数（読み）'!$C$5 -> 141 | O11: ='関数（読み）'!$C$6 -> 191 | P11: ='関数（読み）'!$C$7 -> 146 | Q11: ='関数（読み）'!$C$8 -> 76 | R11: ='関数（読み）'!$C$9 -> 173 | S11: ='関数（読み）'!$C$10 -> 26 | T11: ='関数（読み）'!$C$11 -> 91
A12: ⑳ | B12: ⑲ | C12: ⑱ | D12: ⑰ | E12: ⑯ | F12: ⑮ | G12: ⑭ | H12: ⑬ | I12: ⑫ | J12: ⑪ | K12: ⑩ | L12: ⑨ | M12: ⑧ | N12: ⑦ | O12: ⑥ | P12: ⑤ | Q12: ④ | R12: ③ | S12: ② | T12: ① | U12: 次の［ ］の部分の漢字には読みがなをひらがなで書き、カタカナは漢字に直しなさい。 | V12: 10 | W12: 「漢字の博士検定試験」練習問題
A13: =IF(A11="","",VLOOKUP(A11,漢字書き!$A$2:$N$506,6,0)) -> 花が［チ］る | B13: =IF(B11="","",VLOOKUP(B11,漢字書き!$A$2:$N$506,6,0)) -> ［ウシナ］われた自然 | C13: =IF(C11="","",VLOOKUP(C11,漢字書き!$A$2:$N$506,6,0)) -> ［オンガクタイ］が来る | D13: =IF(D11="","",VLOOKUP(D11,漢字書き!$A$2:$N$506,6,0)) -> にっこりと[ワラ]う | E13: =IF(E11="","",VLOOKUP(E11,漢字書き!$A$2:$N$506,6,0)) -> [ケツ]ろんをのべる | F13: =IF(F11="","",VLOOKUP(F11,漢字書き!$A$2:$N$506,6,0)) -> ［タネ］をまく | G13: =IF(G11="","",VLOOKUP(G11,漢字書き!$A$2:$N$506,6,0)) -> 平和を［トナ］える | H13: =IF(H11="","",VLOOKUP(H11,漢字書き!$A$2:$N$506,6,0)) -> ［シゼン］を大切にする | I13: =IF(I11="","",VLOOKUP(I11,漢字書き!$A$2:$N$506,6,0)) -> おいしい［キュウショク］ | J13: =IF(J11="","",VLOOKUP(J11,漢字書き!$A$2:$N$506,6,0)) -> 決勝[セン]に出る | K13: =IF(K11="","",VLOOKUP(K11,漢字読み!$A$2:$I$506,6,0)) -> ［石焼］きいも | L13: =IF(L11="","",VLOOKUP(L11,漢字読み!$A$2:$I$506,6,0)) -> 家を［建］てる | M13: =IF(M11="","",VLOOKUP(M11,漢字読み!$A$2:$I$506,6,0)) -> 月が［欠］ける | N13: =IF(N11="","",VLOOKUP(N11,漢字読み!$A$2:$I$506,6,0)) -> 絵が［完成］する | O13: =IF(O11="","",VLOOKUP(O11,漢字読み!$A$2:$I$506,6,0)) -> ［孫］と遊ぶ | P13: =IF(P11="","",VLOOKUP(P11,漢字読み!$A$2:$I$506,6,0)) -> 説明を［省］く | Q13: =IF(Q11="","",VLOOKUP(Q11,漢字読み!$A$2:$I$506,6,0)) -> お宮［参］り | R13: =IF(R11="","",VLOOKUP(R11,漢字読み!$A$2:$I$506,6,0)) -> ［戦争］が起こる | S13: =IF(S11="","",VLOOKUP(S11,漢字読み!$A$2:$I$506,6,0)) -> ［泣］きっ面にハチ | T13: =IF(T11="","",VLOOKUP(T11,漢字読み!$A$2:$I$506,6,0)) -> ［試合］の結果 | V13: 級
A14: =IF(A$11="","",VLOOKUP(A$11,漢字書き!$A$2:$O$506,8,0)) -> 散 | B14: =IF(B$11="","",VLOOKUP(B$11,漢字書き!$A$2:$O$506,8,0)) -> 失 | C14: =IF(C$11="","",VLOOKUP(C$11,漢字書き!$A$2:$O$506,8,0)) -> 音楽隊 | D14: =IF(D$11="","",VLOOKUP(D$11,漢字書き!$A$2:$O$506,8,0)) -> 笑 | E14: =IF(E$11="","",VLOOKUP(E$11,漢字書き!$A$2:$O$506,8,0)) -> 結 | F14: =IF(F$11="","",VLOOKUP(F$11,漢字書き!$A$2:$O$506,8,0)) -> 種 | G14: =IF(G$11="","",VLOOKUP(G$11,漢字書き!$A$2:$O$506,8,0)) -> 唱 | H14: =IF(H$11="","",VLOOKUP(H$11,漢字書き!$A$2:$O$506,8,0)) -> 自然 | I14: =IF(I$11="","",VLOOKUP(I$11,漢字書き!$A$2:$O$506,8,0)) -> 給食 | J14: =IF(J$11="","",VLOOKUP(J$11,漢字書き!$A$2:$O$506,8,0)) -> 戦 | K14: =IF(K$11="","",VLOOKUP(K$11,漢字読み!$A$2:$O$506,8,0)) -> いしや | L14: =IF(L$11="","",VLOOKUP(L$11,漢字読み!$A$2:$O$506,8,0)) -> た | M14: =IF(M$11="","",VLOOKUP(M$11,漢字読み!$A$2:$O$506,8,0)) -> か | N14: =IF(N$11="","",VLOOKUP(N$11,漢字読み!$A$2:$O$506,8,0)) -> かんせい | O14: =IF(O$11="","",VLOOKUP(O$11,漢字読み!$A$2:$O$506,8,0)) -> まご | P14: =IF(P$11="","",VLOOKUP(P$11,漢字読み!$A$2:$O$506,8,0)) -> はぶ | Q14: =IF(Q$11="","",VLOOKUP(Q$11,漢字読み!$A$2:$O$506,8,0)) -> まい | R14: =IF(R$11="","",VLOOKUP(R$11,漢字読み!$A$2:$O$506,8,0)) -> せんそう | S14: =IF(S$11="","",VLOOKUP(S$11,漢字読み!$A$2:$O$506,8,0)) -> な | T14: =IF(T$11="","",VLOOKUP(T$11,漢字読み!$A$2:$O$506,8,0)) -> しあい | V14: 名前
A15: =IF(A11="","",IF(VLOOKUP(A11,漢字書き!$A$2:$N$502,7,0)=0,"",VLOOKUP(A11,漢字書き!$A$2:$N$502,7,0))) -> る | B15: =IF(B11="","",IF(VLOOKUP(B11,漢字書き!$A$2:$N$502,7,0)=0,"",VLOOKUP(B11,漢字書き!$A$2:$N$502,7,0))) -> われた | C15: =IF(C11="","",IF(VLOOKUP(C11,漢字書き!$A$2:$N$502,7,0)=0,"",VLOOKUP(C11,漢字書き!$A$2:$N$502,7,0))) ->  | D15: =IF(D11="","",IF(VLOOKUP(D11,漢字書き!$A$2:$N$502,7,0)=0,"",VLOOKUP(D11,漢字書き!$A$2:$N$502,7,0))) -> う | E15: =IF(E11="","",IF(VLOOKUP(E11,漢字書き!$A$2:$N$502,7,0)=0,"",VLOOKUP(E11,漢字書き!$A$2:$N$502,7,0))) -> ろん | F15: =IF(F11="","",IF(VLOOKUP(F11,漢字書き!$A$2:$N$502,7,0)=0,"",VLOOKUP(F11,漢字書き!$A$2:$N$502,7,0))) ->  | G15: =IF(G11="","",IF(VLOOKUP(G11,漢字書き!$A$2:$N$502,7,0)=0,"",VLOOKUP(G11,漢字書き!$A$2:$N$502,7,0))) -> える | H15: =IF(H11="","",IF(VLOOKUP(H11,漢字書き!$A$2:$N$502,7,0)=0,"",VLOOKUP(H11,漢字書き!$A$2:$N$502,7,0))) ->  | I15: =IF(I11="","",IF(VLOOKUP(I11,漢字書き!$A$2:$N$502,7,0)=0,"",VLOOKUP(I11,漢字書き!$A$2:$N$502,7,0))) ->  | J15: =IF(J11="","",IF(VLOOKUP(J11,漢字書き!$A$2:$N$502,7,0)=0,"",VLOOKUP(J11,漢字書き!$A$2:$N$502,7,0))) ->  | K15: =IF(K11="","",IF(VLOOKUP(K11,漢字読み!$A$2:$I$502,7,0)=0,"",VLOOKUP(K11,漢字読み!$A$2:$I$502,7,0))) -> き | L15: =IF(L11="","",IF(VLOOKUP(L11,漢字読み!$A$2:$I$502,7,0)=0,"",VLOOKUP(L11,漢字読み!$A$2:$I$502,7,0))) -> てる | M15: =IF(M11="","",IF(VLOOKUP(M11,漢字読み!$A$2:$I$502,7,0)=0,"",VLOOKUP(M11,漢字読み!$A$2:$I$502,7,0))) -> ける | N15: =IF(N11="","",IF(VLOOKUP(N11,漢字読み!$A$2:$I$502,7,0)=0,"",VLOOKUP(N11,漢字読み!$A$2:$I$502,7,0))) -> する | O15: =IF(O11="","",IF(VLOOKUP(O11,漢字読み!$A$2:$I$502,7,0)=0,"",VLOOKUP(O11,漢字読み!$A$2:$I$502,7,0))) ->  | P15: =IF(P11="","",IF(VLOOKUP(P11,漢字読み!$A$2:$I$502,7,0)=0,"",VLOOKUP(P11,漢字読み!$A$2:$I$502,7,0))) -> く | Q15: =IF(Q11="","",IF(VLOOKUP(Q11,漢字読み!$A$2:$I$502,7,0)=0,"",VLOOKUP(Q11,漢字読み!$A$2:$I$502,7,0))) -> り | R15: =IF(R11="","",IF(VLOOKUP(R11,漢字読み!$A$2:$I$502,7,0)=0,"",VLOOKUP(R11,漢字読み!$A$2:$I$502,7,0))) ->  | S15: =IF(S11="","",IF(VLOOKUP(S11,漢字読み!$A$2:$I$502,7,0)=0,"",VLOOKUP(S11,漢字読み!$A$2:$I$502,7,0))) -> きっ面 | T15: =IF(T11="","",IF(VLOOKUP(T11,漢字読み!$A$2:$I$502,7,0)=0,"",VLOOKUP(T11,漢字読み!$A$2:$I$502,7,0))) ->  | W15: 和歌山県教育委員会
A16: ='関数（書き）'!$C$12 -> 150 | B16: ='関数（書き）'!$C$13 -> 91 | C16: ='関数（書き）'!$C$14 -> 44 | D16: ='関数（書き）'!$C$15 -> 25 | E16: ='関数（書き）'!$C$16 -> 109 | F16: ='関数（書き）'!$C$17 -> 179 | G16: ='関数（書き）'!$C$18 -> 58 | H16: ='関数（書き）'!$C$19 -> 180 | I16: ='関数（書き）'!$C$20 -> 100 | J16: ='関数（書き）'!$C$21 -> 70 | K16: ='関数（読み）'!$C$12 -> 150 | L16: ='関数（読み）'!$C$13 -> 104 | M16: ='関数（読み）'!$C$14 -> 105 | N16: ='関数（読み）'!$C$15 -> 80 | O16: ='関数（読み）'!$C$16 -> 47 | P16: ='関数（読み）'!$C$17 -> 172 | Q16: ='関数（読み）'!$C$18 -> 113 | R16: ='関数（読み）'!$C$19 -> 89 | S16: ='関数（読み）'!$C$20 -> 149 | T16: ='関数（読み）'!$C$21 -> 131
A17: ⑳ | B17: ⑲ | C17: ⑱ | D17: ⑰ | E17: ⑯ | F17: ⑮ | G17: ⑭ | H17: ⑬ | I17: ⑫ | J17: ⑪ | K17: ⑩ | L17: ⑨ | M17: ⑧ | N17: ⑦ | O17: ⑥ | P17: ⑤ | Q17: ④ | R17: ③ | S17: ② | T17: ① | U17: 次の［ ］の部分の漢字には読みがなをひらがなで書き、カタカナは漢字に直しなさい。 | V17: 10 | W17: 「漢字の博士検定試験」練習問題
A18: =IF(A16="","",VLOOKUP(A16,漢字書き!$A$2:$N$506,6,0)) -> ［セキ］にすわる | B18: =IF(B16="","",VLOOKUP(B16,漢字書き!$A$2:$N$506,6,0)) -> [イクジ]休かをとる | C18: =IF(C16="","",VLOOKUP(C16,漢字書き!$A$2:$N$506,6,0)) -> ［カタ］くしばる | D18: =IF(D16="","",VLOOKUP(D16,漢字書き!$A$2:$N$506,6,0)) -> 赤ちゃんが［ナ］き止む | E18: =IF(E16="","",VLOOKUP(E16,漢字書き!$A$2:$N$506,6,0)) -> たん生日を［イワ］う | F18: =IF(F16="","",VLOOKUP(F16,漢字書き!$A$2:$N$506,6,0)) -> 花を［タバ］ねる | G18: =IF(G16="","",VLOOKUP(G16,漢字書き!$A$2:$N$506,6,0)) -> ［ナ］の花 | H18: =IF(H16="","",VLOOKUP(H16,漢字書き!$A$2:$N$506,6,0)) -> 円柱の［ソクメン］ | I18: =IF(I16="","",VLOOKUP(I16,漢字書き!$A$2:$N$506,6,0)) -> ［シツレイ］します | J18: =IF(J16="","",VLOOKUP(J16,漢字書き!$A$2:$N$506,6,0)) -> ［カオ］りのよい部屋 | K18: =IF(K16="","",VLOOKUP(K16,漢字読み!$A$2:$I$506,6,0)) -> ［静］かな音楽 | L18: =IF(L16="","",VLOOKUP(L16,漢字読み!$A$2:$I$506,6,0)) -> 気を［失］う | M18: =IF(M16="","",VLOOKUP(M16,漢字読み!$A$2:$I$506,6,0)) -> ［借金］をする | N18: =IF(N16="","",VLOOKUP(N16,漢字読み!$A$2:$I$506,6,0)) -> 卵が［産］まれる | O18: =IF(O16="","",VLOOKUP(O16,漢字読み!$A$2:$I$506,6,0)) -> 犬が［好］き | P18: =IF(P16="","",VLOOKUP(P16,漢字読み!$A$2:$I$506,6,0)) -> ［天然］のうなぎ | Q18: =IF(Q16="","",VLOOKUP(Q16,漢字読み!$A$2:$I$506,6,0)) -> ［順調］に進む | R18: =IF(R16="","",VLOOKUP(R16,漢字読み!$A$2:$I$506,6,0)) -> ［滋賀県］にある湖 | S18: =IF(S16="","",VLOOKUP(S16,漢字読み!$A$2:$I$506,6,0)) -> ［静物］画をかく | T18: =IF(T16="","",VLOOKUP(T16,漢字読み!$A$2:$I$506,6,0)) -> 部屋の［照明］ | V18: 級
A19: =IF(A$16="","",VLOOKUP(A$16,漢字書き!$A$2:$O$506,8,0)) -> 席 | B19: =IF(B$16="","",VLOOKUP(B$16,漢字書き!$A$2:$O$506,8,0)) -> 育児 | C19: =IF(C$16="","",VLOOKUP(C$16,漢字書き!$A$2:$O$506,8,0)) -> 固 | D19: =IF(D$16="","",VLOOKUP(D$16,漢字書き!$A$2:$O$506,8,0)) -> 泣 | E19: =IF(E$16="","",VLOOKUP(E$16,漢字書き!$A$2:$O$506,8,0)) -> 祝 | F19: =IF(F$16="","",VLOOKUP(F$16,漢字書き!$A$2:$O$506,8,0)) -> 束 | G19: =IF(G$16="","",VLOOKUP(G$16,漢字書き!$A$2:$O$506,8,0)) -> 菜 | H19: =IF(H$16="","",VLOOKUP(H$16,漢字書き!$A$2:$O$506,8,0)) -> 側面 | I19: =IF(I$16="","",VLOOKUP(I$16,漢字書き!$A$2:$O$506,8,0)) -> 失礼 | J19: =IF(J$16="","",VLOOKUP(J$16,漢字書き!$A$2:$O$506,8,0)) -> 香 | K19: =IF(K$16="","",VLOOKUP(K$16,漢字読み!$A$2:$O$506,8,0)) -> しず | L19: =IF(L$16="","",VLOOKUP(L$16,漢字読み!$A$2:$O$506,8,0)) -> うしな | M19: =IF(M$16="","",VLOOKUP(M$16,漢字読み!$A$2:$O$506,8,0)) -> しゃっきん | N19: =IF(N$16="","",VLOOKUP(N$16,漢字読み!$A$2:$O$506,8,0)) -> う | O19: =IF(O$16="","",VLOOKUP(O$16,漢字読み!$A$2:$O$506,8,0)) -> す | P19: =IF(P$16="","",VLOOKUP(P$16,漢字読み!$A$2:$O$506,8,0)) -> てんねん | Q19: =IF(Q$16="","",VLOOKUP(Q$16,漢字読み!$A$2:$O$506,8,0)) -> じゅんちょう | R19: =IF(R$16="","",VLOOKUP(R$16,漢字読み!$A$2:$O$506,8,0)) -> しがけん | S19: =IF(S$16="","",VLOOKUP(S$16,漢字読み!$A$2:$O$506,8,0)) -> せいぶつ | T19: =IF(T$16="","",VLOOKUP(T$16,漢字読み!$A$2:$O$506,8,0)) -> しょうめい | V19: 名前
A20: =IF(A16="","",IF(VLOOKUP(A16,漢字書き!$A$2:$N$502,7,0)=0,"",(VLOOKUP(A16,漢字書き!$A$2:$N$502,7,0)))) ->  | B20: =IF(B16="","",IF(VLOOKUP(B16,漢字書き!$A$2:$N$502,7,0)=0,"",(VLOOKUP(B16,漢字書き!$A$2:$N$502,7,0)))) -> 休か | C20: =IF(X16="","",IF(VLOOKUP(X16,漢字書き!$A$2:$N$502,7,0)=0,"",VLOOKUP(X16,漢字書き!$A$2:$N$502,7,0))) ->  | D20: =IF(D16="","",IF(VLOOKUP(D16,漢字書き!$A$2:$N$502,7,0)=0,"",VLOOKUP(D16,漢字書き!$A$2:$N$502,7,0))) -> き止む | E20: =IF(E16="","",IF(VLOOKUP(E16,漢字書き!$A$2:$N$502,7,0)=0,"",(VLOOKUP(E16,漢字書き!$A$2:$N$502,7,0)))) -> う | F20: =IF(F16="","",IF(VLOOKUP(F16,漢字書き!$A$2:$N$502,7,0)=0,"",(VLOOKUP(F16,漢字書き!$A$2:$N$502,7,0)))) -> ねる | G20: =IF(G16="","",IF(VLOOKUP(G16,漢字書き!$A$2:$N$502,7,0)=0,"",VLOOKUP(G16,漢字書き!$A$2:$N$502,7,0))) ->  | H20: =IF(H16="","",IF(VLOOKUP(H16,漢字書き!$A$2:$N$502,7,0)=0,"",VLOOKUP(H16,漢字書き!$A$2:$N$502,7,0))) ->  | I20: =IF(I16="","",IF(VLOOKUP(I16,漢字書き!$A$2:$N$502,7,0)=0,"",VLOOKUP(I16,漢字書き!$A$2:$N$502,7,0))) ->  | J20: =IF(J16="","",IF(VLOOKUP(J16,漢字書き!$A$2:$N$502,7,0)=0,"",VLOOKUP(J16,漢字書き!$A$2:$N$502,7,0))) -> り | K20: =IF(K16="","",IF(VLOOKUP(K16,漢字読み!$A$2:$I$502,7,0)=0,"",VLOOKUP(K16,漢字読み!$A$2:$I$502,7,0))) -> かな | L20: =IF(L16="","",IF(VLOOKUP(L16,漢字読み!$A$2:$I$502,7,0)=0,"",VLOOKUP(L16,漢字読み!$A$2:$I$502,7,0))) -> う | M20: =IF(M16="","",IF(VLOOKUP(M16,漢字読み!$A$2:$I$502,7,0)=0,"",VLOOKUP(M16,漢字読み!$A$2:$I$502,7,0))) ->  | N20: =IF(N16="","",IF(VLOOKUP(N16,漢字読み!$A$2:$I$502,7,0)=0,"",VLOOKUP(N16,漢字読み!$A$2:$I$502,7,0))) -> まれる | O20: =IF(O16="","",IF(VLOOKUP(O16,漢字読み!$A$2:$I$502,7,0)=0,"",VLOOKUP(O16,漢字読み!$A$2:$I$502,7,0))) -> き | P20: =IF(P16="","",IF(VLOOKUP(P16,漢字読み!$A$2:$I$502,7,0)=0,"",VLOOKUP(P16,漢字読み!$A$2:$I$502,7,0))) ->  | Q20: =IF(Q16="","",IF(VLOOKUP(Q16,漢字読み!$A$2:$I$502,7,0)=0,"",VLOOKUP(Q16,漢字読み!$A$2:$I$502,7,0))) -> に | R20: =IF(R16="","",IF(VLOOKUP(R16,漢字読み!$A$2:$I$502,7,0)=0,"",VLOOKUP(R16,漢字読み!$A$2:$I$502,7,0))) ->  | S20: =IF(S16="","",IF(VLOOKUP(S16,漢字読み!$A$2:$I$502,7,0)=0,"",VLOOKUP(S16,漢字読み!$A$2:$I$502,7,0))) -> 画 | T20: =IF(T16="","",IF(VLOOKUP(T16,漢字読み!$A$2:$I$502,7,0)=0,"",VLOOKUP(T16,漢字読み!$A$2:$I$502,7,0))) ->  | W20: 和歌山県教育委員会

Sheet 網羅問題（関数）
A1: =INDIRECT("'関数（書き）'!C" & COLUMN(B$1)+SUM($AD$2:$AD2)) -> 79 | B1: =INDIRECT("'関数（書き）'!C" & COLUMN(C$1)+SUM($AD$2:$AD2)) -> 101 | C1: =INDIRECT("'関数（書き）'!C" & COLUMN(D$1)+SUM($AD$2:$AD2)) -> 188 | D1: =INDIRECT("'関数（書き）'!C" & COLUMN(E$1)+SUM($AD$2:$AD2)) -> 121 | E1: =INDIRECT("'関数（書き）'!C" & COLUMN(F$1)+SUM($AD$2:$AD2)) -> 34 | F1: =INDIRECT("'関数（書き）'!C" & COLUMN(G$1)+SUM($AD$2:$AD2)) -> 105 | G1: =INDIRECT("'関数（書き）'!C" & COLUMN(H$1)+SUM($AD$2:$AD2)) -> 123 | H1: =INDIRECT("'関数（書き）'!C" & COLUMN(I$1)+SUM($AD$2:$AD2)) -> 171 | I1: =INDIRECT("'関数（書き）'!C" & COLUMN(J$1)+SUM($AD$2:$AD2)) -> 1 | J1: =INDIRECT("'関数（書き）'!C" & COLUMN(K$1)+SUM($AD$2:$AD2)) -> 166 | K1: =INDIRECT("'関数（読み）'!C" & COLUMN(B$1)+SUM($AD$2:$AD2)) -> 128 | L1: =INDIRECT("'関数（読み）'!C" & COLUMN(C$1)+SUM($AD$2:$AD2)) -> 38 | M1: =INDIRECT("'関数（読み）'!C" & COLUMN(D$1)+SUM($AD$2:$AD2)) -> 33 | N1: =INDIRECT("'関数（読み）'!C" & COLUMN(E$1)+SUM($AD$2:$AD2)) -> 141 | O1: =INDIRECT("'関数（読み）'!C" & COLUMN(F$1)+SUM($AD$2:$AD2)) -> 191 | P1: =INDIRECT("'関数（読み）'!C" & COLUMN(G$1)+SUM($AD$2:$AD2)) -> 146 | Q1: =INDIRECT("'関数（読み）'!C" & COLUMN(H$1)+SUM($AD$2:$AD2)) -> 76 | R1: =INDIRECT("'関数（読み）'!C" & COLUMN(I$1)+SUM($AD$2:$AD2)) -> 173 | S1: =INDIRECT("'関数（読み）'!C" & COLUMN(J$1)+SUM($AD$2:$AD2)) -> 26 | T1: =INDIRECT("'関数（読み）'!C" & COLUMN(K$1)+SUM($AD$2:$AD2)) -> 91
A2: ⑳ | B2: ⑲ | C2: ⑱ | D2: ⑰ | E2: ⑯ | F2: ⑮ | G2: ⑭ | H2: ⑬ | I2: ⑫ | J2: ⑪ | K2: ⑩ | L2: ⑨ | M2: ⑧ | N2: ⑦ | O2: ⑥ | P2: ⑤ | Q2: ④ | R2: ③ | S2: ② | T2: ① | U2: 次の［ ］の部分の漢字には読みがなをひらがなで書き、カタカナは漢字に直しなさい。 | V2: 10 | W2: 「漢字の博士検定試験」練習問題 | AD2: 0 | AE2: 問 | AF2: 1 | AG2: ～ | AH2: =SUM($AD$2:$AD2)+10 -> 10 | AI2: 問まで | AJ2: =COUNTIF($A$1:$T$200,T3) -> 2
A3: =IF(A1="","",VLOOKUP(A1,漢字書き!$A$2:$N$506,6,0)) -> 花が［チ］る | B3: =IF(B1="","",VLOOKUP(B1,漢字書き!$A$2:$N$506,6,0)) -> ［ウシナ］われた自然 | C3: =IF(C1="","",VLOOKUP(C1,漢字書き!$A$2:$N$506,6,0)) -> ［オンガクタイ］が来る | D3: =IF(D1="","",VLOOKUP(D1,漢字書き!$A$2:$N$506,6,0)) -> にっこりと[ワラ]う | E3: =IF(E1="","",VLOOKUP(E1,漢字書き!$A$2:$N$506,6,0)) -> [ケツ]ろんをのべる | F3: =IF(F1="","",VLOOKUP(F1,漢字書き!$A$2:$N$506,6,0)) -> ［タネ］をまく | G3: =IF(G1="","",VLOOKUP(G1,漢字書き!$A$2:$N$506,6,0)) -> 平和を［トナ］える | H3: =IF(H1="","",VLOOKUP(H1,漢字書き!$A$2:$N$506,6,0)) -> ［シゼン］を大切にする | I3: =IF(I1="","",VLOOKUP(I1,漢字書き!$A$2:$N$506,6,0)) -> おいしい［キュウショク］ | J3: =IF(J1="","",VLOOKUP(J1,漢字書き!$A$2:$N$506,6,0)) -> 決勝[セン]に出る | K3: =IF(K1="","",VLOOKUP(K1,漢字読み!$A$2:$O$506,6,0)) -> ［石焼］きいも | L3: =IF(L1="","",VLOOKUP(L1,漢字読み!$A$2:$O$506,6,0)) -> 家を［建］てる | M3: =IF(M1="","",VLOOKUP(M1,漢字読み!$A$2:$O$506,6,0)) -> 月が［欠］ける | N3: =IF(N1="","",VLOOKUP(N1,漢字読み!$A$2:$O$506,6,0)) -> 絵が［完成］する | O3: =IF(O1="","",VLOOKUP(O1,漢字読み!$A$2:$O$506,6,0)) -> ［孫］と遊ぶ | P3: =IF(P1="","",VLOOKUP(P1,漢字読み!$A$2:$O$506,6,0)) -> 説明を［省］く | Q3: =IF(Q1="","",VLOOKUP(Q1,漢字読み!$A$2:$O$506,6,0)) -> お宮［参］り | R3: =IF(R1="","",VLOOKUP(R1,漢字読み!$A$2:$O$506,6,0)) -> ［戦争］が起こる | S3: =IF(S1="","",VLOOKUP(S1,漢字読み!$A$2:$O$506,6,0)) -> ［泣］きっ面にハチ | T3: =IF(T1="","",VLOOKUP(T1,漢字読み!$A$2:$O$506,6,0)) -> ［試合］の結果 | V3: 級
V4: 名前
A5: =IF(A1="","",IF(VLOOKUP(A1,漢字書き!$A$2:$N$502,7,0)=0,"",VLOOKUP(A1,漢字書き!$A$2:$N$502,7,0))) -> る | B5: =IF(B1="","",IF(VLOOKUP(B1,漢字書き!$A$2:$N$502,7,0)=0,"",VLOOKUP(B1,漢字書き!$A$2:$N$502,7,0))) -> われた | C5: =IF(C1="","",IF(VLOOKUP(C1,漢字書き!$A$2:$N$502,7,0)=0,"",VLOOKUP(C1,漢字書き!$A$2:$N$502,7,0))) ->  | D5: =IF(D1="","",IF(VLOOKUP(D1,漢字書き!$A$2:$N$502,7,0)=0,"",VLOOKUP(D1,漢字書き!$A$2:$N$502,7,0))) -> う | E5: =IF(E1="","",IF(VLOOKUP(E1,漢字書き!$A$2:$N$502,7,0)=0,"",VLOOKUP(E1,漢字書き!$A$2:$N$502,7,0))) -> ろん | F5: =IF(F1="","",IF(VLOOKUP(F1,漢字書き!$A$2:$N$502,7,0)=0,"",VLOOKUP(F1,漢字書き!$A$2:$N$502,7,0))) ->  | G5: =IF(G1="","",IF(VLOOKUP(G1,漢字書き!$A$2:$N$502,7,0)=0,"",VLOOKUP(G1,漢字書き!$A$2:$N$502,7,0))) -> える | H5: =IF(H1="","",IF(VLOOKUP(H1,漢字書き!$A$2:$N$502,7,0)=0,"",VLOOKUP(H1,漢字書き!$A$2:$N$502,7,0))) ->  | I5: =IF(I1="","",IF(VLOOKUP(I1,漢字書き!$A$2:$N$502,7,0)=0,"",VLOOKUP(I1,漢字書き!$A$2:$N$502,7,0))) ->  | J5: =IF(J1="","",IF(VLOOKUP(J1,漢字書き!$A$2:$N$502,7,0)=0,"",VLOOKUP(J1,漢字書き!$A$2:$N$502,7,0))) ->  | K5: =IF(K1="","",IF(VLOOKUP(K1,漢字読み!$A$2:$O$502,7,0)=0,"",VLOOKUP(K1,漢字読み!$A$2:$O$502,7,0))) -> き | L5: =IF(L1="","",IF(VLOOKUP(L1,漢字読み!$A$2:$O$502,7,0)=0,"",VLOOKUP(L1,漢字読み!$A$2:$O$502,7,0))) -> てる | M5: =IF(M1="","",IF(VLOOKUP(M1,漢字読み!$A$2:$O$502,7,0)=0,"",VLOOKUP(M1,漢字読み!$A$2:$O$502,7,0))) -> ける | N5: =IF(N1="","",IF(VLOOKUP(N1,漢字読み!$A$2:$O$502,7,0)=0,"",VLOOKUP(N1,漢字読み!$A$2:$O$502,7,0))) -> する | O5: =IF(O1="","",IF(VLOOKUP(O1,漢字読み!$A$2:$O$502,7,0)=0,"",VLOOKUP(O1,漢字読み!$A$2:$O$502,7,0))) ->  | P5: =IF(P1="","",IF(VLOOKUP(P1,漢字読み!$A$2:$O$502,7,0)=0,"",VLOOKUP(P1,漢字読み!$A$2:$O$502,7,0))) -> く | Q5: =IF(Q1="","",IF(VLOOKUP(Q1,漢字読み!$A$2:$O$502,7,0)=0,"",VLOOKUP(Q1,漢字読み!$A$2:$O$502,7,0))) -> り | R5: =IF(R1="","",IF(VLOOKUP(R1,漢字読み!$A$2:$O$502,7,0)=0,"",VLOOKUP(R1,漢字読み!$A$2:$O$502,7,0))) ->  | S5: =IF(S1="","",IF(VLOOKUP(S1,漢字読み!$A$2:$O$502,7,0)=0,"",VLOOKUP(S1,漢字読み!$A$2:$O$502,7,0))) -> きっ面 | T5: =IF(T1="","",IF(VLOOKUP(T1,漢字読み!$A$2:$O$502,7,0)=0,"",VLOOKUP(T1,漢字読み!$A$2:$O$502,7,0))) ->  | W5: 和歌山県教育委員会
A6: =INDIRECT("'関数（書き）'!C" & COLUMN(B$1)+SUM($AD$2:$AD7)) -> 150 | B6: =INDIRECT("'関数（書き）'!C" & COLUMN(C$1)+SUM($AD$2:$AD7)) -> 91 | C6: =INDIRECT("'関数（書き）'!C" & COLUMN(D$1)+SUM($AD$2:$AD7)) -> 44 | D6: =INDIRECT("'関数（書き）'!C" & COLUMN(E$1)+SUM($AD$2:$AD7)) -> 25 | E6: =INDIRECT("'関数（書き）'!C" & COLUMN(F$1)+SUM($AD$2:$AD7)) -> 109 | F6: =INDIRECT("'関数（書き）'!C" & COLUMN(G$1)+SUM($AD$2:$AD7)) -> 179 | G6: =INDIRECT("'関数（書き）'!C" & COLUMN(H$1)+SUM($AD$2:$AD7)) -> 58 | H6: =INDIRECT("'関数（書き）'!C" & COLUMN(I$1)+SUM($AD$2:$AD7)) -> 180 | I6: =INDIRECT("'関数（書き）'!C" & COLUMN(J$1)+SUM($AD$2:$AD7)) -> 100 | J6: =INDIRECT("'関数（書き）'!C" & COLUMN(K$1)+SUM($AD$2:$AD7)) -> 70 | K6: =INDIRECT("'関数（読み）'!C" & COLUMN(B$1)+SUM($AD$2:$AD7)) -> 150 | L6: =INDIRECT("'関数（読み）'!C" & COLUMN(C$1)+SUM($AD$2:$AD7)) -> 104 | M6: =INDIRECT("'関数（読み）'!C" & COLUMN(D$1)+SUM($AD$2:$AD7)) -> 105 | N6: =INDIRECT("'関数（読み）'!C" & COLUMN(E$1)+SUM($AD$2:$AD7)) -> 80 | O6: =INDIRECT("'関数（読み）'!C" & COLUMN(F$1)+SUM($AD$2:$AD7)) -> 47 | P6: =INDIRECT("'関数（読み）'!C" & COLUMN(G$1)+SUM($AD$2:$AD7)) -> 172 | Q6: =INDIRECT("'関数（読み）'!C" & COLUMN(H$1)+SUM($AD$2:$AD7)) -> 113 | R6: =INDIRECT("'関数（読み）'!C" & COLUMN(I$1)+SUM($AD$2:$AD7)) -> 89 | S6: =INDIRECT("'関数（読み）'!C" & COLUMN(J$1)+SUM($AD$2:$AD7)) -> 149 | T6: =INDIRECT("'関数（読み）'!C" & COLUMN(K$1)+SUM($AD$2:$AD7)) -> 131
A7: ⑳ | B7: ⑲ | C7: ⑱ | D7: ⑰ | E7: ⑯ | F7: ⑮ | G7: ⑭ | H7: ⑬ | I7: ⑫ | J7: ⑪ | K7: ⑩ | L7: ⑨ | M7: ⑧ | N7: ⑦ | O7: ⑥ | P7: ⑤ | Q7: ④ | R7: ③ | S7: ② | T7: ① | U7: 次の［ ］の部分の漢字には読みがなをひらがなで書き、カタカナは漢字に直しなさい。 | V7: 10 | W7: 「漢字の博士検定試験」練習問題 | AC7: ← | AD7: 10 | AE7: 問 | AF7: =AH2+1 -> 11 | AG7: ～ | AH7: =SUM($AD$2:$AD7)+10 -> 20 | AI7: 問まで | AJ7: =COUNTIF($A$1:$T$200,T8) -> 2
A8: =IF(A6="","",VLOOKUP(A6,漢字書き!$A$2:$N$506,6,0)) -> ［セキ］にすわる | B8: =IF(B6="","",VLOOKUP(B6,漢字書き!$A$2:$N$506,6,0)) -> [イクジ]休かをとる | C8: =IF(C6="","",VLOOKUP(C6,漢字書き!$A$2:$N$506,6,0)) -> ［カタ］くしばる | D8: =IF(D6="","",VLOOKUP(D6,漢字書き!$A$2:$N$506,6,0)) -> 赤ちゃんが［ナ］き止む | E8: =IF(E6="","",VLOOKUP(E6,漢字書き!$A$2:$N$506,6,0)) -> たん生日を［イワ］う | F8: =IF(F6="","",VLOOKUP(F6,漢字書き!$A$2:$N$506,6,0)) -> 花を［タバ］ねる | G8: =IF(G6="","",VLOOKUP(G6,漢字書き!$A$2:$N$506,6,0)) -> ［ナ］の花 | H8: =IF(H6="","",VLOOKUP(H6,漢字書き!$A$2:$N$506,6,0)) -> 円柱の［ソクメン］ | I8: =IF(I6="","",VLOOKUP(I6,漢字書き!$A$2:$N$506,6,0)) -> ［シツレイ］します | J8: =IF(J6="","",VLOOKUP(J6,漢字書き!$A$2:$N$506,6,0)) -> ［カオ］りのよい部屋 | K8: =IF(K6="","",VLOOKUP(K6,漢字読み!$A$2:$O$506,6,0)) -> ［静］かな音楽 | L8: =IF(L6="","",VLOOKUP(L6,漢字読み!$A$2:$O$506,6,0)) -> 気を［失］う | M8: =IF(M6="","",VLOOKUP(M6,漢字読み!$A$2:$O$506,6,0)) -> ［借金］をする | N8: =IF(N6="","",VLOOKUP(N6,漢字読み!$A$2:$O$506,6,0)) -> 卵が［産］まれる | O8: =IF(O6="","",VLOOKUP(O6,漢字読み!$A$2:$O$506,6,0)) -> 犬が［好］き | P8: =IF(P6="","",VLOOKUP(P6,漢字読み!$A$2:$O$506,6,0)) -> ［天然］のうなぎ | Q8: =IF(Q6="","",VLOOKUP(Q6,漢字読み!$A$2:$O$506,6,0)) -> ［順調］に進む | R8: =IF(R6="","",VLOOKUP(R6,漢字読み!$A$2:$O$506,6,0)) -> ［滋賀県］にある湖 | S8: =IF(S6="","",VLOOKUP(S6,漢字読み!$A$2:$O$506,6,0)) -> ［静物］画をかく | T8: =IF(T6="","",VLOOKUP(T6,漢字読み!$A$2:$O$506,6,0)) -> 部屋の［照明］ | V8: 級
V9: 名前
A10: =IF(A6="","",IF(VLOOKUP(A6,漢字書き!$A$2:$N$502,7,0)=0,"",VLOOKUP(A6,漢字書き!$A$2:$N$502,7,0))) ->  | B10: =IF(B6="","",IF(VLOOKUP(B6,漢字書き!$A$2:$N$502,7,0)=0,"",VLOOKUP(B6,漢字書き!$A$2:$N$502,7,0))) -> 休か | C10: =IF(C6="","",IF(VLOOKUP(C6,漢字書き!$A$2:$N$502,7,0)=0,"",VLOOKUP(C6,漢字書き!$A$2:$N$502,7,0))) -> く | D10: =IF(D6="","",IF(VLOOKUP(D6,漢字書き!$A$2:$N$502,7,0)=0,"",VLOOKUP(D6,漢字書き!$A$2:$N$502,7,0))) -> き止む | E10: =IF(E6="","",IF(VLOOKUP(E6,漢字書き!$A$2:$N$502,7,0)=0,"",VLOOKUP(E6,漢字書き!$A$2:$N$502,7,0))) -> う | F10: =IF(F6="","",IF(VLOOKUP(F6,漢字書き!$A$2:$N$502,7,0)=0,"",VLOOKUP(F6,漢字書き!$A$2:$N$502,7,0))) -> ねる | G10: =IF(G6="","",IF(VLOOKUP(G6,漢字書き!$A$2:$N$502,7,0)=0,"",VLOOKUP(G6,漢字書き!$A$2:$N$502,7,0))) ->  | H10: =IF(H6="","",IF(VLOOKUP(H6,漢字書き!$A$2:$N$502,7,0)=0,"",VLOOKUP(H6,漢字書き!$A$2:$N$502,7,0))) ->  | I10: =IF(I6="","",IF(VLOOKUP(I6,漢字書き!$A$2:$N$502,7,0)=0,"",VLOOKUP(I6,漢字書き!$A$2:$N$502,7,0))) ->  | J10: =IF(J6="","",IF(VLOOKUP(J6,漢字書き!$A$2:$N$502,7,0)=0,"",VLOOKUP(J6,漢字書き!$A$2:$N$502,7,0))) -> り | K10: =IF(K6="","",IF(VLOOKUP(K6,漢字読み!$A$2:$O$502,7,0)=0,"",VLOOKUP(K6,漢字読み!$A$2:$O$502,7,0))) -> かな | L10: =IF(L6="","",IF(VLOOKUP(L6,漢字読み!$A$2:$O$502,7,0)=0,"",VLOOKUP(L6,漢字読み!$A$2:$O$502,7,0))) -> う | M10: =IF(M6="","",IF(VLOOKUP(M6,漢字読み!$A$2:$O$502,7,0)=0,"",VLOOKUP(M6,漢字読み!$A$2:$O$502,7,0))) ->  | N10: =IF(N6="","",IF(VLOOKUP(N6,漢字読み!$A$2:$O$502,7,0)=0,"",VLOOKUP(N6,漢字読み!$A$2:$O$502,7,0))) -> まれる | O10: =IF(O6="","",IF(VLOOKUP(O6,漢字読み!$A$2:$O$502,7,0)=0,"",VLOOKUP(O6,漢字読み!$A$2:$O$502,7,0))) -> き | P10: =IF(P6="","",IF(VLOOKUP(P6,漢字読み!$A$2:$O$502,7,0)=0,"",VLOOKUP(P6,漢字読み!$A$2:$O$502,7,0))) ->  | Q10: =IF(Q6="","",IF(VLOOKUP(Q6,漢字読み!$A$2:$O$502,7,0)=0,"",VLOOKUP(Q6,漢字読み!$A$2:$O$502,7,0))) -> に | R10: =IF(R6="","",IF(VLOOKUP(R6,漢字読み!$A$2:$O$502,7,0)=0,"",VLOOKUP(R6,漢字読み!$A$2:$O$502,7,0))) ->  | S10: =IF(S6="","",IF(VLOOKUP(S6,漢字読み!$A$2:$O$502,7,0)=0,"",VLOOKUP(S6,漢字読み!$A$2:$O$502,7,0))) -> 画 | T10: =IF(T6="","",IF(VLOOKUP(T6,漢字読み!$A$2:$O$502,7,0)=0,"",VLOOKUP(T6,漢字読み!$A$2:$O$502,7,0))) ->  | W10: 和歌山県教育委員会
A11: =A1 -> 79 | B11: 101 | C11: 188 | D11: 121 | E11: 34 | F11: 105 | G11: 123 | H11: 171 | I11: 1 | J11: 166 | K11: 128 | L11: 38 | M11: 33 | N11: 141 | O11: 191 | P11: 146 | Q11: 76 | R11: 173 | S11: 26 | T11: 91
A12: ⑳ | B12: ⑲ | C12: ⑱ | D12: ⑰ | E12: ⑯ | F12: ⑮ | G12: ⑭ | H12: ⑬ | I12: ⑫ | J12: ⑪ | K12: ⑩ | L12: ⑨ | M12: ⑧ | N12: ⑦ | O12: ⑥ | P12: ⑤ | Q12: ④ | R12: ③ | S12: ② | T12: ① | U12: 次の［ ］の部分の漢字には読みがなをひらがなで書き、カタカナは漢字に直しなさい。 | V12: 10 | W12: 「漢字の博士検定試験」練習問題
A13: =IF(A11="","",VLOOKUP(A11,漢字書き!$A$2:$N$506,6,0)) -> 花が［チ］る | B13: =IF(B11="","",VLOOKUP(B11,漢字書き!$A$2:$N$506,6,0)) -> ［ウシナ］われた自然 | C13: =IF(C11="","",VLOOKUP(C11,漢字書き!$A$2:$N$506,6,0)) -> ［オンガクタイ］が来る | D13: =IF(D11="","",VLOOKUP(D11,漢字書き!$A$2:$N$506,6,0)) -> にっこりと[ワラ]う | E13: =IF(E11="","",VLOOKUP(E11,漢字書き!$A$2:$N$506,6,0)) -> [ケツ]ろんをのべる | F13: =IF(F11="","",VLOOKUP(F11,漢字書き!$A$2:$N$506,6,0)) -> ［タネ］をまく | G13: =IF(G11="","",VLOOKUP(G11,漢字書き!$A$2:$N$506,6,0)) -> 平和を［トナ］える | H13: =IF(H11="","",VLOOKUP(H11,漢字書き!$A$2:$N$506,6,0)) -> ［シゼン］を大切にする | I13: =IF(I11="","",VLOOKUP(I11,漢字書き!$A$2:$N$506,6,0)) -> おいしい［キュウショク］ | J13: =IF(J11="","",VLOOKUP(J11,漢字書き!$A$2:$N$506,6,0)) -> 決勝[セン]に出る | K13: =IF(K11="","",VLOOKUP(K11,漢字読み!$A$2:$O$506,6,0)) -> ［石焼］きいも | L13: =IF(L11="","",VLOOKUP(L11,漢字読み!$A$2:$O$506,6,0)) -> 家を［建］てる | M13: =IF(M11="","",VLOOKUP(M11,漢字読み!$A$2:$O$506,6,0)) -> 月が［欠］ける | N13: =IF(N11="","",VLOOKUP(N11,漢字読み!$A$2:$O$506,6,0)) -> 絵が［完成］する | O13: =IF(O11="","",VLOOKUP(O11,漢字読み!$A$2:$O$506,6,0)) -> ［孫］と遊ぶ | P13: =IF(P11="","",VLOOKUP(P11,漢字読み!$A$2:$O$506,6,0)) -> 説明を［省］く | Q13: =IF(Q11="","",VLOOKUP(Q11,漢字読み!$A$2:$O$506,6,0)) -> お宮［参］り | R13: =IF(R11="","",VLOOKUP(R11,漢字読み!$A$2:$O$506,6,0)) -> ［戦争］が起こる | S13: =IF(S11="","",VLOOKUP(S11,漢字読み!$A$2:$O$506,6,0)) -> ［泣］きっ面にハチ | T13: =IF(T11="","",VLOOKUP(T11,漢字読み!$A$2:$O$506,6,0)) -> ［試合］の結果 | V13: 級
A14: =IF(A$11="","",VLOOKUP(A11,漢字書き!$A$2:$O$506,8,0)) -> 散 | B14: =IF(B$11="","",VLOOKUP(B11,漢字書き!$A$2:$O$506,8,0)) -> 失 | C14: =IF(C$11="","",VLOOKUP(C11,漢字書き!$A$2:$O$506,8,0)) -> 音楽隊 | D14: =IF(D$11="","",VLOOKUP(D11,漢字書き!$A$2:$O$506,8,0)) -> 笑 | E14: =IF(E$11="","",VLOOKUP(E11,漢字書き!$A$2:$O$506,8,0)) -> 結 | F14: =IF(F$11="","",VLOOKUP(F11,漢字書き!$A$2:$O$506,8,0)) -> 種 | G14: =IF(G$11="","",VLOOKUP(G11,漢字書き!$A$2:$O$506,8,0)) -> 唱 | H14: =IF(H$11="","",VLOOKUP(H11,漢字書き!$A$2:$O$506,8,0)) -> 自然 | I14: =IF(I$11="","",VLOOKUP(I11,漢字書き!$A$2:$O$506,8,0)) -> 給食 | J14: =IF(J$11="","",VLOOKUP(J11,漢字書き!$A$2:$O$506,8,0)) -> 戦 | K14: =IF(K$11="","",VLOOKUP(K11,漢字読み!$A$2:$O$506,8,0)) -> いしや | L14: =IF(L$11="","",VLOOKUP(L11,漢字読み!$A$2:$O$506,8,0)) -> た | M14: =IF(M$11="","",VLOOKUP(M11,漢字読み!$A$2:$O$506,8,0)) -> か | N14: =IF(N$11="","",VLOOKUP(N11,漢字読み!$A$2:$O$506,8,0)) -> かんせい | O14: =IF(O$11="","",VLOOKUP(O11,漢字読み!$A$2:$O$506,8,0)) -> まご | P14: =IF(P$11="","",VLOOKUP(P11,漢字読み!$A$2:$O$506,8,0)) -> はぶ | Q14: =IF(Q$11="","",VLOOKUP(Q11,漢字読み!$A$2:$O$506,8,0)) -> まい | R14: =IF(R$11="","",VLOOKUP(R11,漢字読み!$A$2:$O$506,8,0)) -> せんそう | S14: =IF(S$11="","",VLOOKUP(S11,漢字読み!$A$2:$O$506,8,0)) -> な | T14: =IF(T$11="","",VLOOKUP(T11,漢字読み!$A$2:$O$506,8,0)) -> しあい | V14: 名前
A15: =IF(A11="","",IF(VLOOKUP(A11,漢字書き!$A$2:$N$502,7,0)=0,"",VLOOKUP(A11,漢字書き!$A$2:$N$502,7,0))) -> る | B15: =IF(B11="","",IF(VLOOKUP(B11,漢字書き!$A$2:$N$502,7,0)=0,"",VLOOKUP(B11,漢字書き!$A$2:$N$502,7,0))) -> われた | C15: =IF(C11="","",IF(VLOOKUP(C11,漢字書き!$A$2:$N$502,7,0)=0,"",VLOOKUP(C11,漢字書き!$A$2:$N$502,7,0))) ->  | D15: =IF(D11="","",IF(VLOOKUP(D11,漢字書き!$A$2:$N$502,7,0)=0,"",VLOOKUP(D11,漢字書き!$A$2:$N$502,7,0))) -> う | E15: =IF(E11="","",IF(VLOOKUP(E11,漢字書き!$A$2:$N$502,7,0)=0,"",VLOOKUP(E11,漢字書き!$A$2:$N$502,7,0))) -> ろん | F15: =IF(F11="","",IF(VLOOKUP(F11,漢字書き!$A$2:$N$502,7,0)=0,"",VLOOKUP(F11,漢字書き!$A$2:$N$502,7,0))) ->  | G15: =IF(G11="","",IF(VLOOKUP(G11,漢字書き!$A$2:$N$502,7,0)=0,"",VLOOKUP(G11,漢字書き!$A$2:$N$502,7,0))) -> える | H15: =IF(H11="","",IF(VLOOKUP(H11,漢字書き!$A$2:$N$502,7,0)=0,"",VLOOKUP(H11,漢字書き!$A$2:$N$502,7,0))) ->  | I15: =IF(I11="","",IF(VLOOKUP(I11,漢字書き!$A$2:$N$502,7,0)=0,"",VLOOKUP(I11,漢字書き!$A$2:$N$502,7,0))) ->  | J15: =IF(J11="","",IF(VLOOKUP(J11,漢字書き!$A$2:$N$502,7,0)=0,"",VLOOKUP(J11,漢字書き!$A$2:$N$502,7,0))) ->  | K15: =IF(K11="","",IF(VLOOKUP(K11,漢字読み!$A$2:$O$502,7,0)=0,"",VLOOKUP(K11,漢字読み!$A$2:$O$502,7,0))) -> き | L15: =IF(L11="","",IF(VLOOKUP(L11,漢字読み!$A$2:$O$502,7,0)=0,"",VLOOKUP(L11,漢字読み!$A$2:$O$502,7,0))) -> てる | M15: =IF(M11="","",IF(VLOOKUP(M11,漢字読み!$A$2:$O$502,7,0)=0,"",VLOOKUP(M11,漢字読み!$A$2:$O$502,7,0))) -> ける | N15: =IF(N11="","",IF(VLOOKUP(N11,漢字読み!$A$2:$O$502,7,0)=0,"",VLOOKUP(N11,漢字読み!$A$2:$O$502,7,0))) -> する | O15: =IF(O11="","",IF(VLOOKUP(O11,漢字読み!$A$2:$O$502,7,0)=0,"",VLOOKUP(O11,漢字読み!$A$2:$O$502,7,0))) ->  | P15: =IF(P11="","",IF(VLOOKUP(P11,漢字読み!$A$2:$O$502,7,0)=0,"",VLOOKUP(P11,漢字読み!$A$2:$O$502,7,0))) -> く | Q15: =IF(Q11="","",IF(VLOOKUP(Q11,漢字読み!$A$2:$O$502,7,0)=0,"",VLOOKUP(Q11,漢字読み!$A$2:$O$502,7,0))) -> り | R15: =IF(R11="","",IF(VLOOKUP(R11,漢字読み!$A$2:$O$502,7,0)=0,"",VLOOKUP(R11,漢字読み!$A$2:$O$502,7,0))) ->  | S15: =IF(S11="","",IF(VLOOKUP(S11,漢字読み!$A$2:$O$502,7,0)=0,"",VLOOKUP(S11,漢字読み!$A$2:$O$502,7,0))) -> きっ面 | T15: =IF(T11="","",IF(VLOOKUP(T11,漢字読み!$A$2:$O$502,7,0)=0,"",VLOOKUP(T11,漢字読み!$A$2:$O$502,7,0))) ->  | W15: 和歌山県教育委員会
A16: =A6 -> 150 | B16: 91 | C16: 44 | D16: 25 | E16: 109 | F16: 179 | G16: 58 | H16: 180 | I16: 100 | J16: 70 | K16: 150 | L16: 104 | M16: 105 | N16: 80 | O16: 47 | P16: 172 | Q16: 113 | R16: 89 | S16: 149 | T16: 131
A17: ⑳ | B17: ⑲ | C17: ⑱ | D17: ⑰ | E17: ⑯ | F17: ⑮ | G17: ⑭ | H17: ⑬ | I17: ⑫ | J17: ⑪ | K17: ⑩ | L17: ⑨ | M17: ⑧ | N17: ⑦ | O17: ⑥ | P17: ⑤ | Q17: ④ | R17: ③ | S17: ② | T17: ① | U17: 次の［ ］の部分の漢字には読みがなをひらがなで書き、カタカナは漢字に直しなさい。 | V17: 10 | W17: 「漢字の博士検定試験」練習問題
A18: =IF(A16="","",VLOOKUP(A16,漢字書き!$A$2:$N$506,6,0)) -> ［セキ］にすわる | B18: =IF(B16="","",VLOOKUP(B16,漢字書き!$A$2:$N$506,6,0)) -> [イクジ]休かをとる | C18: =IF(C16="","",VLOOKUP(C16,漢字書き!$A$2:$N$506,6,0)) -> ［カタ］くしばる | D18: =IF(D16="","",VLOOKUP(D16,漢字書き!$A$2:$N$506,6,0)) -> 赤ちゃんが［ナ］き止む | E18: =IF(E16="","",VLOOKUP(E16,漢字書き!$A$2:$N$506,6,0)) -> たん生日を［イワ］う | F18: =IF(F16="","",VLOOKUP(F16,漢字書き!$A$2:$N$506,6,0)) -> 花を［タバ］ねる | G18: =IF(G16="","",VLOOKUP(G16,漢字書き!$A$2:$N$506,6,0)) -> ［ナ］の花 | H18: =IF(H16="","",VLOOKUP(H16,漢字書き!$A$2:$N$506,6,0)) -> 円柱の［ソクメン］ | I18: =IF(I16="","",VLOOKUP(I16,漢字書き!$A$2:$N$506,6,0)) -> ［シツレイ］します | J18: =IF(J16="","",VLOOKUP(J16,漢字書き!$A$2:$N$506,6,0)) -> ［カオ］りのよい部屋 | K18: =IF(K16="","",VLOOKUP(K16,漢字読み!$A$2:$O$506,6,0)) -> ［静］かな音楽 | L18: =IF(L16="","",VLOOKUP(L16,漢字読み!$A$2:$O$506,6,0)) -> 気を［失］う | M18: =IF(M16="","",VLOOKUP(M16,漢字読み!$A$2:$O$506,6,0)) -> ［借金］をする | N18: =IF(N16="","",VLOOKUP(N16,漢字読み!$A$2:$O$506,6,0)) -> 卵が［産］まれる | O18: =IF(O16="","",VLOOKUP(O16,漢字読み!$A$2:$O$506,6,0)) -> 犬が［好］き | P18: =IF(P16="","",VLOOKUP(P16,漢字読み!$A$2:$O$506,6,0)) -> ［天然］のうなぎ | Q18: =IF(Q16="","",VLOOKUP(Q16,漢字読み!$A$2:$O$506,6,0)) -> ［順調］に進む | R18: =IF(R16="","",VLOOKUP(R16,漢字読み!$A$2:$O$506,6,0)) -> ［滋賀県］にある湖 | S18: =IF(S16="","",VLOOKUP(S16,漢字読み!$A$2:$O$506,6,0)) -> ［静物］画をかく | T18: =IF(T16="","",VLOOKUP(T16,漢字読み!$A$2:$O$506,6,0)) -> 部屋の［照明］ | V18: 級
A19: =IF(A$16="","",VLOOKUP(A16,漢字書き!$A$2:$O$506,8,0)) -> 席 | B19: =IF(B$16="","",VLOOKUP(B16,漢字書き!$A$2:$O$506,8,0)) -> 育児 | C19: =IF(C$16="","",VLOOKUP(C16,漢字書き!$A$2:$O$506,8,0)) -> 固 | D19: =IF(D$16="","",VLOOKUP(D16,漢字書き!$A$2:$O$506,8,0)) -> 泣 | E19: =IF(E$16="","",VLOOKUP(E16,漢字書き!$A$2:$O$506,8,0)) -> 祝 | F19: =IF(F$16="","",VLOOKUP(F16,漢字書き!$A$2:$O$506,8,0)) -> 束 | G19: =IF(G$16="","",VLOOKUP(G16,漢字書き!$A$2:$O$506,8,0)) -> 菜 | H19: =IF(H$16="","",VLOOKUP(H16,漢字書き!$A$2:$O$506,8,0)) -> 側面 | I19: =IF(I$16="","",VLOOKUP(I16,漢字書き!$A$2:$O$506,8,0)) -> 失礼 | J19: =IF(J$16="","",VLOOKUP(J16,漢字書き!$A$2:$O$506,8,0)) -> 香 | K19: =IF(K$16="","",VLOOKUP(K16,漢字読み!$A$2:$O$506,8,0)) -> しず | L19: =IF(L$16="","",VLOOKUP(L16,漢字読み!$A$2:$O$506,8,0)) -> うしな | M19: =IF(M$16="","",VLOOKUP(M16,漢字読み!$A$2:$O$506,8,0)) -> しゃっきん | N19: =IF(N$16="","",VLOOKUP(N16,漢字読み!$A$2:$O$506,8,0)) -> う | O19: =IF(O$16="","",VLOOKUP(O16,漢字読み!$A$2:$O$506,8,0)) -> す | P19: =IF(P$16="","",VLOOKUP(P16,漢字読み!$A$2:$O$506,8,0)) -> てんねん | Q19: =IF(Q$16="","",VLOOKUP(Q16,漢字読み!$A$2:$O$506,8,0)) -> じゅんちょう | R19: =IF(R$16="","",VLOOKUP(R16,漢字読み!$A$2:$O$506,8,0)) -> しがけん | S19: =IF(S$16="","",VLOOKUP(S16,漢字読み!$A$2:$O$506,8,0)) -> せいぶつ | T19: =IF(T$16="","",VLOOKUP(T16,漢字読み!$A$2:$O$506,8,0)) -> しょうめい | V19: 名前
A20: =IF(A16="","",IF(VLOOKUP(A16,漢字書き!$A$2:$N$502,7,0)=0,"",VLOOKUP(A16,漢字書き!$A$2:$N$502,7,0))) ->  | B20: =IF(B16="","",IF(VLOOKUP(B16,漢字書き!$A$2:$N$502,7,0)=0,"",VLOOKUP(B16,漢字書き!$A$2:$N$502,7,0))) -> 休か | C20: =IF(C16="","",IF(VLOOKUP(C16,漢字書き!$A$2:$N$502,7,0)=0,"",VLOOKUP(C16,漢字書き!$A$2:$N$502,7,0))) -> く | D20: =IF(D16="","",IF(VLOOKUP(D16,漢字書き!$A$2:$N$502,7,0)=0,"",VLOOKUP(D16,漢字書き!$A$2:$N$502,7,0))) -> き止む | E20: =IF(E16="","",IF(VLOOKUP(E16,漢字書き!$A$2:$N$502,7,0)=0,"",VLOOKUP(E16,漢字書き!$A$2:$N$502,7,0))) -> う | F20: =IF(F16="","",IF(VLOOKUP(F16,漢字書き!$A$2:$N$502,7,0)=0,"",VLOOKUP(F16,漢字書き!$A$2:$N$502,7,0))) -> ねる | G20: =IF(G16="","",IF(VLOOKUP(G16,漢字書き!$A$2:$N$502,7,0)=0,"",VLOOKUP(G16,漢字書き!$A$2:$N$502,7,0))) ->  | H20: =IF(H16="","",IF(VLOOKUP(H16,漢字書き!$A$2:$N$502,7,0)=0,"",VLOOKUP(H16,漢字書き!$A$2:$N$502,7,0))) ->  | I20: =IF(I16="","",IF(VLOOKUP(I16,漢字書き!$A$2:$N$502,7,0)=0,"",VLOOKUP(I16,漢字書き!$A$2:$N$502,7,0))) ->  | J20: =IF(J16="","",IF(VLOOKUP(J16,漢字書き!$A$2:$N$502,7,0)=0,"",VLOOKUP(J16,漢字書き!$A$2:$N$502,7,0))) -> り | K20: =IF(K16="","",IF(VLOOKUP(K16,漢字読み!$A$2:$O$502,7,0)=0,"",VLOOKUP(K16,漢字読み!$A$2:$O$502,7,0))) -> かな | L20: =IF(L16="","",IF(VLOOKUP(L16,漢字読み!$A$2:$O$502,7,0)=0,"",VLOOKUP(L16,漢字読み!$A$2:$O$502,7,0))) -> う | M20: =IF(M16="","",IF(VLOOKUP(M16,漢字読み!$A$2:$O$502,7,0)=0,"",VLOOKUP(M16,漢字読み!$A$2:$O$502,7,0))) ->  | N20: =IF(N16="","",IF(VLOOKUP(N16,漢字読み!$A$2:$O$502,7,0)=0,"",VLOOKUP(N16,漢字読み!$A$2:$O$502,7,0))) -> まれる | O20: =IF(O16="","",IF(VLOOKUP(O16,漢字読み!$A$2:$O$502,7,0)=0,"",VLOOKUP(O16,漢字読み!$A$2:$O$502,7,0))) -> き | P20: =IF(P16="","",IF(VLOOKUP(P16,漢字読み!$A$2:$O$502,7,0)=0,"",VLOOKUP(P16,漢字読み!$A$2:$O$502,7,0))) ->  | Q20: =IF(Q16="","",IF(VLOOKUP(Q16,漢字読み!$A$2:$O$502,7,0)=0,"",VLOOKUP(Q16,漢字読み!$A$2:$O$502,7,0))) -> に | R20: =IF(R16="","",IF(VLOOKUP(R16,漢字読み!$A$2:$O$502,7,0)=0,"",VLOOKUP(R16,漢字読み!$A$2:$O$502,7,0))) ->  | S20: =IF(S16="","",IF(VLOOKUP(S16,漢字読み!$A$2:$O$502,7,0)=0,"",VLOOKUP(S16,漢字読み!$A$2:$O$502,7,0))) -> 画 | T20: =IF(T16="","",IF(VLOOKUP(T16,漢字読み!$A$2:$O$502,7,0)=0,"",VLOOKUP(T16,漢字読み!$A$2:$O$502,7,0))) ->  | W20: 和歌山県教育委員会
A21: =INDIRECT("'関数（書き）'!C" & COLUMN(B$1)+SUM($AD$2:$AD22)) -> 172 | B21: =INDIRECT("'関数（書き）'!C" & COLUMN(C$1)+SUM($AD$2:$AD22)) -> 56 | C21: =INDIRECT("'関数（書き）'!C" & COLUMN(D$1)+SUM($AD$2:$AD22)) -> 2 | D21: =INDIRECT("'関数（書き）'!C" & COLUMN(E$1)+SUM($AD$2:$AD22)) -> 165 | E21: =INDIRECT("'関数（書き）'!C" & COLUMN(F$1)+SUM($AD$2:$AD22)) -> 80 | F21: =INDIRECT("'関数（書き）'!C" & COLUMN(G$1)+SUM($AD$2:$AD22)) -> 185 | G21: =INDIRECT("'関数（書き）'!C" & COLUMN(H$1)+SUM($AD$2:$AD22)) -> 97 | H21: =INDIRECT("'関数（書き）'!C" & COLUMN(I$1)+SUM($AD$2:$AD22)) -> 151 | I21: =INDIRECT("'関数（書き）'!C" & COLUMN(J$1)+SUM($AD$2:$AD22)) -> 71 | J21: =INDIRECT("'関数（書き）'!C" & COLUMN(K$1)+SUM($AD$2:$AD22)) -> 42 | K21: =INDIRECT("'関数（読み）'!C" & COLUMN(B$1)+SUM($AD$2:$AD22)) -> 143 | L21: =INDIRECT("'関数（読み）'!C" & COLUMN(C$1)+SUM($AD$2:$AD22)) -> 95 | M21: =INDIRECT("'関数（読み）'!C" & COLUMN(D$1)+SUM($AD$2:$AD22)) -> 186 | N21: =INDIRECT("'関数（読み）'!C" & COLUMN(E$1)+SUM($AD$2:$AD22)) -> 17 | O21: =INDIRECT("'関数（読み）'!C" & COLUMN(F$1)+SUM($AD$2:$AD22)) -> 179 | P21: =INDIRECT("'関数（読み）'!C" & COLUMN(G$1)+SUM($AD$2:$AD22)) -> 183 | Q21: =INDIRECT("'関数（読み）'!C" & COLUMN(H$1)+SUM($AD$2:$AD22)) -> 97 | R21: =INDIRECT("'関数（読み）'!C" & COLUMN(I$1)+SUM($AD$2:$AD22)) -> 170 | S21: =INDIRECT("'関数（読み）'!C" & COLUMN(J$1)+SUM($AD$2:$AD22)) -> 152 | T21: =INDIRECT("'関数（読み）'!C" & COLUMN(K$1)+SUM($AD$2:$AD22)) -> 169
A22: ⑳ | B22: ⑲ | C22: ⑱ | D22: ⑰ | E22: ⑯ | F22: ⑮ | G22: ⑭ | H22: ⑬ | I22: ⑫ | J22: ⑪ | K22: ⑩ | L22: ⑨ | M22: ⑧ | N22: ⑦ | O22: ⑥ | P22: ⑤ | Q22: ④ | R22: ③ | S22: ② | T22: ① | U22: 次の［ ］の部分の漢字には読みがなをひらがなで書き、カタカナは漢字に直しなさい。 | V22: 10 | W22: 「漢字の博士検定試験」練習問題 | AC22: ← | AD22: 10 | AE22: 問 | AF22: =AH7+1 -> 21 | AG22: ～ | AH22: =SUM($AD$2:$AD22)+10 -> 30 | AI22: 問まで | AJ22: =COUNTIF($A$1:$T$200,T23) -> 2
A23: =IF(A21="","",VLOOKUP(A21,漢字書き!$A$2:$N$506,6,0)) -> ［テンネン］記ねん物 | B23: =IF(B21="","",VLOOKUP(B21,漢字書き!$A$2:$N$506,6,0)) -> 日が［サ］してきた | C23: =IF(C21="","",VLOOKUP(C21,漢字書き!$A$2:$N$506,6,0)) -> ［イッキョ］にふえる | D23: =IF(D21="","",VLOOKUP(D21,漢字書き!$A$2:$N$506,6,0)) -> ［サクセン］を立てる | E23: =IF(E21="","",VLOOKUP(E21,漢字書き!$A$2:$N$506,6,0)) -> ［ザンショ］お見まいを送る | F23: =IF(F21="","",VLOOKUP(F21,漢字書き!$A$2:$N$506,6,0)) -> かわいい［マゴ］ | G23: =IF(G21="","",VLOOKUP(G21,漢字書き!$A$2:$N$506,6,0)) -> 病気が［ナオ］る | H23: =IF(H21="","",VLOOKUP(H21,漢字書き!$A$2:$N$506,6,0)) -> ［タイセキ］を計る | I23: =IF(I21="","",VLOOKUP(I21,漢字書き!$A$2:$N$506,6,0)) -> 星の［カンサツ］ | J23: =IF(J21="","",VLOOKUP(J21,漢字書き!$A$2:$N$506,6,0)) -> ねじで［コテイ］する | K23: =IF(K21="","",VLOOKUP(K21,漢字読み!$A$2:$O$506,6,0)) -> おそれを［成］す | L23: =IF(L21="","",VLOOKUP(L21,漢字読み!$A$2:$O$506,6,0)) -> [園児]を見送る | M23: =IF(M21="","",VLOOKUP(M21,漢字読み!$A$2:$O$506,6,0)) -> けいこを［続］ける | N23: =IF(N21="","",VLOOKUP(N21,漢字読み!$A$2:$O$506,6,0)) -> ［北極］の白クマ | O23: =IF(O21="","",VLOOKUP(O21,漢字読み!$A$2:$O$506,6,0)) -> ［巣箱］を作る | P23: =IF(P21="","",VLOOKUP(P21,漢字読み!$A$2:$O$506,6,0)) -> ［側道］を走る | Q23: =IF(Q21="","",VLOOKUP(Q21,漢字読み!$A$2:$O$506,6,0)) -> かぜが［完治］する | R23: =IF(R21="","",VLOOKUP(R21,漢字読み!$A$2:$O$506,6,0)) -> 委員を［選］ぶ | S23: =IF(S21="","",VLOOKUP(S21,漢字読み!$A$2:$O$506,6,0)) -> すぐに［着席］する | T23: =IF(T21="","",VLOOKUP(T21,漢字読み!$A$2:$O$506,6,0)) -> マラソン［選手］ | V23: 級
V24: 名前
A25: =IF(A21="","",IF(VLOOKUP(A21,漢字書き!$A$2:$N$502,7,0)=0,"",VLOOKUP(A21,漢字書き!$A$2:$N$502,7,0))) ->  | B25: =IF(B21="","",IF(VLOOKUP(B21,漢字書き!$A$2:$N$502,7,0)=0,"",VLOOKUP(B21,漢字書き!$A$2:$N$502,7,0))) -> して | C25: =IF(C21="","",IF(VLOOKUP(C21,漢字書き!$A$2:$N$502,7,0)=0,"",VLOOKUP(C21,漢字書き!$A$2:$N$502,7,0))) -> に | D25: =IF(D21="","",IF(VLOOKUP(D21,漢字書き!$A$2:$N$502,7,0)=0,"",VLOOKUP(D21,漢字書き!$A$2:$N$502,7,0))) ->  | E25: =IF(E21="","",IF(VLOOKUP(E21,漢字書き!$A$2:$N$502,7,0)=0,"",VLOOKUP(E21,漢字書き!$A$2:$N$502,7,0))) ->  | F25: =IF(F21="","",IF(VLOOKUP(F21,漢字書き!$A$2:$N$502,7,0)=0,"",VLOOKUP(F21,漢字書き!$A$2:$N$502,7,0))) ->  | G25: =IF(G21="","",IF(VLOOKUP(G21,漢字書き!$A$2:$N$502,7,0)=0,"",VLOOKUP(G21,漢字書き!$A$2:$N$502,7,0))) -> る | H25: =IF(H21="","",IF(VLOOKUP(H21,漢字書き!$A$2:$N$502,7,0)=0,"",VLOOKUP(H21,漢字書き!$A$2:$N$502,7,0))) ->  | I25: =IF(I21="","",IF(VLOOKUP(I21,漢字書き!$A$2:$N$502,7,0)=0,"",VLOOKUP(I21,漢字書き!$A$2:$N$502,7,0))) ->  | J25: =IF(J21="","",IF(VLOOKUP(J21,漢字書き!$A$2:$N$502,7,0)=0,"",VLOOKUP(J21,漢字書き!$A$2:$N$502,7,0))) -> する | K25: =IF(K21="","",IF(VLOOKUP(K21,漢字読み!$A$2:$O$502,7,0)=0,"",VLOOKUP(K21,漢字読み!$A$2:$O$502,7,0))) -> す | L25: =IF(L21="","",IF(VLOOKUP(L21,漢字読み!$A$2:$O$502,7,0)=0,"",VLOOKUP(L21,漢字読み!$A$2:$O$502,7,0))) ->  | M25: =IF(M21="","",IF(VLOOKUP(M21,漢字読み!$A$2:$O$502,7,0)=0,"",VLOOKUP(M21,漢字読み!$A$2:$O$502,7,0))) -> ける | N25: =IF(N21="","",IF(VLOOKUP(N21,漢字読み!$A$2:$O$502,7,0)=0,"",VLOOKUP(N21,漢字読み!$A$2:$O$502,7,0))) ->  | O25: =IF(O21="","",IF(VLOOKUP(O21,漢字読み!$A$2:$O$502,7,0)=0,"",VLOOKUP(O21,漢字読み!$A$2:$O$502,7,0))) ->  | P25: =IF(P21="","",IF(VLOOKUP(P21,漢字読み!$A$2:$O$502,7,0)=0,"",VLOOKUP(P21,漢字読み!$A$2:$O$502,7,0))) ->  | Q25: =IF(Q21="","",IF(VLOOKUP(Q21,漢字読み!$A$2:$O$502,7,0)=0,"",VLOOKUP(Q21,漢字読み!$A$2:$O$502,7,0))) -> する | R25: =IF(R21="","",IF(VLOOKUP(R21,漢字読み!$A$2:$O$502,7,0)=0,"",VLOOKUP(R21,漢字読み!$A$2:$O$502,7,0))) -> ぶ | S25: =IF(S21="","",IF(VLOOKUP(S21,漢字読み!$A$2:$O$502,7,0)=0,"",VLOOKUP(S21,漢字読み!$A$2:$O$502,7,0))) -> する | T25: =IF(T21="","",IF(VLOOKUP(T21,漢字読み!$A$2:$O$502,7,0)=0,"",VLOOKUP(T21,漢字読み!$A$2:$O$502,7,0))) ->  | W25: 和歌山県教育委員会
A26: =INDIRECT("'関数（書き）'!C" & COLUMN(B$1)+SUM($AD$2:$AD27)) -> 30 | B26: =INDIRECT("'関数（書き）'!C" & COLUMN(C$1)+SUM($AD$2:$AD27)) -> 76 | C26: =INDIRECT("'関数（書き）'!C" & COLUMN(D$1)+SUM($AD$2:$AD27)) -> 136 | D26: =INDIRECT("'関数（書き）'!C" & COLUMN(E$1)+SUM($AD$2:$AD27)) -> 93 | E26: =INDIRECT("'関数（書き）'!C" & COLUMN(F$1)+SUM($AD$2:$AD27)) -> 154 | F26: =INDIRECT("'関数（書き）'!C" & COLUMN(G$1)+SUM($AD$2:$AD27)) -> 85 | G26: =INDIRECT("'関数（書き）'!C" & COLUMN(H$1)+SUM($AD$2:$AD27)) -> 75 | H26: =INDIRECT("'関数（書き）'!C" & COLUMN(I$1)+SUM($AD$2:$AD27)) -> 138 | I26: =INDIRECT("'関数（書き）'!C" & COLUMN(J$1)+SUM($AD$2:$AD27)) -> 191 | J26: =INDIRECT("'関数（書き）'!C" & COLUMN(K$1)+SUM($AD$2:$AD27)) -> 107 | K26: =INDIRECT("'関数（読み）'!C" & COLUMN(B$1)+SUM($AD$2:$AD27)) -> 110 | L26: =INDIRECT("'関数（読み）'!C" & COLUMN(C$1)+SUM($AD$2:$AD27)) -> 204 | M26: =INDIRECT("'関数（読み）'!C" & COLUMN(D$1)+SUM($AD$2:$AD27)) -> 96 | N26: =INDIRECT("'関数（読み）'!C" & COLUMN(E$1)+SUM($AD$2:$AD27)) -> 36 | O26: =INDIRECT("'関数（読み）'!C" & COLUMN(F$1)+SUM($AD$2:$AD27)) -> 65 | P26: =INDIRECT("'関数（読み）'!C" & COLUMN(G$1)+SUM($AD$2:$AD27)) -> 109 | Q26: =INDIRECT("'関数（読み）'!C" & COLUMN(H$1)+SUM($AD$2:$AD27)) -> 206 | R26: =INDIRECT("'関数（読み）'!C" & COLUMN(I$1)+SUM($AD$2:$AD27)) -> 181 | S26: =INDIRECT("'関数（読み）'!C" & COLUMN(J$1)+SUM($AD$2:$AD27)) -> 37 | T26: =INDIRECT("'関数（読み）'!C" & COLUMN(K$1)+SUM($AD$2:$AD27)) -> 185
A27: ⑳ | B27: ⑲ | C27: ⑱ | D27: ⑰ | E27: ⑯ | F27: ⑮ | G27: ⑭ | H27: ⑬ | I27: ⑫ | J27: ⑪ | K27: ⑩ | L27: ⑨ | M27: ⑧ | N27: ⑦ | O27: ⑥ | P27: ⑤ | Q27: ④ | R27: ③ | S27: ② | T27: ① | U27: 次の［ ］の部分の漢字には読みがなをひらがなで書き、カタカナは漢字に直しなさい。 | V27: 10 | W27: 「漢字の博士検定試験」練習問題 | AC27: ← | AD27: 10 | AE27: 問 | AF27: =AH22+1 -> 31 | AG27: ～ | AH27: =SUM($AD$2:$AD27)+10 -> 40 | AI27: 問まで | AJ27: =COUNTIF($A$1:$T$200,T28) -> 2
A28: =IF(A26="","",VLOOKUP(A26,漢字書き!$A$2:$N$506,6,0)) -> 生活に［カ］くことができない | B28: =IF(B26="","",VLOOKUP(B26,漢字書き!$A$2:$N$506,6,0)) -> ウミガメの［サン］らん | C28: =IF(C26="","",VLOOKUP(C26,漢字書き!$A$2:$N$506,6,0)) -> ビルが［カンセイ］する | D28: =IF(D26="","",VLOOKUP(D26,漢字書き!$A$2:$N$506,6,0)) -> けがが［カンチ］する | E28: =IF(E26="","",VLOOKUP(E26,漢字書き!$A$2:$N$506,6,0)) -> 指をこっ［セツ］する | F28: =IF(F26="","",VLOOKUP(F26,漢字書き!$A$2:$N$506,6,0)) -> 図書館の[シショ] | G28: =IF(G26="","",VLOOKUP(G26,漢字書き!$A$2:$N$506,6,0)) -> 野菜の［サンチ］ | H28: =IF(H26="","",VLOOKUP(H26,漢字書き!$A$2:$N$506,6,0)) -> 最後まで［ナ］しとげる | I28: =IF(I26="","",VLOOKUP(I26,漢字書き!$A$2:$N$506,6,0)) -> ［タンゴ］を覚える | J28: =IF(J26="","",VLOOKUP(J26,漢字書き!$A$2:$N$506,6,0)) -> ［マワ］りの人 | K28: =IF(K26="","",VLOOKUP(K26,漢字読み!$A$2:$O$506,6,0)) -> 家の［周］り | L28: =IF(L26="","",VLOOKUP(L26,漢字読み!$A$2:$O$506,6,0)) -> ［仲］を取り持つ | M28: =IF(M26="","",VLOOKUP(M26,漢字読み!$A$2:$O$506,6,0)) -> ［児童］画を観る | N28: =IF(N26="","",VLOOKUP(N26,漢字読み!$A$2:$O$506,6,0)) -> 列車をれん[結]する | O28: =IF(O26="","",VLOOKUP(O26,漢字読み!$A$2:$O$506,6,0)) -> ［昨年］の夏 | P28: =IF(P26="","",VLOOKUP(P26,漢字読み!$A$2:$O$506,6,0)) -> 池の［周囲］ | Q28: =IF(Q26="","",VLOOKUP(Q26,漢字読み!$A$2:$O$506,6,0)) -> リーダーのほ［佐］ | R28: =IF(R26="","",VLOOKUP(R26,漢字読み!$A$2:$O$506,6,0)) -> 大きな［花束］ | S28: =IF(S26="","",VLOOKUP(S26,漢字読み!$A$2:$O$506,6,0)) -> ビルの［建］ちく | T28: =IF(T26="","",VLOOKUP(T26,漢字読み!$A$2:$O$506,6,0)) -> 物語の［続］へん | V28: 級
V29: 名前
A30: =IF(A26="","",IF(VLOOKUP(A26,漢字書き!$A$2:$N$502,7,0)=0,"",VLOOKUP(A26,漢字書き!$A$2:$N$502,7,0))) -> く | B30: =IF(B26="","",IF(VLOOKUP(B26,漢字書き!$A$2:$N$502,7,0)=0,"",VLOOKUP(B26,漢字書き!$A$2:$N$502,7,0))) ->  | C30: =IF(C26="","",IF(VLOOKUP(C26,漢字書き!$A$2:$N$502,7,0)=0,"",VLOOKUP(C26,漢字書き!$A$2:$N$502,7,0))) -> する | D30: =IF(D26="","",IF(VLOOKUP(D26,漢字書き!$A$2:$N$502,7,0)=0,"",VLOOKUP(D26,漢字書き!$A$2:$N$502,7,0))) -> する | E30: =IF(E26="","",IF(VLOOKUP(E26,漢字書き!$A$2:$N$502,7,0)=0,"",VLOOKUP(E26,漢字書き!$A$2:$N$502,7,0))) -> する | F30: =IF(F26="","",IF(VLOOKUP(F26,漢字書き!$A$2:$N$502,7,0)=0,"",VLOOKUP(F26,漢字書き!$A$2:$N$502,7,0))) ->  | G30: =IF(G26="","",IF(VLOOKUP(G26,漢字書き!$A$2:$N$502,7,0)=0,"",VLOOKUP(G26,漢字書き!$A$2:$N$502,7,0))) ->  | H30: =IF(H26="","",IF(VLOOKUP(H26,漢字書き!$A$2:$N$502,7,0)=0,"",VLOOKUP(H26,漢字書き!$A$2:$N$502,7,0))) -> し | I30: =IF(I26="","",IF(VLOOKUP(I26,漢字書き!$A$2:$N$502,7,0)=0,"",VLOOKUP(I26,漢字書き!$A$2:$N$502,7,0))) ->  | J30: =IF(J26="","",IF(VLOOKUP(J26,漢字書き!$A$2:$N$502,7,0)=0,"",VLOOKUP(J26,漢字書き!$A$2:$N$502,7,0))) -> り | K30: =IF(K26="","",IF(VLOOKUP(K26,漢字読み!$A$2:$O$502,7,0)=0,"",VLOOKUP(K26,漢字読み!$A$2:$O$502,7,0))) -> り | L30: =IF(L26="","",IF(VLOOKUP(L26,漢字読み!$A$2:$O$502,7,0)=0,"",VLOOKUP(L26,漢字読み!$A$2:$O$502,7,0))) ->  | M30: =IF(M26="","",IF(VLOOKUP(M26,漢字読み!$A$2:$O$502,7,0)=0,"",VLOOKUP(M26,漢字読み!$A$2:$O$502,7,0))) -> 画 | N30: =IF(N26="","",IF(VLOOKUP(N26,漢字読み!$A$2:$O$502,7,0)=0,"",VLOOKUP(N26,漢字読み!$A$2:$O$502,7,0))) -> する | O30: =IF(O26="","",IF(VLOOKUP(O26,漢字読み!$A$2:$O$502,7,0)=0,"",VLOOKUP(O26,漢字読み!$A$2:$O$502,7,0))) ->  | P30: =IF(P26="","",IF(VLOOKUP(P26,漢字読み!$A$2:$O$502,7,0)=0,"",VLOOKUP(P26,漢字読み!$A$2:$O$502,7,0))) ->  | Q30: =IF(Q26="","",IF(VLOOKUP(Q26,漢字読み!$A$2:$O$502,7,0)=0,"",VLOOKUP(Q26,漢字読み!$A$2:$O$502,7,0))) ->  | R30: =IF(R26="","",IF(VLOOKUP(R26,漢字読み!$A$2:$O$502,7,0)=0,"",VLOOKUP(R26,漢字読み!$A$2:$O$502,7,0))) ->  | S30: =IF(S26="","",IF(VLOOKUP(S26,漢字読み!$A$2:$O$502,7,0)=0,"",VLOOKUP(S26,漢字読み!$A$2:$O$502,7,0))) -> ちく | T30: =IF(T26="","",IF(VLOOKUP(T26,漢字読み!$A$2:$O$502,7,0)=0,"",VLOOKUP(T26,漢字読み!$A$2:$O$502,7,0))) -> へん | W30: 和歌山県教育委員会
A31: =A21 -> 172 | B31: 56 | C31: 2 | D31: 165 | E31: 80 | F31: 185 | G31: 97 | H31: 151 | I31: 71 | J31: 42 | K31: 143 | L31: 95 | M31: 186 | N31: 17 | O31: 179 | P31: 183 | Q31: 97 | R31: 170 | S31: 152 | T31: 169
A32: ⑳ | B32: ⑲ | C32: ⑱ | D32: ⑰ | E32: ⑯ | F32: ⑮ | G32: ⑭ | H32: ⑬ | I32: ⑫ | J32: ⑪ | K32: ⑩ | L32: ⑨ | M32: ⑧ | N32: ⑦ | O32: ⑥ | P32: ⑤ | Q32: ④ | R32: ③ | S32: ② | T32: ① | U32: 次の［ ］の部分の漢字には読みがなをひらがなで書き、カタカナは漢字に直しなさい。 | V32: 10 | W32: 「漢字の博士検定試験」練習問題
A33: =IF(A31="","",VLOOKUP(A31,漢字書き!$A$2:$N$506,6,0)) -> ［テンネン］記ねん物 | B33: =IF(B31="","",VLOOKUP(B31,漢字書き!$A$2:$N$506,6,0)) -> 日が［サ］してきた | C33: =IF(C31="","",VLOOKUP(C31,漢字書き!$A$2:$N$506,6,0)) -> ［イッキョ］にふえる | D33: =IF(D31="","",VLOOKUP(D31,漢字書き!$A$2:$N$506,6,0)) -> ［サクセン］を立てる | E33: =IF(E31="","",VLOOKUP(E31,漢字書き!$A$2:$N$506,6,0)) -> ［ザンショ］お見まいを送る | F33: =IF(F31="","",VLOOKUP(F31,漢字書き!$A$2:$N$506,6,0)) -> かわいい［マゴ］ | G33: =IF(G31="","",VLOOKUP(G31,漢字書き!$A$2:$N$506,6,0)) -> 病気が［ナオ］る | H33: =IF(H31="","",VLOOKUP(H31,漢字書き!$A$2:$N$506,6,0)) -> ［タイセキ］を計る | I33: =IF(I31="","",VLOOKUP(I31,漢字書き!$A$2:$N$506,6,0)) -> 星の［カンサツ］ | J33: =IF(J31="","",VLOOKUP(J31,漢字書き!$A$2:$N$506,6,0)) -> ねじで［コテイ］する | K33: =IF(K31="","",VLOOKUP(K31,漢字読み!$A$2:$O$506,6,0)) -> おそれを［成］す | L33: =IF(L31="","",VLOOKUP(L31,漢字読み!$A$2:$O$506,6,0)) -> [園児]を見送る | M33: =IF(M31="","",VLOOKUP(M31,漢字読み!$A$2:$O$506,6,0)) -> けいこを［続］ける | N33: =IF(N31="","",VLOOKUP(N31,漢字読み!$A$2:$O$506,6,0)) -> ［北極］の白クマ | O33: =IF(O31="","",VLOOKUP(O31,漢字読み!$A$2:$O$506,6,0)) -> ［巣箱］を作る | P33: =IF(P31="","",VLOOKUP(P31,漢字読み!$A$2:$O$506,6,0)) -> ［側道］を走る | Q33: =IF(Q31="","",VLOOKUP(Q31,漢字読み!$A$2:$O$506,6,0)) -> かぜが［完治］する | R33: =IF(R31="","",VLOOKUP(R31,漢字読み!$A$2:$O$506,6,0)) -> 委員を［選］ぶ | S33: =IF(S31="","",VLOOKUP(S31,漢字読み!$A$2:$O$506,6,0)) -> すぐに［着席］する | T33: =IF(T31="","",VLOOKUP(T31,漢字読み!$A$2:$O$506,6,0)) -> マラソン［選手］ | V33: 級
A34: =IF(A$11="","",VLOOKUP(A31,漢字書き!$A$2:$O$506,8,0)) -> 天然 | B34: =IF(B$11="","",VLOOKUP(B31,漢字書き!$A$2:$O$506,8,0)) -> 差 | C34: =IF(C$11="","",VLOOKUP(C31,漢字書き!$A$2:$O$506,8,0)) -> 一挙 | D34: =IF(D$11="","",VLOOKUP(D31,漢字書き!$A$2:$O$506,8,0)) -> 作戦 | E34: =IF(E$11="","",VLOOKUP(E31,漢字書き!$A$2:$O$506,8,0)) -> 残暑 | F34: =IF(F$11="","",VLOOKUP(F31,漢字書き!$A$2:$O$506,8,0)) -> 孫 | G34: =IF(G$11="","",VLOOKUP(G31,漢字書き!$A$2:$O$506,8,0)) -> 治 | H34: =IF(H$11="","",VLOOKUP(H31,漢字書き!$A$2:$O$506,8,0)) -> 体積 | I34: =IF(I$11="","",VLOOKUP(I31,漢字書き!$A$2:$O$506,8,0)) -> 観察 | J34: =IF(J$11="","",VLOOKUP(J31,漢字書き!$A$2:$O$506,8,0)) -> 固定 | K34: =IF(K$11="","",VLOOKUP(K31,漢字読み!$A$2:$O$506,8,0)) -> な | L34: =IF(L$11="","",VLOOKUP(L31,漢字読み!$A$2:$O$506,8,0)) -> えんじ | M34: =IF(M$11="","",VLOOKUP(M31,漢字読み!$A$2:$O$506,8,0)) -> つづ | N34: =IF(N$11="","",VLOOKUP(N31,漢字読み!$A$2:$O$506,8,0)) -> ほっきょく | O34: =IF(O$11="","",VLOOKUP(O31,漢字読み!$A$2:$O$506,8,0)) -> すばこ | P34: =IF(P$11="","",VLOOKUP(P31,漢字読み!$A$2:$O$506,8,0)) -> そくどう | Q34: =IF(Q$11="","",VLOOKUP(Q31,漢字読み!$A$2:$O$506,8,0)) -> かんち | R34: =IF(R$11="","",VLOOKUP(R31,漢字読み!$A$2:$O$506,8,0)) -> えら | S34: =IF(S$11="","",VLOOKUP(S31,漢字読み!$A$2:$O$506,8,0)) -> ちゃくせき | T34: =IF(T$11="","",VLOOKUP(T31,漢字読み!$A$2:$O$506,8,0)) -> せんしゅ | V34: 名前
A35: =IF(A31="","",IF(VLOOKUP(A31,漢字書き!$A$2:$N$502,7,0)=0,"",VLOOKUP(A31,漢字書き!$A$2:$N$502,7,0))) ->  | B35: =IF(B31="","",IF(VLOOKUP(B31,漢字書き!$A$2:$N$502,7,0)=0,"",VLOOKUP(B31,漢字書き!$A$2:$N$502,7,0))) -> して | C35: =IF(C31="","",IF(VLOOKUP(C31,漢字書き!$A$2:$N$502,7,0)=0,"",VLOOKUP(C31,漢字書き!$A$2:$N$502,7,0))) -> に | D35: =IF(D31="","",IF(VLOOKUP(D31,漢字書き!$A$2:$N$502,7,0)=0,"",VLOOKUP(D31,漢字書き!$A$2:$N$502,7,0))) ->  | E35: =IF(E31="","",IF(VLOOKUP(E31,漢字書き!$A$2:$N$502,7,0)=0,"",VLOOKUP(E31,漢字書き!$A$2:$N$502,7,0))) ->  | F35: =IF(F31="","",IF(VLOOKUP(F31,漢字書き!$A$2:$N$502,7,0)=0,"",VLOOKUP(F31,漢字書き!$A$2:$N$502,7,0))) ->  | G35: =IF(G31="","",IF(VLOOKUP(G31,漢字書き!$A$2:$N$502,7,0)=0,"",VLOOKUP(G31,漢字書き!$A$2:$N$502,7,0))) -> る | H35: =IF(H31="","",IF(VLOOKUP(H31,漢字書き!$A$2:$N$502,7,0)=0,"",VLOOKUP(H31,漢字書き!$A$2:$N$502,7,0))) ->  | I35: =IF(I31="","",IF(VLOOKUP(I31,漢字書き!$A$2:$N$502,7,0)=0,"",VLOOKUP(I31,漢字書き!$A$2:$N$502,7,0))) ->  | J35: =IF(J31="","",IF(VLOOKUP(J31,漢字書き!$A$2:$N$502,7,0)=0,"",VLOOKUP(J31,漢字書き!$A$2:$N$502,7,0))) -> する | K35: =IF(K31="","",IF(VLOOKUP(K31,漢字読み!$A$2:$O$502,7,0)=0,"",VLOOKUP(K31,漢字読み!$A$2:$O$502,7,0))) -> す | L35: =IF(L31="","",IF(VLOOKUP(L31,漢字読み!$A$2:$O$502,7,0)=0,"",VLOOKUP(L31,漢字読み!$A$2:$O$502,7,0))) ->  | M35: =IF(M31="","",IF(VLOOKUP(M31,漢字読み!$A$2:$O$502,7,0)=0,"",VLOOKUP(M31,漢字読み!$A$2:$O$502,7,0))) -> ける | N35: =IF(N31="","",IF(VLOOKUP(N31,漢字読み!$A$2:$O$502,7,0)=0,"",VLOOKUP(N31,漢字読み!$A$2:$O$502,7,0))) ->  | O35: =IF(O31="","",IF(VLOOKUP(O31,漢字読み!$A$2:$O$502,7,0)=0,"",VLOOKUP(O31,漢字読み!$A$2:$O$502,7,0))) ->  | P35: =IF(P31="","",IF(VLOOKUP(P31,漢字読み!$A$2:$O$502,7,0)=0,"",VLOOKUP(P31,漢字読み!$A$2:$O$502,7,0))) ->  | Q35: =IF(Q31="","",IF(VLOOKUP(Q31,漢字読み!$A$2:$O$502,7,0)=0,"",VLOOKUP(Q31,漢字読み!$A$2:$O$502,7,0))) -> する | R35: =IF(R31="","",IF(VLOOKUP(R31,漢字読み!$A$2:$O$502,7,0)=0,"",VLOOKUP(R31,漢字読み!$A$2:$O$502,7,0))) -> ぶ | S35: =IF(S31="","",IF(VLOOKUP(S31,漢字読み!$A$2:$O$502,7,0)=0,"",VLOOKUP(S31,漢字読み!$A$2:$O$502,7,0))) -> する | T35: =IF(T31="","",IF(VLOOKUP(T31,漢字読み!$A$2:$O$502,7,0)=0,"",VLOOKUP(T31,漢字読み!$A$2:$O$502,7,0))) ->  | W35: 和歌山県教育委員会
A36: =A26 -> 30 | B36: 76 | C36: 136 | D36: 93 | E36: 154 | F36: 85 | G36: 75 | H36: 138 | I36: 191 | J36: 107 | K36: 110 | L36: 204 | M36: 96 | N36: 36 | O36: 65 | P36: 109 | Q36: 206 | R36: 181 | S36: 37 | T36: 185
A37: ⑳ | B37: ⑲ | C37: ⑱ | D37: ⑰ | E37: ⑯ | F37: ⑮ | G37: ⑭ | H37: ⑬ | I37: ⑫ | J37: ⑪ | K37: ⑩ | L37: ⑨ | M37: ⑧ | N37: ⑦ | O37: ⑥ | P37: ⑤ | Q37: ④ | R37: ③ | S37: ② | T37: ① | U37: 次の［ ］の部分の漢字には読みがなをひらがなで書き、カタカナは漢字に直しなさい。 | V37: 10 | W37: 「漢字の博士検定試験」練習問題
A38: =IF(A36="","",VLOOKUP(A36,漢字書き!$A$2:$N$506,6,0)) -> 生活に［カ］くことができない | B38: =IF(B36="","",VLOOKUP(B36,漢字書き!$A$2:$N$506,6,0)) -> ウミガメの［サン］らん | C38: =IF(C36="","",VLOOKUP(C36,漢字書き!$A$2:$N$506,6,0)) -> ビルが［カンセイ］する | D38: =IF(D36="","",VLOOKUP(D36,漢字書き!$A$2:$N$506,6,0)) -> けがが［カンチ］する | E38: =IF(E36="","",VLOOKUP(E36,漢字書き!$A$2:$N$506,6,0)) -> 指をこっ［セツ］する | F38: =IF(F36="","",VLOOKUP(F36,漢字書き!$A$2:$N$506,6,0)) -> 図書館の[シショ] | G38: =IF(G36="","",VLOOKUP(G36,漢字書き!$A$2:$N$506,6,0)) -> 野菜の［サンチ］ | H38: =IF(H36="","",VLOOKUP(H36,漢字書き!$A$2:$N$506,6,0)) -> 最後まで［ナ］しとげる | I38: =IF(I36="","",VLOOKUP(I36,漢字書き!$A$2:$N$506,6,0)) -> ［タンゴ］を覚える | J38: =IF(J36="","",VLOOKUP(J36,漢字書き!$A$2:$N$506,6,0)) -> ［マワ］りの人 | K38: =IF(K36="","",VLOOKUP(K36,漢字読み!$A$2:$O$506,6,0)) -> 家の［周］り | L38: =IF(L36="","",VLOOKUP(L36,漢字読み!$A$2:$O$506,6,0)) -> ［仲］を取り持つ | M38: =IF(M36="","",VLOOKUP(M36,漢字読み!$A$2:$O$506,6,0)) -> ［児童］画を観る | N38: =IF(N36="","",VLOOKUP(N36,漢字読み!$A$2:$O$506,6,0)) -> 列車をれん[結]する | O38: =IF(O36="","",VLOOKUP(O36,漢字読み!$A$2:$O$506,6,0)) -> ［昨年］の夏 | P38: =IF(P36="","",VLOOKUP(P36,漢字読み!$A$2:$O$506,6,0)) -> 池の［周囲］ | Q38: =IF(Q36="","",VLOOKUP(Q36,漢字読み!$A$2:$O$506,6,0)) -> リーダーのほ［佐］ | R38: =IF(R36="","",VLOOKUP(R36,漢字読み!$A$2:$O$506,6,0)) -> 大きな［花束］ | S38: =IF(S36="","",VLOOKUP(S36,漢字読み!$A$2:$O$506,6,0)) -> ビルの［建］ちく | T38: =IF(T36="","",VLOOKUP(T36,漢字読み!$A$2:$O$506,6,0)) -> 物語の［続］へん | V38: 級
A39: =IF(A$16="","",VLOOKUP(A36,漢字書き!$A$2:$O$506,8,0)) -> 欠 | B39: =IF(B$16="","",VLOOKUP(B36,漢字書き!$A$2:$O$506,8,0)) -> 産 | C39: =IF(C$16="","",VLOOKUP(C36,漢字書き!$A$2:$O$506,8,0)) -> 完成 | D39: =IF(D$16="","",VLOOKUP(D36,漢字書き!$A$2:$O$506,8,0)) -> 完治 | E39: =IF(E$16="","",VLOOKUP(E36,漢字書き!$A$2:$O$506,8,0)) -> 折 | F39: =IF(F$16="","",VLOOKUP(F36,漢字書き!$A$2:$O$506,8,0)) -> 司書 | G39: =IF(G$16="","",VLOOKUP(G36,漢字書き!$A$2:$O$506,8,0)) -> 産地 | H39: =IF(H$16="","",VLOOKUP(H36,漢字書き!$A$2:$O$506,8,0)) -> 成 | I39: =IF(I$16="","",VLOOKUP(I36,漢字書き!$A$2:$O$506,8,0)) -> 単語 | J39: =IF(J$16="","",VLOOKUP(J36,漢字書き!$A$2:$O$506,8,0)) -> 周 | K39: =IF(K$16="","",VLOOKUP(K36,漢字読み!$A$2:$O$506,8,0)) -> まわ | L39: =IF(L$16="","",VLOOKUP(L36,漢字読み!$A$2:$O$506,8,0)) -> なか | M39: =IF(M$16="","",VLOOKUP(M36,漢字読み!$A$2:$O$506,8,0)) -> じどう | N39: =IF(N$16="","",VLOOKUP(N36,漢字読み!$A$2:$O$506,8,0)) -> けつ | O39: =IF(O$16="","",VLOOKUP(O36,漢字読み!$A$2:$O$506,8,0)) -> さくねん | P39: =IF(P$16="","",VLOOKUP(P36,漢字読み!$A$2:$O$506,8,0)) -> しゅうい | Q39: =IF(Q$16="","",VLOOKUP(Q36,漢字読み!$A$2:$O$506,8,0)) -> さ | R39: =IF(R$16="","",VLOOKUP(R36,漢字読み!$A$2:$O$506,8,0)) -> はなたば | S39: =IF(S$16="","",VLOOKUP(S36,漢字読み!$A$2:$O$506,8,0)) -> けん | T39: =IF(T$16="","",VLOOKUP(T36,漢字読み!$A$2:$O$506,8,0)) -> ぞく | V39: 名前
A40: =IF(A36="","",IF(VLOOKUP(A36,漢字書き!$A$2:$N$502,7,0)=0,"",VLOOKUP(A36,漢字書き!$A$2:$N$502,7,0))) -> く | B40: =IF(B36="","",IF(VLOOKUP(B36,漢字書き!$A$2:$N$502,7,0)=0,"",VLOOKUP(B36,漢字書き!$A$2:$N$502,7,0))) ->  | C40: =IF(C36="","",IF(VLOOKUP(C36,漢字書き!$A$2:$N$502,7,0)=0,"",VLOOKUP(C36,漢字書き!$A$2:$N$502,7,0))) -> する | D40: =IF(D36="","",IF(VLOOKUP(D36,漢字書き!$A$2:$N$502,7,0)=0,"",VLOOKUP(D36,漢字書き!$A$2:$N$502,7,0))) -> する | E40: =IF(E36="","",IF(VLOOKUP(E36,漢字書き!$A$2:$N$502,7,0)=0,"",VLOOKUP(E36,漢字書き!$A$2:$N$502,7,0))) -> する | F40: =IF(F36="","",IF(VLOOKUP(F36,漢字書き!$A$2:$N$502,7,0)=0,"",VLOOKUP(F36,漢字書き!$A$2:$N$502,7,0))) ->  | G40: =IF(G36="","",IF(VLOOKUP(G36,漢字書き!$A$2:$N$502,7,0)=0,"",VLOOKUP(G36,漢字書き!$A$2:$N$502,7,0))) ->  | H40: =IF(H36="","",IF(VLOOKUP(H36,漢字書き!$A$2:$N$502,7,0)=0,"",VLOOKUP(H36,漢字書き!$A$2:$N$502,7,0))) -> し | I40: =IF(I36="","",IF(VLOOKUP(I36,漢字書き!$A$2:$N$502,7,0)=0,"",VLOOKUP(I36,漢字書き!$A$2:$N$502,7,0))) ->  | J40: =IF(J36="","",IF(VLOOKUP(J36,漢字書き!$A$2:$N$502,7,0)=0,"",VLOOKUP(J36,漢字書き!$A$2:$N$502,7,0))) -> り | K40: =IF(K36="","",IF(VLOOKUP(K36,漢字読み!$A$2:$O$502,7,0)=0,"",VLOOKUP(K36,漢字読み!$A$2:$O$502,7,0))) -> り | L40: =IF(L36="","",IF(VLOOKUP(L36,漢字読み!$A$2:$O$502,7,0)=0,"",VLOOKUP(L36,漢字読み!$A$2:$O$502,7,0))) ->  | M40: =IF(M36="","",IF(VLOOKUP(M36,漢字読み!$A$2:$O$502,7,0)=0,"",VLOOKUP(M36,漢字読み!$A$2:$O$502,7,0))) -> 画 | N40: =IF(N36="","",IF(VLOOKUP(N36,漢字読み!$A$2:$O$502,7,0)=0,"",VLOOKUP(N36,漢字読み!$A$2:$O$502,7,0))) -> する | O40: =IF(O36="","",IF(VLOOKUP(O36,漢字読み!$A$2:$O$502,7,0)=0,"",VLOOKUP(O36,漢字読み!$A$2:$O$502,7,0))) ->  | P40: =IF(P36="","",IF(VLOOKUP(P36,漢字読み!$A$2:$O$502,7,0)=0,"",VLOOKUP(P36,漢字読み!$A$2:$O$502,7,0))) ->  | Q40: =IF(Q36="","",IF(VLOOKUP(Q36,漢字読み!$A$2:$O$502,7,0)=0,"",VLOOKUP(Q36,漢字読み!$A$2:$O$502,7,0))) ->  | R40: =IF(R36="","",IF(VLOOKUP(R36,漢字読み!$A$2:$O$502,7,0)=0,"",VLOOKUP(R36,漢字読み!$A$2:$O$502,7,0))) ->  | S40: =IF(S36="","",IF(VLOOKUP(S36,漢字読み!$A$2:$O$502,7,0)=0,"",VLOOKUP(S36,漢字読み!$A$2:$O$502,7,0))) -> ちく | T40: =IF(T36="","",IF(VLOOKUP(T36,漢字読み!$A$2:$O$502,7,0)=0,"",VLOOKUP(T36,漢字読み!$A$2:$O$502,7,0))) -> へん | W40: 和歌山県教育委員会
A41: =INDIRECT("'関数（書き）'!C" & COLUMN(B$1)+SUM($AD$2:$AD42)) -> 59 | B41: =INDIRECT("'関数（書き）'!C" & COLUMN(C$1)+SUM($AD$2:$AD42)) -> 153 | C41: =INDIRECT("'関数（書き）'!C" & COLUMN(D$1)+SUM($AD$2:$AD42)) -> 99 | D41: =INDIRECT("'関数（書き）'!C" & COLUMN(E$1)+SUM($AD$2:$AD42)) -> 142 | E41: =INDIRECT("'関数（書き）'!C" & COLUMN(F$1)+SUM($AD$2:$AD42)) -> 39 | F41: =INDIRECT("'関数（書き）'!C" & COLUMN(G$1)+SUM($AD$2:$AD42)) -> 78 | G41: =INDIRECT("'関数（書き）'!C" & COLUMN(H$1)+SUM($AD$2:$AD42)) -> 73 | H41: =INDIRECT("'関数（書き）'!C" & COLUMN(I$1)+SUM($AD$2:$AD42)) -> 112 | I41: =INDIRECT("'関数（書き）'!C" & COLUMN(J$1)+SUM($AD$2:$AD42)) -> 74 | J41: =INDIRECT("'関数（書き）'!C" & COLUMN(K$1)+SUM($AD$2:$AD42)) -> 62 | K41: =INDIRECT("'関数（読み）'!C" & COLUMN(B$1)+SUM($AD$2:$AD42)) -> 62 | L41: =INDIRECT("'関数（読み）'!C" & COLUMN(C$1)+SUM($AD$2:$AD42)) -> 59 | M41: =INDIRECT("'関数（読み）'!C" & COLUMN(D$1)+SUM($AD$2:$AD42)) -> 121 | N41: =INDIRECT("'関数（読み）'!C" & COLUMN(E$1)+SUM($AD$2:$AD42)) -> 85 | O41: =INDIRECT("'関数（読み）'!C" & COLUMN(F$1)+SUM($AD$2:$AD42)) -> 145 | P41: =INDIRECT("'関数（読み）'!C" & COLUMN(G$1)+SUM($AD$2:$AD42)) -> 147 | Q41: =INDIRECT("'関数（読み）'!C" & COLUMN(H$1)+SUM($AD$2:$AD42)) -> 219 | R41: =INDIRECT("'関数（読み）'!C" & COLUMN(I$1)+SUM($AD$2:$AD42)) -> 32 | S41: =INDIRECT("'関数（読み）'!C" & COLUMN(J$1)+SUM($AD$2:$AD42)) -> 211 | T41: =INDIRECT("'関数（読み）'!C" & COLUMN(K$1)+SUM($AD$2:$AD42)) -> 12
A42: ⑳ | B42: ⑲ | C42: ⑱ | D42: ⑰ | E42: ⑯ | F42: ⑮ | G42: ⑭ | H42: ⑬ | I42: ⑫ | J42: ⑪ | K42: ⑩ | L42: ⑨ | M42: ⑧ | N42: ⑦ | O42: ⑥ | P42: ⑤ | Q42: ④ | R42: ③ | S42: ② | T42: ① | U42: 次の［ ］の部分の漢字には読みがなをひらがなで書き、カタカナは漢字に直しなさい。 | V42: 10 | W42: 「漢字の博士検定試験」練習問題 | AC42: ← | AD42: 10 | AE42: 問 | AF42: =AH27+1 -> 41 | AG42: ～ | AH42: =SUM($AD$2:$AD42)+10 -> 50 | AI42: 問まで | AJ42: =COUNTIF($A$1:$T$200,T43) -> 2
A43: =IF(A41="","",VLOOKUP(A41,漢字書き!$A$2:$N$506,6,0)) -> ［サイコウ］にうれしい | B43: =IF(B41="","",VLOOKUP(B41,漢字書き!$A$2:$N$506,6,0)) -> 雪が［ツ］もる | C43: =IF(C41="","",VLOOKUP(C41,漢字書き!$A$2:$N$506,6,0)) -> [シュクジ]をのべる | D43: =IF(D41="","",VLOOKUP(D41,漢字書き!$A$2:$N$506,6,0)) -> いらない部分を［ハブ］く | E43: =IF(E41="","",VLOOKUP(E41,漢字書き!$A$2:$N$506,6,0)) -> おそろしい[タイケン] | F43: =IF(F41="","",VLOOKUP(F41,漢字書き!$A$2:$N$506,6,0)) -> 公園を［サンポ］する | G43: =IF(G41="","",VLOOKUP(G41,漢字書き!$A$2:$N$506,6,0)) -> イベントに［サンカ］する | H43: =IF(H41="","",VLOOKUP(H41,漢字書き!$A$2:$N$506,6,0)) -> ［サイショ］が大切だ | I43: =IF(I41="","",VLOOKUP(I41,漢字書き!$A$2:$N$506,6,0)) -> ［サンギョウ］が栄える | J43: =IF(J41="","",VLOOKUP(J41,漢字書き!$A$2:$N$506,6,0)) -> ［キノウ］の出来事 | K43: =IF(K41="","",VLOOKUP(K41,漢字読み!$A$2:$O$506,6,0)) -> ［最］も高い山 | L43: =IF(L41="","",VLOOKUP(L41,漢字読み!$A$2:$O$506,6,0)) -> ［野菜］を育てる | M43: =IF(M41="","",VLOOKUP(M41,漢字読み!$A$2:$O$506,6,0)) -> [笑]い話を聞く | N43: =IF(N41="","",VLOOKUP(N41,漢字読み!$A$2:$O$506,6,0)) -> ［残］りの絵を仕上げる | O43: =IF(O41="","",VLOOKUP(O41,漢字読み!$A$2:$O$506,6,0)) -> ［反省］する | P43: =IF(P41="","",VLOOKUP(P41,漢字読み!$A$2:$O$506,6,0)) -> 川の［清流］ | Q43: =IF(Q41="","",VLOOKUP(Q41,漢字読み!$A$2:$O$506,6,0)) -> ［的当］てをして遊ぶ | R43: =IF(R41="","",VLOOKUP(R41,漢字読み!$A$2:$O$506,6,0)) -> じゅ業を［欠席］する | S43: =IF(S41="","",VLOOKUP(S41,漢字読み!$A$2:$O$506,6,0)) -> ［低音］の声 | T43: =IF(T41="","",VLOOKUP(T41,漢字読み!$A$2:$O$506,6,0)) -> 体育［協会］に入る | V43: 級
V44: 名前
A45: =IF(A41="","",IF(VLOOKUP(A41,漢字書き!$A$2:$N$502,7,0)=0,"",VLOOKUP(A41,漢字書き!$A$2:$N$502,7,0))) -> に | B45: =IF(B41="","",IF(VLOOKUP(B41,漢字書き!$A$2:$N$502,7,0)=0,"",VLOOKUP(B41,漢字書き!$A$2:$N$502,7,0))) -> もる | C45: =IF(C41="","",IF(VLOOKUP(C41,漢字書き!$A$2:$N$502,7,0)=0,"",VLOOKUP(C41,漢字書き!$A$2:$N$502,7,0))) ->  | D45: =IF(D41="","",IF(VLOOKUP(D41,漢字書き!$A$2:$N$502,7,0)=0,"",VLOOKUP(D41,漢字書き!$A$2:$N$502,7,0))) -> く | E45: =IF(E41="","",IF(VLOOKUP(E41,漢字書き!$A$2:$N$502,7,0)=0,"",VLOOKUP(E41,漢字書き!$A$2:$N$502,7,0))) ->  | F45: =IF(F41="","",IF(VLOOKUP(F41,漢字書き!$A$2:$N$502,7,0)=0,"",VLOOKUP(F41,漢字書き!$A$2:$N$502,7,0))) -> する | G45: =IF(G41="","",IF(VLOOKUP(G41,漢字書き!$A$2:$N$502,7,0)=0,"",VLOOKUP(G41,漢字書き!$A$2:$N$502,7,0))) -> する | H45: =IF(H41="","",IF(VLOOKUP(H41,漢字書き!$A$2:$N$502,7,0)=0,"",VLOOKUP(H41,漢字書き!$A$2:$N$502,7,0))) ->  | I45: =IF(I41="","",IF(VLOOKUP(I41,漢字書き!$A$2:$N$502,7,0)=0,"",VLOOKUP(I41,漢字書き!$A$2:$N$502,7,0))) ->  | J45: =IF(J41="","",IF(VLOOKUP(J41,漢字書き!$A$2:$N$502,7,0)=0,"",VLOOKUP(J41,漢字書き!$A$2:$N$502,7,0))) ->  | K45: =IF(K41="","",IF(VLOOKUP(K41,漢字読み!$A$2:$O$502,7,0)=0,"",VLOOKUP(K41,漢字読み!$A$2:$O$502,7,0))) -> も | L45: =IF(L41="","",IF(VLOOKUP(L41,漢字読み!$A$2:$O$502,7,0)=0,"",VLOOKUP(L41,漢字読み!$A$2:$O$502,7,0))) ->  | M45: =IF(M41="","",IF(VLOOKUP(M41,漢字読み!$A$2:$O$502,7,0)=0,"",VLOOKUP(M41,漢字読み!$A$2:$O$502,7,0))) -> い話 | N45: =IF(N41="","",IF(VLOOKUP(N41,漢字読み!$A$2:$O$502,7,0)=0,"",VLOOKUP(N41,漢字読み!$A$2:$O$502,7,0))) -> り | O45: =IF(O41="","",IF(VLOOKUP(O41,漢字読み!$A$2:$O$502,7,0)=0,"",VLOOKUP(O41,漢字読み!$A$2:$O$502,7,0))) -> する | P45: =IF(P41="","",IF(VLOOKUP(P41,漢字読み!$A$2:$O$502,7,0)=0,"",VLOOKUP(P41,漢字読み!$A$2:$O$502,7,0))) ->  | Q45: =IF(Q41="","",IF(VLOOKUP(Q41,漢字読み!$A$2:$O$502,7,0)=0,"",VLOOKUP(Q41,漢字読み!$A$2:$O$502,7,0))) -> て | R45: =IF(R41="","",IF(VLOOKUP(R41,漢字読み!$A$2:$O$502,7,0)=0,"",VLOOKUP(R41,漢字読み!$A$2:$O$502,7,0))) -> する | S45: =IF(S41="","",IF(VLOOKUP(S41,漢字読み!$A$2:$O$502,7,0)=0,"",VLOOKUP(S41,漢字読み!$A$2:$O$502,7,0))) ->  | T45: =IF(T41="","",IF(VLOOKUP(T41,漢字読み!$A$2:$O$502,7,0)=0,"",VLOOKUP(T41,漢字読み!$A$2:$O$502,7,0))) ->  | W45: 和歌山県教育委員会
A46: =INDIRECT("'関数（書き）'!C" & COLUMN(B$1)+SUM($AD$2:$AD47)) -> 132 | B46: =INDIRECT("'関数（書き）'!C" & COLUMN(C$1)+SUM($AD$2:$AD47)) -> 20 | C46: =INDIRECT("'関数（書き）'!C" & COLUMN(D$1)+SUM($AD$2:$AD47)) -> 199 | D46: =INDIRECT("'関数（書き）'!C" & COLUMN(E$1)+SUM($AD$2:$AD47)) -> 128 | E46: =INDIRECT("'関数（書き）'!C" & COLUMN(F$1)+SUM($AD$2:$AD47)) -> 118 | F46: =INDIRECT("'関数（書き）'!C" & COLUMN(G$1)+SUM($AD$2:$AD47)) -> 173 | G46: =INDIRECT("'関数（書き）'!C" & COLUMN(H$1)+SUM($AD$2:$AD47)) -> 124 | H46: =INDIRECT("'関数（書き）'!C" & COLUMN(I$1)+SUM($AD$2:$AD47)) -> 18 | I46: =INDIRECT("'関数（書き）'!C" & COLUMN(J$1)+SUM($AD$2:$AD47)) -> 197 | J46: =INDIRECT("'関数（書き）'!C" & COLUMN(K$1)+SUM($AD$2:$AD47)) -> 96 | K46: =INDIRECT("'関数（読み）'!C" & COLUMN(B$1)+SUM($AD$2:$AD47)) -> 64 | L46: =INDIRECT("'関数（読み）'!C" & COLUMN(C$1)+SUM($AD$2:$AD47)) -> 209 | M46: =INDIRECT("'関数（読み）'!C" & COLUMN(D$1)+SUM($AD$2:$AD47)) -> 67 | N46: =INDIRECT("'関数（読み）'!C" & COLUMN(E$1)+SUM($AD$2:$AD47)) -> 184 | O46: =INDIRECT("'関数（読み）'!C" & COLUMN(F$1)+SUM($AD$2:$AD47)) -> 10 | P46: =INDIRECT("'関数（読み）'!C" & COLUMN(G$1)+SUM($AD$2:$AD47)) -> 3 | Q46: =INDIRECT("'関数（読み）'!C" & COLUMN(H$1)+SUM($AD$2:$AD47)) -> 162 | R46: =INDIRECT("'関数（読み）'!C" & COLUMN(I$1)+SUM($AD$2:$AD47)) -> 74 | S46: =INDIRECT("'関数（読み）'!C" & COLUMN(J$1)+SUM($AD$2:$AD47)) -> 125 | T46: =INDIRECT("'関数（読み）'!C" & COLUMN(K$1)+SUM($AD$2:$AD47)) -> 87
A47: ⑳ | B47: ⑲ | C47: ⑱ | D47: ⑰ | E47: ⑯ | F47: ⑮ | G47: ⑭ | H47: ⑬ | I47: ⑫ | J47: ⑪ | K47: ⑩ | L47: ⑨ | M47: ⑧ | N47: ⑦ | O47: ⑥ | P47: ⑤ | Q47: ④ | R47: ③ | S47: ② | T47: ① | U47: 次の［ ］の部分の漢字には読みがなをひらがなで書き、カタカナは漢字に直しなさい。 | V47: 10 | W47: 「漢字の博士検定試験」練習問題 | AC47: ← | AD47: 10 | AE47: 問 | AF47: =AH42+1 -> 51 | AG47: ～ | AH47: =SUM($AD$2:$AD47)+10 -> 60 | AI47: 問まで | AJ47: =COUNTIF($A$1:$T$200,T48) -> 2
A48: =IF(A46="","",VLOOKUP(A46,漢字書き!$A$2:$N$506,6,0)) -> [カゴシマ]県の名物 | B48: =IF(B46="","",VLOOKUP(B46,漢字書き!$A$2:$N$506,6,0)) -> ［イチグン］の選手になる | C48: =IF(C46="","",VLOOKUP(C46,漢字書き!$A$2:$N$506,6,0)) -> [オキナワケン]から来る | D48: =IF(D46="","",VLOOKUP(D46,漢字書き!$A$2:$N$506,6,0)) -> ［ショウメイ］をつける | E48: =IF(E46="","",VLOOKUP(E46,漢字書き!$A$2:$N$506,6,0)) -> [ショウチクバイ] | F48: =IF(F46="","",VLOOKUP(F46,漢字書き!$A$2:$N$506,6,0)) -> ［センソウ］がおこる | G48: =IF(G46="","",VLOOKUP(G46,漢字書き!$A$2:$N$506,6,0)) -> [ヤ]きめしを食べる | H48: =IF(H46="","",VLOOKUP(H46,漢字書き!$A$2:$N$506,6,0)) -> ［クンヨ］みの漢字 | I48: =IF(I46="","",VLOOKUP(I46,漢字書き!$A$2:$N$506,6,0)) -> 一[チョウ]円の予算 | J48: =IF(J46="","",VLOOKUP(J46,漢字書き!$A$2:$N$506,6,0)) -> 病気を［ナオ］す | K48: =IF(K46="","",VLOOKUP(K46,漢字読み!$A$2:$O$506,6,0)) -> ［昨日］の天気 | L48: =IF(L46="","",VLOOKUP(L46,漢字読み!$A$2:$O$506,6,0)) -> [一兆]円の予算 | M48: =IF(M46="","",VLOOKUP(M46,漢字読み!$A$2:$O$506,6,0)) -> ［名札］をつける | N48: =IF(N46="","",VLOOKUP(N46,漢字読み!$A$2:$O$506,6,0)) -> ［右側］に立つ | O48: =IF(O46="","",VLOOKUP(O46,漢字読み!$A$2:$O$506,6,0)) -> ［共］に歌おう | P48: =IF(P46="","",VLOOKUP(P46,漢字読み!$A$2:$O$506,6,0)) -> ［選挙］を行う | Q48: =IF(Q46="","",VLOOKUP(Q46,漢字読み!$A$2:$O$506,6,0)) -> 子どもに［説教］する | R48: =IF(R46="","",VLOOKUP(R46,漢字読み!$A$2:$O$506,6,0)) -> けい［察官］になる | S48: =IF(S46="","",VLOOKUP(S46,漢字読み!$A$2:$O$506,6,0)) -> 全員で［唱和］する | T48: =IF(T46="","",VLOOKUP(T46,漢字読み!$A$2:$O$506,6,0)) -> ［氏名］を書く | V48: 級
V49: 名前
A50: =IF(A46="","",IF(VLOOKUP(A46,漢字書き!$A$2:$N$502,7,0)=0,"",VLOOKUP(A46,漢字書き!$A$2:$N$502,7,0))) -> 県 | B50: =IF(B46="","",IF(VLOOKUP(B46,漢字書き!$A$2:$N$502,7,0)=0,"",VLOOKUP(B46,漢字書き!$A$2:$N$502,7,0))) ->  | C50: =IF(C46="","",IF(VLOOKUP(C46,漢字書き!$A$2:$N$502,7,0)=0,"",VLOOKUP(C46,漢字書き!$A$2:$N$502,7,0))) ->  | D50: =IF(D46="","",IF(VLOOKUP(D46,漢字書き!$A$2:$N$502,7,0)=0,"",VLOOKUP(D46,漢字書き!$A$2:$N$502,7,0))) ->  | E50: =IF(E46="","",IF(VLOOKUP(E46,漢字書き!$A$2:$N$502,7,0)=0,"",VLOOKUP(E46,漢字書き!$A$2:$N$502,7,0))) ->  | F50: =IF(F46="","",IF(VLOOKUP(F46,漢字書き!$A$2:$N$502,7,0)=0,"",VLOOKUP(F46,漢字書き!$A$2:$N$502,7,0))) ->  | G50: =IF(G46="","",IF(VLOOKUP(G46,漢字書き!$A$2:$N$502,7,0)=0,"",VLOOKUP(G46,漢字書き!$A$2:$N$502,7,0))) -> きめし | H50: =IF(H46="","",IF(VLOOKUP(H46,漢字書き!$A$2:$N$502,7,0)=0,"",VLOOKUP(H46,漢字書き!$A$2:$N$502,7,0))) -> み | I50: =IF(I46="","",IF(VLOOKUP(I46,漢字書き!$A$2:$N$502,7,0)=0,"",VLOOKUP(I46,漢字書き!$A$2:$N$502,7,0))) -> 円 | J50: =IF(J46="","",IF(VLOOKUP(J46,漢字書き!$A$2:$N$502,7,0)=0,"",VLOOKUP(J46,漢字書き!$A$2:$N$502,7,0))) -> す | K50: =IF(K46="","",IF(VLOOKUP(K46,漢字読み!$A$2:$O$502,7,0)=0,"",VLOOKUP(K46,漢字読み!$A$2:$O$502,7,0))) ->  | L50: =IF(L46="","",IF(VLOOKUP(L46,漢字読み!$A$2:$O$502,7,0)=0,"",VLOOKUP(L46,漢字読み!$A$2:$O$502,7,0))) -> 円 | M50: =IF(M46="","",IF(VLOOKUP(M46,漢字読み!$A$2:$O$502,7,0)=0,"",VLOOKUP(M46,漢字読み!$A$2:$O$502,7,0))) ->  | N50: =IF(N46="","",IF(VLOOKUP(N46,漢字読み!$A$2:$O$502,7,0)=0,"",VLOOKUP(N46,漢字読み!$A$2:$O$502,7,0))) ->  | O50: =IF(O46="","",IF(VLOOKUP(O46,漢字読み!$A$2:$O$502,7,0)=0,"",VLOOKUP(O46,漢字読み!$A$2:$O$502,7,0))) ->  | P50: =IF(P46="","",IF(VLOOKUP(P46,漢字読み!$A$2:$O$502,7,0)=0,"",VLOOKUP(P46,漢字読み!$A$2:$O$502,7,0))) ->  | Q50: =IF(Q46="","",IF(VLOOKUP(Q46,漢字読み!$A$2:$O$502,7,0)=0,"",VLOOKUP(Q46,漢字読み!$A$2:$O$502,7,0))) -> する | R50: =IF(R46="","",IF(VLOOKUP(R46,漢字読み!$A$2:$O$502,7,0)=0,"",VLOOKUP(R46,漢字読み!$A$2:$O$502,7,0))) ->  | S50: =IF(S46="","",IF(VLOOKUP(S46,漢字読み!$A$2:$O$502,7,0)=0,"",VLOOKUP(S46,漢字読み!$A$2:$O$502,7,0))) -> する | T50: =IF(T46="","",IF(VLOOKUP(T46,漢字読み!$A$2:$O$502,7,0)=0,"",VLOOKUP(T46,漢字読み!$A$2:$O$502,7,0))) ->  | W50: 和歌山県教育委員会
A51: =A41 -> 59 | B51: 153 | C51: 99 | D51: 142 | E51: 39 | F51: 78 | G51: 73 | H51: 112 | I51: 74 | J51: 62 | K51: 62 | L51: 59 | M51: 121 | N51: 85 | O51: 145 | P51: 147 | Q51: 219 | R51: 32 | S51: 211 | T51: 12
A52: ⑳ | B52: ⑲ | C52: ⑱ | D52: ⑰ | E52: ⑯ | F52: ⑮ | G52: ⑭ | H52: ⑬ | I52: ⑫ | J52: ⑪ | K52: ⑩ | L52: ⑨ | M52: ⑧ | N52: ⑦ | O52: ⑥ | P52: ⑤ | Q52: ④ | R52: ③ | S52: ② | T52: ① | U52: 次の［ ］の部分の漢字には読みがなをひらがなで書き、カタカナは漢字に直しなさい。 | V52: 10 | W52: 「漢字の博士検定試験」練習問題
A53: =IF(A51="","",VLOOKUP(A51,漢字書き!$A$2:$N$506,6,0)) -> ［サイコウ］にうれしい | B53: =IF(B51="","",VLOOKUP(B51,漢字書き!$A$2:$N$506,6,0)) -> 雪が［ツ］もる | C53: =IF(C51="","",VLOOKUP(C51,漢字書き!$A$2:$N$506,6,0)) -> [シュクジ]をのべる | D53: =IF(D51="","",VLOOKUP(D51,漢字書き!$A$2:$N$506,6,0)) -> いらない部分を［ハブ］く | E53: =IF(E51="","",VLOOKUP(E51,漢字書き!$A$2:$N$506,6,0)) -> おそろしい[タイケン] | F53: =IF(F51="","",VLOOKUP(F51,漢字書き!$A$2:$N$506,6,0)) -> 公園を［サンポ］する | G53: =IF(G51="","",VLOOKUP(G51,漢字書き!$A$2:$N$506,6,0)) -> イベントに［サンカ］する | H53: =IF(H51="","",VLOOKUP(H51,漢字書き!$A$2:$N$506,6,0)) -> ［サイショ］が大切だ | I53: =IF(I51="","",VLOOKUP(I51,漢字書き!$A$2:$N$506,6,0)) -> ［サンギョウ］が栄える | J53: =IF(J51="","",VLOOKUP(J51,漢字書き!$A$2:$N$506,6,0)) -> ［キノウ］の出来事 | K53: =IF(K51="","",VLOOKUP(K51,漢字読み!$A$2:$O$506,6,0)) -> ［最］も高い山 | L53: =IF(L51="","",VLOOKUP(L51,漢字読み!$A$2:$O$506,6,0)) -> ［野菜］を育てる | M53: =IF(M51="","",VLOOKUP(M51,漢字読み!$A$2:$O$506,6,0)) -> [笑]い話を聞く | N53: =IF(N51="","",VLOOKUP(N51,漢字読み!$A$2:$O$506,6,0)) -> ［残］りの絵を仕上げる | O53: =IF(O51="","",VLOOKUP(O51,漢字読み!$A$2:$O$506,6,0)) -> ［反省］する | P53: =IF(P51="","",VLOOKUP(P51,漢字読み!$A$2:$O$506,6,0)) -> 川の［清流］ | Q53: =IF(Q51="","",VLOOKUP(Q51,漢字読み!$A$2:$O$506,6,0)) -> ［的当］てをして遊ぶ | R53: =IF(R51="","",VLOOKUP(R51,漢字読み!$A$2:$O$506,6,0)) -> じゅ業を［欠席］する | S53: =IF(S51="","",VLOOKUP(S51,漢字読み!$A$2:$O$506,6,0)) -> ［低音］の声 | T53: =IF(T51="","",VLOOKUP(T51,漢字読み!$A$2:$O$506,6,0)) -> 体育［協会］に入る | V53: 級
A54: =IF(A$11="","",VLOOKUP(A51,漢字書き!$A$2:$O$506,8,0)) -> 最高 | B54: =IF(B$11="","",VLOOKUP(B51,漢字書き!$A$2:$O$506,8,0)) -> 積 | C54: =IF(C$11="","",VLOOKUP(C51,漢字書き!$A$2:$O$506,8,0)) -> 食事 | D54: =IF(D$11="","",VLOOKUP(D51,漢字書き!$A$2:$O$506,8,0)) -> 省 | E54: =IF(E$11="","",VLOOKUP(E51,漢字書き!$A$2:$O$506,8,0)) -> 体験 | F54: =IF(F$11="","",VLOOKUP(F51,漢字書き!$A$2:$O$506,8,0)) -> 散歩 | G54: =IF(G$11="","",VLOOKUP(G51,漢字書き!$A$2:$O$506,8,0)) -> 参加 | H54: =IF(H$11="","",VLOOKUP(H51,漢字書き!$A$2:$O$506,8,0)) -> 最初 | I54: =IF(I$11="","",VLOOKUP(I51,漢字書き!$A$2:$O$506,8,0)) -> 産業 | J54: =IF(J$11="","",VLOOKUP(J51,漢字書き!$A$2:$O$506,8,0)) -> 昨日 | K54: =IF(K$11="","",VLOOKUP(K51,漢字読み!$A$2:$O$506,8,0)) -> もっと | L54: =IF(L$11="","",VLOOKUP(L51,漢字読み!$A$2:$O$506,8,0)) -> やさい | M54: =IF(M$11="","",VLOOKUP(M51,漢字読み!$A$2:$O$506,8,0)) -> わら | N54: =IF(N$11="","",VLOOKUP(N51,漢字読み!$A$2:$O$506,8,0)) -> のこ | O54: =IF(O$11="","",VLOOKUP(O51,漢字読み!$A$2:$O$506,8,0)) -> はんせい | P54: =IF(P$11="","",VLOOKUP(P51,漢字読み!$A$2:$O$506,8,0)) -> せいりゅう | Q54: =IF(Q$11="","",VLOOKUP(Q51,漢字読み!$A$2:$O$506,8,0)) -> まとあ | R54: =IF(R$11="","",VLOOKUP(R51,漢字読み!$A$2:$O$506,8,0)) -> けっせき | S54: =IF(S$11="","",VLOOKUP(S51,漢字読み!$A$2:$O$506,8,0)) -> ていおん | T54: =IF(T$11="","",VLOOKUP(T51,漢字読み!$A$2:$O$506,8,0)) -> きょうかい | V54: 名前
A55: =IF(A51="","",IF(VLOOKUP(A51,漢字書き!$A$2:$N$502,7,0)=0,"",VLOOKUP(A51,漢字書き!$A$2:$N$502,7,0))) -> に | B55: =IF(B51="","",IF(VLOOKUP(B51,漢字書き!$A$2:$N$502,7,0)=0,"",VLOOKUP(B51,漢字書き!$A$2:$N$502,7,0))) -> もる | C55: =IF(C51="","",IF(VLOOKUP(C51,漢字書き!$A$2:$N$502,7,0)=0,"",VLOOKUP(C51,漢字書き!$A$2:$N$502,7,0))) ->  | D55: =IF(D51="","",IF(VLOOKUP(D51,漢字書き!$A$2:$N$502,7,0)=0,"",VLOOKUP(D51,漢字書き!$A$2:$N$502,7,0))) -> く | E55: =IF(E51="","",IF(VLOOKUP(E51,漢字書き!$A$2:$N$502,7,0)=0,"",VLOOKUP(E51,漢字書き!$A$2:$N$502,7,0))) ->  | F55: =IF(F51="","",IF(VLOOKUP(F51,漢字書き!$A$2:$N$502,7,0)=0,"",VLOOKUP(F51,漢字書き!$A$2:$N$502,7,0))) -> する | G55: =IF(G51="","",IF(VLOOKUP(G51,漢字書き!$A$2:$N$502,7,0)=0,"",VLOOKUP(G51,漢字書き!$A$2:$N$502,7,0))) -> する | H55: =IF(H51="","",IF(VLOOKUP(H51,漢字書き!$A$2:$N$502,7,0)=0,"",VLOOKUP(H51,漢字書き!$A$2:$N$502,7,0))) ->  | I55: =IF(I51="","",IF(VLOOKUP(I51,漢字書き!$A$2:$N$502,7,0)=0,"",VLOOKUP(I51,漢字書き!$A$2:$N$502,7,0))) ->  | J55: =IF(J51="","",IF(VLOOKUP(J51,漢字書き!$A$2:$N$502,7,0)=0,"",VLOOKUP(J51,漢字書き!$A$2:$N$502,7,0))) ->  | K55: =IF(K51="","",IF(VLOOKUP(K51,漢字読み!$A$2:$O$502,7,0)=0,"",VLOOKUP(K51,漢字読み!$A$2:$O$502,7,0))) -> も | L55: =IF(L51="","",IF(VLOOKUP(L51,漢字読み!$A$2:$O$502,7,0)=0,"",VLOOKUP(L51,漢字読み!$A$2:$O$502,7,0))) ->  | M55: =IF(M51="","",IF(VLOOKUP(M51,漢字読み!$A$2:$O$502,7,0)=0,"",VLOOKUP(M51,漢字読み!$A$2:$O$502,7,0))) -> い話 | N55: =IF(N51="","",IF(VLOOKUP(N51,漢字読み!$A$2:$O$502,7,0)=0,"",VLOOKUP(N51,漢字読み!$A$2:$O$502,7,0))) -> り | O55: =IF(O51="","",IF(VLOOKUP(O51,漢字読み!$A$2:$O$502,7,0)=0,"",VLOOKUP(O51,漢字読み!$A$2:$O$502,7,0))) -> する | P55: =IF(P51="","",IF(VLOOKUP(P51,漢字読み!$A$2:$O$502,7,0)=0,"",VLOOKUP(P51,漢字読み!$A$2:$O$502,7,0))) ->  | Q55: =IF(Q51="","",IF(VLOOKUP(Q51,漢字読み!$A$2:$O$502,7,0)=0,"",VLOOKUP(Q51,漢字読み!$A$2:$O$502,7,0))) -> て | R55: =IF(R51="","",IF(VLOOKUP(R51,漢字読み!$A$2:$O$502,7,0)=0,"",VLOOKUP(R51,漢字読み!$A$2:$O$502,7,0))) -> する | S55: =IF(S51="","",IF(VLOOKUP(S51,漢字読み!$A$2:$O$502,7,0)=0,"",VLOOKUP(S51,漢字読み!$A$2:$O$502,7,0))) ->  | T55: =IF(T51="","",IF(VLOOKUP(T51,漢字読み!$A$2:$O$502,7,0)=0,"",VLOOKUP(T51,漢字読み!$A$2:$O$502,7,0))) ->  | W55: 和歌山県教育委員会
A56: =A46 -> 132 | B56: 20 | C56: 199 | D56: 128 | E56: 118 | F56: 173 | G56: 124 | H56: 18 | I56: 197 | J56: 96 | K56: 64 | L56: 209 | M56: 67 | N56: 184 | O56: 10 | P56: 3 | Q56: 162 | R56: 74 | S56: 125 | T56: 87
A57: ⑳ | B57: ⑲ | C57: ⑱ | D57: ⑰ | E57: ⑯ | F57: ⑮ | G57: ⑭ | H57: ⑬ | I57: ⑫ | J57: ⑪ | K57: ⑩ | L57: ⑨ | M57: ⑧ | N57: ⑦ | O57: ⑥ | P57: ⑤ | Q57: ④ | R57: ③ | S57: ② | T57: ① | U57: 次の［ ］の部分の漢字には読みがなをひらがなで書き、カタカナは漢字に直しなさい。 | V57: 10 | W57: 「漢字の博士検定試験」練習問題
A58: =IF(A56="","",VLOOKUP(A56,漢字書き!$A$2:$N$506,6,0)) -> [カゴシマ]県の名物 | B58: =IF(B56="","",VLOOKUP(B56,漢字書き!$A$2:$N$506,6,0)) -> ［イチグン］の選手になる | C58: =IF(C56="","",VLOOKUP(C56,漢字書き!$A$2:$N$506,6,0)) -> [オキナワケン]から来る | D58: =IF(D56="","",VLOOKUP(D56,漢字書き!$A$2:$N$506,6,0)) -> ［ショウメイ］をつける | E58: =IF(E56="","",VLOOKUP(E56,漢字書き!$A$2:$N$506,6,0)) -> [ショウチクバイ] | F58: =IF(F56="","",VLOOKUP(F56,漢字書き!$A$2:$N$506,6,0)) -> ［センソウ］がおこる | G58: =IF(G56="","",VLOOKUP(G56,漢字書き!$A$2:$N$506,6,0)) -> [ヤ]きめしを食べる | H58: =IF(H56="","",VLOOKUP(H56,漢字書き!$A$2:$N$506,6,0)) -> ［クンヨ］みの漢字 | I58: =IF(I56="","",VLOOKUP(I56,漢字書き!$A$2:$N$506,6,0)) -> 一[チョウ]円の予算 | J58: =IF(J56="","",VLOOKUP(J56,漢字書き!$A$2:$N$506,6,0)) -> 病気を［ナオ］す | K58: =IF(K56="","",VLOOKUP(K56,漢字読み!$A$2:$O$506,6,0)) -> ［昨日］の天気 | L58: =IF(L56="","",VLOOKUP(L56,漢字読み!$A$2:$O$506,6,0)) -> [一兆]円の予算 | M58: =IF(M56="","",VLOOKUP(M56,漢字読み!$A$2:$O$506,6,0)) -> ［名札］をつける | N58: =IF(N56="","",VLOOKUP(N56,漢字読み!$A$2:$O$506,6,0)) -> ［右側］に立つ | O58: =IF(O56="","",VLOOKUP(O56,漢字読み!$A$2:$O$506,6,0)) -> ［共］に歌おう | P58: =IF(P56="","",VLOOKUP(P56,漢字読み!$A$2:$O$506,6,0)) -> ［選挙］を行う | Q58: =IF(Q56="","",VLOOKUP(Q56,漢字読み!$A$2:$O$506,6,0)) -> 子どもに［説教］する | R58: =IF(R56="","",VLOOKUP(R56,漢字読み!$A$2:$O$506,6,0)) -> けい［察官］になる | S58: =IF(S56="","",VLOOKUP(S56,漢字読み!$A$2:$O$506,6,0)) -> 全員で［唱和］する | T58: =IF(T56="","",VLOOKUP(T56,漢字読み!$A$2:$O$506,6,0)) -> ［氏名］を書く | V58: 級
A59: =IF(A$16="","",VLOOKUP(A56,漢字書き!$A$2:$O$506,8,0)) -> 鹿児島 | B59: =IF(B$16="","",VLOOKUP(B56,漢字書き!$A$2:$O$506,8,0)) -> 一軍 | C59: =IF(C$16="","",VLOOKUP(C56,漢字書き!$A$2:$O$506,8,0)) -> 沖縄県 | D59: =IF(D$16="","",VLOOKUP(D56,漢字書き!$A$2:$O$506,8,0)) -> 照明 | E59: =IF(E$16="","",VLOOKUP(E56,漢字書き!$A$2:$O$506,8,0)) -> 松竹梅 | F59: =IF(F$16="","",VLOOKUP(F56,漢字書き!$A$2:$O$506,8,0)) -> 戦争 | G59: =IF(G$16="","",VLOOKUP(G56,漢字書き!$A$2:$O$506,8,0)) -> 焼 | H59: =IF(H$16="","",VLOOKUP(H56,漢字書き!$A$2:$O$506,8,0)) -> 訓読 | I59: =IF(I$16="","",VLOOKUP(I56,漢字書き!$A$2:$O$506,8,0)) -> 兆 | J59: =IF(J$16="","",VLOOKUP(J56,漢字書き!$A$2:$O$506,8,0)) -> 治 | K59: =IF(K$16="","",VLOOKUP(K56,漢字読み!$A$2:$O$506,8,0)) -> さくじつ・きのう | L59: =IF(L$16="","",VLOOKUP(L56,漢字読み!$A$2:$O$506,8,0)) -> いっちょう | M59: =IF(M$16="","",VLOOKUP(M56,漢字読み!$A$2:$O$506,8,0)) -> なふだ | N59: =IF(N$16="","",VLOOKUP(N56,漢字読み!$A$2:$O$506,8,0)) -> みぎがわ | O59: =IF(O$16="","",VLOOKUP(O56,漢字読み!$A$2:$O$506,8,0)) -> とも | P59: =IF(P$16="","",VLOOKUP(P56,漢字読み!$A$2:$O$506,8,0)) -> せんきょ | Q59: =IF(Q$16="","",VLOOKUP(Q56,漢字読み!$A$2:$O$506,8,0)) -> せっきょう | R59: =IF(R$16="","",VLOOKUP(R56,漢字読み!$A$2:$O$506,8,0)) -> さつかん | S59: =IF(S$16="","",VLOOKUP(S56,漢字読み!$A$2:$O$506,8,0)) -> しょうわ | T59: =IF(T$16="","",VLOOKUP(T56,漢字読み!$A$2:$O$506,8,0)) -> しめい | V59: 名前
A60: =IF(A56="","",IF(VLOOKUP(A56,漢字書き!$A$2:$N$502,7,0)=0,"",VLOOKUP(A56,漢字書き!$A$2:$N$502,7,0))) -> 県 | B60: =IF(B56="","",IF(VLOOKUP(B56,漢字書き!$A$2:$N$502,7,0)=0,"",VLOOKUP(B56,漢字書き!$A$2:$N$502,7,0))) ->  | C60: =IF(C56="","",IF(VLOOKUP(C56,漢字書き!$A$2:$N$502,7,0)=0,"",VLOOKUP(C56,漢字書き!$A$2:$N$502,7,0))) ->  | D60: =IF(D56="","",IF(VLOOKUP(D56,漢字書き!$A$2:$N$502,7,0)=0,"",VLOOKUP(D56,漢字書き!$A$2:$N$502,7,0))) ->  | E60: =IF(E56="","",IF(VLOOKUP(E56,漢字書き!$A$2:$N$502,7,0)=0,"",VLOOKUP(E56,漢字書き!$A$2:$N$502,7,0))) ->  | F60: =IF(F56="","",IF(VLOOKUP(F56,漢字書き!$A$2:$N$502,7,0)=0,"",VLOOKUP(F56,漢字書き!$A$2:$N$502,7,0))) ->  | G60: =IF(G56="","",IF(VLOOKUP(G56,漢字書き!$A$2:$N$502,7,0)=0,"",VLOOKUP(G56,漢字書き!$A$2:$N$502,7,0))) -> きめし | H60: =IF(H56="","",IF(VLOOKUP(H56,漢字書き!$A$2:$N$502,7,0)=0,"",VLOOKUP(H56,漢字書き!$A$2:$N$502,7,0))) -> み | I60: =IF(I56="","",IF(VLOOKUP(I56,漢字書き!$A$2:$N$502,7,0)=0,"",VLOOKUP(I56,漢字書き!$A$2:$N$502,7,0))) -> 円 | J60: =IF(J56="","",IF(VLOOKUP(J56,漢字書き!$A$2:$N$502,7,0)=0,"",VLOOKUP(J56,漢字書き!$A$2:$N$502,7,0))) -> す | K60: =IF(K56="","",IF(VLOOKUP(K56,漢字読み!$A$2:$O$502,7,0)=0,"",VLOOKUP(K56,漢字読み!$A$2:$O$502,7,0))) ->  | L60: =IF(L56="","",IF(VLOOKUP(L56,漢字読み!$A$2:$O$502,7,0)=0,"",VLOOKUP(L56,漢字読み!$A$2:$O$502,7,0))) -> 円 | M60: =IF(M56="","",IF(VLOOKUP(M56,漢字読み!$A$2:$O$502,7,0)=0,"",VLOOKUP(M56,漢字読み!$A$2:$O$502,7,0))) ->  | N60: =IF(N56="","",IF(VLOOKUP(N56,漢字読み!$A$2:$O$502,7,0)=0,"",VLOOKUP(N56,漢字読み!$A$2:$O$502,7,0))) ->  | O60: =IF(O56="","",IF(VLOOKUP(O56,漢字読み!$A$2:$O$502,7,0)=0,"",VLOOKUP(O56,漢字読み!$A$2:$O$502,7,0))) ->  | P60: =IF(P56="","",IF(VLOOKUP(P56,漢字読み!$A$2:$O$502,7,0)=0,"",VLOOKUP(P56,漢字読み!$A$2:$O$502,7,0))) ->  | Q60: =IF(Q56="","",IF(VLOOKUP(Q56,漢字読み!$A$2:$O$502,7,0)=0,"",VLOOKUP(Q56,漢字読み!$A$2:$O$502,7,0))) -> する | R60: =IF(R56="","",IF(VLOOKUP(R56,漢字読み!$A$2:$O$502,7,0)=0,"",VLOOKUP(R56,漢字読み!$A$2:$O$502,7,0))) ->  | S60: =IF(S56="","",IF(VLOOKUP(S56,漢字読み!$A$2:$O$502,7,0)=0,"",VLOOKUP(S56,漢字読み!$A$2:$O$502,7,0))) -> する | T60: =IF(T56="","",IF(VLOOKUP(T56,漢字読み!$A$2:$O$502,7,0)=0,"",VLOOKUP(T56,漢字読み!$A$2:$O$502,7,0))) ->  | W60: 和歌山県教育委員会
A61: =INDIRECT("'関数（書き）'!C" & COLUMN(B$1)+SUM($AD$2:$AD62)) -> 68 | B61: =INDIRECT("'関数（書き）'!C" & COLUMN(C$1)+SUM($AD$2:$AD62)) -> 135 | C61: =INDIRECT("'関数（書き）'!C" & COLUMN(D$1)+SUM($AD$2:$AD62)) -> 45 | D61: =INDIRECT("'関数（書き）'!C" & COLUMN(E$1)+SUM($AD$2:$AD62)) -> 14 | E61: =INDIRECT("'関数（書き）'!C" & COLUMN(F$1)+SUM($AD$2:$AD62)) -> 11 | F61: =INDIRECT("'関数（書き）'!C" & COLUMN(G$1)+SUM($AD$2:$AD62)) -> 134 | G61: =INDIRECT("'関数（書き）'!C" & COLUMN(H$1)+SUM($AD$2:$AD62)) -> 140 | H61: =INDIRECT("'関数（書き）'!C" & COLUMN(I$1)+SUM($AD$2:$AD62)) -> 204 | I61: =INDIRECT("'関数（書き）'!C" & COLUMN(J$1)+SUM($AD$2:$AD62)) -> 152 | J61: =INDIRECT("'関数（書き）'!C" & COLUMN(K$1)+SUM($AD$2:$AD62)) -> 167 | K61: =INDIRECT("'関数（読み）'!C" & COLUMN(B$1)+SUM($AD$2:$AD62)) -> 78 | L61: =INDIRECT("'関数（読み）'!C" & COLUMN(C$1)+SUM($AD$2:$AD62)) -> 154 | M61: =INDIRECT("'関数（読み）'!C" & COLUMN(D$1)+SUM($AD$2:$AD62)) -> 156 | N61: =INDIRECT("'関数（読み）'!C" & COLUMN(E$1)+SUM($AD$2:$AD62)) -> 55 | O61: =INDIRECT("'関数（読み）'!C" & COLUMN(F$1)+SUM($AD$2:$AD62)) -> 122 | P61: =INDIRECT("'関数（読み）'!C" & COLUMN(G$1)+SUM($AD$2:$AD62)) -> 7 | Q61: =INDIRECT("'関数（読み）'!C" & COLUMN(H$1)+SUM($AD$2:$AD62)) -> 200 | R61: =INDIRECT("'関数（読み）'!C" & COLUMN(I$1)+SUM($AD$2:$AD62)) -> 139 | S61: =INDIRECT("'関数（読み）'!C" & COLUMN(J$1)+SUM($AD$2:$AD62)) -> 119 | T61: =INDIRECT("'関数（読み）'!C" & COLUMN(K$1)+SUM($AD$2:$AD62)) -> 100
A62: ⑳ | B62: ⑲ | C62: ⑱ | D62: ⑰ | E62: ⑯ | F62: ⑮ | G62: ⑭ | H62: ⑬ | I62: ⑫ | J62: ⑪ | K62: ⑩ | L62: ⑨ | M62: ⑧ | N62: ⑦ | O62: ⑥ | P62: ⑤ | Q62: ④ | R62: ③ | S62: ② | T62: ① | U62: 次の［ ］の部分の漢字には読みがなをひらがなで書き、カタカナは漢字に直しなさい。 | V62: 10 | W62: 「漢字の博士検定試験」練習問題 | AC62: ← | AD62: 10 | AE62: 問 | AF62: =AH47+1 -> 61 | AG62: ～ | AH62: =SUM($AD$2:$AD62)+10 -> 70 | AI62: 問まで | AJ62: =COUNTIF($A$1:$T$200,T63) -> 2
A63: =IF(A61="","",VLOOKUP(A61,漢字書き!$A$2:$N$506,6,0)) -> ［カガワケン］のうどん | B63: =IF(B61="","",VLOOKUP(B61,漢字書き!$A$2:$N$506,6,0)) -> ［ジシン］をもってやる | C63: =IF(C61="","",VLOOKUP(C61,漢字書き!$A$2:$N$506,6,0)) -> ［セイコウ］をおさめる | D63: =IF(D61="","",VLOOKUP(D61,漢字書き!$A$2:$N$506,6,0)) -> わざを［キソ］う | E63: =IF(E61="","",VLOOKUP(E61,漢字書き!$A$2:$N$506,6,0)) -> ［カガミ］をみがく | F63: =IF(F61="","",VLOOKUP(F61,漢字書き!$A$2:$N$506,6,0)) -> 人を［シン］じる | G63: =IF(G61="","",VLOOKUP(G61,漢字書き!$A$2:$N$506,6,0)) -> 以下、［ショウ］りゃく | H63: =IF(H61="","",VLOOKUP(H61,漢字書き!$A$2:$N$506,6,0)) -> [グンマケン]の名物 | I63: =IF(I61="","",VLOOKUP(I61,漢字書き!$A$2:$N$506,6,0)) -> 図形の［メンセキ］ | J63: =IF(J61="","",VLOOKUP(J61,漢字書き!$A$2:$N$506,6,0)) -> てきと［タタカ］う | K63: =IF(K61="","",VLOOKUP(K61,漢字読み!$A$2:$O$506,6,0)) -> さかんな地場[産業] | L63: =IF(L61="","",VLOOKUP(L61,漢字読み!$A$2:$O$506,6,0)) -> はこを［積］む | M63: =IF(M61="","",VLOOKUP(M61,漢字読み!$A$2:$O$506,6,0)) -> 木を［折］る | N63: =IF(N61="","",VLOOKUP(N61,漢字読み!$A$2:$O$506,6,0)) -> ［宮崎県］のマンゴー | O63: =IF(O61="","",VLOOKUP(O61,漢字読み!$A$2:$O$506,6,0)) -> 子どもの［笑］い声 | P63: =IF(P61="","",VLOOKUP(P61,漢字読み!$A$2:$O$506,6,0)) -> 今日は［大漁］だ | Q63: =IF(Q61="","",VLOOKUP(Q61,漢字読み!$A$2:$O$506,6,0)) -> ［単］じゅんな考え | R63: =IF(R61="","",VLOOKUP(R61,漢字読み!$A$2:$O$506,6,0)) -> ［自信］がつく | S63: =IF(S61="","",VLOOKUP(S61,漢字読み!$A$2:$O$506,6,0)) -> 夏の[初]め | T63: =IF(T61="","",VLOOKUP(T61,漢字読み!$A$2:$O$506,6,0)) -> きずが［治］る | V63: 級
V64: 名前
A65: =IF(A61="","",IF(VLOOKUP(A61,漢字書き!$A$2:$N$502,7,0)=0,"",VLOOKUP(A61,漢字書き!$A$2:$N$502,7,0))) ->  | B65: =IF(B61="","",IF(VLOOKUP(B61,漢字書き!$A$2:$N$502,7,0)=0,"",VLOOKUP(B61,漢字書き!$A$2:$N$502,7,0))) ->  | C65: =IF(C61="","",IF(VLOOKUP(C61,漢字書き!$A$2:$N$502,7,0)=0,"",VLOOKUP(C61,漢字書き!$A$2:$N$502,7,0))) ->  | D65: =IF(D61="","",IF(VLOOKUP(D61,漢字書き!$A$2:$N$502,7,0)=0,"",VLOOKUP(D61,漢字書き!$A$2:$N$502,7,0))) -> う | E65: =IF(E61="","",IF(VLOOKUP(E61,漢字書き!$A$2:$N$502,7,0)=0,"",VLOOKUP(E61,漢字書き!$A$2:$N$502,7,0))) ->  | F65: =IF(F61="","",IF(VLOOKUP(F61,漢字書き!$A$2:$N$502,7,0)=0,"",VLOOKUP(F61,漢字書き!$A$2:$N$502,7,0))) -> じる | G65: =IF(G61="","",IF(VLOOKUP(G61,漢字書き!$A$2:$N$502,7,0)=0,"",VLOOKUP(G61,漢字書き!$A$2:$N$502,7,0))) -> りゃく | H65: =IF(H61="","",IF(VLOOKUP(H61,漢字書き!$A$2:$N$502,7,0)=0,"",VLOOKUP(H61,漢字書き!$A$2:$N$502,7,0))) ->  | I65: =IF(I61="","",IF(VLOOKUP(I61,漢字書き!$A$2:$N$502,7,0)=0,"",VLOOKUP(I61,漢字書き!$A$2:$N$502,7,0))) ->  | J65: =IF(J61="","",IF(VLOOKUP(J61,漢字書き!$A$2:$N$502,7,0)=0,"",VLOOKUP(J61,漢字書き!$A$2:$N$502,7,0))) -> う | K65: =IF(K61="","",IF(VLOOKUP(K61,漢字読み!$A$2:$O$502,7,0)=0,"",VLOOKUP(K61,漢字読み!$A$2:$O$502,7,0))) ->  | L65: =IF(L61="","",IF(VLOOKUP(L61,漢字読み!$A$2:$O$502,7,0)=0,"",VLOOKUP(L61,漢字読み!$A$2:$O$502,7,0))) -> む | M65: =IF(M61="","",IF(VLOOKUP(M61,漢字読み!$A$2:$O$502,7,0)=0,"",VLOOKUP(M61,漢字読み!$A$2:$O$502,7,0))) -> る | N65: =IF(N61="","",IF(VLOOKUP(N61,漢字読み!$A$2:$O$502,7,0)=0,"",VLOOKUP(N61,漢字読み!$A$2:$O$502,7,0))) ->  | O65: =IF(O61="","",IF(VLOOKUP(O61,漢字読み!$A$2:$O$502,7,0)=0,"",VLOOKUP(O61,漢字読み!$A$2:$O$502,7,0))) -> い声 | P65: =IF(P61="","",IF(VLOOKUP(P61,漢字読み!$A$2:$O$502,7,0)=0,"",VLOOKUP(P61,漢字読み!$A$2:$O$502,7,0))) ->  | Q65: =IF(Q61="","",IF(VLOOKUP(Q61,漢字読み!$A$2:$O$502,7,0)=0,"",VLOOKUP(Q61,漢字読み!$A$2:$O$502,7,0))) -> じゅん | R65: =IF(R61="","",IF(VLOOKUP(R61,漢字読み!$A$2:$O$502,7,0)=0,"",VLOOKUP(R61,漢字読み!$A$2:$O$502,7,0))) ->  | S65: =IF(S61="","",IF(VLOOKUP(S61,漢字読み!$A$2:$O$502,7,0)=0,"",VLOOKUP(S61,漢字読み!$A$2:$O$502,7,0))) -> め | T65: =IF(T61="","",IF(VLOOKUP(T61,漢字読み!$A$2:$O$502,7,0)=0,"",VLOOKUP(T61,漢字読み!$A$2:$O$502,7,0))) -> る | W65: 和歌山県教育委員会
A66: =INDIRECT("'関数（書き）'!C" & COLUMN(B$1)+SUM($AD$2:$AD67)) -> 159 | B66: =INDIRECT("'関数（書き）'!C" & COLUMN(C$1)+SUM($AD$2:$AD67)) -> 192 | C66: =INDIRECT("'関数（書き）'!C" & COLUMN(D$1)+SUM($AD$2:$AD67)) -> 193 | D66: =INDIRECT("'関数（書き）'!C" & COLUMN(E$1)+SUM($AD$2:$AD67)) -> 27 | E66: =INDIRECT("'関数（書き）'!C" & COLUMN(F$1)+SUM($AD$2:$AD67)) -> 12 | F66: =INDIRECT("'関数（書き）'!C" & COLUMN(G$1)+SUM($AD$2:$AD67)) -> 69 | G66: =INDIRECT("'関数（書き）'!C" & COLUMN(H$1)+SUM($AD$2:$AD67)) -> 26 | H66: =INDIRECT("'関数（書き）'!C" & COLUMN(I$1)+SUM($AD$2:$AD67)) -> 194 | I66: =INDIRECT("'関数（書き）'!C" & COLUMN(J$1)+SUM($AD$2:$AD67)) -> 92 | J66: =INDIRECT("'関数（書き）'!C" & COLUMN(K$1)+SUM($AD$2:$AD67)) -> 48 | K66: =INDIRECT("'関数（読み）'!C" & COLUMN(B$1)+SUM($AD$2:$AD67)) -> 66 | L66: =INDIRECT("'関数（読み）'!C" & COLUMN(C$1)+SUM($AD$2:$AD67)) -> 217 | M66: =INDIRECT("'関数（読み）'!C" & COLUMN(D$1)+SUM($AD$2:$AD67)) -> 73 | N66: =INDIRECT("'関数（読み）'!C" & COLUMN(E$1)+SUM($AD$2:$AD67)) -> 182 | O66: =INDIRECT("'関数（読み）'!C" & COLUMN(F$1)+SUM($AD$2:$AD67)) -> 195 | P66: =INDIRECT("'関数（読み）'!C" & COLUMN(G$1)+SUM($AD$2:$AD67)) -> 71 | Q66: =INDIRECT("'関数（読み）'!C" & COLUMN(H$1)+SUM($AD$2:$AD67)) -> 29 | R66: =INDIRECT("'関数（読み）'!C" & COLUMN(I$1)+SUM($AD$2:$AD67)) -> 11 | S66: =INDIRECT("'関数（読み）'!C" & COLUMN(J$1)+SUM($AD$2:$AD67)) -> 5 | T66: =INDIRECT("'関数（読み）'!C" & COLUMN(K$1)+SUM($AD$2:$AD67)) -> 132
A67: ⑳ | B67: ⑲ | C67: ⑱ | D67: ⑰ | E67: ⑯ | F67: ⑮ | G67: ⑭ | H67: ⑬ | I67: ⑫ | J67: ⑪ | K67: ⑩ | L67: ⑨ | M67: ⑧ | N67: ⑦ | O67: ⑥ | P67: ⑤ | Q67: ④ | R67: ③ | S67: ② | T67: ① | U67: 次の［ ］の部分の漢字には読みがなをひらがなで書き、カタカナは漢字に直しなさい。 | V67: 10 | W67: 「漢字の博士検定試験」練習問題 | AC67: ← | AD67: 10 | AE67: 問 | AF67: =AH62+1 -> 71 | AG67: ～ | AH67: =SUM($AD$2:$AD67)+10 -> 80 | AI67: 問まで | AJ67: =COUNTIF($A$1:$T$200,T68) -> 2
A68: =IF(A66="","",VLOOKUP(A66,漢字書き!$A$2:$N$506,6,0)) -> 電気を［セツヤク］する | B68: =IF(B66="","",VLOOKUP(B66,漢字書き!$A$2:$N$506,6,0)) -> ［イチ］を決める | C68: =IF(C66="","",VLOOKUP(C66,漢字書き!$A$2:$N$506,6,0)) -> ぬいぐるみを［オ］く | D68: =IF(D66="","",VLOOKUP(D66,漢字書き!$A$2:$N$506,6,0)) -> 海の［ケシキ］ | E68: =IF(E66="","",VLOOKUP(E66,漢字書き!$A$2:$N$506,6,0)) -> 母の［テカガミ］ | F68: =IF(F66="","",VLOOKUP(F66,漢字書き!$A$2:$N$506,6,0)) -> 花が［カオ］る | G68: =IF(G66="","",VLOOKUP(G66,漢字書き!$A$2:$N$506,6,0)) -> ［ケイヒン］をもらう | H68: =IF(H66="","",VLOOKUP(H66,漢字書き!$A$2:$N$506,6,0)) -> 新しい［ナカマ］ | I68: =IF(I66="","",VLOOKUP(I66,漢字書き!$A$2:$N$506,6,0)) -> 地方［ジチ］体の仕事 | J68: =IF(J66="","",VLOOKUP(J66,漢字書き!$A$2:$N$506,6,0)) -> ［コノ］みの洋服 | K68: =IF(K66="","",VLOOKUP(K66,漢字読み!$A$2:$O$506,6,0)) -> ［表札］をかける | L68: =IF(L66="","",VLOOKUP(L66,漢字読み!$A$2:$O$506,6,0)) -> 魚の［群］れ | M68: =IF(M66="","",VLOOKUP(M66,漢字読み!$A$2:$O$506,6,0)) -> ありを［観察］する | N68: =IF(N66="","",VLOOKUP(N66,漢字読み!$A$2:$O$506,6,0)) -> 物事の［側面］ | O68: =IF(O66="","",VLOOKUP(O66,漢字読み!$A$2:$O$506,6,0)) -> 電気を［帯］びる | P68: =IF(P66="","",VLOOKUP(P66,漢字読み!$A$2:$O$506,6,0)) -> ［香川県］の名物 | Q68: =IF(Q66="","",VLOOKUP(Q66,漢字読み!$A$2:$O$506,6,0)) -> ［景色］をながめる | R68: =IF(R66="","",VLOOKUP(R66,漢字読み!$A$2:$O$506,6,0)) -> みんなで［協力］する | S68: =IF(S66="","",VLOOKUP(S66,漢字読み!$A$2:$O$506,6,0)) -> 両手を［挙］げる | T68: =IF(T66="","",VLOOKUP(T66,漢字読み!$A$2:$O$506,6,0)) -> ［照］り焼きハンバーグ | V68: 級
V69: 名前
A70: =IF(A66="","",IF(VLOOKUP(A66,漢字書き!$A$2:$N$502,7,0)=0,"",VLOOKUP(A66,漢字書き!$A$2:$N$502,7,0))) -> する | B70: =IF(B66="","",IF(VLOOKUP(B66,漢字書き!$A$2:$N$502,7,0)=0,"",VLOOKUP(B66,漢字書き!$A$2:$N$502,7,0))) ->  | C70: =IF(C66="","",IF(VLOOKUP(C66,漢字書き!$A$2:$N$502,7,0)=0,"",VLOOKUP(C66,漢字書き!$A$2:$N$502,7,0))) -> く | D70: =IF(D66="","",IF(VLOOKUP(D66,漢字書き!$A$2:$N$502,7,0)=0,"",VLOOKUP(D66,漢字書き!$A$2:$N$502,7,0))) ->  | E70: =IF(E66="","",IF(VLOOKUP(E66,漢字書き!$A$2:$N$502,7,0)=0,"",VLOOKUP(E66,漢字書き!$A$2:$N$502,7,0))) ->  | F70: =IF(F66="","",IF(VLOOKUP(F66,漢字書き!$A$2:$N$502,7,0)=0,"",VLOOKUP(F66,漢字書き!$A$2:$N$502,7,0))) -> る | G70: =IF(G66="","",IF(VLOOKUP(G66,漢字書き!$A$2:$N$502,7,0)=0,"",VLOOKUP(G66,漢字書き!$A$2:$N$502,7,0))) ->  | H70: =IF(H66="","",IF(VLOOKUP(H66,漢字書き!$A$2:$N$502,7,0)=0,"",VLOOKUP(H66,漢字書き!$A$2:$N$502,7,0))) ->  | I70: =IF(I66="","",IF(VLOOKUP(I66,漢字書き!$A$2:$N$502,7,0)=0,"",VLOOKUP(I66,漢字書き!$A$2:$N$502,7,0))) -> 体 | J70: =IF(J66="","",IF(VLOOKUP(J66,漢字書き!$A$2:$N$502,7,0)=0,"",VLOOKUP(J66,漢字書き!$A$2:$N$502,7,0))) -> み | K70: =IF(K66="","",IF(VLOOKUP(K66,漢字読み!$A$2:$O$502,7,0)=0,"",VLOOKUP(K66,漢字読み!$A$2:$O$502,7,0))) ->  | L70: =IF(L66="","",IF(VLOOKUP(L66,漢字読み!$A$2:$O$502,7,0)=0,"",VLOOKUP(L66,漢字読み!$A$2:$O$502,7,0))) -> れ | M70: =IF(M66="","",IF(VLOOKUP(M66,漢字読み!$A$2:$O$502,7,0)=0,"",VLOOKUP(M66,漢字読み!$A$2:$O$502,7,0))) -> する | N70: =IF(N66="","",IF(VLOOKUP(N66,漢字読み!$A$2:$O$502,7,0)=0,"",VLOOKUP(N66,漢字読み!$A$2:$O$502,7,0))) ->  | O70: =IF(O66="","",IF(VLOOKUP(O66,漢字読み!$A$2:$O$502,7,0)=0,"",VLOOKUP(O66,漢字読み!$A$2:$O$502,7,0))) -> びる | P70: =IF(P66="","",IF(VLOOKUP(P66,漢字読み!$A$2:$O$502,7,0)=0,"",VLOOKUP(P66,漢字読み!$A$2:$O$502,7,0))) ->  | Q70: =IF(Q66="","",IF(VLOOKUP(Q66,漢字読み!$A$2:$O$502,7,0)=0,"",VLOOKUP(Q66,漢字読み!$A$2:$O$502,7,0))) ->  | R70: =IF(R66="","",IF(VLOOKUP(R66,漢字読み!$A$2:$O$502,7,0)=0,"",VLOOKUP(R66,漢字読み!$A$2:$O$502,7,0))) -> する | S70: =IF(S66="","",IF(VLOOKUP(S66,漢字読み!$A$2:$O$502,7,0)=0,"",VLOOKUP(S66,漢字読み!$A$2:$O$502,7,0))) -> げる | T70: =IF(T66="","",IF(VLOOKUP(T66,漢字読み!$A$2:$O$502,7,0)=0,"",VLOOKUP(T66,漢字読み!$A$2:$O$502,7,0))) -> り焼き | W70: 和歌山県教育委員会
A71: =A61 -> 68 | B71: 135 | C71: 45 | D71: 14 | E71: 11 | F71: 134 | G71: 140 | H71: 204 | I71: 152 | J71: 167 | K71: 78 | L71: 154 | M71: 156 | N71: 55 | O71: 122 | P71: 7 | Q71: 200 | R71: 139 | S71: 119 | T71: 100
A72: ⑳ | B72: ⑲ | C72: ⑱ | D72: ⑰ | E72: ⑯ | F72: ⑮ | G72: ⑭ | H72: ⑬ | I72: ⑫ | J72: ⑪ | K72: ⑩ | L72: ⑨ | M72: ⑧ | N72: ⑦ | O72: ⑥ | P72: ⑤ | Q72: ④ | R72: ③ | S72: ② | T72: ① | U72: 次の［ ］の部分の漢字には読みがなをひらがなで書き、カタカナは漢字に直しなさい。 | V72: 10 | W72: 「漢字の博士検定試験」練習問題
A73: =IF(A71="","",VLOOKUP(A71,漢字書き!$A$2:$N$506,6,0)) -> ［カガワケン］のうどん | B73: =IF(B71="","",VLOOKUP(B71,漢字書き!$A$2:$N$506,6,0)) -> ［ジシン］をもってやる | C73: =IF(C71="","",VLOOKUP(C71,漢字書き!$A$2:$N$506,6,0)) -> ［セイコウ］をおさめる | D73: =IF(D71="","",VLOOKUP(D71,漢字書き!$A$2:$N$506,6,0)) -> わざを［キソ］う | E73: =IF(E71="","",VLOOKUP(E71,漢字書き!$A$2:$N$506,6,0)) -> ［カガミ］をみがく | F73: =IF(F71="","",VLOOKUP(F71,漢字書き!$A$2:$N$506,6,0)) -> 人を［シン］じる | G73: =IF(G71="","",VLOOKUP(G71,漢字書き!$A$2:$N$506,6,0)) -> 以下、［ショウ］りゃく | H73: =IF(H71="","",VLOOKUP(H71,漢字書き!$A$2:$N$506,6,0)) -> [グンマケン]の名物 | I73: =IF(I71="","",VLOOKUP(I71,漢字書き!$A$2:$N$506,6,0)) -> 図形の［メンセキ］ | J73: =IF(J71="","",VLOOKUP(J71,漢字書き!$A$2:$N$506,6,0)) -> てきと［タタカ］う | K73: =IF(K71="","",VLOOKUP(K71,漢字読み!$A$2:$O$506,6,0)) -> さかんな地場[産業] | L73: =IF(L71="","",VLOOKUP(L71,漢字読み!$A$2:$O$506,6,0)) -> はこを［積］む | M73: =IF(M71="","",VLOOKUP(M71,漢字読み!$A$2:$O$506,6,0)) -> 木を［折］る | N73: =IF(N71="","",VLOOKUP(N71,漢字読み!$A$2:$O$506,6,0)) -> ［宮崎県］のマンゴー | O73: =IF(O71="","",VLOOKUP(O71,漢字読み!$A$2:$O$506,6,0)) -> 子どもの［笑］い声 | P73: =IF(P71="","",VLOOKUP(P71,漢字読み!$A$2:$O$506,6,0)) -> 今日は［大漁］だ | Q73: =IF(Q71="","",VLOOKUP(Q71,漢字読み!$A$2:$O$506,6,0)) -> ［単］じゅんな考え | R73: =IF(R71="","",VLOOKUP(R71,漢字読み!$A$2:$O$506,6,0)) -> ［自信］がつく | S73: =IF(S71="","",VLOOKUP(S71,漢字読み!$A$2:$O$506,6,0)) -> 夏の[初]め | T73: =IF(T71="","",VLOOKUP(T71,漢字読み!$A$2:$O$506,6,0)) -> きずが［治］る | V73: 級
A74: =IF(A$11="","",VLOOKUP(A71,漢字書き!$A$2:$O$506,8,0)) -> 香川県 | B74: =IF(B$11="","",VLOOKUP(B71,漢字書き!$A$2:$O$506,8,0)) -> 自信 | C74: =IF(C$11="","",VLOOKUP(C71,漢字書き!$A$2:$O$506,8,0)) -> 成功 | D74: =IF(D$11="","",VLOOKUP(D71,漢字書き!$A$2:$O$506,8,0)) -> 競 | E74: =IF(E$11="","",VLOOKUP(E71,漢字書き!$A$2:$O$506,8,0)) -> 鏡 | F74: =IF(F$11="","",VLOOKUP(F71,漢字書き!$A$2:$O$506,8,0)) -> 信 | G74: =IF(G$11="","",VLOOKUP(G71,漢字書き!$A$2:$O$506,8,0)) -> 省 | H74: =IF(H$11="","",VLOOKUP(H71,漢字書き!$A$2:$O$506,8,0)) -> 群馬県 | I74: =IF(I$11="","",VLOOKUP(I71,漢字書き!$A$2:$O$506,8,0)) -> 面積 | J74: =IF(J$11="","",VLOOKUP(J71,漢字書き!$A$2:$O$506,8,0)) -> 戦 | K74: =IF(K$11="","",VLOOKUP(K71,漢字読み!$A$2:$O$506,8,0)) -> さんぎょう | L74: =IF(L$11="","",VLOOKUP(L71,漢字読み!$A$2:$O$506,8,0)) -> つ | M74: =IF(M$11="","",VLOOKUP(M71,漢字読み!$A$2:$O$506,8,0)) -> お | N74: =IF(N$11="","",VLOOKUP(N71,漢字読み!$A$2:$O$506,8,0)) -> みやざきけん | O74: =IF(O$11="","",VLOOKUP(O71,漢字読み!$A$2:$O$506,8,0)) -> わら | P74: =IF(P$11="","",VLOOKUP(P71,漢字読み!$A$2:$O$506,8,0)) -> たいりょう | Q74: =IF(Q$11="","",VLOOKUP(Q71,漢字読み!$A$2:$O$506,8,0)) -> たん | R74: =IF(R$11="","",VLOOKUP(R71,漢字読み!$A$2:$O$506,8,0)) -> じしん | S74: =IF(S$11="","",VLOOKUP(S71,漢字読み!$A$2:$O$506,8,0)) -> はじ | T74: =IF(T$11="","",VLOOKUP(T71,漢字読み!$A$2:$O$506,8,0)) -> なお | V74: 名前
A75: =IF(A71="","",IF(VLOOKUP(A71,漢字書き!$A$2:$N$502,7,0)=0,"",VLOOKUP(A71,漢字書き!$A$2:$N$502,7,0))) ->  | B75: =IF(B71="","",IF(VLOOKUP(B71,漢字書き!$A$2:$N$502,7,0)=0,"",VLOOKUP(B71,漢字書き!$A$2:$N$502,7,0))) ->  | C75: =IF(C71="","",IF(VLOOKUP(C71,漢字書き!$A$2:$N$502,7,0)=0,"",VLOOKUP(C71,漢字書き!$A$2:$N$502,7,0))) ->  | D75: =IF(D71="","",IF(VLOOKUP(D71,漢字書き!$A$2:$N$502,7,0)=0,"",VLOOKUP(D71,漢字書き!$A$2:$N$502,7,0))) -> う | E75: =IF(E71="","",IF(VLOOKUP(E71,漢字書き!$A$2:$N$502,7,0)=0,"",VLOOKUP(E71,漢字書き!$A$2:$N$502,7,0))) ->  | F75: =IF(F71="","",IF(VLOOKUP(F71,漢字書き!$A$2:$N$502,7,0)=0,"",VLOOKUP(F71,漢字書き!$A$2:$N$502,7,0))) -> じる | G75: =IF(G71="","",IF(VLOOKUP(G71,漢字書き!$A$2:$N$502,7,0)=0,"",VLOOKUP(G71,漢字書き!$A$2:$N$502,7,0))) -> りゃく | H75: =IF(H71="","",IF(VLOOKUP(H71,漢字書き!$A$2:$N$502,7,0)=0,"",VLOOKUP(H71,漢字書き!$A$2:$N$502,7,0))) ->  | I75: =IF(I71="","",IF(VLOOKUP(I71,漢字書き!$A$2:$N$502,7,0)=0,"",VLOOKUP(I71,漢字書き!$A$2:$N$502,7,0))) ->  | J75: =IF(J71="","",IF(VLOOKUP(J71,漢字書き!$A$2:$N$502,7,0)=0,"",VLOOKUP(J71,漢字書き!$A$2:$N$502,7,0))) -> う | K75: =IF(K71="","",IF(VLOOKUP(K71,漢字読み!$A$2:$O$502,7,0)=0,"",VLOOKUP(K71,漢字読み!$A$2:$O$502,7,0))) ->  | L75: =IF(L71="","",IF(VLOOKUP(L71,漢字読み!$A$2:$O$502,7,0)=0,"",VLOOKUP(L71,漢字読み!$A$2:$O$502,7,0))) -> む | M75: =IF(M71="","",IF(VLOOKUP(M71,漢字読み!$A$2:$O$502,7,0)=0,"",VLOOKUP(M71,漢字読み!$A$2:$O$502,7,0))) -> る | N75: =IF(N71="","",IF(VLOOKUP(N71,漢字読み!$A$2:$O$502,7,0)=0,"",VLOOKUP(N71,漢字読み!$A$2:$O$502,7,0))) ->  | O75: =IF(O71="","",IF(VLOOKUP(O71,漢字読み!$A$2:$O$502,7,0)=0,"",VLOOKUP(O71,漢字読み!$A$2:$O$502,7,0))) -> い声 | P75: =IF(P71="","",IF(VLOOKUP(P71,漢字読み!$A$2:$O$502,7,0)=0,"",VLOOKUP(P71,漢字読み!$A$2:$O$502,7,0))) ->  | Q75: =IF(Q71="","",IF(VLOOKUP(Q71,漢字読み!$A$2:$O$502,7,0)=0,"",VLOOKUP(Q71,漢字読み!$A$2:$O$502,7,0))) -> じゅん | R75: =IF(R71="","",IF(VLOOKUP(R71,漢字読み!$A$2:$O$502,7,0)=0,"",VLOOKUP(R71,漢字読み!$A$2:$O$502,7,0))) ->  | S75: =IF(S71="","",IF(VLOOKUP(S71,漢字読み!$A$2:$O$502,7,0)=0,"",VLOOKUP(S71,漢字読み!$A$2:$O$502,7,0))) -> め | T75: =IF(T71="","",IF(VLOOKUP(T71,漢字読み!$A$2:$O$502,7,0)=0,"",VLOOKUP(T71,漢字読み!$A$2:$O$502,7,0))) -> る | W75: 和歌山県教育委員会
A76: =A66 -> 159 | B76: 192 | C76: 193 | D76: 27 | E76: 12 | F76: 69 | G76: 26 | H76: 194 | I76: 92 | J76: 48 | K76: 66 | L76: 217 | M76: 73 | N76: 182 | O76: 195 | P76: 71 | Q76: 29 | R76: 11 | S76: 5 | T76: 132
A77: ⑳ | B77: ⑲ | C77: ⑱ | D77: ⑰ | E77: ⑯ | F77: ⑮ | G77: ⑭ | H77: ⑬ | I77: ⑫ | J77: ⑪ | K77: ⑩ | L77: ⑨ | M77: ⑧ | N77: ⑦ | O77: ⑥ | P77: ⑤ | Q77: ④ | R77: ③ | S77: ② | T77: ① | U77: 次の［ ］の部分の漢字には読みがなをひらがなで書き、カタカナは漢字に直しなさい。 | V77: 10 | W77: 「漢字の博士検定試験」練習問題
A78: =IF(A76="","",VLOOKUP(A76,漢字書き!$A$2:$N$506,6,0)) -> 電気を［セツヤク］する | B78: =IF(B76="","",VLOOKUP(B76,漢字書き!$A$2:$N$506,6,0)) -> ［イチ］を決める | C78: =IF(C76="","",VLOOKUP(C76,漢字書き!$A$2:$N$506,6,0)) -> ぬいぐるみを［オ］く | D78: =IF(D76="","",VLOOKUP(D76,漢字書き!$A$2:$N$506,6,0)) -> 海の［ケシキ］ | E78: =IF(E76="","",VLOOKUP(E76,漢字書き!$A$2:$N$506,6,0)) -> 母の［テカガミ］ | F78: =IF(F76="","",VLOOKUP(F76,漢字書き!$A$2:$N$506,6,0)) -> 花が［カオ］る | G78: =IF(G76="","",VLOOKUP(G76,漢字書き!$A$2:$N$506,6,0)) -> ［ケイヒン］をもらう | H78: =IF(H76="","",VLOOKUP(H76,漢字書き!$A$2:$N$506,6,0)) -> 新しい［ナカマ］ | I78: =IF(I76="","",VLOOKUP(I76,漢字書き!$A$2:$N$506,6,0)) -> 地方［ジチ］体の仕事 | J78: =IF(J76="","",VLOOKUP(J76,漢字書き!$A$2:$N$506,6,0)) -> ［コノ］みの洋服 | K78: =IF(K76="","",VLOOKUP(K76,漢字読み!$A$2:$O$506,6,0)) -> ［表札］をかける | L78: =IF(L76="","",VLOOKUP(L76,漢字読み!$A$2:$O$506,6,0)) -> 魚の［群］れ | M78: =IF(M76="","",VLOOKUP(M76,漢字読み!$A$2:$O$506,6,0)) -> ありを［観察］する | N78: =IF(N76="","",VLOOKUP(N76,漢字読み!$A$2:$O$506,6,0)) -> 物事の［側面］ | O78: =IF(O76="","",VLOOKUP(O76,漢字読み!$A$2:$O$506,6,0)) -> 電気を［帯］びる | P78: =IF(P76="","",VLOOKUP(P76,漢字読み!$A$2:$O$506,6,0)) -> ［香川県］の名物 | Q78: =IF(Q76="","",VLOOKUP(Q76,漢字読み!$A$2:$O$506,6,0)) -> ［景色］をながめる | R78: =IF(R76="","",VLOOKUP(R76,漢字読み!$A$2:$O$506,6,0)) -> みんなで［協力］する | S78: =IF(S76="","",VLOOKUP(S76,漢字読み!$A$2:$O$506,6,0)) -> 両手を［挙］げる | T78: =IF(T76="","",VLOOKUP(T76,漢字読み!$A$2:$O$506,6,0)) -> ［照］り焼きハンバーグ | V78: 級
A79: =IF(A$16="","",VLOOKUP(A76,漢字書き!$A$2:$O$506,8,0)) -> 節約 | B79: =IF(B$16="","",VLOOKUP(B76,漢字書き!$A$2:$O$506,8,0)) -> 位置 | C79: =IF(C$16="","",VLOOKUP(C76,漢字書き!$A$2:$O$506,8,0)) -> 置 | D79: =IF(D$16="","",VLOOKUP(D76,漢字書き!$A$2:$O$506,8,0)) -> 景色 | E79: =IF(E$16="","",VLOOKUP(E76,漢字書き!$A$2:$O$506,8,0)) -> 手鏡 | F79: =IF(F$16="","",VLOOKUP(F76,漢字書き!$A$2:$O$506,8,0)) -> 香 | G79: =IF(G$16="","",VLOOKUP(G76,漢字書き!$A$2:$O$506,8,0)) -> 景品 | H79: =IF(H$16="","",VLOOKUP(H76,漢字書き!$A$2:$O$506,8,0)) -> 仲間 | I79: =IF(I$16="","",VLOOKUP(I76,漢字書き!$A$2:$O$506,8,0)) -> 自治 | J79: =IF(J$16="","",VLOOKUP(J76,漢字書き!$A$2:$O$506,8,0)) -> 好 | K79: =IF(K$16="","",VLOOKUP(K76,漢字読み!$A$2:$O$506,8,0)) -> ひょうさつ | L79: =IF(L$16="","",VLOOKUP(L76,漢字読み!$A$2:$O$506,8,0)) -> む | M79: =IF(M$16="","",VLOOKUP(M76,漢字読み!$A$2:$O$506,8,0)) -> かんさつ | N79: =IF(N$16="","",VLOOKUP(N76,漢字読み!$A$2:$O$506,8,0)) -> そくめん | O79: =IF(O$16="","",VLOOKUP(O76,漢字読み!$A$2:$O$506,8,0)) -> お | P79: =IF(P$16="","",VLOOKUP(P76,漢字読み!$A$2:$O$506,8,0)) -> かがわけん | Q79: =IF(Q$16="","",VLOOKUP(Q76,漢字読み!$A$2:$O$506,8,0)) -> けしき | R79: =IF(R$16="","",VLOOKUP(R76,漢字読み!$A$2:$O$506,8,0)) -> きょうりょく | S79: =IF(S$16="","",VLOOKUP(S76,漢字読み!$A$2:$O$506,8,0)) -> あ | T79: =IF(T$16="","",VLOOKUP(T76,漢字読み!$A$2:$O$506,8,0)) -> て | V79: 名前
A80: =IF(A76="","",IF(VLOOKUP(A76,漢字書き!$A$2:$N$502,7,0)=0,"",VLOOKUP(A76,漢字書き!$A$2:$N$502,7,0))) -> する | B80: =IF(B76="","",IF(VLOOKUP(B76,漢字書き!$A$2:$N$502,7,0)=0,"",VLOOKUP(B76,漢字書き!$A$2:$N$502,7,0))) ->  | C80: =IF(C76="","",IF(VLOOKUP(C76,漢字書き!$A$2:$N$502,7,0)=0,"",VLOOKUP(C76,漢字書き!$A$2:$N$502,7,0))) -> く | D80: =IF(D76="","",IF(VLOOKUP(D76,漢字書き!$A$2:$N$502,7,0)=0,"",VLOOKUP(D76,漢字書き!$A$2:$N$502,7,0))) ->  | E80: =IF(E76="","",IF(VLOOKUP(E76,漢字書き!$A$2:$N$502,7,0)=0,"",VLOOKUP(E76,漢字書き!$A$2:$N$502,7,0))) ->  | F80: =IF(F76="","",IF(VLOOKUP(F76,漢字書き!$A$2:$N$502,7,0)=0,"",VLOOKUP(F76,漢字書き!$A$2:$N$502,7,0))) -> る | G80: =IF(G76="","",IF(VLOOKUP(G76,漢字書き!$A$2:$N$502,7,0)=0,"",VLOOKUP(G76,漢字書き!$A$2:$N$502,7,0))) ->  | H80: =IF(H76="","",IF(VLOOKUP(H76,漢字書き!$A$2:$N$502,7,0)=0,"",VLOOKUP(H76,漢字書き!$A$2:$N$502,7,0))) ->  | I80: =IF(I76="","",IF(VLOOKUP(I76,漢字書き!$A$2:$N$502,7,0)=0,"",VLOOKUP(I76,漢字書き!$A$2:$N$502,7,0))) -> 体 | J80: =IF(J76="","",IF(VLOOKUP(J76,漢字書き!$A$2:$N$502,7,0)=0,"",VLOOKUP(J76,漢字書き!$A$2:$N$502,7,0))) -> み | K80: =IF(K76="","",IF(VLOOKUP(K76,漢字読み!$A$2:$O$502,7,0)=0,"",VLOOKUP(K76,漢字読み!$A$2:$O$502,7,0))) ->  | L80: =IF(L76="","",IF(VLOOKUP(L76,漢字読み!$A$2:$O$502,7,0)=0,"",VLOOKUP(L76,漢字読み!$A$2:$O$502,7,0))) -> れ | M80: =IF(M76="","",IF(VLOOKUP(M76,漢字読み!$A$2:$O$502,7,0)=0,"",VLOOKUP(M76,漢字読み!$A$2:$O$502,7,0))) -> する | N80: =IF(N76="","",IF(VLOOKUP(N76,漢字読み!$A$2:$O$502,7,0)=0,"",VLOOKUP(N76,漢字読み!$A$2:$O$502,7,0))) ->  | O80: =IF(O76="","",IF(VLOOKUP(O76,漢字読み!$A$2:$O$502,7,0)=0,"",VLOOKUP(O76,漢字読み!$A$2:$O$502,7,0))) -> びる | P80: =IF(P76="","",IF(VLOOKUP(P76,漢字読み!$A$2:$O$502,7,0)=0,"",VLOOKUP(P76,漢字読み!$A$2:$O$502,7,0))) ->  | Q80: =IF(Q76="","",IF(VLOOKUP(Q76,漢字読み!$A$2:$O$502,7,0)=0,"",VLOOKUP(Q76,漢字読み!$A$2:$O$502,7,0))) ->  | R80: =IF(R76="","",IF(VLOOKUP(R76,漢字読み!$A$2:$O$502,7,0)=0,"",VLOOKUP(R76,漢字読み!$A$2:$O$502,7,0))) -> する | S80: =IF(S76="","",IF(VLOOKUP(S76,漢字読み!$A$2:$O$502,7,0)=0,"",VLOOKUP(S76,漢字読み!$A$2:$O$502,7,0))) -> げる | T80: =IF(T76="","",IF(VLOOKUP(T76,漢字読み!$A$2:$O$502,7,0)=0,"",VLOOKUP(T76,漢字読み!$A$2:$O$502,7,0))) -> り焼き | W80: 和歌山県教育委員会
A81: =INDIRECT("'関数（書き）'!C" & COLUMN(B$1)+SUM($AD$2:$AD82)) -> 104 | B81: =INDIRECT("'関数（書き）'!C" & COLUMN(C$1)+SUM($AD$2:$AD82)) -> 32 | C81: =INDIRECT("'関数（書き）'!C" & COLUMN(D$1)+SUM($AD$2:$AD82)) -> 195 | D81: =INDIRECT("'関数（書き）'!C" & COLUMN(E$1)+SUM($AD$2:$AD82)) -> 72 | E81: =INDIRECT("'関数（書き）'!C" & COLUMN(F$1)+SUM($AD$2:$AD82)) -> 130 | F81: =INDIRECT("'関数（書き）'!C" & COLUMN(G$1)+SUM($AD$2:$AD82)) -> 177 | G81: =INDIRECT("'関数（書き）'!C" & COLUMN(H$1)+SUM($AD$2:$AD82)) -> 47 | H81: =INDIRECT("'関数（書き）'!C" & COLUMN(I$1)+SUM($AD$2:$AD82)) -> 36 | I81: =INDIRECT("'関数（書き）'!C" & COLUMN(J$1)+SUM($AD$2:$AD82)) -> 31 | J81: =INDIRECT("'関数（書き）'!C" & COLUMN(K$1)+SUM($AD$2:$AD82)) -> 60 | K81: =INDIRECT("'関数（読み）'!C" & COLUMN(B$1)+SUM($AD$2:$AD82)) -> 116 | L81: =INDIRECT("'関数（読み）'!C" & COLUMN(C$1)+SUM($AD$2:$AD82)) -> 123 | M81: =INDIRECT("'関数（読み）'!C" & COLUMN(D$1)+SUM($AD$2:$AD82)) -> 106 | N81: =INDIRECT("'関数（読み）'!C" & COLUMN(E$1)+SUM($AD$2:$AD82)) -> 94 | O81: =INDIRECT("'関数（読み）'!C" & COLUMN(F$1)+SUM($AD$2:$AD82)) -> 6 | P81: =INDIRECT("'関数（読み）'!C" & COLUMN(G$1)+SUM($AD$2:$AD82)) -> 16 | Q81: =INDIRECT("'関数（読み）'!C" & COLUMN(H$1)+SUM($AD$2:$AD82)) -> 72 | R81: =INDIRECT("'関数（読み）'!C" & COLUMN(I$1)+SUM($AD$2:$AD82)) -> 9 | S81: =INDIRECT("'関数（読み）'!C" & COLUMN(J$1)+SUM($AD$2:$AD82)) -> 159 | T81: =INDIRECT("'関数（読み）'!C" & COLUMN(K$1)+SUM($AD$2:$AD82)) -> 19
A82: ⑳ | B82: ⑲ | C82: ⑱ | D82: ⑰ | E82: ⑯ | F82: ⑮ | G82: ⑭ | H82: ⑬ | I82: ⑫ | J82: ⑪ | K82: ⑩ | L82: ⑨ | M82: ⑧ | N82: ⑦ | O82: ⑥ | P82: ⑤ | Q82: ④ | R82: ③ | S82: ② | T82: ① | U82: 次の［ ］の部分の漢字には読みがなをひらがなで書き、カタカナは漢字に直しなさい。 | V82: 10 | W82: 「漢字の博士検定試験」練習問題 | AC82: ← | AD82: 10 | AE82: 問 | AF82: =AH67+1 -> 81 | AG82: ～ | AH82: =SUM($AD$2:$AD82)+10 -> 90 | AI82: 問まで | AJ82: =COUNTIF($A$1:$T$200,T83) -> 2
A83: =IF(A81="","",VLOOKUP(A81,漢字書き!$A$2:$N$506,6,0)) -> ヒマワリの［シュシ］ | B83: =IF(B81="","",VLOOKUP(B81,漢字書き!$A$2:$N$506,6,0)) -> テストの［ケッカ］ | C83: =IF(C81="","",VLOOKUP(C81,漢字書き!$A$2:$N$506,6,0)) -> [サガケン]の地図 | D83: =IF(D81="","",VLOOKUP(D81,漢字書き!$A$2:$N$506,6,0)) -> お宮に［マイ］る | E83: =IF(E81="","",VLOOKUP(E81,漢字書き!$A$2:$N$506,6,0)) -> 日に［テ］らされる | F83: =IF(F81="","",VLOOKUP(F81,漢字書き!$A$2:$N$506,6,0)) -> ハチの［ス］を見つける | G83: =IF(G81="","",VLOOKUP(G81,漢字書き!$A$2:$N$506,6,0)) -> ［ス］きな歌を聞く | H83: =IF(H81="","",VLOOKUP(H81,漢字書き!$A$2:$N$506,6,0)) -> 家を［タ］てる | I83: =IF(I81="","",VLOOKUP(I81,漢字書き!$A$2:$N$506,6,0)) -> 月のみち［カ］け | J83: =IF(J81="","",VLOOKUP(J81,漢字書き!$A$2:$N$506,6,0)) -> ［モット］も高い山 | K83: =IF(K81="","",VLOOKUP(K81,漢字読み!$A$2:$O$506,6,0)) -> ［初］めて聞く話 | L83: =IF(L81="","",VLOOKUP(L81,漢字読み!$A$2:$O$506,6,0)) -> にっこりと[笑]う | M83: =IF(M81="","",VLOOKUP(M81,漢字読み!$A$2:$O$506,6,0)) -> 本を［借］りる | N83: =IF(N81="","",VLOOKUP(N81,漢字読み!$A$2:$O$506,6,0)) -> ［育児］はたいへんだ | O83: =IF(O81="","",VLOOKUP(O81,漢字読み!$A$2:$O$506,6,0)) -> ［漁業］の町 | P83: =IF(P81="","",VLOOKUP(P81,漢字読み!$A$2:$O$506,6,0)) -> 力を［競］う | Q83: =IF(Q81="","",VLOOKUP(Q81,漢字読み!$A$2:$O$506,6,0)) -> みかんの花が［香］る | R83: =IF(R81="","",VLOOKUP(R81,漢字読み!$A$2:$O$506,6,0)) -> ［共同］で取り組む | S83: =IF(S81="","",VLOOKUP(S81,漢字読み!$A$2:$O$506,6,0)) -> ［節分］の日 | T83: =IF(T81="","",VLOOKUP(T81,漢字読み!$A$2:$O$506,6,0)) -> ひなん［訓練］ | V83: 級
V84: 名前
A85: =IF(A81="","",IF(VLOOKUP(A81,漢字書き!$A$2:$N$502,7,0)=0,"",VLOOKUP(A81,漢字書き!$A$2:$N$502,7,0))) ->  | B85: =IF(B81="","",IF(VLOOKUP(B81,漢字書き!$A$2:$N$502,7,0)=0,"",VLOOKUP(B81,漢字書き!$A$2:$N$502,7,0))) ->  | C85: =IF(C81="","",IF(VLOOKUP(C81,漢字書き!$A$2:$N$502,7,0)=0,"",VLOOKUP(C81,漢字書き!$A$2:$N$502,7,0))) ->  | D85: =IF(D81="","",IF(VLOOKUP(D81,漢字書き!$A$2:$N$502,7,0)=0,"",VLOOKUP(D81,漢字書き!$A$2:$N$502,7,0))) -> る | E85: =IF(E81="","",IF(VLOOKUP(E81,漢字書き!$A$2:$N$502,7,0)=0,"",VLOOKUP(E81,漢字書き!$A$2:$N$502,7,0))) -> らされる | F85: =IF(F81="","",IF(VLOOKUP(F81,漢字書き!$A$2:$N$502,7,0)=0,"",VLOOKUP(F81,漢字書き!$A$2:$N$502,7,0))) ->  | G85: =IF(G81="","",IF(VLOOKUP(G81,漢字書き!$A$2:$N$502,7,0)=0,"",VLOOKUP(G81,漢字書き!$A$2:$N$502,7,0))) -> きな | H85: =IF(H81="","",IF(VLOOKUP(H81,漢字書き!$A$2:$N$502,7,0)=0,"",VLOOKUP(H81,漢字書き!$A$2:$N$502,7,0))) -> てる | I85: =IF(I81="","",IF(VLOOKUP(I81,漢字書き!$A$2:$N$502,7,0)=0,"",VLOOKUP(I81,漢字書き!$A$2:$N$502,7,0))) -> け | J85: =IF(J81="","",IF(VLOOKUP(J81,漢字書き!$A$2:$N$502,7,0)=0,"",VLOOKUP(J81,漢字書き!$A$2:$N$502,7,0))) -> も | K85: =IF(K81="","",IF(VLOOKUP(K81,漢字読み!$A$2:$O$502,7,0)=0,"",VLOOKUP(K81,漢字読み!$A$2:$O$502,7,0))) -> めて | L85: =IF(L81="","",IF(VLOOKUP(L81,漢字読み!$A$2:$O$502,7,0)=0,"",VLOOKUP(L81,漢字読み!$A$2:$O$502,7,0))) -> う | M85: =IF(M81="","",IF(VLOOKUP(M81,漢字読み!$A$2:$O$502,7,0)=0,"",VLOOKUP(M81,漢字読み!$A$2:$O$502,7,0))) -> りる | N85: =IF(N81="","",IF(VLOOKUP(N81,漢字読み!$A$2:$O$502,7,0)=0,"",VLOOKUP(N81,漢字読み!$A$2:$O$502,7,0))) ->  | O85: =IF(O81="","",IF(VLOOKUP(O81,漢字読み!$A$2:$O$502,7,0)=0,"",VLOOKUP(O81,漢字読み!$A$2:$O$502,7,0))) ->  | P85: =IF(P81="","",IF(VLOOKUP(P81,漢字読み!$A$2:$O$502,7,0)=0,"",VLOOKUP(P81,漢字読み!$A$2:$O$502,7,0))) -> う | Q85: =IF(Q81="","",IF(VLOOKUP(Q81,漢字読み!$A$2:$O$502,7,0)=0,"",VLOOKUP(Q81,漢字読み!$A$2:$O$502,7,0))) -> る | R85: =IF(R81="","",IF(VLOOKUP(R81,漢字読み!$A$2:$O$502,7,0)=0,"",VLOOKUP(R81,漢字読み!$A$2:$O$502,7,0))) ->  | S85: =IF(S81="","",IF(VLOOKUP(S81,漢字読み!$A$2:$O$502,7,0)=0,"",VLOOKUP(S81,漢字読み!$A$2:$O$502,7,0))) ->  | T85: =IF(T81="","",IF(VLOOKUP(T81,漢字読み!$A$2:$O$502,7,0)=0,"",VLOOKUP(T81,漢字読み!$A$2:$O$502,7,0))) ->  | W85: 和歌山県教育委員会
A86: =INDIRECT("'関数（書き）'!C" & COLUMN(B$1)+SUM($AD$2:$AD87)) -> 161 | B86: =INDIRECT("'関数（書き）'!C" & COLUMN(C$1)+SUM($AD$2:$AD87)) -> 139 | C86: =INDIRECT("'関数（書き）'!C" & COLUMN(D$1)+SUM($AD$2:$AD87)) -> 64 | D86: =INDIRECT("'関数（書き）'!C" & COLUMN(E$1)+SUM($AD$2:$AD87)) -> 35 | E86: =INDIRECT("'関数（書き）'!C" & COLUMN(F$1)+SUM($AD$2:$AD87)) -> 120 | F86: =INDIRECT("'関数（書き）'!C" & COLUMN(G$1)+SUM($AD$2:$AD87)) -> 94 | G86: =INDIRECT("'関数（書き）'!C" & COLUMN(H$1)+SUM($AD$2:$AD87)) -> 143 | H86: =INDIRECT("'関数（書き）'!C" & COLUMN(I$1)+SUM($AD$2:$AD87)) -> 51 | I86: =INDIRECT("'関数（書き）'!C" & COLUMN(J$1)+SUM($AD$2:$AD87)) -> 206 | J86: =INDIRECT("'関数（書き）'!C" & COLUMN(K$1)+SUM($AD$2:$AD87)) -> 89 | K86: =INDIRECT("'関数（読み）'!C" & COLUMN(B$1)+SUM($AD$2:$AD87)) -> 127 | L86: =INDIRECT("'関数（読み）'!C" & COLUMN(C$1)+SUM($AD$2:$AD87)) -> 98 | M86: =INDIRECT("'関数（読み）'!C" & COLUMN(D$1)+SUM($AD$2:$AD87)) -> 193 | N86: =INDIRECT("'関数（読み）'!C" & COLUMN(E$1)+SUM($AD$2:$AD87)) -> 148 | O86: =INDIRECT("'関数（読み）'!C" & COLUMN(F$1)+SUM($AD$2:$AD87)) -> 40 | P86: =INDIRECT("'関数（読み）'!C" & COLUMN(G$1)+SUM($AD$2:$AD87)) -> 4 | Q86: =INDIRECT("'関数（読み）'!C" & COLUMN(H$1)+SUM($AD$2:$AD87)) -> 216 | R86: =INDIRECT("'関数（読み）'!C" & COLUMN(I$1)+SUM($AD$2:$AD87)) -> 15 | S86: =INDIRECT("'関数（読み）'!C" & COLUMN(J$1)+SUM($AD$2:$AD87)) -> 20 | T86: =INDIRECT("'関数（読み）'!C" & COLUMN(K$1)+SUM($AD$2:$AD87)) -> 202
A87: ⑳ | B87: ⑲ | C87: ⑱ | D87: ⑰ | E87: ⑯ | F87: ⑮ | G87: ⑭ | H87: ⑬ | I87: ⑫ | J87: ⑪ | K87: ⑩ | L87: ⑨ | M87: ⑧ | N87: ⑦ | O87: ⑥ | P87: ⑤ | Q87: ④ | R87: ③ | S87: ② | T87: ① | U87: 次の［ ］の部分の漢字には読みがなをひらがなで書き、カタカナは漢字に直しなさい。 | V87: 10 | W87: 「漢字の博士検定試験」練習問題 | AC87: ← | AD87: 10 | AE87: 問 | AF87: =AH82+1 -> 91 | AG87: ～ | AH87: =SUM($AD$2:$AD87)+10 -> 100 | AI87: 問まで | AJ87: =COUNTIF($A$1:$T$200,T88) -> 2
A88: =IF(A86="","",VLOOKUP(A86,漢字書き!$A$2:$N$506,6,0)) -> くわしく［セツメイ］する | B88: =IF(B86="","",VLOOKUP(B86,漢字書き!$A$2:$N$506,6,0)) -> しっかり［ハンセイ］する | C88: =IF(C86="","",VLOOKUP(C86,漢字書き!$A$2:$N$506,6,0)) -> 千円［サツ］を使う | D88: =IF(D86="","",VLOOKUP(D86,漢字書き!$A$2:$N$506,6,0)) -> ［ケンコク］記ねんの日 | E88: =IF(E86="","",VLOOKUP(E86,漢字書き!$A$2:$N$506,6,0)) -> 子どもの［ワラ］い声 | F88: =IF(F86="","",VLOOKUP(F86,漢字書き!$A$2:$N$506,6,0)) -> 国を［オサ］める | G88: =IF(G86="","",VLOOKUP(G86,漢字書き!$A$2:$N$506,6,0)) -> 字を［セイショ］する | H88: =IF(H86="","",VLOOKUP(H86,漢字書き!$A$2:$N$506,6,0)) -> ［オキナワケン］のシーサー | I88: =IF(I86="","",VLOOKUP(I86,漢字書き!$A$2:$N$506,6,0)) -> ［セッキョクテキ］に行動する | J88: =IF(J86="","",VLOOKUP(J86,漢字書き!$A$2:$N$506,6,0)) -> 入学[シケン]を受ける | K88: =IF(K86="","",VLOOKUP(K86,漢字読み!$A$2:$O$506,6,0)) -> 日に[焼]ける | L88: =IF(L86="","",VLOOKUP(L86,漢字読み!$A$2:$O$506,6,0)) -> 国を［治］める | M88: =IF(M86="","",VLOOKUP(M86,漢字読み!$A$2:$O$506,6,0)) -> けい[帯]電話 | N88: =IF(N86="","",VLOOKUP(N86,漢字読み!$A$2:$O$506,6,0)) -> ［清］らかな水 | O88: =IF(O86="","",VLOOKUP(O86,漢字読み!$A$2:$O$506,6,0)) -> [健全]な体 | P88: =IF(P86="","",VLOOKUP(P86,漢字読み!$A$2:$O$506,6,0)) -> 手が［挙］がる | Q88: =IF(Q86="","",VLOOKUP(Q86,漢字読み!$A$2:$O$506,6,0)) -> えさに［群］がる | R88: =IF(R86="","",VLOOKUP(R86,漢字読み!$A$2:$O$506,6,0)) -> 百メートル［競走］ | S88: =IF(S86="","",VLOOKUP(S86,漢字読み!$A$2:$O$506,6,0)) -> ［訓読］みの漢字 | T88: =IF(T86="","",VLOOKUP(T86,漢字読み!$A$2:$O$506,6,0)) -> かばんを［置］く | V88: 級
V89: 名前
A90: =IF(A86="","",IF(VLOOKUP(A86,漢字書き!$A$2:$N$502,7,0)=0,"",VLOOKUP(A86,漢字書き!$A$2:$N$502,7,0))) -> する | B90: =IF(B86="","",IF(VLOOKUP(B86,漢字書き!$A$2:$N$502,7,0)=0,"",VLOOKUP(B86,漢字書き!$A$2:$N$502,7,0))) -> する | C90: =IF(C86="","",IF(VLOOKUP(C86,漢字書き!$A$2:$N$502,7,0)=0,"",VLOOKUP(C86,漢字書き!$A$2:$N$502,7,0))) ->  | D90: =IF(D86="","",IF(VLOOKUP(D86,漢字書き!$A$2:$N$502,7,0)=0,"",VLOOKUP(D86,漢字書き!$A$2:$N$502,7,0))) ->  | E90: =IF(E86="","",IF(VLOOKUP(E86,漢字書き!$A$2:$N$502,7,0)=0,"",VLOOKUP(E86,漢字書き!$A$2:$N$502,7,0))) -> い声 | F90: =IF(F86="","",IF(VLOOKUP(F86,漢字書き!$A$2:$N$502,7,0)=0,"",VLOOKUP(F86,漢字書き!$A$2:$N$502,7,0))) -> める | G90: =IF(G86="","",IF(VLOOKUP(G86,漢字書き!$A$2:$N$502,7,0)=0,"",VLOOKUP(G86,漢字書き!$A$2:$N$502,7,0))) -> する | H90: =IF(H86="","",IF(VLOOKUP(H86,漢字書き!$A$2:$N$502,7,0)=0,"",VLOOKUP(H86,漢字書き!$A$2:$N$502,7,0))) ->  | I90: =IF(I86="","",IF(VLOOKUP(I86,漢字書き!$A$2:$N$502,7,0)=0,"",VLOOKUP(I86,漢字書き!$A$2:$N$502,7,0))) -> に | J90: =IF(J86="","",IF(VLOOKUP(J86,漢字書き!$A$2:$N$502,7,0)=0,"",VLOOKUP(J86,漢字書き!$A$2:$N$502,7,0))) ->  | K90: =IF(K86="","",IF(VLOOKUP(K86,漢字読み!$A$2:$O$502,7,0)=0,"",VLOOKUP(K86,漢字読み!$A$2:$O$502,7,0))) -> ける | L90: =IF(L86="","",IF(VLOOKUP(L86,漢字読み!$A$2:$O$502,7,0)=0,"",VLOOKUP(L86,漢字読み!$A$2:$O$502,7,0))) -> める | M90: =IF(M86="","",IF(VLOOKUP(M86,漢字読み!$A$2:$O$502,7,0)=0,"",VLOOKUP(M86,漢字読み!$A$2:$O$502,7,0))) ->  | N90: =IF(N86="","",IF(VLOOKUP(N86,漢字読み!$A$2:$O$502,7,0)=0,"",VLOOKUP(N86,漢字読み!$A$2:$O$502,7,0))) -> らかな | O90: =IF(O86="","",IF(VLOOKUP(O86,漢字読み!$A$2:$O$502,7,0)=0,"",VLOOKUP(O86,漢字読み!$A$2:$O$502,7,0))) -> な | P90: =IF(P86="","",IF(VLOOKUP(P86,漢字読み!$A$2:$O$502,7,0)=0,"",VLOOKUP(P86,漢字読み!$A$2:$O$502,7,0))) -> がる | Q90: =IF(Q86="","",IF(VLOOKUP(Q86,漢字読み!$A$2:$O$502,7,0)=0,"",VLOOKUP(Q86,漢字読み!$A$2:$O$502,7,0))) -> がる | R90: =IF(R86="","",IF(VLOOKUP(R86,漢字読み!$A$2:$O$502,7,0)=0,"",VLOOKUP(R86,漢字読み!$A$2:$O$502,7,0))) ->  | S90: =IF(S86="","",IF(VLOOKUP(S86,漢字読み!$A$2:$O$502,7,0)=0,"",VLOOKUP(S86,漢字読み!$A$2:$O$502,7,0))) -> み | T90: =IF(T86="","",IF(VLOOKUP(T86,漢字読み!$A$2:$O$502,7,0)=0,"",VLOOKUP(T86,漢字読み!$A$2:$O$502,7,0))) -> く | W90: 和歌山県教育委員会
A91: =A81 -> 104 | B91: 32 | C91: 195 | D91: 72 | E91: 130 | F91: 177 | G91: 47 | H91: 36 | I91: 31 | J91: 60 | K91: 116 | L91: 123 | M91: 106 | N91: 94 | O91: 6 | P91: 16 | Q91: 72 | R91: 9 | S91: 159 | T91: 19
A92: ⑳ | B92: ⑲ | C92: ⑱ | D92: ⑰ | E92: ⑯ | F92: ⑮ | G92: ⑭ | H92: ⑬ | I92: ⑫ | J92: ⑪ | K92: ⑩ | L92: ⑨ | M92: ⑧ | N92: ⑦ | O92: ⑥ | P92: ⑤ | Q92: ④ | R92: ③ | S92: ② | T92: ① | U92: 次の［ ］の部分の漢字には読みがなをひらがなで書き、カタカナは漢字に直しなさい。 | V92: 10 | W92: 「漢字の博士検定試験」練習問題
A93: =IF(A91="","",VLOOKUP(A91,漢字書き!$A$2:$N$506,6,0)) -> ヒマワリの［シュシ］ | B93: =IF(B91="","",VLOOKUP(B91,漢字書き!$A$2:$N$506,6,0)) -> テストの［ケッカ］ | C93: =IF(C91="","",VLOOKUP(C91,漢字書き!$A$2:$N$506,6,0)) -> [サガケン]の地図 | D93: =IF(D91="","",VLOOKUP(D91,漢字書き!$A$2:$N$506,6,0)) -> お宮に［マイ］る | E93: =IF(E91="","",VLOOKUP(E91,漢字書き!$A$2:$N$506,6,0)) -> 日に［テ］らされる | F93: =IF(F91="","",VLOOKUP(F91,漢字書き!$A$2:$N$506,6,0)) -> ハチの［ス］を見つける | G93: =IF(G91="","",VLOOKUP(G91,漢字書き!$A$2:$N$506,6,0)) -> ［ス］きな歌を聞く | H93: =IF(H91="","",VLOOKUP(H91,漢字書き!$A$2:$N$506,6,0)) -> 家を［タ］てる | I93: =IF(I91="","",VLOOKUP(I91,漢字書き!$A$2:$N$506,6,0)) -> 月のみち［カ］け | J93: =IF(J91="","",VLOOKUP(J91,漢字書き!$A$2:$N$506,6,0)) -> ［モット］も高い山 | K93: =IF(K91="","",VLOOKUP(K91,漢字読み!$A$2:$O$506,6,0)) -> ［初］めて聞く話 | L93: =IF(L91="","",VLOOKUP(L91,漢字読み!$A$2:$O$506,6,0)) -> にっこりと[笑]う | M93: =IF(M91="","",VLOOKUP(M91,漢字読み!$A$2:$O$506,6,0)) -> 本を［借］りる | N93: =IF(N91="","",VLOOKUP(N91,漢字読み!$A$2:$O$506,6,0)) -> ［育児］はたいへんだ | O93: =IF(O91="","",VLOOKUP(O91,漢字読み!$A$2:$O$506,6,0)) -> ［漁業］の町 | P93: =IF(P91="","",VLOOKUP(P91,漢字読み!$A$2:$O$506,6,0)) -> 力を［競］う | Q93: =IF(Q91="","",VLOOKUP(Q91,漢字読み!$A$2:$O$506,6,0)) -> みかんの花が［香］る | R93: =IF(R91="","",VLOOKUP(R91,漢字読み!$A$2:$O$506,6,0)) -> ［共同］で取り組む | S93: =IF(S91="","",VLOOKUP(S91,漢字読み!$A$2:$O$506,6,0)) -> ［節分］の日 | T93: =IF(T91="","",VLOOKUP(T91,漢字読み!$A$2:$O$506,6,0)) -> ひなん［訓練］ | V93: 級
A94: =IF(A$11="","",VLOOKUP(A91,漢字書き!$A$2:$O$506,8,0)) -> 旬 | B94: =IF(B$11="","",VLOOKUP(B91,漢字書き!$A$2:$O$506,8,0)) -> 結果 | C94: =IF(C$11="","",VLOOKUP(C91,漢字書き!$A$2:$O$506,8,0)) -> 佐賀県 | D94: =IF(D$11="","",VLOOKUP(D91,漢字書き!$A$2:$O$506,8,0)) -> 参 | E94: =IF(E$11="","",VLOOKUP(E91,漢字書き!$A$2:$O$506,8,0)) -> 照 | F94: =IF(F$11="","",VLOOKUP(F91,漢字書き!$A$2:$O$506,8,0)) -> 巣 | G94: =IF(G$11="","",VLOOKUP(G91,漢字書き!$A$2:$O$506,8,0)) -> 好 | H94: =IF(H$11="","",VLOOKUP(H91,漢字書き!$A$2:$O$506,8,0)) -> 建 | I94: =IF(I$11="","",VLOOKUP(I91,漢字書き!$A$2:$O$506,8,0)) -> 欠 | J94: =IF(J$11="","",VLOOKUP(J91,漢字書き!$A$2:$O$506,8,0)) -> 最 | K94: =IF(K$11="","",VLOOKUP(K91,漢字読み!$A$2:$O$506,8,0)) -> はじ | L94: =IF(L$11="","",VLOOKUP(L91,漢字読み!$A$2:$O$506,8,0)) -> わら | M94: =IF(M$11="","",VLOOKUP(M91,漢字読み!$A$2:$O$506,8,0)) -> か | N94: =IF(N$11="","",VLOOKUP(N91,漢字読み!$A$2:$O$506,8,0)) -> いくじ | O94: =IF(O$11="","",VLOOKUP(O91,漢字読み!$A$2:$O$506,8,0)) -> ぎょぎょう | P94: =IF(P$11="","",VLOOKUP(P91,漢字読み!$A$2:$O$506,8,0)) -> きそ | Q94: =IF(Q$11="","",VLOOKUP(Q91,漢字読み!$A$2:$O$506,8,0)) -> かお | R94: =IF(R$11="","",VLOOKUP(R91,漢字読み!$A$2:$O$506,8,0)) -> きょうどう | S94: =IF(S$11="","",VLOOKUP(S91,漢字読み!$A$2:$O$506,8,0)) -> せつぶん | T94: =IF(T$11="","",VLOOKUP(T91,漢字読み!$A$2:$O$506,8,0)) -> くんれん | V94: 名前
A95: =IF(A91="","",IF(VLOOKUP(A91,漢字書き!$A$2:$N$502,7,0)=0,"",VLOOKUP(A91,漢字書き!$A$2:$N$502,7,0))) ->  | B95: =IF(B91="","",IF(VLOOKUP(B91,漢字書き!$A$2:$N$502,7,0)=0,"",VLOOKUP(B91,漢字書き!$A$2:$N$502,7,0))) ->  | C95: =IF(C91="","",IF(VLOOKUP(C91,漢字書き!$A$2:$N$502,7,0)=0,"",VLOOKUP(C91,漢字書き!$A$2:$N$502,7,0))) ->  | D95: =IF(D91="","",IF(VLOOKUP(D91,漢字書き!$A$2:$N$502,7,0)=0,"",VLOOKUP(D91,漢字書き!$A$2:$N$502,7,0))) -> る | E95: =IF(E91="","",IF(VLOOKUP(E91,漢字書き!$A$2:$N$502,7,0)=0,"",VLOOKUP(E91,漢字書き!$A$2:$N$502,7,0))) -> らされる | F95: =IF(F91="","",IF(VLOOKUP(F91,漢字書き!$A$2:$N$502,7,0)=0,"",VLOOKUP(F91,漢字書き!$A$2:$N$502,7,0))) ->  | G95: =IF(G91="","",IF(VLOOKUP(G91,漢字書き!$A$2:$N$502,7,0)=0,"",VLOOKUP(G91,漢字書き!$A$2:$N$502,7,0))) -> きな | H95: =IF(H91="","",IF(VLOOKUP(H91,漢字書き!$A$2:$N$502,7,0)=0,"",VLOOKUP(H91,漢字書き!$A$2:$N$502,7,0))) -> てる | I95: =IF(I91="","",IF(VLOOKUP(I91,漢字書き!$A$2:$N$502,7,0)=0,"",VLOOKUP(I91,漢字書き!$A$2:$N$502,7,0))) -> け | J95: =IF(J91="","",IF(VLOOKUP(J91,漢字書き!$A$2:$N$502,7,0)=0,"",VLOOKUP(J91,漢字書き!$A$2:$N$502,7,0))) -> も | K95: =IF(K91="","",IF(VLOOKUP(K91,漢字読み!$A$2:$O$502,7,0)=0,"",VLOOKUP(K91,漢字読み!$A$2:$O$502,7,0))) -> めて | L95: =IF(L91="","",IF(VLOOKUP(L91,漢字読み!$A$2:$O$502,7,0)=0,"",VLOOKUP(L91,漢字読み!$A$2:$O$502,7,0))) -> う | M95: =IF(M91="","",IF(VLOOKUP(M91,漢字読み!$A$2:$O$502,7,0)=0,"",VLOOKUP(M91,漢字読み!$A$2:$O$502,7,0))) -> りる | N95: =IF(N91="","",IF(VLOOKUP(N91,漢字読み!$A$2:$O$502,7,0)=0,"",VLOOKUP(N91,漢字読み!$A$2:$O$502,7,0))) ->  | O95: =IF(O91="","",IF(VLOOKUP(O91,漢字読み!$A$2:$O$502,7,0)=0,"",VLOOKUP(O91,漢字読み!$A$2:$O$502,7,0))) ->  | P95: =IF(P91="","",IF(VLOOKUP(P91,漢字読み!$A$2:$O$502,7,0)=0,"",VLOOKUP(P91,漢字読み!$A$2:$O$502,7,0))) -> う | Q95: =IF(Q91="","",IF(VLOOKUP(Q91,漢字読み!$A$2:$O$502,7,0)=0,"",VLOOKUP(Q91,漢字読み!$A$2:$O$502,7,0))) -> る | R95: =IF(R91="","",IF(VLOOKUP(R91,漢字読み!$A$2:$O$502,7,0)=0,"",VLOOKUP(R91,漢字読み!$A$2:$O$502,7,0))) ->  | S95: =IF(S91="","",IF(VLOOKUP(S91,漢字読み!$A$2:$O$502,7,0)=0,"",VLOOKUP(S91,漢字読み!$A$2:$O$502,7,0))) ->  | T95: =IF(T91="","",IF(VLOOKUP(T91,漢字読み!$A$2:$O$502,7,0)=0,"",VLOOKUP(T91,漢字読み!$A$2:$O$502,7,0))) ->  | W95: 和歌山県教育委員会
A96: =A86 -> 161 | B96: 139 | C96: 64 | D96: 35 | E96: 120 | F96: 94 | G96: 143 | H96: 51 | I96: 206 | J96: 89 | K96: 127 | L96: 98 | M96: 193 | N96: 148 | O96: 40 | P96: 4 | Q96: 216 | R96: 15 | S96: 20 | T96: 202
A97: ⑳ | B97: ⑲ | C97: ⑱ | D97: ⑰ | E97: ⑯ | F97: ⑮ | G97: ⑭ | H97: ⑬ | I97: ⑫ | J97: ⑪ | K97: ⑩ | L97: ⑨ | M97: ⑧ | N97: ⑦ | O97: ⑥ | P97: ⑤ | Q97: ④ | R97: ③ | S97: ② | T97: ① | U97: 次の［ ］の部分の漢字には読みがなをひらがなで書き、カタカナは漢字に直しなさい。 | V97: 10 | W97: 「漢字の博士検定試験」練習問題
A98: =IF(A96="","",VLOOKUP(A96,漢字書き!$A$2:$N$506,6,0)) -> くわしく［セツメイ］する | B98: =IF(B96="","",VLOOKUP(B96,漢字書き!$A$2:$N$506,6,0)) -> しっかり［ハンセイ］する | C98: =IF(C96="","",VLOOKUP(C96,漢字書き!$A$2:$N$506,6,0)) -> 千円［サツ］を使う | D98: =IF(D96="","",VLOOKUP(D96,漢字書き!$A$2:$N$506,6,0)) -> ［ケンコク］記ねんの日 | E98: =IF(E96="","",VLOOKUP(E96,漢字書き!$A$2:$N$506,6,0)) -> 子どもの［ワラ］い声 | F98: =IF(F96="","",VLOOKUP(F96,漢字書き!$A$2:$N$506,6,0)) -> 国を［オサ］める | G98: =IF(G96="","",VLOOKUP(G96,漢字書き!$A$2:$N$506,6,0)) -> 字を［セイショ］する | H98: =IF(H96="","",VLOOKUP(H96,漢字書き!$A$2:$N$506,6,0)) -> ［オキナワケン］のシーサー | I98: =IF(I96="","",VLOOKUP(I96,漢字書き!$A$2:$N$506,6,0)) -> ［セッキョクテキ］に行動する | J98: =IF(J96="","",VLOOKUP(J96,漢字書き!$A$2:$N$506,6,0)) -> 入学[シケン]を受ける | K98: =IF(K96="","",VLOOKUP(K96,漢字読み!$A$2:$O$506,6,0)) -> 日に[焼]ける | L98: =IF(L96="","",VLOOKUP(L96,漢字読み!$A$2:$O$506,6,0)) -> 国を［治］める | M98: =IF(M96="","",VLOOKUP(M96,漢字読み!$A$2:$O$506,6,0)) -> けい[帯]電話 | N98: =IF(N96="","",VLOOKUP(N96,漢字読み!$A$2:$O$506,6,0)) -> ［清］らかな水 | O98: =IF(O96="","",VLOOKUP(O96,漢字読み!$A$2:$O$506,6,0)) -> [健全]な体 | P98: =IF(P96="","",VLOOKUP(P96,漢字読み!$A$2:$O$506,6,0)) -> 手が［挙］がる | Q98: =IF(Q96="","",VLOOKUP(Q96,漢字読み!$A$2:$O$506,6,0)) -> えさに［群］がる | R98: =IF(R96="","",VLOOKUP(R96,漢字読み!$A$2:$O$506,6,0)) -> 百メートル［競走］ | S98: =IF(S96="","",VLOOKUP(S96,漢字読み!$A$2:$O$506,6,0)) -> ［訓読］みの漢字 | T98: =IF(T96="","",VLOOKUP(T96,漢字読み!$A$2:$O$506,6,0)) -> かばんを［置］く | V98: 級
A99: =IF(A$16="","",VLOOKUP(A96,漢字書き!$A$2:$O$506,8,0)) -> 説明 | B99: =IF(B$16="","",VLOOKUP(B96,漢字書き!$A$2:$O$506,8,0)) -> 反省 | C99: =IF(C$16="","",VLOOKUP(C96,漢字書き!$A$2:$O$506,8,0)) -> 札 | D99: =IF(D$16="","",VLOOKUP(D96,漢字書き!$A$2:$O$506,8,0)) -> 建国 | E99: =IF(E$16="","",VLOOKUP(E96,漢字書き!$A$2:$O$506,8,0)) -> 笑 | F99: =IF(F$16="","",VLOOKUP(F96,漢字書き!$A$2:$O$506,8,0)) -> 治 | G99: =IF(G$16="","",VLOOKUP(G96,漢字書き!$A$2:$O$506,8,0)) -> 清書 | H99: =IF(H$16="","",VLOOKUP(H96,漢字書き!$A$2:$O$506,8,0)) -> 沖縄県 | I99: =IF(I$16="","",VLOOKUP(I96,漢字書き!$A$2:$O$506,8,0)) -> 積極的 | J99: =IF(J$16="","",VLOOKUP(J96,漢字書き!$A$2:$O$506,8,0)) -> 試験 | K99: =IF(K$16="","",VLOOKUP(K96,漢字読み!$A$2:$O$506,8,0)) -> や | L99: =IF(L$16="","",VLOOKUP(L96,漢字読み!$A$2:$O$506,8,0)) -> おさ | M99: =IF(M$16="","",VLOOKUP(M96,漢字読み!$A$2:$O$506,8,0)) -> たい | N99: =IF(N$16="","",VLOOKUP(N96,漢字読み!$A$2:$O$506,8,0)) -> きよ | O99: =IF(O$16="","",VLOOKUP(O96,漢字読み!$A$2:$O$506,8,0)) -> けんぜん | P99: =IF(P$16="","",VLOOKUP(P96,漢字読み!$A$2:$O$506,8,0)) -> あ | Q99: =IF(Q$16="","",VLOOKUP(Q96,漢字読み!$A$2:$O$506,8,0)) -> むら | R99: =IF(R$16="","",VLOOKUP(R96,漢字読み!$A$2:$O$506,8,0)) -> きょうそう | S99: =IF(S$16="","",VLOOKUP(S96,漢字読み!$A$2:$O$506,8,0)) -> くんよ | T99: =IF(T$16="","",VLOOKUP(T96,漢字読み!$A$2:$O$506,8,0)) -> お | V99: 名前
A100: =IF(A96="","",IF(VLOOKUP(A96,漢字書き!$A$2:$N$502,7,0)=0,"",VLOOKUP(A96,漢字書き!$A$2:$N$502,7,0))) -> する | B100: =IF(B96="","",IF(VLOOKUP(B96,漢字書き!$A$2:$N$502,7,0)=0,"",VLOOKUP(B96,漢字書き!$A$2:$N$502,7,0))) -> する | C100: =IF(C96="","",IF(VLOOKUP(C96,漢字書き!$A$2:$N$502,7,0)=0,"",VLOOKUP(C96,漢字書き!$A$2:$N$502,7,0))) ->  | D100: =IF(D96="","",IF(VLOOKUP(D96,漢字書き!$A$2:$N$502,7,0)=0,"",VLOOKUP(D96,漢字書き!$A$2:$N$502,7,0))) ->  | E100: =IF(E96="","",IF(VLOOKUP(E96,漢字書き!$A$2:$N$502,7,0)=0,"",VLOOKUP(E96,漢字書き!$A$2:$N$502,7,0))) -> い声 | F100: =IF(F96="","",IF(VLOOKUP(F96,漢字書き!$A$2:$N$502,7,0)=0,"",VLOOKUP(F96,漢字書き!$A$2:$N$502,7,0))) -> める | G100: =IF(G96="","",IF(VLOOKUP(G96,漢字書き!$A$2:$N$502,7,0)=0,"",VLOOKUP(G96,漢字書き!$A$2:$N$502,7,0))) -> する | H100: =IF(H96="","",IF(VLOOKUP(H96,漢字書き!$A$2:$N$502,7,0)=0,"",VLOOKUP(H96,漢字書き!$A$2:$N$502,7,0))) ->  | I100: =IF(I96="","",IF(VLOOKUP(I96,漢字書き!$A$2:$N$502,7,0)=0,"",VLOOKUP(I96,漢字書き!$A$2:$N$502,7,0))) -> に | J100: =IF(J96="","",IF(VLOOKUP(J96,漢字書き!$A$2:$N$502,7,0)=0,"",VLOOKUP(J96,漢字書き!$A$2:$N$502,7,0))) ->  | K100: =IF(K96="","",IF(VLOOKUP(K96,漢字読み!$A$2:$O$502,7,0)=0,"",VLOOKUP(K96,漢字読み!$A$2:$O$502,7,0))) -> ける | L100: =IF(L96="","",IF(VLOOKUP(L96,漢字読み!$A$2:$O$502,7,0)=0,"",VLOOKUP(L96,漢字読み!$A$2:$O$502,7,0))) -> める | M100: =IF(M96="","",IF(VLOOKUP(M96,漢字読み!$A$2:$O$502,7,0)=0,"",VLOOKUP(M96,漢字読み!$A$2:$O$502,7,0))) ->  | N100: =IF(N96="","",IF(VLOOKUP(N96,漢字読み!$A$2:$O$502,7,0)=0,"",VLOOKUP(N96,漢字読み!$A$2:$O$502,7,0))) -> らかな | O100: =IF(O96="","",IF(VLOOKUP(O96,漢字読み!$A$2:$O$502,7,0)=0,"",VLOOKUP(O96,漢字読み!$A$2:$O$502,7,0))) -> な | P100: =IF(P96="","",IF(VLOOKUP(P96,漢字読み!$A$2:$O$502,7,0)=0,"",VLOOKUP(P96,漢字読み!$A$2:$O$502,7,0))) -> がる | Q100: =IF(Q96="","",IF(VLOOKUP(Q96,漢字読み!$A$2:$O$502,7,0)=0,"",VLOOKUP(Q96,漢字読み!$A$2:$O$502,7,0))) -> がる | R100: =IF(R96="","",IF(VLOOKUP(R96,漢字読み!$A$2:$O$502,7,0)=0,"",VLOOKUP(R96,漢字読み!$A$2:$O$502,7,0))) ->  | S100: =IF(S96="","",IF(VLOOKUP(S96,漢字読み!$A$2:$O$502,7,0)=0,"",VLOOKUP(S96,漢字読み!$A$2:$O$502,7,0))) -> み | T100: =IF(T96="","",IF(VLOOKUP(T96,漢字読み!$A$2:$O$502,7,0)=0,"",VLOOKUP(T96,漢字読み!$A$2:$O$502,7,0))) -> く | W100: 和歌山県教育委員会
A101: =INDIRECT("'関数（書き）'!C" & COLUMN(B$1)+SUM($AD$2:$AD102)) -> 50 | B101: =INDIRECT("'関数（書き）'!C" & COLUMN(C$1)+SUM($AD$2:$AD102)) -> 38 | C101: =INDIRECT("'関数（書き）'!C" & COLUMN(D$1)+SUM($AD$2:$AD102)) -> 205 | D101: =INDIRECT("'関数（書き）'!C" & COLUMN(E$1)+SUM($AD$2:$AD102)) -> 163 | E101: =INDIRECT("'関数（書き）'!C" & COLUMN(F$1)+SUM($AD$2:$AD102)) -> 198 | F101: =INDIRECT("'関数（書き）'!C" & COLUMN(G$1)+SUM($AD$2:$AD102)) -> 158 | G101: =INDIRECT("'関数（書き）'!C" & COLUMN(H$1)+SUM($AD$2:$AD102)) -> 88 | H101: =INDIRECT("'関数（書き）'!C" & COLUMN(I$1)+SUM($AD$2:$AD102)) -> 207 | I101: =INDIRECT("'関数（書き）'!C" & COLUMN(J$1)+SUM($AD$2:$AD102)) -> 19 | J101: =INDIRECT("'関数（書き）'!C" & COLUMN(K$1)+SUM($AD$2:$AD102)) -> 144 | K101: =INDIRECT("'関数（読み）'!C" & COLUMN(B$1)+SUM($AD$2:$AD102)) -> 8 | L101: =INDIRECT("'関数（読み）'!C" & COLUMN(C$1)+SUM($AD$2:$AD102)) -> 13 | M101: =INDIRECT("'関数（読み）'!C" & COLUMN(D$1)+SUM($AD$2:$AD102)) -> 77 | N101: =INDIRECT("'関数（読み）'!C" & COLUMN(E$1)+SUM($AD$2:$AD102)) -> 35 | O101: =INDIRECT("'関数（読み）'!C" & COLUMN(F$1)+SUM($AD$2:$AD102)) -> 27 | P101: =INDIRECT("'関数（読み）'!C" & COLUMN(G$1)+SUM($AD$2:$AD102)) -> 114 | Q101: =INDIRECT("'関数（読み）'!C" & COLUMN(H$1)+SUM($AD$2:$AD102)) -> 175 | R101: =INDIRECT("'関数（読み）'!C" & COLUMN(I$1)+SUM($AD$2:$AD102)) -> 22 | S101: =INDIRECT("'関数（読み）'!C" & COLUMN(J$1)+SUM($AD$2:$AD102)) -> 92 | T101: =INDIRECT("'関数（読み）'!C" & COLUMN(K$1)+SUM($AD$2:$AD102)) -> 31
A102: ⑳ | B102: ⑲ | C102: ⑱ | D102: ⑰ | E102: ⑯ | F102: ⑮ | G102: ⑭ | H102: ⑬ | I102: ⑫ | J102: ⑪ | K102: ⑩ | L102: ⑨ | M102: ⑧ | N102: ⑦ | O102: ⑥ | P102: ⑤ | Q102: ④ | R102: ③ | S102: ② | T102: ① | U102: 次の［ ］の部分の漢字には読みがなをひらがなで書き、カタカナは漢字に直しなさい。 | V102: 10 | W102: 「漢字の博士検定試験」練習問題 | AC102: ← | AD102: 10 | AE102: 問 | AF102: =AH87+1 -> 101 | AG102: ～ | AH102: =SUM($AD$2:$AD102)+10 -> 110 | AI102: 問まで | AJ102: =COUNTIF($A$1:$T$200,T103) -> 2
A103: =IF(A101="","",VLOOKUP(A101,漢字書き!$A$2:$N$506,6,0)) -> ［テンコウ］が変わる | B103: =IF(B101="","",VLOOKUP(B101,漢字書き!$A$2:$N$506,6,0)) -> ほ［ケンシツ］の先生 | C103: =IF(C101="","",VLOOKUP(C101,漢字書き!$A$2:$N$506,6,0)) -> アリの[タイグン] | D103: =IF(D101="","",VLOOKUP(D101,漢字書き!$A$2:$N$506,6,0)) -> ［アサ］い川 | E103: =IF(E101="","",VLOOKUP(E101,漢字書き!$A$2:$N$506,6,0)) -> [ナワ]とびをする | F103: =IF(F101="","",VLOOKUP(F101,漢字書き!$A$2:$N$506,6,0)) -> よい［キセツ］ | G103: =IF(G101="","",VLOOKUP(G101,漢字書き!$A$2:$N$506,6,0)) -> 実験を［ココロ］みる | H103: =IF(H101="","",VLOOKUP(H101,漢字書き!$A$2:$N$506,6,0)) -> ［マト］に当てる | I103: =IF(I101="","",VLOOKUP(I101,漢字書き!$A$2:$N$506,6,0)) -> ひなん［クンレン］ | J103: =IF(J101="","",VLOOKUP(J101,漢字書き!$A$2:$N$506,6,0)) -> ［キヨ］らかな流れ | K103: =IF(K101="","",VLOOKUP(K101,漢字読み!$A$2:$O$506,6,0)) -> ［漁］に出る | L103: =IF(L101="","",VLOOKUP(L101,漢字読み!$A$2:$O$506,6,0)) -> 母の［鏡台］ | M103: =IF(M101="","",VLOOKUP(M101,漢字読み!$A$2:$O$506,6,0)) -> 工場で［生産］する | N103: =IF(N101="","",VLOOKUP(N101,漢字読み!$A$2:$O$506,6,0)) -> ひもを［結］ぶ | O103: =IF(O101="","",VLOOKUP(O101,漢字読み!$A$2:$O$506,6,0)) -> すばらしい［風景］ | P103: =IF(P101="","",VLOOKUP(P101,漢字読み!$A$2:$O$506,6,0)) -> ［順番］を待つ | Q103: =IF(Q101="","",VLOOKUP(Q101,漢字読み!$A$2:$O$506,6,0)) -> ［倉庫］に運ぶ | R103: =IF(R101="","",VLOOKUP(R101,漢字読み!$A$2:$O$506,6,0)) -> ［郡］と町村 | S103: =IF(S101="","",VLOOKUP(S101,漢字読み!$A$2:$O$506,6,0)) -> 新しいやり方を［試］みる | T103: =IF(T101="","",VLOOKUP(T101,漢字読み!$A$2:$O$506,6,0)) -> ［学芸会］でげきをする | V103: 級
V104: 名前
A105: =IF(A101="","",IF(VLOOKUP(A101,漢字書き!$A$2:$N$502,7,0)=0,"",VLOOKUP(A101,漢字書き!$A$2:$N$502,7,0))) ->  | B105: =IF(B101="","",IF(VLOOKUP(B101,漢字書き!$A$2:$N$502,7,0)=0,"",VLOOKUP(B101,漢字書き!$A$2:$N$502,7,0))) ->  | C105: =IF(C101="","",IF(VLOOKUP(C101,漢字書き!$A$2:$N$502,7,0)=0,"",VLOOKUP(C101,漢字書き!$A$2:$N$502,7,0))) ->  | D105: =IF(D101="","",IF(VLOOKUP(D101,漢字書き!$A$2:$N$502,7,0)=0,"",VLOOKUP(D101,漢字書き!$A$2:$N$502,7,0))) -> い | E105: =IF(E101="","",IF(VLOOKUP(E101,漢字書き!$A$2:$N$502,7,0)=0,"",VLOOKUP(E101,漢字書き!$A$2:$N$502,7,0))) -> とび | F105: =IF(F101="","",IF(VLOOKUP(F101,漢字書き!$A$2:$N$502,7,0)=0,"",VLOOKUP(F101,漢字書き!$A$2:$N$502,7,0))) ->  | G105: =IF(G101="","",IF(VLOOKUP(G101,漢字書き!$A$2:$N$502,7,0)=0,"",VLOOKUP(G101,漢字書き!$A$2:$N$502,7,0))) -> みる | H105: =IF(H101="","",IF(VLOOKUP(H101,漢字書き!$A$2:$N$502,7,0)=0,"",VLOOKUP(H101,漢字書き!$A$2:$N$502,7,0))) ->  | I105: =IF(I101="","",IF(VLOOKUP(I101,漢字書き!$A$2:$N$502,7,0)=0,"",VLOOKUP(I101,漢字書き!$A$2:$N$502,7,0))) ->  | J105: =IF(J101="","",IF(VLOOKUP(J101,漢字書き!$A$2:$N$502,7,0)=0,"",VLOOKUP(J101,漢字書き!$A$2:$N$502,7,0))) -> らかな | K105: =IF(K101="","",IF(VLOOKUP(K101,漢字読み!$A$2:$O$502,7,0)=0,"",VLOOKUP(K101,漢字読み!$A$2:$O$502,7,0))) ->  | L105: =IF(L101="","",IF(VLOOKUP(L101,漢字読み!$A$2:$O$502,7,0)=0,"",VLOOKUP(L101,漢字読み!$A$2:$O$502,7,0))) ->  | M105: =IF(M101="","",IF(VLOOKUP(M101,漢字読み!$A$2:$O$502,7,0)=0,"",VLOOKUP(M101,漢字読み!$A$2:$O$502,7,0))) -> する | N105: =IF(N101="","",IF(VLOOKUP(N101,漢字読み!$A$2:$O$502,7,0)=0,"",VLOOKUP(N101,漢字読み!$A$2:$O$502,7,0))) -> ぶ | O105: =IF(O101="","",IF(VLOOKUP(O101,漢字読み!$A$2:$O$502,7,0)=0,"",VLOOKUP(O101,漢字読み!$A$2:$O$502,7,0))) ->  | P105: =IF(P101="","",IF(VLOOKUP(P101,漢字読み!$A$2:$O$502,7,0)=0,"",VLOOKUP(P101,漢字読み!$A$2:$O$502,7,0))) ->  | Q105: =IF(Q101="","",IF(VLOOKUP(Q101,漢字読み!$A$2:$O$502,7,0)=0,"",VLOOKUP(Q101,漢字読み!$A$2:$O$502,7,0))) ->  | R105: =IF(R101="","",IF(VLOOKUP(R101,漢字読み!$A$2:$O$502,7,0)=0,"",VLOOKUP(R101,漢字読み!$A$2:$O$502,7,0))) ->  | S105: =IF(S101="","",IF(VLOOKUP(S101,漢字読み!$A$2:$O$502,7,0)=0,"",VLOOKUP(S101,漢字読み!$A$2:$O$502,7,0))) -> みる | T105: =IF(T101="","",IF(VLOOKUP(T101,漢字読み!$A$2:$O$502,7,0)=0,"",VLOOKUP(T101,漢字読み!$A$2:$O$502,7,0))) ->  | W105: 和歌山県教育委員会
A106: =INDIRECT("'関数（書き）'!C" & COLUMN(B$1)+SUM($AD$2:$AD107)) -> 129 | B106: =INDIRECT("'関数（書き）'!C" & COLUMN(C$1)+SUM($AD$2:$AD107)) -> 200 | C106: =INDIRECT("'関数（書き）'!C" & COLUMN(D$1)+SUM($AD$2:$AD107)) -> 137 | D106: =INDIRECT("'関数（書き）'!C" & COLUMN(E$1)+SUM($AD$2:$AD107)) -> 148 | E106: =INDIRECT("'関数（書き）'!C" & COLUMN(F$1)+SUM($AD$2:$AD107)) -> 170 | F106: =INDIRECT("'関数（書き）'!C" & COLUMN(G$1)+SUM($AD$2:$AD107)) -> 175 | G106: =INDIRECT("'関数（書き）'!C" & COLUMN(H$1)+SUM($AD$2:$AD107)) -> 147 | H106: =INDIRECT("'関数（書き）'!C" & COLUMN(I$1)+SUM($AD$2:$AD107)) -> 33 | I106: =INDIRECT("'関数（書き）'!C" & COLUMN(J$1)+SUM($AD$2:$AD107)) -> 119 | J106: =INDIRECT("'関数（書き）'!C" & COLUMN(K$1)+SUM($AD$2:$AD107)) -> 98 | K106: =INDIRECT("'関数（読み）'!C" & COLUMN(B$1)+SUM($AD$2:$AD107)) -> 61 | L106: =INDIRECT("'関数（読み）'!C" & COLUMN(C$1)+SUM($AD$2:$AD107)) -> 144 | M106: =INDIRECT("'関数（読み）'!C" & COLUMN(D$1)+SUM($AD$2:$AD107)) -> 199 | N106: =INDIRECT("'関数（読み）'!C" & COLUMN(E$1)+SUM($AD$2:$AD107)) -> 129 | O106: =INDIRECT("'関数（読み）'!C" & COLUMN(F$1)+SUM($AD$2:$AD107)) -> 222 | P106: =INDIRECT("'関数（読み）'!C" & COLUMN(G$1)+SUM($AD$2:$AD107)) -> 118 | Q106: =INDIRECT("'関数（読み）'!C" & COLUMN(H$1)+SUM($AD$2:$AD107)) -> 134 | R106: =INDIRECT("'関数（読み）'!C" & COLUMN(I$1)+SUM($AD$2:$AD107)) -> 25 | S106: =INDIRECT("'関数（読み）'!C" & COLUMN(J$1)+SUM($AD$2:$AD107)) -> 53 | T106: =INDIRECT("'関数（読み）'!C" & COLUMN(K$1)+SUM($AD$2:$AD107)) -> 83
A107: ⑳ | B107: ⑲ | C107: ⑱ | D107: ⑰ | E107: ⑯ | F107: ⑮ | G107: ⑭ | H107: ⑬ | I107: ⑫ | J107: ⑪ | K107: ⑩ | L107: ⑨ | M107: ⑧ | N107: ⑦ | O107: ⑥ | P107: ⑤ | Q107: ④ | R107: ③ | S107: ② | T107: ① | U107: 次の［ ］の部分の漢字には読みがなをひらがなで書き、カタカナは漢字に直しなさい。 | V107: 10 | W107: 「漢字の博士検定試験」練習問題 | AC107: ← | AD107: 10 | AE107: 問 | AF107: =AH102+1 -> 111 | AG107: ～ | AH107: =SUM($AD$2:$AD107)+10 -> 120 | AI107: 問まで | AJ107: =COUNTIF($A$1:$T$200,T108) -> 2
A108: =IF(A106="","",VLOOKUP(A106,漢字書き!$A$2:$N$506,6,0)) -> ぶりの［テ］り焼き | B108: =IF(B106="","",VLOOKUP(B106,漢字書き!$A$2:$N$506,6,0)) -> ［テイオン］の声 | C108: =IF(C106="","",VLOOKUP(C106,漢字書き!$A$2:$N$506,6,0)) -> 漢字の［ナ］り立ち | D108: =IF(D106="","",VLOOKUP(D106,漢字書き!$A$2:$N$506,6,0)) -> ［シズ］かな教室 | E108: =IF(E106="","",VLOOKUP(E106,漢字書き!$A$2:$N$506,6,0)) -> 委員に［エラ］ばれる | F108: =IF(F106="","",VLOOKUP(F106,漢字書き!$A$2:$N$506,6,0)) -> ［ソウコ］にかたづける | G108: =IF(G106="","",VLOOKUP(G106,漢字書き!$A$2:$N$506,6,0)) -> さわぎが［シズ］まる | H108: =IF(H106="","",VLOOKUP(H106,漢字書き!$A$2:$N$506,6,0)) -> ひもを［ムス］ぶ | I108: =IF(I106="","",VLOOKUP(I106,漢字書き!$A$2:$N$506,6,0)) -> ［マツバヤシ］の中 | J108: =IF(J106="","",VLOOKUP(J106,漢字書き!$A$2:$N$506,6,0)) -> ［ジショ］を買う | K108: =IF(K106="","",VLOOKUP(K106,漢字読み!$A$2:$O$506,6,0)) -> ［最高］の気分 | L108: =IF(L106="","",VLOOKUP(L106,漢字読み!$A$2:$O$506,6,0)) -> ［成］り上がり者だ | M108: =IF(M106="","",VLOOKUP(M106,漢字読み!$A$2:$O$506,6,0)) -> 新聞を［配達］する | N108: =IF(N106="","",VLOOKUP(N106,漢字読み!$A$2:$O$506,6,0)) -> 和歌山県のお［城］ | O108: =IF(O106="","",VLOOKUP(O106,漢字読み!$A$2:$O$506,6,0)) -> ［井］の中のかわず | P108: =IF(P106="","",VLOOKUP(P106,漢字読み!$A$2:$O$506,6,0)) -> [初雪]がふる | Q108: =IF(Q106="","",VLOOKUP(Q106,漢字読み!$A$2:$O$506,6,0)) -> ［日照］りが続く | R108: =IF(R106="","",VLOOKUP(R106,漢字読み!$A$2:$O$506,6,0)) -> 声を上げて［泣］く | S108: =IF(S106="","",VLOOKUP(S106,漢字読み!$A$2:$O$506,6,0)) -> ［健康］な体 | T108: =IF(T106="","",VLOOKUP(T106,漢字読み!$A$2:$O$506,6,0)) -> 部屋を［散］らかす | V108: 級
V109: 名前
A110: =IF(A106="","",IF(VLOOKUP(A106,漢字書き!$A$2:$N$502,7,0)=0,"",VLOOKUP(A106,漢字書き!$A$2:$N$502,7,0))) -> り焼き | B110: =IF(B106="","",IF(VLOOKUP(B106,漢字書き!$A$2:$N$502,7,0)=0,"",VLOOKUP(B106,漢字書き!$A$2:$N$502,7,0))) ->  | C110: =IF(C106="","",IF(VLOOKUP(C106,漢字書き!$A$2:$N$502,7,0)=0,"",VLOOKUP(C106,漢字書き!$A$2:$N$502,7,0))) -> り立ち | D110: =IF(D106="","",IF(VLOOKUP(D106,漢字書き!$A$2:$N$502,7,0)=0,"",VLOOKUP(D106,漢字書き!$A$2:$N$502,7,0))) -> かな | E110: =IF(E106="","",IF(VLOOKUP(E106,漢字書き!$A$2:$N$502,7,0)=0,"",VLOOKUP(E106,漢字書き!$A$2:$N$502,7,0))) -> ばれる | F110: =IF(F106="","",IF(VLOOKUP(F106,漢字書き!$A$2:$N$502,7,0)=0,"",VLOOKUP(F106,漢字書き!$A$2:$N$502,7,0))) ->  | G110: =IF(G106="","",IF(VLOOKUP(G106,漢字書き!$A$2:$N$502,7,0)=0,"",VLOOKUP(G106,漢字書き!$A$2:$N$502,7,0))) -> まる | H110: =IF(H106="","",IF(VLOOKUP(H106,漢字書き!$A$2:$N$502,7,0)=0,"",VLOOKUP(H106,漢字書き!$A$2:$N$502,7,0))) -> ぶ | I110: =IF(I106="","",IF(VLOOKUP(I106,漢字書き!$A$2:$N$502,7,0)=0,"",VLOOKUP(I106,漢字書き!$A$2:$N$502,7,0))) ->  | J110: =IF(J106="","",IF(VLOOKUP(J106,漢字書き!$A$2:$N$502,7,0)=0,"",VLOOKUP(J106,漢字書き!$A$2:$N$502,7,0))) ->  | K110: =IF(K106="","",IF(VLOOKUP(K106,漢字読み!$A$2:$O$502,7,0)=0,"",VLOOKUP(K106,漢字読み!$A$2:$O$502,7,0))) ->  | L110: =IF(L106="","",IF(VLOOKUP(L106,漢字読み!$A$2:$O$502,7,0)=0,"",VLOOKUP(L106,漢字読み!$A$2:$O$502,7,0))) -> り | M110: =IF(M106="","",IF(VLOOKUP(M106,漢字読み!$A$2:$O$502,7,0)=0,"",VLOOKUP(M106,漢字読み!$A$2:$O$502,7,0))) -> する | N110: =IF(N106="","",IF(VLOOKUP(N106,漢字読み!$A$2:$O$502,7,0)=0,"",VLOOKUP(N106,漢字読み!$A$2:$O$502,7,0))) ->  | O110: =IF(O106="","",IF(VLOOKUP(O106,漢字読み!$A$2:$O$502,7,0)=0,"",VLOOKUP(O106,漢字読み!$A$2:$O$502,7,0))) ->  | P110: =IF(P106="","",IF(VLOOKUP(P106,漢字読み!$A$2:$O$502,7,0)=0,"",VLOOKUP(P106,漢字読み!$A$2:$O$502,7,0))) ->  | Q110: =IF(Q106="","",IF(VLOOKUP(Q106,漢字読み!$A$2:$O$502,7,0)=0,"",VLOOKUP(Q106,漢字読み!$A$2:$O$502,7,0))) -> り | R110: =IF(R106="","",IF(VLOOKUP(R106,漢字読み!$A$2:$O$502,7,0)=0,"",VLOOKUP(R106,漢字読み!$A$2:$O$502,7,0))) -> く | S110: =IF(S106="","",IF(VLOOKUP(S106,漢字読み!$A$2:$O$502,7,0)=0,"",VLOOKUP(S106,漢字読み!$A$2:$O$502,7,0))) -> な | T110: =IF(T106="","",IF(VLOOKUP(T106,漢字読み!$A$2:$O$502,7,0)=0,"",VLOOKUP(T106,漢字読み!$A$2:$O$502,7,0))) -> らかす | W110: 和歌山県教育委員会
A111: =A101 -> 50 | B111: 38 | C111: 205 | D111: 163 | E111: 198 | F111: 158 | G111: 88 | H111: 207 | I111: 19 | J111: 144 | K111: 8 | L111: 13 | M111: 77 | N111: 35 | O111: 27 | P111: 114 | Q111: 175 | R111: 22 | S111: 92 | T111: 31
A112: ⑳ | B112: ⑲ | C112: ⑱ | D112: ⑰ | E112: ⑯ | F112: ⑮ | G112: ⑭ | H112: ⑬ | I112: ⑫ | J112: ⑪ | K112: ⑩ | L112: ⑨ | M112: ⑧ | N112: ⑦ | O112: ⑥ | P112: ⑤ | Q112: ④ | R112: ③ | S112: ② | T112: ① | U112: 次の［ ］の部分の漢字には読みがなをひらがなで書き、カタカナは漢字に直しなさい。 | V112: 10 | W112: 「漢字の博士検定試験」練習問題
A113: =IF(A111="","",VLOOKUP(A111,漢字書き!$A$2:$N$506,6,0)) -> ［テンコウ］が変わる | B113: =IF(B111="","",VLOOKUP(B111,漢字書き!$A$2:$N$506,6,0)) -> ほ［ケンシツ］の先生 | C113: =IF(C111="","",VLOOKUP(C111,漢字書き!$A$2:$N$506,6,0)) -> アリの[タイグン] | D113: =IF(D111="","",VLOOKUP(D111,漢字書き!$A$2:$N$506,6,0)) -> ［アサ］い川 | E113: =IF(E111="","",VLOOKUP(E111,漢字書き!$A$2:$N$506,6,0)) -> [ナワ]とびをする | F113: =IF(F111="","",VLOOKUP(F111,漢字書き!$A$2:$N$506,6,0)) -> よい［キセツ］ | G113: =IF(G111="","",VLOOKUP(G111,漢字書き!$A$2:$N$506,6,0)) -> 実験を［ココロ］みる | H113: =IF(H111="","",VLOOKUP(H111,漢字書き!$A$2:$N$506,6,0)) -> ［マト］に当てる | I113: =IF(I111="","",VLOOKUP(I111,漢字書き!$A$2:$N$506,6,0)) -> ひなん［クンレン］ | J113: =IF(J111="","",VLOOKUP(J111,漢字書き!$A$2:$N$506,6,0)) -> ［キヨ］らかな流れ | K113: =IF(K111="","",VLOOKUP(K111,漢字読み!$A$2:$O$506,6,0)) -> ［漁］に出る | L113: =IF(L111="","",VLOOKUP(L111,漢字読み!$A$2:$O$506,6,0)) -> 母の［鏡台］ | M113: =IF(M111="","",VLOOKUP(M111,漢字読み!$A$2:$O$506,6,0)) -> 工場で［生産］する | N113: =IF(N111="","",VLOOKUP(N111,漢字読み!$A$2:$O$506,6,0)) -> ひもを［結］ぶ | O113: =IF(O111="","",VLOOKUP(O111,漢字読み!$A$2:$O$506,6,0)) -> すばらしい［風景］ | P113: =IF(P111="","",VLOOKUP(P111,漢字読み!$A$2:$O$506,6,0)) -> ［順番］を待つ | Q113: =IF(Q111="","",VLOOKUP(Q111,漢字読み!$A$2:$O$506,6,0)) -> ［倉庫］に運ぶ | R113: =IF(R111="","",VLOOKUP(R111,漢字読み!$A$2:$O$506,6,0)) -> ［郡］と町村 | S113: =IF(S111="","",VLOOKUP(S111,漢字読み!$A$2:$O$506,6,0)) -> 新しいやり方を［試］みる | T113: =IF(T111="","",VLOOKUP(T111,漢字読み!$A$2:$O$506,6,0)) -> ［学芸会］でげきをする | V113: 級
A114: =IF(A$11="","",VLOOKUP(A111,漢字書き!$A$2:$O$506,8,0)) -> 天候 | B114: =IF(B$11="","",VLOOKUP(B111,漢字書き!$A$2:$O$506,8,0)) -> 健室 | C114: =IF(C$11="","",VLOOKUP(C111,漢字書き!$A$2:$O$506,8,0)) -> 大群 | D114: =IF(D$11="","",VLOOKUP(D111,漢字書き!$A$2:$O$506,8,0)) -> 浅 | E114: =IF(E$11="","",VLOOKUP(E111,漢字書き!$A$2:$O$506,8,0)) -> 縄 | F114: =IF(F$11="","",VLOOKUP(F111,漢字書き!$A$2:$O$506,8,0)) -> 季節 | G114: =IF(G$11="","",VLOOKUP(G111,漢字書き!$A$2:$O$506,8,0)) -> 試 | H114: =IF(H$11="","",VLOOKUP(H111,漢字書き!$A$2:$O$506,8,0)) -> 的 | I114: =IF(I$11="","",VLOOKUP(I111,漢字書き!$A$2:$O$506,8,0)) -> 訓練 | J114: =IF(J$11="","",VLOOKUP(J111,漢字書き!$A$2:$O$506,8,0)) -> 清 | K114: =IF(K$11="","",VLOOKUP(K111,漢字読み!$A$2:$O$506,8,0)) -> りょう | L114: =IF(L$11="","",VLOOKUP(L111,漢字読み!$A$2:$O$506,8,0)) -> きょうだい | M114: =IF(M$11="","",VLOOKUP(M111,漢字読み!$A$2:$O$506,8,0)) -> せいさん | N114: =IF(N$11="","",VLOOKUP(N111,漢字読み!$A$2:$O$506,8,0)) -> むす | O114: =IF(O$11="","",VLOOKUP(O111,漢字読み!$A$2:$O$506,8,0)) -> ふうけい | P114: =IF(P$11="","",VLOOKUP(P111,漢字読み!$A$2:$O$506,8,0)) -> じゅんばん | Q114: =IF(Q$11="","",VLOOKUP(Q111,漢字読み!$A$2:$O$506,8,0)) -> そうこ | R114: =IF(R$11="","",VLOOKUP(R111,漢字読み!$A$2:$O$506,8,0)) -> ぐん | S114: =IF(S$11="","",VLOOKUP(S111,漢字読み!$A$2:$O$506,8,0)) -> こころ | T114: =IF(T$11="","",VLOOKUP(T111,漢字読み!$A$2:$O$506,8,0)) -> がくげいかい | V114: 名前
A115: =IF(A111="","",IF(VLOOKUP(A111,漢字書き!$A$2:$N$502,7,0)=0,"",VLOOKUP(A111,漢字書き!$A$2:$N$502,7,0))) ->  | B115: =IF(B111="","",IF(VLOOKUP(B111,漢字書き!$A$2:$N$502,7,0)=0,"",VLOOKUP(B111,漢字書き!$A$2:$N$502,7,0))) ->  | C115: =IF(C111="","",IF(VLOOKUP(C111,漢字書き!$A$2:$N$502,7,0)=0,"",VLOOKUP(C111,漢字書き!$A$2:$N$502,7,0))) ->  | D115: =IF(D111="","",IF(VLOOKUP(D111,漢字書き!$A$2:$N$502,7,0)=0,"",VLOOKUP(D111,漢字書き!$A$2:$N$502,7,0))) -> い | E115: =IF(E111="","",IF(VLOOKUP(E111,漢字書き!$A$2:$N$502,7,0)=0,"",VLOOKUP(E111,漢字書き!$A$2:$N$502,7,0))) -> とび | F115: =IF(F111="","",IF(VLOOKUP(F111,漢字書き!$A$2:$N$502,7,0)=0,"",VLOOKUP(F111,漢字書き!$A$2:$N$502,7,0))) ->  | G115: =IF(G111="","",IF(VLOOKUP(G111,漢字書き!$A$2:$N$502,7,0)=0,"",VLOOKUP(G111,漢字書き!$A$2:$N$502,7,0))) -> みる | H115: =IF(H111="","",IF(VLOOKUP(H111,漢字書き!$A$2:$N$502,7,0)=0,"",VLOOKUP(H111,漢字書き!$A$2:$N$502,7,0))) ->  | I115: =IF(I111="","",IF(VLOOKUP(I111,漢字書き!$A$2:$N$502,7,0)=0,"",VLOOKUP(I111,漢字書き!$A$2:$N$502,7,0))) ->  | J115: =IF(J111="","",IF(VLOOKUP(J111,漢字書き!$A$2:$N$502,7,0)=0,"",VLOOKUP(J111,漢字書き!$A$2:$N$502,7,0))) -> らかな | K115: =IF(K111="","",IF(VLOOKUP(K111,漢字読み!$A$2:$O$502,7,0)=0,"",VLOOKUP(K111,漢字読み!$A$2:$O$502,7,0))) ->  | L115: =IF(L111="","",IF(VLOOKUP(L111,漢字読み!$A$2:$O$502,7,0)=0,"",VLOOKUP(L111,漢字読み!$A$2:$O$502,7,0))) ->  | M115: =IF(M111="","",IF(VLOOKUP(M111,漢字読み!$A$2:$O$502,7,0)=0,"",VLOOKUP(M111,漢字読み!$A$2:$O$502,7,0))) -> する | N115: =IF(N111="","",IF(VLOOKUP(N111,漢字読み!$A$2:$O$502,7,0)=0,"",VLOOKUP(N111,漢字読み!$A$2:$O$502,7,0))) -> ぶ | O115: =IF(O111="","",IF(VLOOKUP(O111,漢字読み!$A$2:$O$502,7,0)=0,"",VLOOKUP(O111,漢字読み!$A$2:$O$502,7,0))) ->  | P115: =IF(P111="","",IF(VLOOKUP(P111,漢字読み!$A$2:$O$502,7,0)=0,"",VLOOKUP(P111,漢字読み!$A$2:$O$502,7,0))) ->  | Q115: =IF(Q111="","",IF(VLOOKUP(Q111,漢字読み!$A$2:$O$502,7,0)=0,"",VLOOKUP(Q111,漢字読み!$A$2:$O$502,7,0))) ->  | R115: =IF(R111="","",IF(VLOOKUP(R111,漢字読み!$A$2:$O$502,7,0)=0,"",VLOOKUP(R111,漢字読み!$A$2:$O$502,7,0))) ->  | S115: =IF(S111="","",IF(VLOOKUP(S111,漢字読み!$A$2:$O$502,7,0)=0,"",VLOOKUP(S111,漢字読み!$A$2:$O$502,7,0))) -> みる | T115: =IF(T111="","",IF(VLOOKUP(T111,漢字読み!$A$2:$O$502,7,0)=0,"",VLOOKUP(T111,漢字読み!$A$2:$O$502,7,0))) ->  | W115: 和歌山県教育委員会
A116: =A106 -> 129 | B116: 200 | C116: 137 | D116: 148 | E116: 170 | F116: 175 | G116: 147 | H116: 33 | I116: 119 | J116: 98 | K116: 61 | L116: 144 | M116: 199 | N116: 129 | O116: 222 | P116: 118 | Q116: 134 | R116: 25 | S116: 53 | T116: 83
A117: ⑳ | B117: ⑲ | C117: ⑱ | D117: ⑰ | E117: ⑯ | F117: ⑮ | G117: ⑭ | H117: ⑬ | I117: ⑫ | J117: ⑪ | K117: ⑩ | L117: ⑨ | M117: ⑧ | N117: ⑦ | O117: ⑥ | P117: ⑤ | Q117: ④ | R117: ③ | S117: ② | T117: ① | U117: 次の［ ］の部分の漢字には読みがなをひらがなで書き、カタカナは漢字に直しなさい。 | V117: 10 | W117: 「漢字の博士検定試験」練習問題
A118: =IF(A116="","",VLOOKUP(A116,漢字書き!$A$2:$N$506,6,0)) -> ぶりの［テ］り焼き | B118: =IF(B116="","",VLOOKUP(B116,漢字書き!$A$2:$N$506,6,0)) -> ［テイオン］の声 | C118: =IF(C116="","",VLOOKUP(C116,漢字書き!$A$2:$N$506,6,0)) -> 漢字の［ナ］り立ち | D118: =IF(D116="","",VLOOKUP(D116,漢字書き!$A$2:$N$506,6,0)) -> ［シズ］かな教室 | E118: =IF(E116="","",VLOOKUP(E116,漢字書き!$A$2:$N$506,6,0)) -> 委員に［エラ］ばれる | F118: =IF(F116="","",VLOOKUP(F116,漢字書き!$A$2:$N$506,6,0)) -> ［ソウコ］にかたづける | G118: =IF(G116="","",VLOOKUP(G116,漢字書き!$A$2:$N$506,6,0)) -> さわぎが［シズ］まる | H118: =IF(H116="","",VLOOKUP(H116,漢字書き!$A$2:$N$506,6,0)) -> ひもを［ムス］ぶ | I118: =IF(I116="","",VLOOKUP(I116,漢字書き!$A$2:$N$506,6,0)) -> ［マツバヤシ］の中 | J118: =IF(J116="","",VLOOKUP(J116,漢字書き!$A$2:$N$506,6,0)) -> ［ジショ］を買う | K118: =IF(K116="","",VLOOKUP(K116,漢字読み!$A$2:$O$506,6,0)) -> ［最高］の気分 | L118: =IF(L116="","",VLOOKUP(L116,漢字読み!$A$2:$O$506,6,0)) -> ［成］り上がり者だ | M118: =IF(M116="","",VLOOKUP(M116,漢字読み!$A$2:$O$506,6,0)) -> 新聞を［配達］する | N118: =IF(N116="","",VLOOKUP(N116,漢字読み!$A$2:$O$506,6,0)) -> 和歌山県のお［城］ | O118: =IF(O116="","",VLOOKUP(O116,漢字読み!$A$2:$O$506,6,0)) -> ［井］の中のかわず | P118: =IF(P116="","",VLOOKUP(P116,漢字読み!$A$2:$O$506,6,0)) -> [初雪]がふる | Q118: =IF(Q116="","",VLOOKUP(Q116,漢字読み!$A$2:$O$506,6,0)) -> ［日照］りが続く | R118: =IF(R116="","",VLOOKUP(R116,漢字読み!$A$2:$O$506,6,0)) -> 声を上げて［泣］く | S118: =IF(S116="","",VLOOKUP(S116,漢字読み!$A$2:$O$506,6,0)) -> ［健康］な体 | T118: =IF(T116="","",VLOOKUP(T116,漢字読み!$A$2:$O$506,6,0)) -> 部屋を［散］らかす | V118: 級
A119: =IF(A$16="","",VLOOKUP(A116,漢字書き!$A$2:$O$506,8,0)) -> 照 | B119: =IF(B$16="","",VLOOKUP(B116,漢字書き!$A$2:$O$506,8,0)) -> 低音 | C119: =IF(C$16="","",VLOOKUP(C116,漢字書き!$A$2:$O$506,8,0)) -> 成 | D119: =IF(D$16="","",VLOOKUP(D116,漢字書き!$A$2:$O$506,8,0)) -> 静 | E119: =IF(E$16="","",VLOOKUP(E116,漢字書き!$A$2:$O$506,8,0)) -> 選 | F119: =IF(F$16="","",VLOOKUP(F116,漢字書き!$A$2:$O$506,8,0)) -> 倉庫 | G119: =IF(G$16="","",VLOOKUP(G116,漢字書き!$A$2:$O$506,8,0)) -> 静 | H119: =IF(H$16="","",VLOOKUP(H116,漢字書き!$A$2:$O$506,8,0)) -> 結 | I119: =IF(I$16="","",VLOOKUP(I116,漢字書き!$A$2:$O$506,8,0)) -> 松林 | J119: =IF(J$16="","",VLOOKUP(J116,漢字書き!$A$2:$O$506,8,0)) -> 辞書 | K119: =IF(K$16="","",VLOOKUP(K116,漢字読み!$A$2:$O$506,8,0)) -> さいこう | L119: =IF(L$16="","",VLOOKUP(L116,漢字読み!$A$2:$O$506,8,0)) -> な | M119: =IF(M$16="","",VLOOKUP(M116,漢字読み!$A$2:$O$506,8,0)) -> はいたつ | N119: =IF(N$16="","",VLOOKUP(N116,漢字読み!$A$2:$O$506,8,0)) -> しろ | O119: =IF(O$16="","",VLOOKUP(O116,漢字読み!$A$2:$O$506,8,0)) -> い | P119: =IF(P$16="","",VLOOKUP(P116,漢字読み!$A$2:$O$506,8,0)) -> はつゆき | Q119: =IF(Q$16="","",VLOOKUP(Q116,漢字読み!$A$2:$O$506,8,0)) -> ひで | R119: =IF(R$16="","",VLOOKUP(R116,漢字読み!$A$2:$O$506,8,0)) -> な | S119: =IF(S$16="","",VLOOKUP(S116,漢字読み!$A$2:$O$506,8,0)) -> けんこう | T119: =IF(T$16="","",VLOOKUP(T116,漢字読み!$A$2:$O$506,8,0)) -> ち | V119: 名前
A120: =IF(A116="","",IF(VLOOKUP(A116,漢字書き!$A$2:$N$502,7,0)=0,"",VLOOKUP(A116,漢字書き!$A$2:$N$502,7,0))) -> り焼き | B120: =IF(B116="","",IF(VLOOKUP(B116,漢字書き!$A$2:$N$502,7,0)=0,"",VLOOKUP(B116,漢字書き!$A$2:$N$502,7,0))) ->  | C120: =IF(C116="","",IF(VLOOKUP(C116,漢字書き!$A$2:$N$502,7,0)=0,"",VLOOKUP(C116,漢字書き!$A$2:$N$502,7,0))) -> り立ち | D120: =IF(D116="","",IF(VLOOKUP(D116,漢字書き!$A$2:$N$502,7,0)=0,"",VLOOKUP(D116,漢字書き!$A$2:$N$502,7,0))) -> かな | E120: =IF(E116="","",IF(VLOOKUP(E116,漢字書き!$A$2:$N$502,7,0)=0,"",VLOOKUP(E116,漢字書き!$A$2:$N$502,7,0))) -> ばれる | F120: =IF(F116="","",IF(VLOOKUP(F116,漢字書き!$A$2:$N$502,7,0)=0,"",VLOOKUP(F116,漢字書き!$A$2:$N$502,7,0))) ->  | G120: =IF(G116="","",IF(VLOOKUP(G116,漢字書き!$A$2:$N$502,7,0)=0,"",VLOOKUP(G116,漢字書き!$A$2:$N$502,7,0))) -> まる | H120: =IF(H116="","",IF(VLOOKUP(H116,漢字書き!$A$2:$N$502,7,0)=0,"",VLOOKUP(H116,漢字書き!$A$2:$N$502,7,0))) -> ぶ | I120: =IF(I116="","",IF(VLOOKUP(I116,漢字書き!$A$2:$N$502,7,0)=0,"",VLOOKUP(I116,漢字書き!$A$2:$N$502,7,0))) ->  | J120: =IF(J116="","",IF(VLOOKUP(J116,漢字書き!$A$2:$N$502,7,0)=0,"",VLOOKUP(J116,漢字書き!$A$2:$N$502,7,0))) ->  | K120: =IF(K116="","",IF(VLOOKUP(K116,漢字読み!$A$2:$O$502,7,0)=0,"",VLOOKUP(K116,漢字読み!$A$2:$O$502,7,0))) ->  | L120: =IF(L116="","",IF(VLOOKUP(L116,漢字読み!$A$2:$O$502,7,0)=0,"",VLOOKUP(L116,漢字読み!$A$2:$O$502,7,0))) -> り | M120: =IF(M116="","",IF(VLOOKUP(M116,漢字読み!$A$2:$O$502,7,0)=0,"",VLOOKUP(M116,漢字読み!$A$2:$O$502,7,0))) -> する | N120: =IF(N116="","",IF(VLOOKUP(N116,漢字読み!$A$2:$O$502,7,0)=0,"",VLOOKUP(N116,漢字読み!$A$2:$O$502,7,0))) ->  | O120: =IF(O116="","",IF(VLOOKUP(O116,漢字読み!$A$2:$O$502,7,0)=0,"",VLOOKUP(O116,漢字読み!$A$2:$O$502,7,0))) ->  | P120: =IF(P116="","",IF(VLOOKUP(P116,漢字読み!$A$2:$O$502,7,0)=0,"",VLOOKUP(P116,漢字読み!$A$2:$O$502,7,0))) ->  | Q120: =IF(Q116="","",IF(VLOOKUP(Q116,漢字読み!$A$2:$O$502,7,0)=0,"",VLOOKUP(Q116,漢字読み!$A$2:$O$502,7,0))) -> り | R120: =IF(R116="","",IF(VLOOKUP(R116,漢字読み!$A$2:$O$502,7,0)=0,"",VLOOKUP(R116,漢字読み!$A$2:$O$502,7,0))) -> く | S120: =IF(S116="","",IF(VLOOKUP(S116,漢字読み!$A$2:$O$502,7,0)=0,"",VLOOKUP(S116,漢字読み!$A$2:$O$502,7,0))) -> な | T120: =IF(T116="","",IF(VLOOKUP(T116,漢字読み!$A$2:$O$502,7,0)=0,"",VLOOKUP(T116,漢字読み!$A$2:$O$502,7,0))) -> らかす | W120: 和歌山県教育委員会
A121: =INDIRECT("'関数（書き）'!C" & COLUMN(B$1)+SUM($AD$2:$AD122)) -> 4 | B121: =INDIRECT("'関数（書き）'!C" & COLUMN(C$1)+SUM($AD$2:$AD122)) -> 6 | C121: =INDIRECT("'関数（書き）'!C" & COLUMN(D$1)+SUM($AD$2:$AD122)) -> 13 | D121: =INDIRECT("'関数（書き）'!C" & COLUMN(E$1)+SUM($AD$2:$AD122)) -> 82 | E121: =INDIRECT("'関数（書き）'!C" & COLUMN(F$1)+SUM($AD$2:$AD122)) -> 190 | F121: =INDIRECT("'関数（書き）'!C" & COLUMN(G$1)+SUM($AD$2:$AD122)) -> 115 | G121: =INDIRECT("'関数（書き）'!C" & COLUMN(H$1)+SUM($AD$2:$AD122)) -> 95 | H121: =INDIRECT("'関数（書き）'!C" & COLUMN(I$1)+SUM($AD$2:$AD122)) -> 196 | I121: =INDIRECT("'関数（書き）'!C" & COLUMN(J$1)+SUM($AD$2:$AD122)) -> 133 | J121: =INDIRECT("'関数（書き）'!C" & COLUMN(K$1)+SUM($AD$2:$AD122)) -> 9 | K121: =INDIRECT("'関数（読み）'!C" & COLUMN(B$1)+SUM($AD$2:$AD122)) -> 120 | L121: =INDIRECT("'関数（読み）'!C" & COLUMN(C$1)+SUM($AD$2:$AD122)) -> 56 | M121: =INDIRECT("'関数（読み）'!C" & COLUMN(D$1)+SUM($AD$2:$AD122)) -> 82 | N121: =INDIRECT("'関数（読み）'!C" & COLUMN(E$1)+SUM($AD$2:$AD122)) -> 171 | O121: =INDIRECT("'関数（読み）'!C" & COLUMN(F$1)+SUM($AD$2:$AD122)) -> 45 | P121: =INDIRECT("'関数（読み）'!C" & COLUMN(G$1)+SUM($AD$2:$AD122)) -> 142 | Q121: =INDIRECT("'関数（読み）'!C" & COLUMN(H$1)+SUM($AD$2:$AD122)) -> 137 | R121: =INDIRECT("'関数（読み）'!C" & COLUMN(I$1)+SUM($AD$2:$AD122)) -> 151 | S121: =INDIRECT("'関数（読み）'!C" & COLUMN(J$1)+SUM($AD$2:$AD122)) -> 84 | T121: =INDIRECT("'関数（読み）'!C" & COLUMN(K$1)+SUM($AD$2:$AD122)) -> 153
A122: ⑳ | B122: ⑲ | C122: ⑱ | D122: ⑰ | E122: ⑯ | F122: ⑮ | G122: ⑭ | H122: ⑬ | I122: ⑫ | J122: ⑪ | K122: ⑩ | L122: ⑨ | M122: ⑧ | N122: ⑦ | O122: ⑥ | P122: ⑤ | Q122: ④ | R122: ③ | S122: ② | T122: ① | U122: 次の［ ］の部分の漢字には読みがなをひらがなで書き、カタカナは漢字に直しなさい。 | V122: 10 | W122: 「漢字の博士検定試験」練習問題 | AC122: ← | AD122: 10 | AE122: 問 | AF122: =AH107+1 -> 121 | AG122: ～ | AH122: =SUM($AD$2:$AD122)+10 -> 130 | AI122: 問まで | AJ122: =COUNTIF($A$1:$T$200,T123) -> 2
A123: =IF(A121="","",VLOOKUP(A121,漢字書き!$A$2:$N$506,6,0)) -> ［ギョセン］に乗る | B123: =IF(B121="","",VLOOKUP(B121,漢字書き!$A$2:$N$506,6,0)) -> ［キョウドウ］で使用する | C123: =IF(C121="","",VLOOKUP(C121,漢字書き!$A$2:$N$506,6,0)) -> パン食い［キョウソウ］ | D123: =IF(D121="","",VLOOKUP(D121,漢字書き!$A$2:$N$506,6,0)) -> ［イバラキケン］に行く | E123: =IF(E121="","",VLOOKUP(E121,漢字書き!$A$2:$N$506,6,0)) -> 目ひょうを［タッセイ］する | F123: =IF(F121="","",VLOOKUP(F121,漢字書き!$A$2:$N$506,6,0)) -> [ショシン]に返る | G123: =IF(G121="","",VLOOKUP(G121,漢字書き!$A$2:$N$506,6,0)) -> いたみが［オサ］まる | H123: =IF(H121="","",VLOOKUP(H121,漢字書き!$A$2:$N$506,6,0)) -> よい［チョウコウ］が見える | I123: =IF(I121="","",VLOOKUP(I121,漢字書き!$A$2:$N$506,6,0)) -> 文部科学［ダイジン］ | J123: =IF(J121="","",VLOOKUP(J121,漢字書き!$A$2:$N$506,6,0)) -> ［キョウリョク］する | K123: =IF(K121="","",VLOOKUP(K121,漢字読み!$A$2:$O$506,6,0)) -> 海岸の［松林］ | L123: =IF(L121="","",VLOOKUP(L121,漢字読み!$A$2:$O$506,6,0)) -> ライバルに［差］をつける | M123: =IF(M121="","",VLOOKUP(M121,漢字読み!$A$2:$O$506,6,0)) -> サクラが［散］る | N123: =IF(N121="","",VLOOKUP(N121,漢字読み!$A$2:$O$506,6,0)) -> ［自然］を守る | O123: =IF(O121="","",VLOOKUP(O121,漢字読み!$A$2:$O$506,6,0)) -> ［成功］をおさめる | P123: =IF(P121="","",VLOOKUP(P121,漢字読み!$A$2:$O$506,6,0)) -> ［成果］をおさめる | Q123: =IF(Q121="","",VLOOKUP(Q121,漢字読み!$A$2:$O$506,6,0)) -> ［大臣］になる | R123: =IF(R121="","",VLOOKUP(R121,漢字読み!$A$2:$O$506,6,0)) -> かぜで［欠席］する | S123: =IF(S121="","",VLOOKUP(S121,漢字読み!$A$2:$O$506,6,0)) -> ［無残］なすがた | T123: =IF(T121="","",VLOOKUP(T121,漢字読み!$A$2:$O$506,6,0)) -> 長方形の［面積］ | V123: 級
V124: 名前
A125: =IF(A121="","",IF(VLOOKUP(A121,漢字書き!$A$2:$N$502,7,0)=0,"",VLOOKUP(A121,漢字書き!$A$2:$N$502,7,0))) ->  | B125: =IF(B121="","",IF(VLOOKUP(B121,漢字書き!$A$2:$N$502,7,0)=0,"",VLOOKUP(B121,漢字書き!$A$2:$N$502,7,0))) ->  | C125: =IF(C121="","",IF(VLOOKUP(C121,漢字書き!$A$2:$N$502,7,0)=0,"",VLOOKUP(C121,漢字書き!$A$2:$N$502,7,0))) ->  | D125: =IF(D121="","",IF(VLOOKUP(D121,漢字書き!$A$2:$N$502,7,0)=0,"",VLOOKUP(D121,漢字書き!$A$2:$N$502,7,0))) ->  | E125: =IF(E121="","",IF(VLOOKUP(E121,漢字書き!$A$2:$N$502,7,0)=0,"",VLOOKUP(E121,漢字書き!$A$2:$N$502,7,0))) -> する | F125: =IF(F121="","",IF(VLOOKUP(F121,漢字書き!$A$2:$N$502,7,0)=0,"",VLOOKUP(F121,漢字書き!$A$2:$N$502,7,0))) ->  | G125: =IF(G121="","",IF(VLOOKUP(G121,漢字書き!$A$2:$N$502,7,0)=0,"",VLOOKUP(G121,漢字書き!$A$2:$N$502,7,0))) -> まる | H125: =IF(H121="","",IF(VLOOKUP(H121,漢字書き!$A$2:$N$502,7,0)=0,"",VLOOKUP(H121,漢字書き!$A$2:$N$502,7,0))) ->  | I125: =IF(I121="","",IF(VLOOKUP(I121,漢字書き!$A$2:$N$502,7,0)=0,"",VLOOKUP(I121,漢字書き!$A$2:$N$502,7,0))) ->  | J125: =IF(J121="","",IF(VLOOKUP(J121,漢字書き!$A$2:$N$502,7,0)=0,"",VLOOKUP(J121,漢字書き!$A$2:$N$502,7,0))) -> する | K125: =IF(K121="","",IF(VLOOKUP(K121,漢字読み!$A$2:$O$502,7,0)=0,"",VLOOKUP(K121,漢字読み!$A$2:$O$502,7,0))) ->  | L125: =IF(L121="","",IF(VLOOKUP(L121,漢字読み!$A$2:$O$502,7,0)=0,"",VLOOKUP(L121,漢字読み!$A$2:$O$502,7,0))) ->  | M125: =IF(M121="","",IF(VLOOKUP(M121,漢字読み!$A$2:$O$502,7,0)=0,"",VLOOKUP(M121,漢字読み!$A$2:$O$502,7,0))) -> る | N125: =IF(N121="","",IF(VLOOKUP(N121,漢字読み!$A$2:$O$502,7,0)=0,"",VLOOKUP(N121,漢字読み!$A$2:$O$502,7,0))) ->  | O125: =IF(O121="","",IF(VLOOKUP(O121,漢字読み!$A$2:$O$502,7,0)=0,"",VLOOKUP(O121,漢字読み!$A$2:$O$502,7,0))) ->  | P125: =IF(P121="","",IF(VLOOKUP(P121,漢字読み!$A$2:$O$502,7,0)=0,"",VLOOKUP(P121,漢字読み!$A$2:$O$502,7,0))) ->  | Q125: =IF(Q121="","",IF(VLOOKUP(Q121,漢字読み!$A$2:$O$502,7,0)=0,"",VLOOKUP(Q121,漢字読み!$A$2:$O$502,7,0))) ->  | R125: =IF(R121="","",IF(VLOOKUP(R121,漢字読み!$A$2:$O$502,7,0)=0,"",VLOOKUP(R121,漢字読み!$A$2:$O$502,7,0))) -> する | S125: =IF(S121="","",IF(VLOOKUP(S121,漢字読み!$A$2:$O$502,7,0)=0,"",VLOOKUP(S121,漢字読み!$A$2:$O$502,7,0))) -> な | T125: =IF(T121="","",IF(VLOOKUP(T121,漢字読み!$A$2:$O$502,7,0)=0,"",VLOOKUP(T121,漢字読み!$A$2:$O$502,7,0))) ->  | W125: 和歌山県教育委員会
A126: =INDIRECT("'関数（書き）'!C" & COLUMN(B$1)+SUM($AD$2:$AD127)) -> 103 | B126: =INDIRECT("'関数（書き）'!C" & COLUMN(C$1)+SUM($AD$2:$AD127)) -> 29 | C126: =INDIRECT("'関数（書き）'!C" & COLUMN(D$1)+SUM($AD$2:$AD127)) -> 52 | D126: =INDIRECT("'関数（書き）'!C" & COLUMN(E$1)+SUM($AD$2:$AD127)) -> 184 | E126: =INDIRECT("'関数（書き）'!C" & COLUMN(F$1)+SUM($AD$2:$AD127)) -> 164 | F126: =INDIRECT("'関数（書き）'!C" & COLUMN(G$1)+SUM($AD$2:$AD127)) -> 183 | G126: =INDIRECT("'関数（書き）'!C" & COLUMN(H$1)+SUM($AD$2:$AD127)) -> 28 | H126: =INDIRECT("'関数（書き）'!C" & COLUMN(I$1)+SUM($AD$2:$AD127)) -> 46 | I126: =INDIRECT("'関数（書き）'!C" & COLUMN(J$1)+SUM($AD$2:$AD127)) -> 57 | J126: =INDIRECT("'関数（書き）'!C" & COLUMN(K$1)+SUM($AD$2:$AD127)) -> 146 | K126: =INDIRECT("'関数（読み）'!C" & COLUMN(B$1)+SUM($AD$2:$AD127)) -> 163 | L126: =INDIRECT("'関数（読み）'!C" & COLUMN(C$1)+SUM($AD$2:$AD127)) -> 177 | M126: =INDIRECT("'関数（読み）'!C" & COLUMN(D$1)+SUM($AD$2:$AD127)) -> 44 | N126: =INDIRECT("'関数（読み）'!C" & COLUMN(E$1)+SUM($AD$2:$AD127)) -> 75 | O126: =INDIRECT("'関数（読み）'!C" & COLUMN(F$1)+SUM($AD$2:$AD127)) -> 93 | P126: =INDIRECT("'関数（読み）'!C" & COLUMN(G$1)+SUM($AD$2:$AD127)) -> 198 | Q126: =INDIRECT("'関数（読み）'!C" & COLUMN(H$1)+SUM($AD$2:$AD127)) -> 60 | R126: =INDIRECT("'関数（読み）'!C" & COLUMN(I$1)+SUM($AD$2:$AD127)) -> 57 | S126: =INDIRECT("'関数（読み）'!C" & COLUMN(J$1)+SUM($AD$2:$AD127)) -> 210 | T126: =INDIRECT("'関数（読み）'!C" & COLUMN(K$1)+SUM($AD$2:$AD127)) -> 51
A127: ⑳ | B127: ⑲ | C127: ⑱ | D127: ⑰ | E127: ⑯ | F127: ⑮ | G127: ⑭ | H127: ⑬ | I127: ⑫ | J127: ⑪ | K127: ⑩ | L127: ⑨ | M127: ⑧ | N127: ⑦ | O127: ⑥ | P127: ⑤ | Q127: ④ | R127: ③ | S127: ② | T127: ① | U127: 次の［ ］の部分の漢字には読みがなをひらがなで書き、カタカナは漢字に直しなさい。 | V127: 10 | W127: 「漢字の博士検定試験」練習問題 | AC127: ← | AD127: 10 | AE127: 問 | AF127: =AH122+1 -> 131 | AG127: ～ | AH127: =SUM($AD$2:$AD127)+10 -> 140 | AI127: 問まで | AJ127: =COUNTIF($A$1:$T$200,T128) -> 2
A128: =IF(A126="","",VLOOKUP(A126,漢字書き!$A$2:$N$506,6,0)) -> ノートを［カ］りる | B128: =IF(B126="","",VLOOKUP(B126,漢字書き!$A$2:$N$506,6,0)) -> かぜで［ケッセキ］する | C128: =IF(C126="","",VLOOKUP(C126,漢字書き!$A$2:$N$506,6,0)) -> ［ケンコウ］にすごす | D128: =IF(D126="","",VLOOKUP(D126,漢字書き!$A$2:$N$506,6,0)) -> ［シソン］を残す | E128: =IF(E126="","",VLOOKUP(E126,漢字書き!$A$2:$N$506,6,0)) -> 日が［アサ］い | F128: =IF(F126="","",VLOOKUP(F126,漢字書き!$A$2:$N$506,6,0)) -> ［ソツギョウシキ］に出る | G128: =IF(G126="","",VLOOKUP(G126,漢字書き!$A$2:$N$506,6,0)) -> ［ゲイ］は身を助ける | H128: =IF(H126="","",VLOOKUP(H126,漢字書き!$A$2:$N$506,6,0)) -> 大［コウブツ］のカレー | I128: =IF(I126="","",VLOOKUP(I126,漢字書き!$A$2:$N$506,6,0)) -> ［ヤサイ］を作る | J128: =IF(J126="","",VLOOKUP(J126,漢字書き!$A$2:$N$506,6,0)) -> ［セイデンキ］が起こる | K128: =IF(K126="","",VLOOKUP(K126,漢字読み!$A$2:$O$506,6,0)) -> ［小説］を読む | L128: =IF(L126="","",VLOOKUP(L126,漢字読み!$A$2:$O$506,6,0)) -> [巣立]ちの時がくる | M128: =IF(M126="","",VLOOKUP(M126,漢字読み!$A$2:$O$506,6,0)) -> ［固］い友情 | N128: =IF(N126="","",VLOOKUP(N126,漢字読み!$A$2:$O$506,6,0)) -> 大会に［参加］する | O128: =IF(O126="","",VLOOKUP(O126,漢字読み!$A$2:$O$506,6,0)) -> ケーキを[試作]する | P128: =IF(P126="","",VLOOKUP(P126,漢字読み!$A$2:$O$506,6,0)) -> 字が［上達］する | Q128: =IF(Q126="","",VLOOKUP(Q126,漢字読み!$A$2:$O$506,6,0)) -> ［菜］の花畑で遊ぶ | R128: =IF(R126="","",VLOOKUP(R126,漢字読み!$A$2:$O$506,6,0)) -> ［交差］点をわたる | S128: =IF(S126="","",VLOOKUP(S126,漢字読み!$A$2:$O$506,6,0)) -> ［縄］とびをする | T128: =IF(T126="","",VLOOKUP(T126,漢字読み!$A$2:$O$506,6,0)) -> ［沖縄県］産のフルーツ | V128: 級
V129: 名前
A130: =IF(A126="","",IF(VLOOKUP(A126,漢字書き!$A$2:$N$502,7,0)=0,"",VLOOKUP(A126,漢字書き!$A$2:$N$502,7,0))) -> りる | B130: =IF(B126="","",IF(VLOOKUP(B126,漢字書き!$A$2:$N$502,7,0)=0,"",VLOOKUP(B126,漢字書き!$A$2:$N$502,7,0))) -> する | C130: =IF(C126="","",IF(VLOOKUP(C126,漢字書き!$A$2:$N$502,7,0)=0,"",VLOOKUP(C126,漢字書き!$A$2:$N$502,7,0))) ->  | D130: =IF(D126="","",IF(VLOOKUP(D126,漢字書き!$A$2:$N$502,7,0)=0,"",VLOOKUP(D126,漢字書き!$A$2:$N$502,7,0))) ->  | E130: =IF(E126="","",IF(VLOOKUP(E126,漢字書き!$A$2:$N$502,7,0)=0,"",VLOOKUP(E126,漢字書き!$A$2:$N$502,7,0))) -> い | F130: =IF(F126="","",IF(VLOOKUP(F126,漢字書き!$A$2:$N$502,7,0)=0,"",VLOOKUP(F126,漢字書き!$A$2:$N$502,7,0))) ->  | G130: =IF(G126="","",IF(VLOOKUP(G126,漢字書き!$A$2:$N$502,7,0)=0,"",VLOOKUP(G126,漢字書き!$A$2:$N$502,7,0))) ->  | H130: =IF(H126="","",IF(VLOOKUP(H126,漢字書き!$A$2:$N$502,7,0)=0,"",VLOOKUP(H126,漢字書き!$A$2:$N$502,7,0))) ->  | I130: =IF(I126="","",IF(VLOOKUP(I126,漢字書き!$A$2:$N$502,7,0)=0,"",VLOOKUP(I126,漢字書き!$A$2:$N$502,7,0))) ->  | J130: =IF(J126="","",IF(VLOOKUP(J126,漢字書き!$A$2:$N$502,7,0)=0,"",VLOOKUP(J126,漢字書き!$A$2:$N$502,7,0))) ->  | K130: =IF(K126="","",IF(VLOOKUP(K126,漢字読み!$A$2:$O$502,7,0)=0,"",VLOOKUP(K126,漢字読み!$A$2:$O$502,7,0))) ->  | L130: =IF(L126="","",IF(VLOOKUP(L126,漢字読み!$A$2:$O$502,7,0)=0,"",VLOOKUP(L126,漢字読み!$A$2:$O$502,7,0))) -> ち | M130: =IF(M126="","",IF(VLOOKUP(M126,漢字読み!$A$2:$O$502,7,0)=0,"",VLOOKUP(M126,漢字読み!$A$2:$O$502,7,0))) -> い | N130: =IF(N126="","",IF(VLOOKUP(N126,漢字読み!$A$2:$O$502,7,0)=0,"",VLOOKUP(N126,漢字読み!$A$2:$O$502,7,0))) -> する | O130: =IF(O126="","",IF(VLOOKUP(O126,漢字読み!$A$2:$O$502,7,0)=0,"",VLOOKUP(O126,漢字読み!$A$2:$O$502,7,0))) -> する | P130: =IF(P126="","",IF(VLOOKUP(P126,漢字読み!$A$2:$O$502,7,0)=0,"",VLOOKUP(P126,漢字読み!$A$2:$O$502,7,0))) -> する | Q130: =IF(Q126="","",IF(VLOOKUP(Q126,漢字読み!$A$2:$O$502,7,0)=0,"",VLOOKUP(Q126,漢字読み!$A$2:$O$502,7,0))) ->  | R130: =IF(R126="","",IF(VLOOKUP(R126,漢字読み!$A$2:$O$502,7,0)=0,"",VLOOKUP(R126,漢字読み!$A$2:$O$502,7,0))) -> 点 | S130: =IF(S126="","",IF(VLOOKUP(S126,漢字読み!$A$2:$O$502,7,0)=0,"",VLOOKUP(S126,漢字読み!$A$2:$O$502,7,0))) -> とび | T130: =IF(T126="","",IF(VLOOKUP(T126,漢字読み!$A$2:$O$502,7,0)=0,"",VLOOKUP(T126,漢字読み!$A$2:$O$502,7,0))) ->  | W130: 和歌山県教育委員会
A131: =A121 -> 4 | B131: 6 | C131: 13 | D131: 82 | E131: 190 | F131: 115 | G131: 95 | H131: 196 | I131: 133 | J131: 9 | K131: 120 | L131: 56 | M131: 82 | N131: 171 | O131: 45 | P131: 142 | Q131: 137 | R131: 151 | S131: 84 | T131: 153
A132: ⑳ | B132: ⑲ | C132: ⑱ | D132: ⑰ | E132: ⑯ | F132: ⑮ | G132: ⑭ | H132: ⑬ | I132: ⑫ | J132: ⑪ | K132: ⑩ | L132: ⑨ | M132: ⑧ | N132: ⑦ | O132: ⑥ | P132: ⑤ | Q132: ④ | R132: ③ | S132: ② | T132: ① | U132: 次の［ ］の部分の漢字には読みがなをひらがなで書き、カタカナは漢字に直しなさい。 | V132: 10 | W132: 「漢字の博士検定試験」練習問題
A133: =IF(A131="","",VLOOKUP(A131,漢字書き!$A$2:$N$506,6,0)) -> ［ギョセン］に乗る | B133: =IF(B131="","",VLOOKUP(B131,漢字書き!$A$2:$N$506,6,0)) -> ［キョウドウ］で使用する | C133: =IF(C131="","",VLOOKUP(C131,漢字書き!$A$2:$N$506,6,0)) -> パン食い［キョウソウ］ | D133: =IF(D131="","",VLOOKUP(D131,漢字書き!$A$2:$N$506,6,0)) -> ［イバラキケン］に行く | E133: =IF(E131="","",VLOOKUP(E131,漢字書き!$A$2:$N$506,6,0)) -> 目ひょうを［タッセイ］する | F133: =IF(F131="","",VLOOKUP(F131,漢字書き!$A$2:$N$506,6,0)) -> [ショシン]に返る | G133: =IF(G131="","",VLOOKUP(G131,漢字書き!$A$2:$N$506,6,0)) -> いたみが［オサ］まる | H133: =IF(H131="","",VLOOKUP(H131,漢字書き!$A$2:$N$506,6,0)) -> よい［チョウコウ］が見える | I133: =IF(I131="","",VLOOKUP(I131,漢字書き!$A$2:$N$506,6,0)) -> 文部科学［ダイジン］ | J133: =IF(J131="","",VLOOKUP(J131,漢字書き!$A$2:$N$506,6,0)) -> ［キョウリョク］する | K133: =IF(K131="","",VLOOKUP(K131,漢字読み!$A$2:$O$506,6,0)) -> 海岸の［松林］ | L133: =IF(L131="","",VLOOKUP(L131,漢字読み!$A$2:$O$506,6,0)) -> ライバルに［差］をつける | M133: =IF(M131="","",VLOOKUP(M131,漢字読み!$A$2:$O$506,6,0)) -> サクラが［散］る | N133: =IF(N131="","",VLOOKUP(N131,漢字読み!$A$2:$O$506,6,0)) -> ［自然］を守る | O133: =IF(O131="","",VLOOKUP(O131,漢字読み!$A$2:$O$506,6,0)) -> ［成功］をおさめる | P133: =IF(P131="","",VLOOKUP(P131,漢字読み!$A$2:$O$506,6,0)) -> ［成果］をおさめる | Q133: =IF(Q131="","",VLOOKUP(Q131,漢字読み!$A$2:$O$506,6,0)) -> ［大臣］になる | R133: =IF(R131="","",VLOOKUP(R131,漢字読み!$A$2:$O$506,6,0)) -> かぜで［欠席］する | S133: =IF(S131="","",VLOOKUP(S131,漢字読み!$A$2:$O$506,6,0)) -> ［無残］なすがた | T133: =IF(T131="","",VLOOKUP(T131,漢字読み!$A$2:$O$506,6,0)) -> 長方形の［面積］ | V133: 級
A134: =IF(A$11="","",VLOOKUP(A131,漢字書き!$A$2:$O$506,8,0)) -> 漁船 | B134: =IF(B$11="","",VLOOKUP(B131,漢字書き!$A$2:$O$506,8,0)) -> 共同 | C134: =IF(C$11="","",VLOOKUP(C131,漢字書き!$A$2:$O$506,8,0)) -> 競争 | D134: =IF(D$11="","",VLOOKUP(D131,漢字書き!$A$2:$O$506,8,0)) -> 茨城県 | E134: =IF(E$11="","",VLOOKUP(E131,漢字書き!$A$2:$O$506,8,0)) -> 達成 | F134: =IF(F$11="","",VLOOKUP(F131,漢字書き!$A$2:$O$506,8,0)) -> 初心 | G134: =IF(G$11="","",VLOOKUP(G131,漢字書き!$A$2:$O$506,8,0)) -> 治 | H134: =IF(H$11="","",VLOOKUP(H131,漢字書き!$A$2:$O$506,8,0)) -> 兆候 | I134: =IF(I$11="","",VLOOKUP(I131,漢字書き!$A$2:$O$506,8,0)) -> 大臣 | J134: =IF(J$11="","",VLOOKUP(J131,漢字書き!$A$2:$O$506,8,0)) -> 協力 | K134: =IF(K$11="","",VLOOKUP(K131,漢字読み!$A$2:$O$506,8,0)) -> まつばやし | L134: =IF(L$11="","",VLOOKUP(L131,漢字読み!$A$2:$O$506,8,0)) -> さ | M134: =IF(M$11="","",VLOOKUP(M131,漢字読み!$A$2:$O$506,8,0)) -> ち | N134: =IF(N$11="","",VLOOKUP(N131,漢字読み!$A$2:$O$506,8,0)) -> しぜん | O134: =IF(O$11="","",VLOOKUP(O131,漢字読み!$A$2:$O$506,8,0)) -> せいこう | P134: =IF(P$11="","",VLOOKUP(P131,漢字読み!$A$2:$O$506,8,0)) -> せいか | Q134: =IF(Q$11="","",VLOOKUP(Q131,漢字読み!$A$2:$O$506,8,0)) -> だいじん | R134: =IF(R$11="","",VLOOKUP(R131,漢字読み!$A$2:$O$506,8,0)) -> けっせき | S134: =IF(S$11="","",VLOOKUP(S131,漢字読み!$A$2:$O$506,8,0)) -> むざん | T134: =IF(T$11="","",VLOOKUP(T131,漢字読み!$A$2:$O$506,8,0)) -> めんせき | V134: 名前
A135: =IF(A131="","",IF(VLOOKUP(A131,漢字書き!$A$2:$N$502,7,0)=0,"",VLOOKUP(A131,漢字書き!$A$2:$N$502,7,0))) ->  | B135: =IF(B131="","",IF(VLOOKUP(B131,漢字書き!$A$2:$N$502,7,0)=0,"",VLOOKUP(B131,漢字書き!$A$2:$N$502,7,0))) ->  | C135: =IF(C131="","",IF(VLOOKUP(C131,漢字書き!$A$2:$N$502,7,0)=0,"",VLOOKUP(C131,漢字書き!$A$2:$N$502,7,0))) ->  | D135: =IF(D131="","",IF(VLOOKUP(D131,漢字書き!$A$2:$N$502,7,0)=0,"",VLOOKUP(D131,漢字書き!$A$2:$N$502,7,0))) ->  | E135: =IF(E131="","",IF(VLOOKUP(E131,漢字書き!$A$2:$N$502,7,0)=0,"",VLOOKUP(E131,漢字書き!$A$2:$N$502,7,0))) -> する | F135: =IF(F131="","",IF(VLOOKUP(F131,漢字書き!$A$2:$N$502,7,0)=0,"",VLOOKUP(F131,漢字書き!$A$2:$N$502,7,0))) ->  | G135: =IF(G131="","",IF(VLOOKUP(G131,漢字書き!$A$2:$N$502,7,0)=0,"",VLOOKUP(G131,漢字書き!$A$2:$N$502,7,0))) -> まる | H135: =IF(H131="","",IF(VLOOKUP(H131,漢字書き!$A$2:$N$502,7,0)=0,"",VLOOKUP(H131,漢字書き!$A$2:$N$502,7,0))) ->  | I135: =IF(I131="","",IF(VLOOKUP(I131,漢字書き!$A$2:$N$502,7,0)=0,"",VLOOKUP(I131,漢字書き!$A$2:$N$502,7,0))) ->  | J135: =IF(J131="","",IF(VLOOKUP(J131,漢字書き!$A$2:$N$502,7,0)=0,"",VLOOKUP(J131,漢字書き!$A$2:$N$502,7,0))) -> する | K135: =IF(K131="","",IF(VLOOKUP(K131,漢字読み!$A$2:$O$502,7,0)=0,"",VLOOKUP(K131,漢字読み!$A$2:$O$502,7,0))) ->  | L135: =IF(L131="","",IF(VLOOKUP(L131,漢字読み!$A$2:$O$502,7,0)=0,"",VLOOKUP(L131,漢字読み!$A$2:$O$502,7,0))) ->  | M135: =IF(M131="","",IF(VLOOKUP(M131,漢字読み!$A$2:$O$502,7,0)=0,"",VLOOKUP(M131,漢字読み!$A$2:$O$502,7,0))) -> る | N135: =IF(N131="","",IF(VLOOKUP(N131,漢字読み!$A$2:$O$502,7,0)=0,"",VLOOKUP(N131,漢字読み!$A$2:$O$502,7,0))) ->  | O135: =IF(O131="","",IF(VLOOKUP(O131,漢字読み!$A$2:$O$502,7,0)=0,"",VLOOKUP(O131,漢字読み!$A$2:$O$502,7,0))) ->  | P135: =IF(P131="","",IF(VLOOKUP(P131,漢字読み!$A$2:$O$502,7,0)=0,"",VLOOKUP(P131,漢字読み!$A$2:$O$502,7,0))) ->  | Q135: =IF(Q131="","",IF(VLOOKUP(Q131,漢字読み!$A$2:$O$502,7,0)=0,"",VLOOKUP(Q131,漢字読み!$A$2:$O$502,7,0))) ->  | R135: =IF(R131="","",IF(VLOOKUP(R131,漢字読み!$A$2:$O$502,7,0)=0,"",VLOOKUP(R131,漢字読み!$A$2:$O$502,7,0))) -> する | S135: =IF(S131="","",IF(VLOOKUP(S131,漢字読み!$A$2:$O$502,7,0)=0,"",VLOOKUP(S131,漢字読み!$A$2:$O$502,7,0))) -> な | T135: =IF(T131="","",IF(VLOOKUP(T131,漢字読み!$A$2:$O$502,7,0)=0,"",VLOOKUP(T131,漢字読み!$A$2:$O$502,7,0))) ->  | W135: 和歌山県教育委員会
A136: =A126 -> 103 | B136: 29 | C136: 52 | D136: 184 | E136: 164 | F136: 183 | G136: 28 | H136: 46 | I136: 57 | J136: 146 | K136: 163 | L136: 177 | M136: 44 | N136: 75 | O136: 93 | P136: 198 | Q136: 60 | R136: 57 | S136: 210 | T136: 51
A137: ⑳ | B137: ⑲ | C137: ⑱ | D137: ⑰ | E137: ⑯ | F137: ⑮ | G137: ⑭ | H137: ⑬ | I137: ⑫ | J137: ⑪ | K137: ⑩ | L137: ⑨ | M137: ⑧ | N137: ⑦ | O137: ⑥ | P137: ⑤ | Q137: ④ | R137: ③ | S137: ② | T137: ① | U137: 次の［ ］の部分の漢字には読みがなをひらがなで書き、カタカナは漢字に直しなさい。 | V137: 10 | W137: 「漢字の博士検定試験」練習問題
A138: =IF(A136="","",VLOOKUP(A136,漢字書き!$A$2:$N$506,6,0)) -> ノートを［カ］りる | B138: =IF(B136="","",VLOOKUP(B136,漢字書き!$A$2:$N$506,6,0)) -> かぜで［ケッセキ］する | C138: =IF(C136="","",VLOOKUP(C136,漢字書き!$A$2:$N$506,6,0)) -> ［ケンコウ］にすごす | D138: =IF(D136="","",VLOOKUP(D136,漢字書き!$A$2:$N$506,6,0)) -> ［シソン］を残す | E138: =IF(E136="","",VLOOKUP(E136,漢字書き!$A$2:$N$506,6,0)) -> 日が［アサ］い | F138: =IF(F136="","",VLOOKUP(F136,漢字書き!$A$2:$N$506,6,0)) -> ［ソツギョウシキ］に出る | G138: =IF(G136="","",VLOOKUP(G136,漢字書き!$A$2:$N$506,6,0)) -> ［ゲイ］は身を助ける | H138: =IF(H136="","",VLOOKUP(H136,漢字書き!$A$2:$N$506,6,0)) -> 大［コウブツ］のカレー | I138: =IF(I136="","",VLOOKUP(I136,漢字書き!$A$2:$N$506,6,0)) -> ［ヤサイ］を作る | J138: =IF(J136="","",VLOOKUP(J136,漢字書き!$A$2:$N$506,6,0)) -> ［セイデンキ］が起こる | K138: =IF(K136="","",VLOOKUP(K136,漢字読み!$A$2:$O$506,6,0)) -> ［小説］を読む | L138: =IF(L136="","",VLOOKUP(L136,漢字読み!$A$2:$O$506,6,0)) -> [巣立]ちの時がくる | M138: =IF(M136="","",VLOOKUP(M136,漢字読み!$A$2:$O$506,6,0)) -> ［固］い友情 | N138: =IF(N136="","",VLOOKUP(N136,漢字読み!$A$2:$O$506,6,0)) -> 大会に［参加］する | O138: =IF(O136="","",VLOOKUP(O136,漢字読み!$A$2:$O$506,6,0)) -> ケーキを[試作]する | P138: =IF(P136="","",VLOOKUP(P136,漢字読み!$A$2:$O$506,6,0)) -> 字が［上達］する | Q138: =IF(Q136="","",VLOOKUP(Q136,漢字読み!$A$2:$O$506,6,0)) -> ［菜］の花畑で遊ぶ | R138: =IF(R136="","",VLOOKUP(R136,漢字読み!$A$2:$O$506,6,0)) -> ［交差］点をわたる | S138: =IF(S136="","",VLOOKUP(S136,漢字読み!$A$2:$O$506,6,0)) -> ［縄］とびをする | T138: =IF(T136="","",VLOOKUP(T136,漢字読み!$A$2:$O$506,6,0)) -> ［沖縄県］産のフルーツ | V138: 級
A139: =IF(A$16="","",VLOOKUP(A136,漢字書き!$A$2:$O$506,8,0)) -> 借 | B139: =IF(B$16="","",VLOOKUP(B136,漢字書き!$A$2:$O$506,8,0)) -> 欠席 | C139: =IF(C$16="","",VLOOKUP(C136,漢字書き!$A$2:$O$506,8,0)) -> 健康 | D139: =IF(D$16="","",VLOOKUP(D136,漢字書き!$A$2:$O$506,8,0)) -> 子孫 | E139: =IF(E$16="","",VLOOKUP(E136,漢字書き!$A$2:$O$506,8,0)) -> 浅 | F139: =IF(F$16="","",VLOOKUP(F136,漢字書き!$A$2:$O$506,8,0)) -> 卒業式 | G139: =IF(G$16="","",VLOOKUP(G136,漢字書き!$A$2:$O$506,8,0)) -> 芸 | H139: =IF(H$16="","",VLOOKUP(H136,漢字書き!$A$2:$O$506,8,0)) -> 好物 | I139: =IF(I$16="","",VLOOKUP(I136,漢字書き!$A$2:$O$506,8,0)) -> 野菜 | J139: =IF(J$16="","",VLOOKUP(J136,漢字書き!$A$2:$O$506,8,0)) -> 静電気 | K139: =IF(K$16="","",VLOOKUP(K136,漢字読み!$A$2:$O$506,8,0)) -> しょうせつ | L139: =IF(L$16="","",VLOOKUP(L136,漢字読み!$A$2:$O$506,8,0)) -> すだ | M139: =IF(M$16="","",VLOOKUP(M136,漢字読み!$A$2:$O$506,8,0)) -> かた | N139: =IF(N$16="","",VLOOKUP(N136,漢字読み!$A$2:$O$506,8,0)) -> さんか | O139: =IF(O$16="","",VLOOKUP(O136,漢字読み!$A$2:$O$506,8,0)) -> しさく | P139: =IF(P$16="","",VLOOKUP(P136,漢字読み!$A$2:$O$506,8,0)) -> じょうたつ | Q139: =IF(Q$16="","",VLOOKUP(Q136,漢字読み!$A$2:$O$506,8,0)) -> な | R139: =IF(R$16="","",VLOOKUP(R136,漢字読み!$A$2:$O$506,8,0)) -> こうさ | S139: =IF(S$16="","",VLOOKUP(S136,漢字読み!$A$2:$O$506,8,0)) -> なわ | T139: =IF(T$16="","",VLOOKUP(T136,漢字読み!$A$2:$O$506,8,0)) -> おきなわけん | V139: 名前
A140: =IF(A136="","",IF(VLOOKUP(A136,漢字書き!$A$2:$N$502,7,0)=0,"",VLOOKUP(A136,漢字書き!$A$2:$N$502,7,0))) -> りる | B140: =IF(B136="","",IF(VLOOKUP(B136,漢字書き!$A$2:$N$502,7,0)=0,"",VLOOKUP(B136,漢字書き!$A$2:$N$502,7,0))) -> する | C140: =IF(C136="","",IF(VLOOKUP(C136,漢字書き!$A$2:$N$502,7,0)=0,"",VLOOKUP(C136,漢字書き!$A$2:$N$502,7,0))) ->  | D140: =IF(D136="","",IF(VLOOKUP(D136,漢字書き!$A$2:$N$502,7,0)=0,"",VLOOKUP(D136,漢字書き!$A$2:$N$502,7,0))) ->  | E140: =IF(E136="","",IF(VLOOKUP(E136,漢字書き!$A$2:$N$502,7,0)=0,"",VLOOKUP(E136,漢字書き!$A$2:$N$502,7,0))) -> い | F140: =IF(F136="","",IF(VLOOKUP(F136,漢字書き!$A$2:$N$502,7,0)=0,"",VLOOKUP(F136,漢字書き!$A$2:$N$502,7,0))) ->  | G140: =IF(G136="","",IF(VLOOKUP(G136,漢字書き!$A$2:$N$502,7,0)=0,"",VLOOKUP(G136,漢字書き!$A$2:$N$502,7,0))) ->  | H140: =IF(H136="","",IF(VLOOKUP(H136,漢字書き!$A$2:$N$502,7,0)=0,"",VLOOKUP(H136,漢字書き!$A$2:$N$502,7,0))) ->  | I140: =IF(I136="","",IF(VLOOKUP(I136,漢字書き!$A$2:$N$502,7,0)=0,"",VLOOKUP(I136,漢字書き!$A$2:$N$502,7,0))) ->  | J140: =IF(J136="","",IF(VLOOKUP(J136,漢字書き!$A$2:$N$502,7,0)=0,"",VLOOKUP(J136,漢字書き!$A$2:$N$502,7,0))) ->  | K140: =IF(K136="","",IF(VLOOKUP(K136,漢字読み!$A$2:$O$502,7,0)=0,"",VLOOKUP(K136,漢字読み!$A$2:$O$502,7,0))) ->  | L140: =IF(L136="","",IF(VLOOKUP(L136,漢字読み!$A$2:$O$502,7,0)=0,"",VLOOKUP(L136,漢字読み!$A$2:$O$502,7,0))) -> ち | M140: =IF(M136="","",IF(VLOOKUP(M136,漢字読み!$A$2:$O$502,7,0)=0,"",VLOOKUP(M136,漢字読み!$A$2:$O$502,7,0))) -> い | N140: =IF(N136="","",IF(VLOOKUP(N136,漢字読み!$A$2:$O$502,7,0)=0,"",VLOOKUP(N136,漢字読み!$A$2:$O$502,7,0))) -> する | O140: =IF(O136="","",IF(VLOOKUP(O136,漢字読み!$A$2:$O$502,7,0)=0,"",VLOOKUP(O136,漢字読み!$A$2:$O$502,7,0))) -> する | P140: =IF(P136="","",IF(VLOOKUP(P136,漢字読み!$A$2:$O$502,7,0)=0,"",VLOOKUP(P136,漢字読み!$A$2:$O$502,7,0))) -> する | Q140: =IF(Q136="","",IF(VLOOKUP(Q136,漢字読み!$A$2:$O$502,7,0)=0,"",VLOOKUP(Q136,漢字読み!$A$2:$O$502,7,0))) ->  | R140: =IF(R136="","",IF(VLOOKUP(R136,漢字読み!$A$2:$O$502,7,0)=0,"",VLOOKUP(R136,漢字読み!$A$2:$O$502,7,0))) -> 点 | S140: =IF(S136="","",IF(VLOOKUP(S136,漢字読み!$A$2:$O$502,7,0)=0,"",VLOOKUP(S136,漢字読み!$A$2:$O$502,7,0))) -> とび | T140: =IF(T136="","",IF(VLOOKUP(T136,漢字読み!$A$2:$O$502,7,0)=0,"",VLOOKUP(T136,漢字読み!$A$2:$O$502,7,0))) ->  | W140: 和歌山県教育委員会
A141: =INDIRECT("'関数（書き）'!C" & COLUMN(B$1)+SUM($AD$2:$AD142)) -> 127 | B141: =INDIRECT("'関数（書き）'!C" & COLUMN(C$1)+SUM($AD$2:$AD142)) -> 77 | C141: =INDIRECT("'関数（書き）'!C" & COLUMN(D$1)+SUM($AD$2:$AD142)) -> 43 | D141: =INDIRECT("'関数（書き）'!C" & COLUMN(E$1)+SUM($AD$2:$AD142)) -> 209 | E141: =INDIRECT("'関数（書き）'!C" & COLUMN(F$1)+SUM($AD$2:$AD142)) -> 208 | F141: =INDIRECT("'関数（書き）'!C" & COLUMN(G$1)+SUM($AD$2:$AD142)) -> 24 | G141: =INDIRECT("'関数（書き）'!C" & COLUMN(H$1)+SUM($AD$2:$AD142)) -> 186 | H141: =INDIRECT("'関数（書き）'!C" & COLUMN(I$1)+SUM($AD$2:$AD142)) -> 157 | I141: =INDIRECT("'関数（書き）'!C" & COLUMN(J$1)+SUM($AD$2:$AD142)) -> 16 | J141: =INDIRECT("'関数（書き）'!C" & COLUMN(K$1)+SUM($AD$2:$AD142)) -> 141 | K141: =INDIRECT("'関数（読み）'!C" & COLUMN(B$1)+SUM($AD$2:$AD142)) -> 14 | L141: =INDIRECT("'関数（読み）'!C" & COLUMN(C$1)+SUM($AD$2:$AD142)) -> 107 | M141: =INDIRECT("'関数（読み）'!C" & COLUMN(D$1)+SUM($AD$2:$AD142)) -> 205 | N141: =INDIRECT("'関数（読み）'!C" & COLUMN(E$1)+SUM($AD$2:$AD142)) -> 99 | O141: =INDIRECT("'関数（読み）'!C" & COLUMN(F$1)+SUM($AD$2:$AD142)) -> 58 | P141: =INDIRECT("'関数（読み）'!C" & COLUMN(G$1)+SUM($AD$2:$AD142)) -> 155 | Q141: =INDIRECT("'関数（読み）'!C" & COLUMN(H$1)+SUM($AD$2:$AD142)) -> 190 | R141: =INDIRECT("'関数（読み）'!C" & COLUMN(I$1)+SUM($AD$2:$AD142)) -> 88 | S141: =INDIRECT("'関数（読み）'!C" & COLUMN(J$1)+SUM($AD$2:$AD142)) -> 180 | T141: =INDIRECT("'関数（読み）'!C" & COLUMN(K$1)+SUM($AD$2:$AD142)) -> 164
A142: ⑳ | B142: ⑲ | C142: ⑱ | D142: ⑰ | E142: ⑯ | F142: ⑮ | G142: ⑭ | H142: ⑬ | I142: ⑫ | J142: ⑪ | K142: ⑩ | L142: ⑨ | M142: ⑧ | N142: ⑦ | O142: ⑥ | P142: ⑤ | Q142: ④ | R142: ③ | S142: ② | T142: ① | U142: 次の［ ］の部分の漢字には読みがなをひらがなで書き、カタカナは漢字に直しなさい。 | V142: 10 | W142: 「漢字の博士検定試験」練習問題 | AC142: ← | AD142: 10 | AE142: 問 | AF142: =AH127+1 -> 141 | AG142: ～ | AH142: =SUM($AD$2:$AD142)+10 -> 150 | AI142: 問まで | AJ142: =COUNTIF($A$1:$T$200,T143) -> 2
A143: =IF(A141="","",VLOOKUP(A141,漢字書き!$A$2:$N$506,6,0)) -> ［ニッショウ］時間 | B143: =IF(B141="","",VLOOKUP(B141,漢字書き!$A$2:$N$506,6,0)) -> 和歌山[サン]の米 | C143: =IF(C141="","",VLOOKUP(C141,漢字書き!$A$2:$N$506,6,0)) -> 土を［カタ］める | D143: =IF(D141="","",VLOOKUP(D141,漢字書き!$A$2:$N$506,6,0)) -> [フクイケン]の名物 | E143: =IF(E141="","",VLOOKUP(E141,漢字書き!$A$2:$N$506,6,0)) -> [サイタマケン]に行く | F143: =IF(F141="","",VLOOKUP(F141,漢字書き!$A$2:$N$506,6,0)) -> ［ナ］き顔を見せない | G143: =IF(G141="","",VLOOKUP(G141,漢字書き!$A$2:$N$506,6,0)) -> ねっ［タイ］地方 | H143: =IF(H141="","",VLOOKUP(H141,漢字書き!$A$2:$N$506,6,0)) -> ［セツブン］に豆をまく | I143: =IF(I141="","",VLOOKUP(I141,漢字書き!$A$2:$N$506,6,0)) -> ［キョク］たんな意見 | J143: =IF(J141="","",VLOOKUP(J141,漢字書き!$A$2:$N$506,6,0)) -> [ショウ]エネルギー | K143: =IF(K141="","",VLOOKUP(K141,漢字読み!$A$2:$O$506,6,0)) -> ［鏡］を見る | L143: =IF(L141="","",VLOOKUP(L141,漢字読み!$A$2:$O$506,6,0)) -> 大会の［種目］ | M143: =IF(M141="","",VLOOKUP(M141,漢字読み!$A$2:$O$506,6,0)) -> ［佐賀県］の祭り | N143: =IF(N141="","",VLOOKUP(N141,漢字読み!$A$2:$O$506,6,0)) -> 病気を［治］す | O143: =IF(O141="","",VLOOKUP(O141,漢字読み!$A$2:$O$506,6,0)) -> 夕日が［差］す | P143: =IF(P141="","",VLOOKUP(P141,漢字読み!$A$2:$O$506,6,0)) -> ［折角］だが留守だ | Q143: =IF(Q141="","",VLOOKUP(Q141,漢字読み!$A$2:$O$506,6,0)) -> ［子孫］を残す | R143: =IF(R141="","",VLOOKUP(R141,漢字読み!$A$2:$O$506,6,0)) -> [平氏]が栄える | S143: =IF(S141="","",VLOOKUP(S141,漢字読み!$A$2:$O$506,6,0)) -> ［二束］三文のねだん | T143: =IF(T141="","",VLOOKUP(T141,漢字読み!$A$2:$O$506,6,0)) -> 子どもに教えを［説］く | V143: 級
V144: 名前
A145: =IF(A141="","",IF(VLOOKUP(A141,漢字書き!$A$2:$N$502,7,0)=0,"",VLOOKUP(A141,漢字書き!$A$2:$N$502,7,0))) ->  | B145: =IF(B141="","",IF(VLOOKUP(B141,漢字書き!$A$2:$N$502,7,0)=0,"",VLOOKUP(B141,漢字書き!$A$2:$N$502,7,0))) ->  | C145: =IF(C141="","",IF(VLOOKUP(C141,漢字書き!$A$2:$N$502,7,0)=0,"",VLOOKUP(C141,漢字書き!$A$2:$N$502,7,0))) -> める | D145: =IF(D141="","",IF(VLOOKUP(D141,漢字書き!$A$2:$N$502,7,0)=0,"",VLOOKUP(D141,漢字書き!$A$2:$N$502,7,0))) ->  | E145: =IF(E141="","",IF(VLOOKUP(E141,漢字書き!$A$2:$N$502,7,0)=0,"",VLOOKUP(E141,漢字書き!$A$2:$N$502,7,0))) ->  | F145: =IF(F141="","",IF(VLOOKUP(F141,漢字書き!$A$2:$N$502,7,0)=0,"",VLOOKUP(F141,漢字書き!$A$2:$N$502,7,0))) -> き顔 | G145: =IF(G141="","",IF(VLOOKUP(G141,漢字書き!$A$2:$N$502,7,0)=0,"",VLOOKUP(G141,漢字書き!$A$2:$N$502,7,0))) ->  | H145: =IF(H141="","",IF(VLOOKUP(H141,漢字書き!$A$2:$N$502,7,0)=0,"",VLOOKUP(H141,漢字書き!$A$2:$N$502,7,0))) ->  | I145: =IF(I141="","",IF(VLOOKUP(I141,漢字書き!$A$2:$N$502,7,0)=0,"",VLOOKUP(I141,漢字書き!$A$2:$N$502,7,0))) -> たんな | J145: =IF(J141="","",IF(VLOOKUP(J141,漢字書き!$A$2:$N$502,7,0)=0,"",VLOOKUP(J141,漢字書き!$A$2:$N$502,7,0))) -> エネルギー | K145: =IF(K141="","",IF(VLOOKUP(K141,漢字読み!$A$2:$O$502,7,0)=0,"",VLOOKUP(K141,漢字読み!$A$2:$O$502,7,0))) ->  | L145: =IF(L141="","",IF(VLOOKUP(L141,漢字読み!$A$2:$O$502,7,0)=0,"",VLOOKUP(L141,漢字読み!$A$2:$O$502,7,0))) ->  | M145: =IF(M141="","",IF(VLOOKUP(M141,漢字読み!$A$2:$O$502,7,0)=0,"",VLOOKUP(M141,漢字読み!$A$2:$O$502,7,0))) ->  | N145: =IF(N141="","",IF(VLOOKUP(N141,漢字読み!$A$2:$O$502,7,0)=0,"",VLOOKUP(N141,漢字読み!$A$2:$O$502,7,0))) -> す | O145: =IF(O141="","",IF(VLOOKUP(O141,漢字読み!$A$2:$O$502,7,0)=0,"",VLOOKUP(O141,漢字読み!$A$2:$O$502,7,0))) -> す | P145: =IF(P141="","",IF(VLOOKUP(P141,漢字読み!$A$2:$O$502,7,0)=0,"",VLOOKUP(P141,漢字読み!$A$2:$O$502,7,0))) ->  | Q145: =IF(Q141="","",IF(VLOOKUP(Q141,漢字読み!$A$2:$O$502,7,0)=0,"",VLOOKUP(Q141,漢字読み!$A$2:$O$502,7,0))) ->  | R145: =IF(R141="","",IF(VLOOKUP(R141,漢字読み!$A$2:$O$502,7,0)=0,"",VLOOKUP(R141,漢字読み!$A$2:$O$502,7,0))) ->  | S145: =IF(S141="","",IF(VLOOKUP(S141,漢字読み!$A$2:$O$502,7,0)=0,"",VLOOKUP(S141,漢字読み!$A$2:$O$502,7,0))) ->  | T145: =IF(T141="","",IF(VLOOKUP(T141,漢字読み!$A$2:$O$502,7,0)=0,"",VLOOKUP(T141,漢字読み!$A$2:$O$502,7,0))) -> く | W145: 和歌山県教育委員会
A146: =INDIRECT("'関数（書き）'!C" & COLUMN(B$1)+SUM($AD$2:$AD147)) -> 156 | B146: =INDIRECT("'関数（書き）'!C" & COLUMN(C$1)+SUM($AD$2:$AD147)) -> 211 | C146: =INDIRECT("'関数（書き）'!C" & COLUMN(D$1)+SUM($AD$2:$AD147)) -> 87 | D146: =INDIRECT("'関数（書き）'!C" & COLUMN(E$1)+SUM($AD$2:$AD147)) -> 37 | E146: =INDIRECT("'関数（書き）'!C" & COLUMN(F$1)+SUM($AD$2:$AD147)) -> 83 | F146: =INDIRECT("'関数（書き）'!C" & COLUMN(G$1)+SUM($AD$2:$AD147)) -> 122 | G146: =INDIRECT("'関数（書き）'!C" & COLUMN(H$1)+SUM($AD$2:$AD147)) -> 131 | H146: =INDIRECT("'関数（書き）'!C" & COLUMN(I$1)+SUM($AD$2:$AD147)) -> 40 | I146: =INDIRECT("'関数（書き）'!C" & COLUMN(J$1)+SUM($AD$2:$AD147)) -> 15 | J146: =INDIRECT("'関数（書き）'!C" & COLUMN(K$1)+SUM($AD$2:$AD147)) -> 113 | K146: =INDIRECT("'関数（読み）'!C" & COLUMN(B$1)+SUM($AD$2:$AD147)) -> 187 | L146: =INDIRECT("'関数（読み）'!C" & COLUMN(C$1)+SUM($AD$2:$AD147)) -> 68 | M146: =INDIRECT("'関数（読み）'!C" & COLUMN(D$1)+SUM($AD$2:$AD147)) -> 157 | N146: =INDIRECT("'関数（読み）'!C" & COLUMN(E$1)+SUM($AD$2:$AD147)) -> 136 | O146: =INDIRECT("'関数（読み）'!C" & COLUMN(F$1)+SUM($AD$2:$AD147)) -> 203 | P146: =INDIRECT("'関数（読み）'!C" & COLUMN(G$1)+SUM($AD$2:$AD147)) -> 178 | Q146: =INDIRECT("'関数（読み）'!C" & COLUMN(H$1)+SUM($AD$2:$AD147)) -> 2 | R146: =INDIRECT("'関数（読み）'!C" & COLUMN(I$1)+SUM($AD$2:$AD147)) -> 215 | S146: =INDIRECT("'関数（読み）'!C" & COLUMN(J$1)+SUM($AD$2:$AD147)) -> 166 | T146: =INDIRECT("'関数（読み）'!C" & COLUMN(K$1)+SUM($AD$2:$AD147)) -> 196
A147: ⑳ | B147: ⑲ | C147: ⑱ | D147: ⑰ | E147: ⑯ | F147: ⑮ | G147: ⑭ | H147: ⑬ | I147: ⑫ | J147: ⑪ | K147: ⑩ | L147: ⑨ | M147: ⑧ | N147: ⑦ | O147: ⑥ | P147: ⑤ | Q147: ④ | R147: ③ | S147: ② | T147: ① | U147: 次の［ ］の部分の漢字には読みがなをひらがなで書き、カタカナは漢字に直しなさい。 | V147: 10 | W147: 「漢字の博士検定試験」練習問題 | AC147: ← | AD147: 10 | AE147: 問 | AF147: =AH142+1 -> 151 | AG147: ～ | AH147: =SUM($AD$2:$AD147)+10 -> 160 | AI147: 問まで | AJ147: =COUNTIF($A$1:$T$200,T148) -> 2
A148: =IF(A146="","",VLOOKUP(A146,漢字書き!$A$2:$N$506,6,0)) -> ［オ］り目をつける | B148: =IF(B146="","",VLOOKUP(B146,漢字書き!$A$2:$N$506,6,0)) -> [イ]の中のかわず | C148: =IF(C146="","",VLOOKUP(C146,漢字書き!$A$2:$N$506,6,0)) -> 野球の［シアイ］ | D148: =IF(D146="","",VLOOKUP(D146,漢字書き!$A$2:$N$506,6,0)) -> ［ケンゼン］な心 | E148: =IF(E146="","",VLOOKUP(E146,漢字書き!$A$2:$N$506,6,0)) -> ［シメイ］を記入する | F148: =IF(F146="","",VLOOKUP(F146,漢字書き!$A$2:$N$506,6,0)) -> こん声［ガッショウ］ | G148: =IF(G146="","",VLOOKUP(G146,漢字書き!$A$2:$N$506,6,0)) -> ほめられると［テ］れる | H148: =IF(H146="","",VLOOKUP(H146,漢字書き!$A$2:$N$506,6,0)) -> 理科の［ジッケン］ | I148: =IF(I146="","",VLOOKUP(I146,漢字書き!$A$2:$N$506,6,0)) -> ［ナンキョク］の氷 | J148: =IF(J146="","",VLOOKUP(J146,漢字書き!$A$2:$N$506,6,0)) -> ［ハジ］めてのけい験 | K148: =IF(K146="","",VLOOKUP(K146,漢字読み!$A$2:$O$506,6,0)) -> 道が［続］く | L148: =IF(L146="","",VLOOKUP(L146,漢字読み!$A$2:$O$506,6,0)) -> はがきの［印刷］ | M148: =IF(M146="","",VLOOKUP(M146,漢字読み!$A$2:$O$506,6,0)) -> [折]をみて話す | N148: =IF(N146="","",VLOOKUP(N146,漢字読み!$A$2:$O$506,6,0)) -> ［鹿児島県］産の肉 | O148: =IF(O146="","",VLOOKUP(O146,漢字読み!$A$2:$O$506,6,0)) -> 新しい［仲間］ | P148: =IF(P146="","",VLOOKUP(P146,漢字読み!$A$2:$O$506,6,0)) -> つばめの［巣］ | Q148: =IF(Q146="","",VLOOKUP(Q146,漢字読み!$A$2:$O$506,6,0)) -> 食べ物を［配給］する | R148: =IF(R146="","",VLOOKUP(R146,漢字読み!$A$2:$O$506,6,0)) -> 関東の［群馬県］ | S148: =IF(S146="","",VLOOKUP(S146,漢字読み!$A$2:$O$506,6,0)) -> ［作戦］をたてる | T148: =IF(T146="","",VLOOKUP(T146,漢字読み!$A$2:$O$506,6,0)) -> ［軍隊］に入る | V148: 級
V149: 名前
A150: =IF(A146="","",IF(VLOOKUP(A146,漢字書き!$A$2:$N$502,7,0)=0,"",VLOOKUP(A146,漢字書き!$A$2:$N$502,7,0))) -> り目 | B150: =IF(B146="","",IF(VLOOKUP(B146,漢字書き!$A$2:$N$502,7,0)=0,"",VLOOKUP(B146,漢字書き!$A$2:$N$502,7,0))) ->  | C150: =IF(C146="","",IF(VLOOKUP(C146,漢字書き!$A$2:$N$502,7,0)=0,"",VLOOKUP(C146,漢字書き!$A$2:$N$502,7,0))) ->  | D150: =IF(D146="","",IF(VLOOKUP(D146,漢字書き!$A$2:$N$502,7,0)=0,"",VLOOKUP(D146,漢字書き!$A$2:$N$502,7,0))) -> な | E150: =IF(E146="","",IF(VLOOKUP(E146,漢字書き!$A$2:$N$502,7,0)=0,"",VLOOKUP(E146,漢字書き!$A$2:$N$502,7,0))) ->  | F150: =IF(F146="","",IF(VLOOKUP(F146,漢字書き!$A$2:$N$502,7,0)=0,"",VLOOKUP(F146,漢字書き!$A$2:$N$502,7,0))) ->  | G150: =IF(G146="","",IF(VLOOKUP(G146,漢字書き!$A$2:$N$502,7,0)=0,"",VLOOKUP(G146,漢字書き!$A$2:$N$502,7,0))) -> れる | H150: =IF(H146="","",IF(VLOOKUP(H146,漢字書き!$A$2:$N$502,7,0)=0,"",VLOOKUP(H146,漢字書き!$A$2:$N$502,7,0))) ->  | I150: =IF(I146="","",IF(VLOOKUP(I146,漢字書き!$A$2:$N$502,7,0)=0,"",VLOOKUP(I146,漢字書き!$A$2:$N$502,7,0))) ->  | J150: =IF(J146="","",IF(VLOOKUP(J146,漢字書き!$A$2:$N$502,7,0)=0,"",VLOOKUP(J146,漢字書き!$A$2:$N$502,7,0))) -> めて | K150: =IF(K146="","",IF(VLOOKUP(K146,漢字読み!$A$2:$O$502,7,0)=0,"",VLOOKUP(K146,漢字読み!$A$2:$O$502,7,0))) -> く | L150: =IF(L146="","",IF(VLOOKUP(L146,漢字読み!$A$2:$O$502,7,0)=0,"",VLOOKUP(L146,漢字読み!$A$2:$O$502,7,0))) ->  | M150: =IF(M146="","",IF(VLOOKUP(M146,漢字読み!$A$2:$O$502,7,0)=0,"",VLOOKUP(M146,漢字読み!$A$2:$O$502,7,0))) ->  | N150: =IF(N146="","",IF(VLOOKUP(N146,漢字読み!$A$2:$O$502,7,0)=0,"",VLOOKUP(N146,漢字読み!$A$2:$O$502,7,0))) -> 産 | O150: =IF(O146="","",IF(VLOOKUP(O146,漢字読み!$A$2:$O$502,7,0)=0,"",VLOOKUP(O146,漢字読み!$A$2:$O$502,7,0))) ->  | P150: =IF(P146="","",IF(VLOOKUP(P146,漢字読み!$A$2:$O$502,7,0)=0,"",VLOOKUP(P146,漢字読み!$A$2:$O$502,7,0))) ->  | Q150: =IF(Q146="","",IF(VLOOKUP(Q146,漢字読み!$A$2:$O$502,7,0)=0,"",VLOOKUP(Q146,漢字読み!$A$2:$O$502,7,0))) -> する | R150: =IF(R146="","",IF(VLOOKUP(R146,漢字読み!$A$2:$O$502,7,0)=0,"",VLOOKUP(R146,漢字読み!$A$2:$O$502,7,0))) ->  | S150: =IF(S146="","",IF(VLOOKUP(S146,漢字読み!$A$2:$O$502,7,0)=0,"",VLOOKUP(S146,漢字読み!$A$2:$O$502,7,0))) ->  | T150: =IF(T146="","",IF(VLOOKUP(T146,漢字読み!$A$2:$O$502,7,0)=0,"",VLOOKUP(T146,漢字読み!$A$2:$O$502,7,0))) ->  | W150: 和歌山県教育委員会
A151: =A141 -> 127 | B151: 77 | C151: 43 | D151: 209 | E151: 208 | F151: 24 | G151: 186 | H151: 157 | I151: 16 | J151: 141 | K151: 14 | L151: 107 | M151: 205 | N151: 99 | O151: 58 | P151: 155 | Q151: 190 | R151: 88 | S151: 180 | T151: 164
A152: ⑳ | B152: ⑲ | C152: ⑱ | D152: ⑰ | E152: ⑯ | F152: ⑮ | G152: ⑭ | H152: ⑬ | I152: ⑫ | J152: ⑪ | K152: ⑩ | L152: ⑨ | M152: ⑧ | N152: ⑦ | O152: ⑥ | P152: ⑤ | Q152: ④ | R152: ③ | S152: ② | T152: ① | U152: 次の［ ］の部分の漢字には読みがなをひらがなで書き、カタカナは漢字に直しなさい。 | V152: 10 | W152: 「漢字の博士検定試験」練習問題
A153: =IF(A151="","",VLOOKUP(A151,漢字書き!$A$2:$N$506,6,0)) -> ［ニッショウ］時間 | B153: =IF(B151="","",VLOOKUP(B151,漢字書き!$A$2:$N$506,6,0)) -> 和歌山[サン]の米 | C153: =IF(C151="","",VLOOKUP(C151,漢字書き!$A$2:$N$506,6,0)) -> 土を［カタ］める | D153: =IF(D151="","",VLOOKUP(D151,漢字書き!$A$2:$N$506,6,0)) -> [フクイケン]の名物 | E153: =IF(E151="","",VLOOKUP(E151,漢字書き!$A$2:$N$506,6,0)) -> [サイタマケン]に行く | F153: =IF(F151="","",VLOOKUP(F151,漢字書き!$A$2:$N$506,6,0)) -> ［ナ］き顔を見せない | G153: =IF(G151="","",VLOOKUP(G151,漢字書き!$A$2:$N$506,6,0)) -> ねっ［タイ］地方 | H153: =IF(H151="","",VLOOKUP(H151,漢字書き!$A$2:$N$506,6,0)) -> ［セツブン］に豆をまく | I153: =IF(I151="","",VLOOKUP(I151,漢字書き!$A$2:$N$506,6,0)) -> ［キョク］たんな意見 | J153: =IF(J151="","",VLOOKUP(J151,漢字書き!$A$2:$N$506,6,0)) -> [ショウ]エネルギー | K153: =IF(K151="","",VLOOKUP(K151,漢字読み!$A$2:$O$506,6,0)) -> ［鏡］を見る | L153: =IF(L151="","",VLOOKUP(L151,漢字読み!$A$2:$O$506,6,0)) -> 大会の［種目］ | M153: =IF(M151="","",VLOOKUP(M151,漢字読み!$A$2:$O$506,6,0)) -> ［佐賀県］の祭り | N153: =IF(N151="","",VLOOKUP(N151,漢字読み!$A$2:$O$506,6,0)) -> 病気を［治］す | O153: =IF(O151="","",VLOOKUP(O151,漢字読み!$A$2:$O$506,6,0)) -> 夕日が［差］す | P153: =IF(P151="","",VLOOKUP(P151,漢字読み!$A$2:$O$506,6,0)) -> ［折角］だが留守だ | Q153: =IF(Q151="","",VLOOKUP(Q151,漢字読み!$A$2:$O$506,6,0)) -> ［子孫］を残す | R153: =IF(R151="","",VLOOKUP(R151,漢字読み!$A$2:$O$506,6,0)) -> [平氏]が栄える | S153: =IF(S151="","",VLOOKUP(S151,漢字読み!$A$2:$O$506,6,0)) -> ［二束］三文のねだん | T153: =IF(T151="","",VLOOKUP(T151,漢字読み!$A$2:$O$506,6,0)) -> 子どもに教えを［説］く | V153: 級
A154: =IF(A$11="","",VLOOKUP(A151,漢字書き!$A$2:$O$506,8,0)) -> 日照 | B154: =IF(B$11="","",VLOOKUP(B151,漢字書き!$A$2:$O$506,8,0)) -> 産 | C154: =IF(C$11="","",VLOOKUP(C151,漢字書き!$A$2:$O$506,8,0)) -> 固 | D154: =IF(D$11="","",VLOOKUP(D151,漢字書き!$A$2:$O$506,8,0)) -> 福井県 | E154: =IF(E$11="","",VLOOKUP(E151,漢字書き!$A$2:$O$506,8,0)) -> 埼玉県 | F154: =IF(F$11="","",VLOOKUP(F151,漢字書き!$A$2:$O$506,8,0)) -> 泣 | G154: =IF(G$11="","",VLOOKUP(G151,漢字書き!$A$2:$O$506,8,0)) -> 帯 | H154: =IF(H$11="","",VLOOKUP(H151,漢字書き!$A$2:$O$506,8,0)) -> 節分 | I154: =IF(I$11="","",VLOOKUP(I151,漢字書き!$A$2:$O$506,8,0)) -> 極 | J154: =IF(J$11="","",VLOOKUP(J151,漢字書き!$A$2:$O$506,8,0)) -> 省 | K154: =IF(K$11="","",VLOOKUP(K151,漢字読み!$A$2:$O$506,8,0)) -> かがみ | L154: =IF(L$11="","",VLOOKUP(L151,漢字読み!$A$2:$O$506,8,0)) -> しゅもく | M154: =IF(M$11="","",VLOOKUP(M151,漢字読み!$A$2:$O$506,8,0)) -> さがけん | N154: =IF(N$11="","",VLOOKUP(N151,漢字読み!$A$2:$O$506,8,0)) -> なお | O154: =IF(O$11="","",VLOOKUP(O151,漢字読み!$A$2:$O$506,8,0)) -> さ | P154: =IF(P$11="","",VLOOKUP(P151,漢字読み!$A$2:$O$506,8,0)) -> せっかく | Q154: =IF(Q$11="","",VLOOKUP(Q151,漢字読み!$A$2:$O$506,8,0)) -> しそん | R154: =IF(R$11="","",VLOOKUP(R151,漢字読み!$A$2:$O$506,8,0)) -> へいし | S154: =IF(S$11="","",VLOOKUP(S151,漢字読み!$A$2:$O$506,8,0)) -> にそく | T154: =IF(T$11="","",VLOOKUP(T151,漢字読み!$A$2:$O$506,8,0)) -> と | V154: 名前
A155: =IF(A151="","",IF(VLOOKUP(A151,漢字書き!$A$2:$N$502,7,0)=0,"",VLOOKUP(A151,漢字書き!$A$2:$N$502,7,0))) ->  | B155: =IF(B151="","",IF(VLOOKUP(B151,漢字書き!$A$2:$N$502,7,0)=0,"",VLOOKUP(B151,漢字書き!$A$2:$N$502,7,0))) ->  | C155: =IF(C151="","",IF(VLOOKUP(C151,漢字書き!$A$2:$N$502,7,0)=0,"",VLOOKUP(C151,漢字書き!$A$2:$N$502,7,0))) -> める | D155: =IF(D151="","",IF(VLOOKUP(D151,漢字書き!$A$2:$N$502,7,0)=0,"",VLOOKUP(D151,漢字書き!$A$2:$N$502,7,0))) ->  | E155: =IF(E151="","",IF(VLOOKUP(E151,漢字書き!$A$2:$N$502,7,0)=0,"",VLOOKUP(E151,漢字書き!$A$2:$N$502,7,0))) ->  | F155: =IF(F151="","",IF(VLOOKUP(F151,漢字書き!$A$2:$N$502,7,0)=0,"",VLOOKUP(F151,漢字書き!$A$2:$N$502,7,0))) -> き顔 | G155: =IF(G151="","",IF(VLOOKUP(G151,漢字書き!$A$2:$N$502,7,0)=0,"",VLOOKUP(G151,漢字書き!$A$2:$N$502,7,0))) ->  | H155: =IF(H151="","",IF(VLOOKUP(H151,漢字書き!$A$2:$N$502,7,0)=0,"",VLOOKUP(H151,漢字書き!$A$2:$N$502,7,0))) ->  | I155: =IF(I151="","",IF(VLOOKUP(I151,漢字書き!$A$2:$N$502,7,0)=0,"",VLOOKUP(I151,漢字書き!$A$2:$N$502,7,0))) -> たんな | J155: =IF(J151="","",IF(VLOOKUP(J151,漢字書き!$A$2:$N$502,7,0)=0,"",VLOOKUP(J151,漢字書き!$A$2:$N$502,7,0))) -> エネルギー | K155: =IF(K151="","",IF(VLOOKUP(K151,漢字読み!$A$2:$O$502,7,0)=0,"",VLOOKUP(K151,漢字読み!$A$2:$O$502,7,0))) ->  | L155: =IF(L151="","",IF(VLOOKUP(L151,漢字読み!$A$2:$O$502,7,0)=0,"",VLOOKUP(L151,漢字読み!$A$2:$O$502,7,0))) ->  | M155: =IF(M151="","",IF(VLOOKUP(M151,漢字読み!$A$2:$O$502,7,0)=0,"",VLOOKUP(M151,漢字読み!$A$2:$O$502,7,0))) ->  | N155: =IF(N151="","",IF(VLOOKUP(N151,漢字読み!$A$2:$O$502,7,0)=0,"",VLOOKUP(N151,漢字読み!$A$2:$O$502,7,0))) -> す | O155: =IF(O151="","",IF(VLOOKUP(O151,漢字読み!$A$2:$O$502,7,0)=0,"",VLOOKUP(O151,漢字読み!$A$2:$O$502,7,0))) -> す | P155: =IF(P151="","",IF(VLOOKUP(P151,漢字読み!$A$2:$O$502,7,0)=0,"",VLOOKUP(P151,漢字読み!$A$2:$O$502,7,0))) ->  | Q155: =IF(Q151="","",IF(VLOOKUP(Q151,漢字読み!$A$2:$O$502,7,0)=0,"",VLOOKUP(Q151,漢字読み!$A$2:$O$502,7,0))) ->  | R155: =IF(R151="","",IF(VLOOKUP(R151,漢字読み!$A$2:$O$502,7,0)=0,"",VLOOKUP(R151,漢字読み!$A$2:$O$502,7,0))) ->  | S155: =IF(S151="","",IF(VLOOKUP(S151,漢字読み!$A$2:$O$502,7,0)=0,"",VLOOKUP(S151,漢字読み!$A$2:$O$502,7,0))) ->  | T155: =IF(T151="","",IF(VLOOKUP(T151,漢字読み!$A$2:$O$502,7,0)=0,"",VLOOKUP(T151,漢字読み!$A$2:$O$502,7,0))) -> く | W155: 和歌山県教育委員会
A156: =A146 -> 156 | B156: 211 | C156: 87 | D156: 37 | E156: 83 | F156: 122 | G156: 131 | H156: 40 | I156: 15 | J156: 113 | K156: 187 | L156: 68 | M156: 157 | N156: 136 | O156: 203 | P156: 178 | Q156: 2 | R156: 215 | S156: 166 | T156: 196
A157: ⑳ | B157: ⑲ | C157: ⑱ | D157: ⑰ | E157: ⑯ | F157: ⑮ | G157: ⑭ | H157: ⑬ | I157: ⑫ | J157: ⑪ | K157: ⑩ | L157: ⑨ | M157: ⑧ | N157: ⑦ | O157: ⑥ | P157: ⑤ | Q157: ④ | R157: ③ | S157: ② | T157: ① | U157: 次の［ ］の部分の漢字には読みがなをひらがなで書き、カタカナは漢字に直しなさい。 | V157: 10 | W157: 「漢字の博士検定試験」練習問題
A158: =IF(A156="","",VLOOKUP(A156,漢字書き!$A$2:$N$506,6,0)) -> ［オ］り目をつける | B158: =IF(B156="","",VLOOKUP(B156,漢字書き!$A$2:$N$506,6,0)) -> [イ]の中のかわず | C158: =IF(C156="","",VLOOKUP(C156,漢字書き!$A$2:$N$506,6,0)) -> 野球の［シアイ］ | D158: =IF(D156="","",VLOOKUP(D156,漢字書き!$A$2:$N$506,6,0)) -> ［ケンゼン］な心 | E158: =IF(E156="","",VLOOKUP(E156,漢字書き!$A$2:$N$506,6,0)) -> ［シメイ］を記入する | F158: =IF(F156="","",VLOOKUP(F156,漢字書き!$A$2:$N$506,6,0)) -> こん声［ガッショウ］ | G158: =IF(G156="","",VLOOKUP(G156,漢字書き!$A$2:$N$506,6,0)) -> ほめられると［テ］れる | H158: =IF(H156="","",VLOOKUP(H156,漢字書き!$A$2:$N$506,6,0)) -> 理科の［ジッケン］ | I158: =IF(I156="","",VLOOKUP(I156,漢字書き!$A$2:$N$506,6,0)) -> ［ナンキョク］の氷 | J158: =IF(J156="","",VLOOKUP(J156,漢字書き!$A$2:$N$506,6,0)) -> ［ハジ］めてのけい験 | K158: =IF(K156="","",VLOOKUP(K156,漢字読み!$A$2:$O$506,6,0)) -> 道が［続］く | L158: =IF(L156="","",VLOOKUP(L156,漢字読み!$A$2:$O$506,6,0)) -> はがきの［印刷］ | M158: =IF(M156="","",VLOOKUP(M156,漢字読み!$A$2:$O$506,6,0)) -> [折]をみて話す | N158: =IF(N156="","",VLOOKUP(N156,漢字読み!$A$2:$O$506,6,0)) -> ［鹿児島県］産の肉 | O158: =IF(O156="","",VLOOKUP(O156,漢字読み!$A$2:$O$506,6,0)) -> 新しい［仲間］ | P158: =IF(P156="","",VLOOKUP(P156,漢字読み!$A$2:$O$506,6,0)) -> つばめの［巣］ | Q158: =IF(Q156="","",VLOOKUP(Q156,漢字読み!$A$2:$O$506,6,0)) -> 食べ物を［配給］する | R158: =IF(R156="","",VLOOKUP(R156,漢字読み!$A$2:$O$506,6,0)) -> 関東の［群馬県］ | S158: =IF(S156="","",VLOOKUP(S156,漢字読み!$A$2:$O$506,6,0)) -> ［作戦］をたてる | T158: =IF(T156="","",VLOOKUP(T156,漢字読み!$A$2:$O$506,6,0)) -> ［軍隊］に入る | V158: 級
A159: =IF(A$16="","",VLOOKUP(A156,漢字書き!$A$2:$O$506,8,0)) -> 折 | B159: =IF(B$16="","",VLOOKUP(B156,漢字書き!$A$2:$O$506,8,0)) -> 井 | C159: =IF(C$16="","",VLOOKUP(C156,漢字書き!$A$2:$O$506,8,0)) -> 試合 | D159: =IF(D$16="","",VLOOKUP(D156,漢字書き!$A$2:$O$506,8,0)) -> 健全 | E159: =IF(E$16="","",VLOOKUP(E156,漢字書き!$A$2:$O$506,8,0)) -> 氏名 | F159: =IF(F$16="","",VLOOKUP(F156,漢字書き!$A$2:$O$506,8,0)) -> 合唱 | G159: =IF(G$16="","",VLOOKUP(G156,漢字書き!$A$2:$O$506,8,0)) -> 照 | H159: =IF(H$16="","",VLOOKUP(H156,漢字書き!$A$2:$O$506,8,0)) -> 実験 | I159: =IF(I$16="","",VLOOKUP(I156,漢字書き!$A$2:$O$506,8,0)) -> 南極 | J159: =IF(J$16="","",VLOOKUP(J156,漢字書き!$A$2:$O$506,8,0)) -> 初 | K159: =IF(K$16="","",VLOOKUP(K156,漢字読み!$A$2:$O$506,8,0)) -> つづ | L159: =IF(L$16="","",VLOOKUP(L156,漢字読み!$A$2:$O$506,8,0)) -> いんさつ | M159: =IF(M$16="","",VLOOKUP(M156,漢字読み!$A$2:$O$506,8,0)) -> おり | N159: =IF(N$16="","",VLOOKUP(N156,漢字読み!$A$2:$O$506,8,0)) -> かごしまけん | O159: =IF(O$16="","",VLOOKUP(O156,漢字読み!$A$2:$O$506,8,0)) -> なかま | P159: =IF(P$16="","",VLOOKUP(P156,漢字読み!$A$2:$O$506,8,0)) -> す | Q159: =IF(Q$16="","",VLOOKUP(Q156,漢字読み!$A$2:$O$506,8,0)) -> はいきゅう | R159: =IF(R$16="","",VLOOKUP(R156,漢字読み!$A$2:$O$506,8,0)) -> ぐんまけん | S159: =IF(S$16="","",VLOOKUP(S156,漢字読み!$A$2:$O$506,8,0)) -> せくせん | T159: =IF(T$16="","",VLOOKUP(T156,漢字読み!$A$2:$O$506,8,0)) -> ぐんたい | V159: 名前
A160: =IF(A156="","",IF(VLOOKUP(A156,漢字書き!$A$2:$N$502,7,0)=0,"",VLOOKUP(A156,漢字書き!$A$2:$N$502,7,0))) -> り目 | B160: =IF(B156="","",IF(VLOOKUP(B156,漢字書き!$A$2:$N$502,7,0)=0,"",VLOOKUP(B156,漢字書き!$A$2:$N$502,7,0))) ->  | C160: =IF(C156="","",IF(VLOOKUP(C156,漢字書き!$A$2:$N$502,7,0)=0,"",VLOOKUP(C156,漢字書き!$A$2:$N$502,7,0))) ->  | D160: =IF(D156="","",IF(VLOOKUP(D156,漢字書き!$A$2:$N$502,7,0)=0,"",VLOOKUP(D156,漢字書き!$A$2:$N$502,7,0))) -> な | E160: =IF(E156="","",IF(VLOOKUP(E156,漢字書き!$A$2:$N$502,7,0)=0,"",VLOOKUP(E156,漢字書き!$A$2:$N$502,7,0))) ->  | F160: =IF(F156="","",IF(VLOOKUP(F156,漢字書き!$A$2:$N$502,7,0)=0,"",VLOOKUP(F156,漢字書き!$A$2:$N$502,7,0))) ->  | G160: =IF(G156="","",IF(VLOOKUP(G156,漢字書き!$A$2:$N$502,7,0)=0,"",VLOOKUP(G156,漢字書き!$A$2:$N$502,7,0))) -> れる | H160: =IF(H156="","",IF(VLOOKUP(H156,漢字書き!$A$2:$N$502,7,0)=0,"",VLOOKUP(H156,漢字書き!$A$2:$N$502,7,0))) ->  | I160: =IF(I156="","",IF(VLOOKUP(I156,漢字書き!$A$2:$N$502,7,0)=0,"",VLOOKUP(I156,漢字書き!$A$2:$N$502,7,0))) ->  | J160: =IF(J156="","",IF(VLOOKUP(J156,漢字書き!$A$2:$N$502,7,0)=0,"",VLOOKUP(J156,漢字書き!$A$2:$N$502,7,0))) -> めて | K160: =IF(K156="","",IF(VLOOKUP(K156,漢字読み!$A$2:$O$502,7,0)=0,"",VLOOKUP(K156,漢字読み!$A$2:$O$502,7,0))) -> く | L160: =IF(L156="","",IF(VLOOKUP(L156,漢字読み!$A$2:$O$502,7,0)=0,"",VLOOKUP(L156,漢字読み!$A$2:$O$502,7,0))) ->  | M160: =IF(M156="","",IF(VLOOKUP(M156,漢字読み!$A$2:$O$502,7,0)=0,"",VLOOKUP(M156,漢字読み!$A$2:$O$502,7,0))) ->  | N160: =IF(N156="","",IF(VLOOKUP(N156,漢字読み!$A$2:$O$502,7,0)=0,"",VLOOKUP(N156,漢字読み!$A$2:$O$502,7,0))) -> 産 | O160: =IF(O156="","",IF(VLOOKUP(O156,漢字読み!$A$2:$O$502,7,0)=0,"",VLOOKUP(O156,漢字読み!$A$2:$O$502,7,0))) ->  | P160: =IF(P156="","",IF(VLOOKUP(P156,漢字読み!$A$2:$O$502,7,0)=0,"",VLOOKUP(P156,漢字読み!$A$2:$O$502,7,0))) ->  | Q160: =IF(Q156="","",IF(VLOOKUP(Q156,漢字読み!$A$2:$O$502,7,0)=0,"",VLOOKUP(Q156,漢字読み!$A$2:$O$502,7,0))) -> する | R160: =IF(R156="","",IF(VLOOKUP(R156,漢字読み!$A$2:$O$502,7,0)=0,"",VLOOKUP(R156,漢字読み!$A$2:$O$502,7,0))) ->  | S160: =IF(S156="","",IF(VLOOKUP(S156,漢字読み!$A$2:$O$502,7,0)=0,"",VLOOKUP(S156,漢字読み!$A$2:$O$502,7,0))) ->  | T160: =IF(T156="","",IF(VLOOKUP(T156,漢字読み!$A$2:$O$502,7,0)=0,"",VLOOKUP(T156,漢字読み!$A$2:$O$502,7,0))) ->  | W160: 和歌山県教育委員会
A161: =INDIRECT("'関数（書き）'!C" & COLUMN(B$1)+SUM($AD$2:$AD162)) -> 201 | B161: =INDIRECT("'関数（書き）'!C" & COLUMN(C$1)+SUM($AD$2:$AD162)) -> 125 | C161: =INDIRECT("'関数（書き）'!C" & COLUMN(D$1)+SUM($AD$2:$AD162)) -> 117 | D161: =INDIRECT("'関数（書き）'!C" & COLUMN(E$1)+SUM($AD$2:$AD162)) -> 182 | E161: =INDIRECT("'関数（書き）'!C" & COLUMN(F$1)+SUM($AD$2:$AD162)) -> 169 | F161: =INDIRECT("'関数（書き）'!C" & COLUMN(G$1)+SUM($AD$2:$AD162)) -> 202 | G161: =INDIRECT("'関数（書き）'!C" & COLUMN(H$1)+SUM($AD$2:$AD162)) -> 53 | H161: =INDIRECT("'関数（書き）'!C" & COLUMN(I$1)+SUM($AD$2:$AD162)) -> 49 | I161: =INDIRECT("'関数（書き）'!C" & COLUMN(J$1)+SUM($AD$2:$AD162)) -> 111 | J161: =INDIRECT("'関数（書き）'!C" & COLUMN(K$1)+SUM($AD$2:$AD162)) -> 7 | K161: =INDIRECT("'関数（読み）'!C" & COLUMN(B$1)+SUM($AD$2:$AD162)) -> 160 | L161: =INDIRECT("'関数（読み）'!C" & COLUMN(C$1)+SUM($AD$2:$AD162)) -> 158 | M161: =INDIRECT("'関数（読み）'!C" & COLUMN(D$1)+SUM($AD$2:$AD162)) -> 79 | N161: =INDIRECT("'関数（読み）'!C" & COLUMN(E$1)+SUM($AD$2:$AD162)) -> 176 | O161: =INDIRECT("'関数（読み）'!C" & COLUMN(F$1)+SUM($AD$2:$AD162)) -> 41 | P161: =INDIRECT("'関数（読み）'!C" & COLUMN(G$1)+SUM($AD$2:$AD162)) -> 220 | Q161: =INDIRECT("'関数（読み）'!C" & COLUMN(H$1)+SUM($AD$2:$AD162)) -> 140 | R161: =INDIRECT("'関数（読み）'!C" & COLUMN(I$1)+SUM($AD$2:$AD162)) -> 201 | S161: =INDIRECT("'関数（読み）'!C" & COLUMN(J$1)+SUM($AD$2:$AD162)) -> 90 | T161: =INDIRECT("'関数（読み）'!C" & COLUMN(K$1)+SUM($AD$2:$AD162)) -> 50
A162: ⑳ | B162: ⑲ | C162: ⑱ | D162: ⑰ | E162: ⑯ | F162: ⑮ | G162: ⑭ | H162: ⑬ | I162: ⑫ | J162: ⑪ | K162: ⑩ | L162: ⑨ | M162: ⑧ | N162: ⑦ | O162: ⑥ | P162: ⑤ | Q162: ④ | R162: ③ | S162: ② | T162: ① | U162: 次の［ ］の部分の漢字には読みがなをひらがなで書き、カタカナは漢字に直しなさい。 | V162: 10 | W162: 「漢字の博士検定試験」練習問題 | AC162: ← | AD162: 10 | AE162: 問 | AF162: =AH147+1 -> 161 | AG162: ～ | AH162: =SUM($AD$2:$AD162)+10 -> 170 | AI162: 問まで | AJ162: =COUNTIF($A$1:$T$200,T163) -> 2
A163: =IF(A161="","",VLOOKUP(A161,漢字書き!$A$2:$N$506,6,0)) -> 頭を［ヒク］くする | B163: =IF(B161="","",VLOOKUP(B161,漢字書き!$A$2:$N$506,6,0)) -> きれいな［ユウヤ］け | C163: =IF(C161="","",VLOOKUP(C161,漢字書き!$A$2:$N$506,6,0)) -> 夏の［ハジ］め | D163: =IF(D161="","",VLOOKUP(D161,漢字書き!$A$2:$N$506,6,0)) -> けいこを[ツヅ]ける | E163: =IF(E161="","",VLOOKUP(E161,漢字書き!$A$2:$N$506,6,0)) -> プレゼントを［エラ］ぶ | F163: =IF(F161="","",VLOOKUP(F161,漢字書き!$A$2:$N$506,6,0)) -> ［カイテイ］火山 | G163: =IF(G161="","",VLOOKUP(G161,漢字書き!$A$2:$N$506,6,0)) -> ［ミヤザキケン］に行く | H163: =IF(H161="","",VLOOKUP(H161,漢字書き!$A$2:$N$506,6,0)) -> ［キコウ］がよい | I163: =IF(I161="","",VLOOKUP(I161,漢字書き!$A$2:$N$506,6,0)) -> 計画が［ジュンチョウ］に進む | J163: =IF(J161="","",VLOOKUP(J161,漢字書き!$A$2:$N$506,6,0)) -> 相手に［キョウカン］する | K163: =IF(K161="","",VLOOKUP(K161,漢字読み!$A$2:$O$506,6,0)) -> 竹の［節］の部分 | L163: =IF(L161="","",VLOOKUP(L161,漢字読み!$A$2:$O$506,6,0)) -> ［季節］がかわる | M163: =IF(M161="","",VLOOKUP(M161,漢字読み!$A$2:$O$506,6,0)) -> 子犬を［産］む | N163: =IF(N161="","",VLOOKUP(N161,漢字読み!$A$2:$O$506,6,0)) -> 高ゆか式の［倉］ | O163: =IF(O161="","",VLOOKUP(O161,漢字読み!$A$2:$O$506,6,0)) -> ［体験］を語る | P163: =IF(P161="","",VLOOKUP(P161,漢字読み!$A$2:$O$506,6,0)) -> ［埼玉県］から来る | Q163: =IF(Q161="","",VLOOKUP(Q161,漢字読み!$A$2:$O$506,6,0)) -> 自分を［信］じる | R163: =IF(R161="","",VLOOKUP(R161,漢字読み!$A$2:$O$506,6,0)) -> けいびを［配置］する | S163: =IF(S161="","",VLOOKUP(S161,漢字読み!$A$2:$O$506,6,0)) -> ［司会］をする | T163: =IF(T161="","",VLOOKUP(T161,漢字読み!$A$2:$O$506,6,0)) -> 書記に［立候］ほする | V163: 級
V164: 名前
A165: =IF(A161="","",IF(VLOOKUP(A161,漢字書き!$A$2:$N$502,7,0)=0,"",VLOOKUP(A161,漢字書き!$A$2:$N$502,7,0))) -> く | B165: =IF(B161="","",IF(VLOOKUP(B161,漢字書き!$A$2:$N$502,7,0)=0,"",VLOOKUP(B161,漢字書き!$A$2:$N$502,7,0))) -> け | C165: =IF(C161="","",IF(VLOOKUP(C161,漢字書き!$A$2:$N$502,7,0)=0,"",VLOOKUP(C161,漢字書き!$A$2:$N$502,7,0))) -> め | D165: =IF(D161="","",IF(VLOOKUP(D161,漢字書き!$A$2:$N$502,7,0)=0,"",VLOOKUP(D161,漢字書き!$A$2:$N$502,7,0))) -> ける | E165: =IF(E161="","",IF(VLOOKUP(E161,漢字書き!$A$2:$N$502,7,0)=0,"",VLOOKUP(E161,漢字書き!$A$2:$N$502,7,0))) -> ぶ | F165: =IF(F161="","",IF(VLOOKUP(F161,漢字書き!$A$2:$N$502,7,0)=0,"",VLOOKUP(F161,漢字書き!$A$2:$N$502,7,0))) ->  | G165: =IF(G161="","",IF(VLOOKUP(G161,漢字書き!$A$2:$N$502,7,0)=0,"",VLOOKUP(G161,漢字書き!$A$2:$N$502,7,0))) ->  | H165: =IF(H161="","",IF(VLOOKUP(H161,漢字書き!$A$2:$N$502,7,0)=0,"",VLOOKUP(H161,漢字書き!$A$2:$N$502,7,0))) ->  | I165: =IF(I161="","",IF(VLOOKUP(I161,漢字書き!$A$2:$N$502,7,0)=0,"",VLOOKUP(I161,漢字書き!$A$2:$N$502,7,0))) -> に | J165: =IF(J161="","",IF(VLOOKUP(J161,漢字書き!$A$2:$N$502,7,0)=0,"",VLOOKUP(J161,漢字書き!$A$2:$N$502,7,0))) -> する | K165: =IF(K161="","",IF(VLOOKUP(K161,漢字読み!$A$2:$O$502,7,0)=0,"",VLOOKUP(K161,漢字読み!$A$2:$O$502,7,0))) ->  | L165: =IF(L161="","",IF(VLOOKUP(L161,漢字読み!$A$2:$O$502,7,0)=0,"",VLOOKUP(L161,漢字読み!$A$2:$O$502,7,0))) ->  | M165: =IF(M161="","",IF(VLOOKUP(M161,漢字読み!$A$2:$O$502,7,0)=0,"",VLOOKUP(M161,漢字読み!$A$2:$O$502,7,0))) -> む | N165: =IF(N161="","",IF(VLOOKUP(N161,漢字読み!$A$2:$O$502,7,0)=0,"",VLOOKUP(N161,漢字読み!$A$2:$O$502,7,0))) ->  | O165: =IF(O161="","",IF(VLOOKUP(O161,漢字読み!$A$2:$O$502,7,0)=0,"",VLOOKUP(O161,漢字読み!$A$2:$O$502,7,0))) ->  | P165: =IF(P161="","",IF(VLOOKUP(P161,漢字読み!$A$2:$O$502,7,0)=0,"",VLOOKUP(P161,漢字読み!$A$2:$O$502,7,0))) ->  | Q165: =IF(Q161="","",IF(VLOOKUP(Q161,漢字読み!$A$2:$O$502,7,0)=0,"",VLOOKUP(Q161,漢字読み!$A$2:$O$502,7,0))) -> じる | R165: =IF(R161="","",IF(VLOOKUP(R161,漢字読み!$A$2:$O$502,7,0)=0,"",VLOOKUP(R161,漢字読み!$A$2:$O$502,7,0))) -> する | S165: =IF(S161="","",IF(VLOOKUP(S161,漢字読み!$A$2:$O$502,7,0)=0,"",VLOOKUP(S161,漢字読み!$A$2:$O$502,7,0))) ->  | T165: =IF(T161="","",IF(VLOOKUP(T161,漢字読み!$A$2:$O$502,7,0)=0,"",VLOOKUP(T161,漢字読み!$A$2:$O$502,7,0))) -> ほ | W165: 和歌山県教育委員会
A166: =INDIRECT("'関数（書き）'!C" & COLUMN(B$1)+SUM($AD$2:$AD167)) -> 81 | B166: =INDIRECT("'関数（書き）'!C" & COLUMN(C$1)+SUM($AD$2:$AD167)) -> 178 | C166: =INDIRECT("'関数（書き）'!C" & COLUMN(D$1)+SUM($AD$2:$AD167)) -> 65 | D166: =INDIRECT("'関数（書き）'!C" & COLUMN(E$1)+SUM($AD$2:$AD167)) -> 22 | E166: =INDIRECT("'関数（書き）'!C" & COLUMN(F$1)+SUM($AD$2:$AD167)) -> 203 | F166: =INDIRECT("'関数（書き）'!C" & COLUMN(G$1)+SUM($AD$2:$AD167)) -> 176 | G166: =INDIRECT("'関数（書き）'!C" & COLUMN(H$1)+SUM($AD$2:$AD167)) -> 17 | H166: =INDIRECT("'関数（書き）'!C" & COLUMN(I$1)+SUM($AD$2:$AD167)) -> 3 | I166: =INDIRECT("'関数（書き）'!C" & COLUMN(J$1)+SUM($AD$2:$AD167)) -> 10 | J166: =INDIRECT("'関数（書き）'!C" & COLUMN(K$1)+SUM($AD$2:$AD167)) -> 41 | K166: =INDIRECT("'関数（読み）'!C" & COLUMN(B$1)+SUM($AD$2:$AD167)) -> 49 | L166: =INDIRECT("'関数（読み）'!C" & COLUMN(C$1)+SUM($AD$2:$AD167)) -> 112 | M166: =INDIRECT("'関数（読み）'!C" & COLUMN(D$1)+SUM($AD$2:$AD167)) -> 135 | N166: =INDIRECT("'関数（読み）'!C" & COLUMN(E$1)+SUM($AD$2:$AD167)) -> 115 | O166: =INDIRECT("'関数（読み）'!C" & COLUMN(F$1)+SUM($AD$2:$AD167)) -> 130 | P166: =INDIRECT("'関数（読み）'!C" & COLUMN(G$1)+SUM($AD$2:$AD167)) -> 188 | Q166: =INDIRECT("'関数（読み）'!C" & COLUMN(H$1)+SUM($AD$2:$AD167)) -> 102 | R166: =INDIRECT("'関数（読み）'!C" & COLUMN(I$1)+SUM($AD$2:$AD167)) -> 81 | S166: =INDIRECT("'関数（読み）'!C" & COLUMN(J$1)+SUM($AD$2:$AD167)) -> 111 | T166: =INDIRECT("'関数（読み）'!C" & COLUMN(K$1)+SUM($AD$2:$AD167)) -> 192
A167: ⑳ | B167: ⑲ | C167: ⑱ | D167: ⑰ | E167: ⑯ | F167: ⑮ | G167: ⑭ | H167: ⑬ | I167: ⑫ | J167: ⑪ | K167: ⑩ | L167: ⑨ | M167: ⑧ | N167: ⑦ | O167: ⑥ | P167: ⑤ | Q167: ④ | R167: ③ | S167: ② | T167: ① | U167: 次の［ ］の部分の漢字には読みがなをひらがなで書き、カタカナは漢字に直しなさい。 | V167: 10 | W167: 「漢字の博士検定試験」練習問題 | AC167: ← | AD167: 10 | AE167: 問 | AF167: =AH162+1 -> 171 | AG167: ～ | AH167: =SUM($AD$2:$AD167)+10 -> 180 | AI167: 問まで | AJ167: =COUNTIF($A$1:$T$200,T168) -> 2
A168: =IF(A166="","",VLOOKUP(A166,漢字書き!$A$2:$N$506,6,0)) -> 足あとが［ノコ］る | B168: =IF(B166="","",VLOOKUP(B166,漢字書き!$A$2:$N$506,6,0)) -> やく［ソク］を果たす | C168: =IF(C166="","",VLOOKUP(C166,漢字書き!$A$2:$N$506,6,0)) -> お［フダ］をはる | D168: =IF(D166="","",VLOOKUP(D166,漢字書き!$A$2:$N$506,6,0)) -> 和歌山県有田［グン］ | E168: =IF(E166="","",VLOOKUP(E166,漢字書き!$A$2:$N$506,6,0)) -> 海の［ソコ］ | F168: =IF(F166="","",VLOOKUP(F166,漢字書き!$A$2:$N$506,6,0)) -> ［クラ］にしまいこむ | G168: =IF(G166="","",VLOOKUP(G166,漢字書き!$A$2:$N$506,6,0)) -> プラス[キョク] | H168: =IF(H166="","",VLOOKUP(H166,漢字書き!$A$2:$N$506,6,0)) -> 例を［ア］げて話す | I168: =IF(I166="","",VLOOKUP(I166,漢字書き!$A$2:$N$506,6,0)) -> ［サンメンキョウ］で写す | J168: =IF(J166="","",VLOOKUP(J166,漢字書き!$A$2:$N$506,6,0)) -> ［キョウコ］な思い | K168: =IF(K166="","",VLOOKUP(K166,漢字読み!$A$2:$O$506,6,0)) -> あたたかい［気候］ | L168: =IF(L166="","",VLOOKUP(L166,漢字読み!$A$2:$O$506,6,0)) -> 進学［祝］いをいただく | M168: =IF(M166="","",VLOOKUP(M166,漢字読み!$A$2:$O$506,6,0)) -> ［鹿］の角 | N168: =IF(N166="","",VLOOKUP(N166,漢字読み!$A$2:$O$506,6,0)) -> ［最初］から見る | O168: =IF(O166="","",VLOOKUP(O166,漢字読み!$A$2:$O$506,6,0)) -> 有名な［城下町］ | P168: =IF(P166="","",VLOOKUP(P166,漢字読み!$A$2:$O$506,6,0)) -> 小学校の［卒業］式 | Q168: =IF(Q166="","",VLOOKUP(Q166,漢字読み!$A$2:$O$506,6,0)) -> [祝辞]をのべる | R168: =IF(R166="","",VLOOKUP(R166,漢字読み!$A$2:$O$506,6,0)) -> 朝の［散歩］ | S168: =IF(S166="","",VLOOKUP(S166,漢字読み!$A$2:$O$506,6,0)) -> ［祝福］を受ける | T168: =IF(T166="","",VLOOKUP(T166,漢字読み!$A$2:$O$506,6,0)) -> ほう［帯］をまく | V168: 級
V169: 名前
A170: =IF(A166="","",IF(VLOOKUP(A166,漢字書き!$A$2:$N$502,7,0)=0,"",VLOOKUP(A166,漢字書き!$A$2:$N$502,7,0))) -> る | B170: =IF(B166="","",IF(VLOOKUP(B166,漢字書き!$A$2:$N$502,7,0)=0,"",VLOOKUP(B166,漢字書き!$A$2:$N$502,7,0))) ->  | C170: =IF(C166="","",IF(VLOOKUP(C166,漢字書き!$A$2:$N$502,7,0)=0,"",VLOOKUP(C166,漢字書き!$A$2:$N$502,7,0))) ->  | D170: =IF(D166="","",IF(VLOOKUP(D166,漢字書き!$A$2:$N$502,7,0)=0,"",VLOOKUP(D166,漢字書き!$A$2:$N$502,7,0))) ->  | E170: =IF(E166="","",IF(VLOOKUP(E166,漢字書き!$A$2:$N$502,7,0)=0,"",VLOOKUP(E166,漢字書き!$A$2:$N$502,7,0))) ->  | F170: =IF(F166="","",IF(VLOOKUP(F166,漢字書き!$A$2:$N$502,7,0)=0,"",VLOOKUP(F166,漢字書き!$A$2:$N$502,7,0))) ->  | G170: =IF(G166="","",IF(VLOOKUP(G166,漢字書き!$A$2:$N$502,7,0)=0,"",VLOOKUP(G166,漢字書き!$A$2:$N$502,7,0))) ->  | H170: =IF(H166="","",IF(VLOOKUP(H166,漢字書き!$A$2:$N$502,7,0)=0,"",VLOOKUP(H166,漢字書き!$A$2:$N$502,7,0))) -> げて | I170: =IF(I166="","",IF(VLOOKUP(I166,漢字書き!$A$2:$N$502,7,0)=0,"",VLOOKUP(I166,漢字書き!$A$2:$N$502,7,0))) ->  | J170: =IF(J166="","",IF(VLOOKUP(J166,漢字書き!$A$2:$N$502,7,0)=0,"",VLOOKUP(J166,漢字書き!$A$2:$N$502,7,0))) -> な | K170: =IF(K166="","",IF(VLOOKUP(K166,漢字読み!$A$2:$O$502,7,0)=0,"",VLOOKUP(K166,漢字読み!$A$2:$O$502,7,0))) ->  | L170: =IF(L166="","",IF(VLOOKUP(L166,漢字読み!$A$2:$O$502,7,0)=0,"",VLOOKUP(L166,漢字読み!$A$2:$O$502,7,0))) -> い | M170: =IF(M166="","",IF(VLOOKUP(M166,漢字読み!$A$2:$O$502,7,0)=0,"",VLOOKUP(M166,漢字読み!$A$2:$O$502,7,0))) ->  | N170: =IF(N166="","",IF(VLOOKUP(N166,漢字読み!$A$2:$O$502,7,0)=0,"",VLOOKUP(N166,漢字読み!$A$2:$O$502,7,0))) ->  | O170: =IF(O166="","",IF(VLOOKUP(O166,漢字読み!$A$2:$O$502,7,0)=0,"",VLOOKUP(O166,漢字読み!$A$2:$O$502,7,0))) ->  | P170: =IF(P166="","",IF(VLOOKUP(P166,漢字読み!$A$2:$O$502,7,0)=0,"",VLOOKUP(P166,漢字読み!$A$2:$O$502,7,0))) -> 式 | Q170: =IF(Q166="","",IF(VLOOKUP(Q166,漢字読み!$A$2:$O$502,7,0)=0,"",VLOOKUP(Q166,漢字読み!$A$2:$O$502,7,0))) ->  | R170: =IF(R166="","",IF(VLOOKUP(R166,漢字読み!$A$2:$O$502,7,0)=0,"",VLOOKUP(R166,漢字読み!$A$2:$O$502,7,0))) ->  | S170: =IF(S166="","",IF(VLOOKUP(S166,漢字読み!$A$2:$O$502,7,0)=0,"",VLOOKUP(S166,漢字読み!$A$2:$O$502,7,0))) ->  | T170: =IF(T166="","",IF(VLOOKUP(T166,漢字読み!$A$2:$O$502,7,0)=0,"",VLOOKUP(T166,漢字読み!$A$2:$O$502,7,0))) ->  | W170: 和歌山県教育委員会
A171: =A161 -> 201 | B171: 125 | C171: 117 | D171: 182 | E171: 169 | F171: 202 | G171: 53 | H171: 49 | I171: 111 | J171: 7 | K171: 160 | L171: 158 | M171: 79 | N171: 176 | O171: 41 | P171: 220 | Q171: 140 | R171: 201 | S171: 90 | T171: 50
A172: ⑳ | B172: ⑲ | C172: ⑱ | D172: ⑰ | E172: ⑯ | F172: ⑮ | G172: ⑭ | H172: ⑬ | I172: ⑫ | J172: ⑪ | K172: ⑩ | L172: ⑨ | M172: ⑧ | N172: ⑦ | O172: ⑥ | P172: ⑤ | Q172: ④ | R172: ③ | S172: ② | T172: ① | U172: 次の［ ］の部分の漢字には読みがなをひらがなで書き、カタカナは漢字に直しなさい。 | V172: 10 | W172: 「漢字の博士検定試験」練習問題
A173: =IF(A171="","",VLOOKUP(A171,漢字書き!$A$2:$N$506,6,0)) -> 頭を［ヒク］くする | B173: =IF(B171="","",VLOOKUP(B171,漢字書き!$A$2:$N$506,6,0)) -> きれいな［ユウヤ］け | C173: =IF(C171="","",VLOOKUP(C171,漢字書き!$A$2:$N$506,6,0)) -> 夏の［ハジ］め | D173: =IF(D171="","",VLOOKUP(D171,漢字書き!$A$2:$N$506,6,0)) -> けいこを[ツヅ]ける | E173: =IF(E171="","",VLOOKUP(E171,漢字書き!$A$2:$N$506,6,0)) -> プレゼントを［エラ］ぶ | F173: =IF(F171="","",VLOOKUP(F171,漢字書き!$A$2:$N$506,6,0)) -> ［カイテイ］火山 | G173: =IF(G171="","",VLOOKUP(G171,漢字書き!$A$2:$N$506,6,0)) -> ［ミヤザキケン］に行く | H173: =IF(H171="","",VLOOKUP(H171,漢字書き!$A$2:$N$506,6,0)) -> ［キコウ］がよい | I173: =IF(I171="","",VLOOKUP(I171,漢字書き!$A$2:$N$506,6,0)) -> 計画が［ジュンチョウ］に進む | J173: =IF(J171="","",VLOOKUP(J171,漢字書き!$A$2:$N$506,6,0)) -> 相手に［キョウカン］する | K173: =IF(K171="","",VLOOKUP(K171,漢字読み!$A$2:$O$506,6,0)) -> 竹の［節］の部分 | L173: =IF(L171="","",VLOOKUP(L171,漢字読み!$A$2:$O$506,6,0)) -> ［季節］がかわる | M173: =IF(M171="","",VLOOKUP(M171,漢字読み!$A$2:$O$506,6,0)) -> 子犬を［産］む | N173: =IF(N171="","",VLOOKUP(N171,漢字読み!$A$2:$O$506,6,0)) -> 高ゆか式の［倉］ | O173: =IF(O171="","",VLOOKUP(O171,漢字読み!$A$2:$O$506,6,0)) -> ［体験］を語る | P173: =IF(P171="","",VLOOKUP(P171,漢字読み!$A$2:$O$506,6,0)) -> ［埼玉県］から来る | Q173: =IF(Q171="","",VLOOKUP(Q171,漢字読み!$A$2:$O$506,6,0)) -> 自分を［信］じる | R173: =IF(R171="","",VLOOKUP(R171,漢字読み!$A$2:$O$506,6,0)) -> けいびを［配置］する | S173: =IF(S171="","",VLOOKUP(S171,漢字読み!$A$2:$O$506,6,0)) -> ［司会］をする | T173: =IF(T171="","",VLOOKUP(T171,漢字読み!$A$2:$O$506,6,0)) -> 書記に［立候］ほする | V173: 級
A174: =IF(A$11="","",VLOOKUP(A171,漢字書き!$A$2:$O$506,8,0)) -> 低 | B174: =IF(B$11="","",VLOOKUP(B171,漢字書き!$A$2:$O$506,8,0)) -> 夕焼 | C174: =IF(C$11="","",VLOOKUP(C171,漢字書き!$A$2:$O$506,8,0)) -> 初 | D174: =IF(D$11="","",VLOOKUP(D171,漢字書き!$A$2:$O$506,8,0)) -> 続 | E174: =IF(E$11="","",VLOOKUP(E171,漢字書き!$A$2:$O$506,8,0)) -> 選 | F174: =IF(F$11="","",VLOOKUP(F171,漢字書き!$A$2:$O$506,8,0)) -> 海底 | G174: =IF(G$11="","",VLOOKUP(G171,漢字書き!$A$2:$O$506,8,0)) -> 宮崎県 | H174: =IF(H$11="","",VLOOKUP(H171,漢字書き!$A$2:$O$506,8,0)) -> 気候 | I174: =IF(I$11="","",VLOOKUP(I171,漢字書き!$A$2:$O$506,8,0)) -> 順調 | J174: =IF(J$11="","",VLOOKUP(J171,漢字書き!$A$2:$O$506,8,0)) -> 共感 | K174: =IF(K$11="","",VLOOKUP(K171,漢字読み!$A$2:$O$506,8,0)) -> ふし | L174: =IF(L$11="","",VLOOKUP(L171,漢字読み!$A$2:$O$506,8,0)) -> きせつ | M174: =IF(M$11="","",VLOOKUP(M171,漢字読み!$A$2:$O$506,8,0)) -> う | N174: =IF(N$11="","",VLOOKUP(N171,漢字読み!$A$2:$O$506,8,0)) -> くら | O174: =IF(O$11="","",VLOOKUP(O171,漢字読み!$A$2:$O$506,8,0)) -> たいけん | P174: =IF(P$11="","",VLOOKUP(P171,漢字読み!$A$2:$O$506,8,0)) -> さいたまけん | Q174: =IF(Q$11="","",VLOOKUP(Q171,漢字読み!$A$2:$O$506,8,0)) -> しん | R174: =IF(R$11="","",VLOOKUP(R171,漢字読み!$A$2:$O$506,8,0)) -> はいち | S174: =IF(S$11="","",VLOOKUP(S171,漢字読み!$A$2:$O$506,8,0)) -> しかい | T174: =IF(T$11="","",VLOOKUP(T171,漢字読み!$A$2:$O$506,8,0)) -> りっこう | V174: 名前
A175: =IF(A171="","",IF(VLOOKUP(A171,漢字書き!$A$2:$N$502,7,0)=0,"",VLOOKUP(A171,漢字書き!$A$2:$N$502,7,0))) -> く | B175: =IF(B171="","",IF(VLOOKUP(B171,漢字書き!$A$2:$N$502,7,0)=0,"",VLOOKUP(B171,漢字書き!$A$2:$N$502,7,0))) -> け | C175: =IF(C171="","",IF(VLOOKUP(C171,漢字書き!$A$2:$N$502,7,0)=0,"",VLOOKUP(C171,漢字書き!$A$2:$N$502,7,0))) -> め | D175: =IF(D171="","",IF(VLOOKUP(D171,漢字書き!$A$2:$N$502,7,0)=0,"",VLOOKUP(D171,漢字書き!$A$2:$N$502,7,0))) -> ける | E175: =IF(E171="","",IF(VLOOKUP(E171,漢字書き!$A$2:$N$502,7,0)=0,"",VLOOKUP(E171,漢字書き!$A$2:$N$502,7,0))) -> ぶ | F175: =IF(F171="","",IF(VLOOKUP(F171,漢字書き!$A$2:$N$502,7,0)=0,"",VLOOKUP(F171,漢字書き!$A$2:$N$502,7,0))) ->  | G175: =IF(G171="","",IF(VLOOKUP(G171,漢字書き!$A$2:$N$502,7,0)=0,"",VLOOKUP(G171,漢字書き!$A$2:$N$502,7,0))) ->  | H175: =IF(H171="","",IF(VLOOKUP(H171,漢字書き!$A$2:$N$502,7,0)=0,"",VLOOKUP(H171,漢字書き!$A$2:$N$502,7,0))) ->  | I175: =IF(I171="","",IF(VLOOKUP(I171,漢字書き!$A$2:$N$502,7,0)=0,"",VLOOKUP(I171,漢字書き!$A$2:$N$502,7,0))) -> に | J175: =IF(J171="","",IF(VLOOKUP(J171,漢字書き!$A$2:$N$502,7,0)=0,"",VLOOKUP(J171,漢字書き!$A$2:$N$502,7,0))) -> する | K175: =IF(K171="","",IF(VLOOKUP(K171,漢字読み!$A$2:$O$502,7,0)=0,"",VLOOKUP(K171,漢字読み!$A$2:$O$502,7,0))) ->  | L175: =IF(L171="","",IF(VLOOKUP(L171,漢字読み!$A$2:$O$502,7,0)=0,"",VLOOKUP(L171,漢字読み!$A$2:$O$502,7,0))) ->  | M175: =IF(M171="","",IF(VLOOKUP(M171,漢字読み!$A$2:$O$502,7,0)=0,"",VLOOKUP(M171,漢字読み!$A$2:$O$502,7,0))) -> む | N175: =IF(N171="","",IF(VLOOKUP(N171,漢字読み!$A$2:$O$502,7,0)=0,"",VLOOKUP(N171,漢字読み!$A$2:$O$502,7,0))) ->  | O175: =IF(O171="","",IF(VLOOKUP(O171,漢字読み!$A$2:$O$502,7,0)=0,"",VLOOKUP(O171,漢字読み!$A$2:$O$502,7,0))) ->  | P175: =IF(P171="","",IF(VLOOKUP(P171,漢字読み!$A$2:$O$502,7,0)=0,"",VLOOKUP(P171,漢字読み!$A$2:$O$502,7,0))) ->  | Q175: =IF(Q171="","",IF(VLOOKUP(Q171,漢字読み!$A$2:$O$502,7,0)=0,"",VLOOKUP(Q171,漢字読み!$A$2:$O$502,7,0))) -> じる | R175: =IF(R171="","",IF(VLOOKUP(R171,漢字読み!$A$2:$O$502,7,0)=0,"",VLOOKUP(R171,漢字読み!$A$2:$O$502,7,0))) -> する | S175: =IF(S171="","",IF(VLOOKUP(S171,漢字読み!$A$2:$O$502,7,0)=0,"",VLOOKUP(S171,漢字読み!$A$2:$O$502,7,0))) ->  | T175: =IF(T171="","",IF(VLOOKUP(T171,漢字読み!$A$2:$O$502,7,0)=0,"",VLOOKUP(T171,漢字読み!$A$2:$O$502,7,0))) -> ほ | W175: 和歌山県教育委員会
A176: =A166 -> 81 | B176: 178 | C176: 65 | D176: 22 | E176: 203 | F176: 176 | G176: 17 | H176: 3 | I176: 10 | J176: 41 | K176: 49 | L176: 112 | M176: 135 | N176: 115 | O176: 130 | P176: 188 | Q176: 102 | R176: 81 | S176: 111 | T176: 192
A177: ⑳ | B177: ⑲ | C177: ⑱ | D177: ⑰ | E177: ⑯ | F177: ⑮ | G177: ⑭ | H177: ⑬ | I177: ⑫ | J177: ⑪ | K177: ⑩ | L177: ⑨ | M177: ⑧ | N177: ⑦ | O177: ⑥ | P177: ⑤ | Q177: ④ | R177: ③ | S177: ② | T177: ① | U177: 次の［ ］の部分の漢字には読みがなをひらがなで書き、カタカナは漢字に直しなさい。 | V177: 10 | W177: 「漢字の博士検定試験」練習問題
A178: =IF(A176="","",VLOOKUP(A176,漢字書き!$A$2:$N$506,6,0)) -> 足あとが［ノコ］る | B178: =IF(B176="","",VLOOKUP(B176,漢字書き!$A$2:$N$506,6,0)) -> やく［ソク］を果たす | C178: =IF(C176="","",VLOOKUP(C176,漢字書き!$A$2:$N$506,6,0)) -> お［フダ］をはる | D178: =IF(D176="","",VLOOKUP(D176,漢字書き!$A$2:$N$506,6,0)) -> 和歌山県有田［グン］ | E178: =IF(E176="","",VLOOKUP(E176,漢字書き!$A$2:$N$506,6,0)) -> 海の［ソコ］ | F178: =IF(F176="","",VLOOKUP(F176,漢字書き!$A$2:$N$506,6,0)) -> ［クラ］にしまいこむ | G178: =IF(G176="","",VLOOKUP(G176,漢字書き!$A$2:$N$506,6,0)) -> プラス[キョク] | H178: =IF(H176="","",VLOOKUP(H176,漢字書き!$A$2:$N$506,6,0)) -> 例を［ア］げて話す | I178: =IF(I176="","",VLOOKUP(I176,漢字書き!$A$2:$N$506,6,0)) -> ［サンメンキョウ］で写す | J178: =IF(J176="","",VLOOKUP(J176,漢字書き!$A$2:$N$506,6,0)) -> ［キョウコ］な思い | K178: =IF(K176="","",VLOOKUP(K176,漢字読み!$A$2:$O$506,6,0)) -> あたたかい［気候］ | L178: =IF(L176="","",VLOOKUP(L176,漢字読み!$A$2:$O$506,6,0)) -> 進学［祝］いをいただく | M178: =IF(M176="","",VLOOKUP(M176,漢字読み!$A$2:$O$506,6,0)) -> ［鹿］の角 | N178: =IF(N176="","",VLOOKUP(N176,漢字読み!$A$2:$O$506,6,0)) -> ［最初］から見る | O178: =IF(O176="","",VLOOKUP(O176,漢字読み!$A$2:$O$506,6,0)) -> 有名な［城下町］ | P178: =IF(P176="","",VLOOKUP(P176,漢字読み!$A$2:$O$506,6,0)) -> 小学校の［卒業］式 | Q178: =IF(Q176="","",VLOOKUP(Q176,漢字読み!$A$2:$O$506,6,0)) -> [祝辞]をのべる | R178: =IF(R176="","",VLOOKUP(R176,漢字読み!$A$2:$O$506,6,0)) -> 朝の［散歩］ | S178: =IF(S176="","",VLOOKUP(S176,漢字読み!$A$2:$O$506,6,0)) -> ［祝福］を受ける | T178: =IF(T176="","",VLOOKUP(T176,漢字読み!$A$2:$O$506,6,0)) -> ほう［帯］をまく | V178: 級
A179: =IF(A$16="","",VLOOKUP(A176,漢字書き!$A$2:$O$506,8,0)) -> 残 | B179: =IF(B$16="","",VLOOKUP(B176,漢字書き!$A$2:$O$506,8,0)) -> 束 | C179: =IF(C$16="","",VLOOKUP(C176,漢字書き!$A$2:$O$506,8,0)) -> 札 | D179: =IF(D$16="","",VLOOKUP(D176,漢字書き!$A$2:$O$506,8,0)) -> 郡 | E179: =IF(E$16="","",VLOOKUP(E176,漢字書き!$A$2:$O$506,8,0)) -> 底 | F179: =IF(F$16="","",VLOOKUP(F176,漢字書き!$A$2:$O$506,8,0)) -> 倉 | G179: =IF(G$16="","",VLOOKUP(G176,漢字書き!$A$2:$O$506,8,0)) -> 極 | H179: =IF(H$16="","",VLOOKUP(H176,漢字書き!$A$2:$O$506,8,0)) -> 挙 | I179: =IF(I$16="","",VLOOKUP(I176,漢字書き!$A$2:$O$506,8,0)) -> 三面鏡 | J179: =IF(J$16="","",VLOOKUP(J176,漢字書き!$A$2:$O$506,8,0)) -> 強固 | K179: =IF(K$16="","",VLOOKUP(K176,漢字読み!$A$2:$O$506,8,0)) -> きこう | L179: =IF(L$16="","",VLOOKUP(L176,漢字読み!$A$2:$O$506,8,0)) -> いわ | M179: =IF(M$16="","",VLOOKUP(M176,漢字読み!$A$2:$O$506,8,0)) -> しか | N179: =IF(N$16="","",VLOOKUP(N176,漢字読み!$A$2:$O$506,8,0)) -> さいしょ | O179: =IF(O$16="","",VLOOKUP(O176,漢字読み!$A$2:$O$506,8,0)) -> じょうかまち | P179: =IF(P$16="","",VLOOKUP(P176,漢字読み!$A$2:$O$506,8,0)) -> そつぎょう | Q179: =IF(Q$16="","",VLOOKUP(Q176,漢字読み!$A$2:$O$506,8,0)) -> しゅくじ | R179: =IF(R$16="","",VLOOKUP(R176,漢字読み!$A$2:$O$506,8,0)) -> さんぽ | S179: =IF(S$16="","",VLOOKUP(S176,漢字読み!$A$2:$O$506,8,0)) -> しゅくふく | T179: =IF(T$16="","",VLOOKUP(T176,漢字読み!$A$2:$O$506,8,0)) -> たい | V179: 名前
A180: =IF(A176="","",IF(VLOOKUP(A176,漢字書き!$A$2:$N$502,7,0)=0,"",VLOOKUP(A176,漢字書き!$A$2:$N$502,7,0))) -> る | B180: =IF(B176="","",IF(VLOOKUP(B176,漢字書き!$A$2:$N$502,7,0)=0,"",VLOOKUP(B176,漢字書き!$A$2:$N$502,7,0))) ->  | C180: =IF(C176="","",IF(VLOOKUP(C176,漢字書き!$A$2:$N$502,7,0)=0,"",VLOOKUP(C176,漢字書き!$A$2:$N$502,7,0))) ->  | D180: =IF(D176="","",IF(VLOOKUP(D176,漢字書き!$A$2:$N$502,7,0)=0,"",VLOOKUP(D176,漢字書き!$A$2:$N$502,7,0))) ->  | E180: =IF(E176="","",IF(VLOOKUP(E176,漢字書き!$A$2:$N$502,7,0)=0,"",VLOOKUP(E176,漢字書き!$A$2:$N$502,7,0))) ->  | F180: =IF(F176="","",IF(VLOOKUP(F176,漢字書き!$A$2:$N$502,7,0)=0,"",VLOOKUP(F176,漢字書き!$A$2:$N$502,7,0))) ->  | G180: =IF(G176="","",IF(VLOOKUP(G176,漢字書き!$A$2:$N$502,7,0)=0,"",VLOOKUP(G176,漢字書き!$A$2:$N$502,7,0))) ->  | H180: =IF(H176="","",IF(VLOOKUP(H176,漢字書き!$A$2:$N$502,7,0)=0,"",VLOOKUP(H176,漢字書き!$A$2:$N$502,7,0))) -> げて | I180: =IF(I176="","",IF(VLOOKUP(I176,漢字書き!$A$2:$N$502,7,0)=0,"",VLOOKUP(I176,漢字書き!$A$2:$N$502,7,0))) ->  | J180: =IF(J176="","",IF(VLOOKUP(J176,漢字書き!$A$2:$N$502,7,0)=0,"",VLOOKUP(J176,漢字書き!$A$2:$N$502,7,0))) -> な | K180: =IF(K176="","",IF(VLOOKUP(K176,漢字読み!$A$2:$O$502,7,0)=0,"",VLOOKUP(K176,漢字読み!$A$2:$O$502,7,0))) ->  | L180: =IF(L176="","",IF(VLOOKUP(L176,漢字読み!$A$2:$O$502,7,0)=0,"",VLOOKUP(L176,漢字読み!$A$2:$O$502,7,0))) -> い | M180: =IF(M176="","",IF(VLOOKUP(M176,漢字読み!$A$2:$O$502,7,0)=0,"",VLOOKUP(M176,漢字読み!$A$2:$O$502,7,0))) ->  | N180: =IF(N176="","",IF(VLOOKUP(N176,漢字読み!$A$2:$O$502,7,0)=0,"",VLOOKUP(N176,漢字読み!$A$2:$O$502,7,0))) ->  | O180: =IF(O176="","",IF(VLOOKUP(O176,漢字読み!$A$2:$O$502,7,0)=0,"",VLOOKUP(O176,漢字読み!$A$2:$O$502,7,0))) ->  | P180: =IF(P176="","",IF(VLOOKUP(P176,漢字読み!$A$2:$O$502,7,0)=0,"",VLOOKUP(P176,漢字読み!$A$2:$O$502,7,0))) -> 式 | Q180: =IF(Q176="","",IF(VLOOKUP(Q176,漢字読み!$A$2:$O$502,7,0)=0,"",VLOOKUP(Q176,漢字読み!$A$2:$O$502,7,0))) ->  | R180: =IF(R176="","",IF(VLOOKUP(R176,漢字読み!$A$2:$O$502,7,0)=0,"",VLOOKUP(R176,漢字読み!$A$2:$O$502,7,0))) ->  | S180: =IF(S176="","",IF(VLOOKUP(S176,漢字読み!$A$2:$O$502,7,0)=0,"",VLOOKUP(S176,漢字読み!$A$2:$O$502,7,0))) ->  | T180: =IF(T176="","",IF(VLOOKUP(T176,漢字読み!$A$2:$O$502,7,0)=0,"",VLOOKUP(T176,漢字読み!$A$2:$O$502,7,0))) ->  | W180: 和歌山県教育委員会
A181: =INDIRECT("'関数（書き）'!C" & COLUMN(B$1)+SUM($AD$2:$AD182)) -> 63 | B181: =INDIRECT("'関数（書き）'!C" & COLUMN(C$1)+SUM($AD$2:$AD182)) -> 114 | C181: =INDIRECT("'関数（書き）'!C" & COLUMN(D$1)+SUM($AD$2:$AD182)) -> 162 | D181: =INDIRECT("'関数（書き）'!C" & COLUMN(E$1)+SUM($AD$2:$AD182)) -> 55 | E181: =INDIRECT("'関数（書き）'!C" & COLUMN(F$1)+SUM($AD$2:$AD182)) -> 21 | F181: =INDIRECT("'関数（書き）'!C" & COLUMN(G$1)+SUM($AD$2:$AD182)) -> 54 | G181: =INDIRECT("'関数（書き）'!C" & COLUMN(H$1)+SUM($AD$2:$AD182)) -> 108 | H181: =INDIRECT("'関数（書き）'!C" & COLUMN(I$1)+SUM($AD$2:$AD182)) -> 210 | I181: =INDIRECT("'関数（書き）'!C" & COLUMN(J$1)+SUM($AD$2:$AD182)) -> 23 | J181: =INDIRECT("'関数（書き）'!C" & COLUMN(K$1)+SUM($AD$2:$AD182)) -> 126 | K181: =INDIRECT("'関数（読み）'!C" & COLUMN(B$1)+SUM($AD$2:$AD182)) -> 52 | L181: =INDIRECT("'関数（読み）'!C" & COLUMN(C$1)+SUM($AD$2:$AD182)) -> 167 | M181: =INDIRECT("'関数（読み）'!C" & COLUMN(D$1)+SUM($AD$2:$AD182)) -> 133 | N181: =INDIRECT("'関数（読み）'!C" & COLUMN(E$1)+SUM($AD$2:$AD182)) -> 174 | O181: =INDIRECT("'関数（読み）'!C" & COLUMN(F$1)+SUM($AD$2:$AD182)) -> 138 | P181: =INDIRECT("'関数（読み）'!C" & COLUMN(G$1)+SUM($AD$2:$AD182)) -> 218 | Q181: =INDIRECT("'関数（読み）'!C" & COLUMN(H$1)+SUM($AD$2:$AD182)) -> 39 | R181: =INDIRECT("'関数（読み）'!C" & COLUMN(I$1)+SUM($AD$2:$AD182)) -> 212 | S181: =INDIRECT("'関数（読み）'!C" & COLUMN(J$1)+SUM($AD$2:$AD182)) -> 207 | T181: =INDIRECT("'関数（読み）'!C" & COLUMN(K$1)+SUM($AD$2:$AD182)) -> 42
A182: ⑳ | B182: ⑲ | C182: ⑱ | D182: ⑰ | E182: ⑯ | F182: ⑮ | G182: ⑭ | H182: ⑬ | I182: ⑫ | J182: ⑪ | K182: ⑩ | L182: ⑨ | M182: ⑧ | N182: ⑦ | O182: ⑥ | P182: ⑤ | Q182: ④ | R182: ③ | S182: ② | T182: ① | U182: 次の［ ］の部分の漢字には読みがなをひらがなで書き、カタカナは漢字に直しなさい。 | V182: 10 | W182: 「漢字の博士検定試験」練習問題 | AC182: ← | AD182: 10 | AE182: 問 | AF182: =AH167+1 -> 181 | AG182: ～ | AH182: =SUM($AD$2:$AD182)+10 -> 190 | AI182: 問まで | AJ182: =COUNTIF($A$1:$T$200,T183) -> 2
A183: =IF(A181="","",VLOOKUP(A181,漢字書き!$A$2:$N$506,6,0)) -> ［サクヤ］は雨だった | B183: =IF(B181="","",VLOOKUP(B181,漢字書き!$A$2:$N$506,6,0)) -> ［ハツユキ］がふる | C183: =IF(C181="","",VLOOKUP(C181,漢字書き!$A$2:$N$506,6,0)) -> 教えを皆に［ト］く | D183: =IF(D181="","",VLOOKUP(D181,漢字書き!$A$2:$N$506,6,0)) -> ［コウサ］点をわたる | E183: =IF(E181="","",VLOOKUP(E181,漢字書き!$A$2:$N$506,6,0)) -> いさましい[グンカ] | F183: =IF(F181="","",VLOOKUP(F181,漢字書き!$A$2:$N$506,6,0)) -> ［ナガサキケン］から来た人 | G183: =IF(G181="","",VLOOKUP(G181,漢字書き!$A$2:$N$506,6,0)) -> ［シュクショウ］会をする | H183: =IF(H181="","",VLOOKUP(H181,漢字書き!$A$2:$N$506,6,0)) -> [イド]をほる | I183: =IF(I181="","",VLOOKUP(I181,漢字書き!$A$2:$N$506,6,0)) -> 円の［チョッケイ］ | J183: =IF(J181="","",VLOOKUP(J181,漢字書き!$A$2:$N$506,6,0)) -> さつまいもを［ヤ］く | K183: =IF(K181="","",VLOOKUP(K181,漢字読み!$A$2:$O$506,6,0)) -> ［沖合］漁業 | L183: =IF(L181="","",VLOOKUP(L181,漢字読み!$A$2:$O$506,6,0)) -> [決勝戦]に出る | M183: =IF(M181="","",VLOOKUP(M181,漢字読み!$A$2:$O$506,6,0)) -> 人前で［照］れる | N183: =IF(N181="","",VLOOKUP(N181,漢字読み!$A$2:$O$506,6,0)) -> ［争］いをさける | O183: =IF(O181="","",VLOOKUP(O181,漢字読み!$A$2:$O$506,6,0)) -> ［家臣］をしたがえる | P183: =IF(P181="","",VLOOKUP(P181,漢字読み!$A$2:$O$506,6,0)) -> ［家庭的］なふん囲気 | Q183: =IF(Q181="","",VLOOKUP(Q181,漢字読み!$A$2:$O$506,6,0)) -> ほ［健室］の先生 | R183: =IF(R181="","",VLOOKUP(R181,漢字読み!$A$2:$O$506,6,0)) -> ［低］い木につかまる | S183: =IF(S181="","",VLOOKUP(S181,漢字読み!$A$2:$O$506,6,0)) -> ふん火の[前兆] | T183: =IF(T181="","",VLOOKUP(T181,漢字読み!$A$2:$O$506,6,0)) -> ロープで［固定］する | V183: 級
V184: 名前
A185: =IF(A181="","",IF(VLOOKUP(A181,漢字書き!$A$2:$N$502,7,0)=0,"",VLOOKUP(A181,漢字書き!$A$2:$N$502,7,0))) ->  | B185: =IF(B181="","",IF(VLOOKUP(B181,漢字書き!$A$2:$N$502,7,0)=0,"",VLOOKUP(B181,漢字書き!$A$2:$N$502,7,0))) ->  | C185: =IF(C181="","",IF(VLOOKUP(C181,漢字書き!$A$2:$N$502,7,0)=0,"",VLOOKUP(C181,漢字書き!$A$2:$N$502,7,0))) -> く | D185: =IF(D181="","",IF(VLOOKUP(D181,漢字書き!$A$2:$N$502,7,0)=0,"",VLOOKUP(D181,漢字書き!$A$2:$N$502,7,0))) -> 点 | E185: =IF(E181="","",IF(VLOOKUP(E181,漢字書き!$A$2:$N$502,7,0)=0,"",VLOOKUP(E181,漢字書き!$A$2:$N$502,7,0))) ->  | F185: =IF(F181="","",IF(VLOOKUP(F181,漢字書き!$A$2:$N$502,7,0)=0,"",VLOOKUP(F181,漢字書き!$A$2:$N$502,7,0))) ->  | G185: =IF(G181="","",IF(VLOOKUP(G181,漢字書き!$A$2:$N$502,7,0)=0,"",VLOOKUP(G181,漢字書き!$A$2:$N$502,7,0))) -> 会 | H185: =IF(H181="","",IF(VLOOKUP(H181,漢字書き!$A$2:$N$502,7,0)=0,"",VLOOKUP(H181,漢字書き!$A$2:$N$502,7,0))) ->  | I185: =IF(I181="","",IF(VLOOKUP(I181,漢字書き!$A$2:$N$502,7,0)=0,"",VLOOKUP(I181,漢字書き!$A$2:$N$502,7,0))) ->  | J185: =IF(J181="","",IF(VLOOKUP(J181,漢字書き!$A$2:$N$502,7,0)=0,"",VLOOKUP(J181,漢字書き!$A$2:$N$502,7,0))) -> く | K185: =IF(K181="","",IF(VLOOKUP(K181,漢字読み!$A$2:$O$502,7,0)=0,"",VLOOKUP(K181,漢字読み!$A$2:$O$502,7,0))) ->  | L185: =IF(L181="","",IF(VLOOKUP(L181,漢字読み!$A$2:$O$502,7,0)=0,"",VLOOKUP(L181,漢字読み!$A$2:$O$502,7,0))) ->  | M185: =IF(M181="","",IF(VLOOKUP(M181,漢字読み!$A$2:$O$502,7,0)=0,"",VLOOKUP(M181,漢字読み!$A$2:$O$502,7,0))) -> れる | N185: =IF(N181="","",IF(VLOOKUP(N181,漢字読み!$A$2:$O$502,7,0)=0,"",VLOOKUP(N181,漢字読み!$A$2:$O$502,7,0))) -> い | O185: =IF(O181="","",IF(VLOOKUP(O181,漢字読み!$A$2:$O$502,7,0)=0,"",VLOOKUP(O181,漢字読み!$A$2:$O$502,7,0))) ->  | P185: =IF(P181="","",IF(VLOOKUP(P181,漢字読み!$A$2:$O$502,7,0)=0,"",VLOOKUP(P181,漢字読み!$A$2:$O$502,7,0))) -> な | Q185: =IF(Q181="","",IF(VLOOKUP(Q181,漢字読み!$A$2:$O$502,7,0)=0,"",VLOOKUP(Q181,漢字読み!$A$2:$O$502,7,0))) ->  | R185: =IF(R181="","",IF(VLOOKUP(R181,漢字読み!$A$2:$O$502,7,0)=0,"",VLOOKUP(R181,漢字読み!$A$2:$O$502,7,0))) -> い | S185: =IF(S181="","",IF(VLOOKUP(S181,漢字読み!$A$2:$O$502,7,0)=0,"",VLOOKUP(S181,漢字読み!$A$2:$O$502,7,0))) ->  | T185: =IF(T181="","",IF(VLOOKUP(T181,漢字読み!$A$2:$O$502,7,0)=0,"",VLOOKUP(T181,漢字読み!$A$2:$O$502,7,0))) -> する | W185: 和歌山県教育委員会
A186: =INDIRECT("'関数（書き）'!C" & COLUMN(B$1)+SUM($AD$2:$AD187)) -> 106 | B186: =INDIRECT("'関数（書き）'!C" & COLUMN(C$1)+SUM($AD$2:$AD187)) -> 84 | C186: =INDIRECT("'関数（書き）'!C" & COLUMN(D$1)+SUM($AD$2:$AD187)) -> 67 | D186: =INDIRECT("'関数（書き）'!C" & COLUMN(E$1)+SUM($AD$2:$AD187)) -> 189 | E186: =INDIRECT("'関数（書き）'!C" & COLUMN(F$1)+SUM($AD$2:$AD187)) -> 160 | F186: =INDIRECT("'関数（書き）'!C" & COLUMN(G$1)+SUM($AD$2:$AD187)) -> 116 | G186: =INDIRECT("'関数（書き）'!C" & COLUMN(H$1)+SUM($AD$2:$AD187)) -> 174 | H186: =INDIRECT("'関数（書き）'!C" & COLUMN(I$1)+SUM($AD$2:$AD187)) -> 110 | I186: =INDIRECT("'関数（書き）'!C" & COLUMN(J$1)+SUM($AD$2:$AD187)) -> 102 | J186: =INDIRECT("'関数（書き）'!C" & COLUMN(K$1)+SUM($AD$2:$AD187)) -> 181 | K186: =INDIRECT("'関数（読み）'!C" & COLUMN(B$1)+SUM($AD$2:$AD187)) -> 54 | L186: =INDIRECT("'関数（読み）'!C" & COLUMN(C$1)+SUM($AD$2:$AD187)) -> 70 | M186: =INDIRECT("'関数（読み）'!C" & COLUMN(D$1)+SUM($AD$2:$AD187)) -> 1 | N186: =INDIRECT("'関数（読み）'!C" & COLUMN(E$1)+SUM($AD$2:$AD187)) -> 43 | O186: =INDIRECT("'関数（読み）'!C" & COLUMN(F$1)+SUM($AD$2:$AD187)) -> 18 | P186: =INDIRECT("'関数（読み）'!C" & COLUMN(G$1)+SUM($AD$2:$AD187)) -> 161 | Q186: =INDIRECT("'関数（読み）'!C" & COLUMN(H$1)+SUM($AD$2:$AD187)) -> 34 | R186: =INDIRECT("'関数（読み）'!C" & COLUMN(I$1)+SUM($AD$2:$AD187)) -> 24 | S186: =INDIRECT("'関数（読み）'!C" & COLUMN(J$1)+SUM($AD$2:$AD187)) -> 197 | T186: =INDIRECT("'関数（読み）'!C" & COLUMN(K$1)+SUM($AD$2:$AD187)) -> 69
A187: ⑳ | B187: ⑲ | C187: ⑱ | D187: ⑰ | E187: ⑯ | F187: ⑮ | G187: ⑭ | H187: ⑬ | I187: ⑫ | J187: ⑪ | K187: ⑩ | L187: ⑨ | M187: ⑧ | N187: ⑦ | O187: ⑥ | P187: ⑤ | Q187: ④ | R187: ③ | S187: ② | T187: ① | U187: 次の［ ］の部分の漢字には読みがなをひらがなで書き、カタカナは漢字に直しなさい。 | V187: 10 | W187: 「漢字の博士検定試験」練習問題 | AC187: ← | AD187: 10 | AE187: 問 | AF187: =AH182+1 -> 191 | AG187: ～ | AH187: =SUM($AD$2:$AD187)+10 -> 200 | AI187: 問まで | AJ187: =COUNTIF($A$1:$T$200,T188) -> 2
A188: =IF(A186="","",VLOOKUP(A186,漢字書き!$A$2:$N$506,6,0)) -> ［シュウイ］の長さ | B188: =IF(B186="","",VLOOKUP(B186,漢字書き!$A$2:$N$506,6,0)) -> ［シガケン］の名物 | C188: =IF(C186="","",VLOOKUP(C186,漢字書き!$A$2:$N$506,6,0)) -> はがきに絵を［ス］る | D188: =IF(D186="","",VLOOKUP(D186,漢字書き!$A$2:$N$506,6,0)) -> ［トモダチ］とわかれる | E188: =IF(E186="","",VLOOKUP(E186,漢字書き!$A$2:$N$506,6,0)) -> 人生の［フシメ］ | F188: =IF(F186="","",VLOOKUP(F186,漢字書き!$A$2:$N$506,6,0)) -> [ハツ]もうでに行く | G188: =IF(G186="","",VLOOKUP(G186,漢字書き!$A$2:$N$506,6,0)) -> 一位を［アラソ］う | H188: =IF(H186="","",VLOOKUP(H186,漢字書き!$A$2:$N$506,6,0)) -> ［ジュンバン］を待つ | I188: =IF(I186="","",VLOOKUP(I186,漢字書き!$A$2:$N$506,6,0)) -> ［シャッキン］をする | J188: =IF(J186="","",VLOOKUP(J186,漢字書き!$A$2:$N$506,6,0)) -> ［ミギガワ］を通る | K188: =IF(K186="","",VLOOKUP(K186,漢字読み!$A$2:$O$506,6,0)) -> ［長崎県］のカステラ | L188: =IF(L186="","",VLOOKUP(L186,漢字読み!$A$2:$O$506,6,0)) -> お茶の［香］り | M188: =IF(M186="","",VLOOKUP(M186,漢字読み!$A$2:$O$506,6,0)) -> ［給食］のおかず | N188: =IF(N186="","",VLOOKUP(N186,漢字読み!$A$2:$O$506,6,0)) -> 土を[固]める | O188: =IF(O186="","",VLOOKUP(O186,漢字読み!$A$2:$O$506,6,0)) -> マイナス[極] | P188: =IF(P186="","",VLOOKUP(P186,漢字読み!$A$2:$O$506,6,0)) -> 作り方を［説明］する | Q188: =IF(Q186="","",VLOOKUP(Q186,漢字読み!$A$2:$O$506,6,0)) -> テストの［結果］ | R188: =IF(R186="","",VLOOKUP(R186,漢字読み!$A$2:$O$506,6,0)) -> ［直径］五センチの円 | S188: =IF(S186="","",VLOOKUP(S186,漢字読み!$A$2:$O$506,6,0)) -> ［友達］と遊ぶ | T188: =IF(T186="","",VLOOKUP(T186,漢字読み!$A$2:$O$506,6,0)) -> 紙にもようを［刷］る | V188: 級
V189: 名前
A190: =IF(A186="","",IF(VLOOKUP(A186,漢字書き!$A$2:$N$502,7,0)=0,"",VLOOKUP(A186,漢字書き!$A$2:$N$502,7,0))) ->  | B190: =IF(B186="","",IF(VLOOKUP(B186,漢字書き!$A$2:$N$502,7,0)=0,"",VLOOKUP(B186,漢字書き!$A$2:$N$502,7,0))) ->  | C190: =IF(C186="","",IF(VLOOKUP(C186,漢字書き!$A$2:$N$502,7,0)=0,"",VLOOKUP(C186,漢字書き!$A$2:$N$502,7,0))) -> る | D190: =IF(D186="","",IF(VLOOKUP(D186,漢字書き!$A$2:$N$502,7,0)=0,"",VLOOKUP(D186,漢字書き!$A$2:$N$502,7,0))) ->  | E190: =IF(E186="","",IF(VLOOKUP(E186,漢字書き!$A$2:$N$502,7,0)=0,"",VLOOKUP(E186,漢字書き!$A$2:$N$502,7,0))) ->  | F190: =IF(F186="","",IF(VLOOKUP(F186,漢字書き!$A$2:$N$502,7,0)=0,"",VLOOKUP(F186,漢字書き!$A$2:$N$502,7,0))) -> もうで | G190: =IF(G186="","",IF(VLOOKUP(G186,漢字書き!$A$2:$N$502,7,0)=0,"",VLOOKUP(G186,漢字書き!$A$2:$N$502,7,0))) -> う | H190: =IF(H186="","",IF(VLOOKUP(H186,漢字書き!$A$2:$N$502,7,0)=0,"",VLOOKUP(H186,漢字書き!$A$2:$N$502,7,0))) ->  | I190: =IF(I186="","",IF(VLOOKUP(I186,漢字書き!$A$2:$N$502,7,0)=0,"",VLOOKUP(I186,漢字書き!$A$2:$N$502,7,0))) ->  | J190: =IF(J186="","",IF(VLOOKUP(J186,漢字書き!$A$2:$N$502,7,0)=0,"",VLOOKUP(J186,漢字書き!$A$2:$N$502,7,0))) ->  | K190: =IF(K186="","",IF(VLOOKUP(K186,漢字読み!$A$2:$O$502,7,0)=0,"",VLOOKUP(K186,漢字読み!$A$2:$O$502,7,0))) ->  | L190: =IF(L186="","",IF(VLOOKUP(L186,漢字読み!$A$2:$O$502,7,0)=0,"",VLOOKUP(L186,漢字読み!$A$2:$O$502,7,0))) -> り | M190: =IF(M186="","",IF(VLOOKUP(M186,漢字読み!$A$2:$O$502,7,0)=0,"",VLOOKUP(M186,漢字読み!$A$2:$O$502,7,0))) ->  | N190: =IF(N186="","",IF(VLOOKUP(N186,漢字読み!$A$2:$O$502,7,0)=0,"",VLOOKUP(N186,漢字読み!$A$2:$O$502,7,0))) -> める | O190: =IF(O186="","",IF(VLOOKUP(O186,漢字読み!$A$2:$O$502,7,0)=0,"",VLOOKUP(O186,漢字読み!$A$2:$O$502,7,0))) ->  | P190: =IF(P186="","",IF(VLOOKUP(P186,漢字読み!$A$2:$O$502,7,0)=0,"",VLOOKUP(P186,漢字読み!$A$2:$O$502,7,0))) -> する | Q190: =IF(Q186="","",IF(VLOOKUP(Q186,漢字読み!$A$2:$O$502,7,0)=0,"",VLOOKUP(Q186,漢字読み!$A$2:$O$502,7,0))) ->  | R190: =IF(R186="","",IF(VLOOKUP(R186,漢字読み!$A$2:$O$502,7,0)=0,"",VLOOKUP(R186,漢字読み!$A$2:$O$502,7,0))) ->  | S190: =IF(S186="","",IF(VLOOKUP(S186,漢字読み!$A$2:$O$502,7,0)=0,"",VLOOKUP(S186,漢字読み!$A$2:$O$502,7,0))) ->  | T190: =IF(T186="","",IF(VLOOKUP(T186,漢字読み!$A$2:$O$502,7,0)=0,"",VLOOKUP(T186,漢字読み!$A$2:$O$502,7,0))) -> る | W190: 和歌山県教育委員会
A191: =A181 -> 63 | B191: 114 | C191: 162 | D191: 55 | E191: 21 | F191: 54 | G191: 108 | H191: 210 | I191: 23 | J191: 126 | K191: 52 | L191: 167 | M191: 133 | N191: 174 | O191: 138 | P191: 218 | Q191: 39 | R191: 212 | S191: 207 | T191: 42
A192: ⑳ | B192: ⑲ | C192: ⑱ | D192: ⑰ | E192: ⑯ | F192: ⑮ | G192: ⑭ | H192: ⑬ | I192: ⑫ | J192: ⑪ | K192: ⑩ | L192: ⑨ | M192: ⑧ | N192: ⑦ | O192: ⑥ | P192: ⑤ | Q192: ④ | R192: ③ | S192: ② | T192: ① | U192: 次の［ ］の部分の漢字には読みがなをひらがなで書き、カタカナは漢字に直しなさい。 | V192: 10 | W192: 「漢字の博士検定試験」練習問題
A193: =IF(A191="","",VLOOKUP(A191,漢字書き!$A$2:$N$506,6,0)) -> ［サクヤ］は雨だった | B193: =IF(B191="","",VLOOKUP(B191,漢字書き!$A$2:$N$506,6,0)) -> ［ハツユキ］がふる | C193: =IF(C191="","",VLOOKUP(C191,漢字書き!$A$2:$N$506,6,0)) -> 教えを皆に［ト］く | D193: =IF(D191="","",VLOOKUP(D191,漢字書き!$A$2:$N$506,6,0)) -> ［コウサ］点をわたる | E193: =IF(E191="","",VLOOKUP(E191,漢字書き!$A$2:$N$506,6,0)) -> いさましい[グンカ] | F193: =IF(F191="","",VLOOKUP(F191,漢字書き!$A$2:$N$506,6,0)) -> ［ナガサキケン］から来た人 | G193: =IF(G191="","",VLOOKUP(G191,漢字書き!$A$2:$N$506,6,0)) -> ［シュクショウ］会をする | H193: =IF(H191="","",VLOOKUP(H191,漢字書き!$A$2:$N$506,6,0)) -> [イド]をほる | I193: =IF(I191="","",VLOOKUP(I191,漢字書き!$A$2:$N$506,6,0)) -> 円の［チョッケイ］ | J193: =IF(J191="","",VLOOKUP(J191,漢字書き!$A$2:$N$506,6,0)) -> さつまいもを［ヤ］く | K193: =IF(K191="","",VLOOKUP(K191,漢字読み!$A$2:$O$506,6,0)) -> ［沖合］漁業 | L193: =IF(L191="","",VLOOKUP(L191,漢字読み!$A$2:$O$506,6,0)) -> [決勝戦]に出る | M193: =IF(M191="","",VLOOKUP(M191,漢字読み!$A$2:$O$506,6,0)) -> 人前で［照］れる | N193: =IF(N191="","",VLOOKUP(N191,漢字読み!$A$2:$O$506,6,0)) -> ［争］いをさける | O193: =IF(O191="","",VLOOKUP(O191,漢字読み!$A$2:$O$506,6,0)) -> ［家臣］をしたがえる | P193: =IF(P191="","",VLOOKUP(P191,漢字読み!$A$2:$O$506,6,0)) -> ［家庭的］なふん囲気 | Q193: =IF(Q191="","",VLOOKUP(Q191,漢字読み!$A$2:$O$506,6,0)) -> ほ［健室］の先生 | R193: =IF(R191="","",VLOOKUP(R191,漢字読み!$A$2:$O$506,6,0)) -> ［低］い木につかまる | S193: =IF(S191="","",VLOOKUP(S191,漢字読み!$A$2:$O$506,6,0)) -> ふん火の[前兆] | T193: =IF(T191="","",VLOOKUP(T191,漢字読み!$A$2:$O$506,6,0)) -> ロープで［固定］する | V193: 級
A194: =IF(A$11="","",VLOOKUP(A191,漢字書き!$A$2:$O$506,8,0)) -> 昨夜 | B194: =IF(B$11="","",VLOOKUP(B191,漢字書き!$A$2:$O$506,8,0)) -> 初雪 | C194: =IF(C$11="","",VLOOKUP(C191,漢字書き!$A$2:$O$506,8,0)) -> 説 | D194: =IF(D$11="","",VLOOKUP(D191,漢字書き!$A$2:$O$506,8,0)) -> 交差 | E194: =IF(E$11="","",VLOOKUP(E191,漢字書き!$A$2:$O$506,8,0)) -> 軍歌 | F194: =IF(F$11="","",VLOOKUP(F191,漢字書き!$A$2:$O$506,8,0)) -> 長崎県 | G194: =IF(G$11="","",VLOOKUP(G191,漢字書き!$A$2:$O$506,8,0)) -> 祝勝 | H194: =IF(H$11="","",VLOOKUP(H191,漢字書き!$A$2:$O$506,8,0)) -> 井戸 | I194: =IF(I$11="","",VLOOKUP(I191,漢字書き!$A$2:$O$506,8,0)) -> 直径 | J194: =IF(J$11="","",VLOOKUP(J191,漢字書き!$A$2:$O$506,8,0)) -> 焼 | K194: =IF(K$11="","",VLOOKUP(K191,漢字読み!$A$2:$O$506,8,0)) -> おきあい | L194: =IF(L$11="","",VLOOKUP(L191,漢字読み!$A$2:$O$506,8,0)) -> けっしょうせん | M194: =IF(M$11="","",VLOOKUP(M191,漢字読み!$A$2:$O$506,8,0)) -> て | N194: =IF(N$11="","",VLOOKUP(N191,漢字読み!$A$2:$O$506,8,0)) -> あらそ | O194: =IF(O$11="","",VLOOKUP(O191,漢字読み!$A$2:$O$506,8,0)) -> かしん | P194: =IF(P$11="","",VLOOKUP(P191,漢字読み!$A$2:$O$506,8,0)) -> かていてき | Q194: =IF(Q$11="","",VLOOKUP(Q191,漢字読み!$A$2:$O$506,8,0)) -> けんしつ | R194: =IF(R$11="","",VLOOKUP(R191,漢字読み!$A$2:$O$506,8,0)) -> ひく | S194: =IF(S$11="","",VLOOKUP(S191,漢字読み!$A$2:$O$506,8,0)) -> ぜんちょう | T194: =IF(T$11="","",VLOOKUP(T191,漢字読み!$A$2:$O$506,8,0)) -> こてい | V194: 名前
A195: =IF(A191="","",IF(VLOOKUP(A191,漢字書き!$A$2:$N$502,7,0)=0,"",VLOOKUP(A191,漢字書き!$A$2:$N$502,7,0))) ->  | B195: =IF(B191="","",IF(VLOOKUP(B191,漢字書き!$A$2:$N$502,7,0)=0,"",VLOOKUP(B191,漢字書き!$A$2:$N$502,7,0))) ->  | C195: =IF(C191="","",IF(VLOOKUP(C191,漢字書き!$A$2:$N$502,7,0)=0,"",VLOOKUP(C191,漢字書き!$A$2:$N$502,7,0))) -> く | D195: =IF(D191="","",IF(VLOOKUP(D191,漢字書き!$A$2:$N$502,7,0)=0,"",VLOOKUP(D191,漢字書き!$A$2:$N$502,7,0))) -> 点 | E195: =IF(E191="","",IF(VLOOKUP(E191,漢字書き!$A$2:$N$502,7,0)=0,"",VLOOKUP(E191,漢字書き!$A$2:$N$502,7,0))) ->  | F195: =IF(F191="","",IF(VLOOKUP(F191,漢字書き!$A$2:$N$502,7,0)=0,"",VLOOKUP(F191,漢字書き!$A$2:$N$502,7,0))) ->  | G195: =IF(G191="","",IF(VLOOKUP(G191,漢字書き!$A$2:$N$502,7,0)=0,"",VLOOKUP(G191,漢字書き!$A$2:$N$502,7,0))) -> 会 | H195: =IF(H191="","",IF(VLOOKUP(H191,漢字書き!$A$2:$N$502,7,0)=0,"",VLOOKUP(H191,漢字書き!$A$2:$N$502,7,0))) ->  | I195: =IF(I191="","",IF(VLOOKUP(I191,漢字書き!$A$2:$N$502,7,0)=0,"",VLOOKUP(I191,漢字書き!$A$2:$N$502,7,0))) ->  | J195: =IF(J191="","",IF(VLOOKUP(J191,漢字書き!$A$2:$N$502,7,0)=0,"",VLOOKUP(J191,漢字書き!$A$2:$N$502,7,0))) -> く | K195: =IF(K191="","",IF(VLOOKUP(K191,漢字読み!$A$2:$O$502,7,0)=0,"",VLOOKUP(K191,漢字読み!$A$2:$O$502,7,0))) ->  | L195: =IF(L191="","",IF(VLOOKUP(L191,漢字読み!$A$2:$O$502,7,0)=0,"",VLOOKUP(L191,漢字読み!$A$2:$O$502,7,0))) ->  | M195: =IF(M191="","",IF(VLOOKUP(M191,漢字読み!$A$2:$O$502,7,0)=0,"",VLOOKUP(M191,漢字読み!$A$2:$O$502,7,0))) -> れる | N195: =IF(N191="","",IF(VLOOKUP(N191,漢字読み!$A$2:$O$502,7,0)=0,"",VLOOKUP(N191,漢字読み!$A$2:$O$502,7,0))) -> い | O195: =IF(O191="","",IF(VLOOKUP(O191,漢字読み!$A$2:$O$502,7,0)=0,"",VLOOKUP(O191,漢字読み!$A$2:$O$502,7,0))) ->  | P195: =IF(P191="","",IF(VLOOKUP(P191,漢字読み!$A$2:$O$502,7,0)=0,"",VLOOKUP(P191,漢字読み!$A$2:$O$502,7,0))) -> な | Q195: =IF(Q191="","",IF(VLOOKUP(Q191,漢字読み!$A$2:$O$502,7,0)=0,"",VLOOKUP(Q191,漢字読み!$A$2:$O$502,7,0))) ->  | R195: =IF(R191="","",IF(VLOOKUP(R191,漢字読み!$A$2:$O$502,7,0)=0,"",VLOOKUP(R191,漢字読み!$A$2:$O$502,7,0))) -> い | S195: =IF(S191="","",IF(VLOOKUP(S191,漢字読み!$A$2:$O$502,7,0)=0,"",VLOOKUP(S191,漢字読み!$A$2:$O$502,7,0))) ->  | T195: =IF(T191="","",IF(VLOOKUP(T191,漢字読み!$A$2:$O$502,7,0)=0,"",VLOOKUP(T191,漢字読み!$A$2:$O$502,7,0))) -> する | W195: 和歌山県教育委員会
A196: =A186 -> 106 | B196: 84 | C196: 67 | D196: 189 | E196: 160 | F196: 116 | G196: 174 | H196: 110 | I196: 102 | J196: 181 | K196: 54 | L196: 70 | M196: 1 | N196: 43 | O196: 18 | P196: 161 | Q196: 34 | R196: 24 | S196: 197 | T196: 69
A197: ⑳ | B197: ⑲ | C197: ⑱ | D197: ⑰ | E197: ⑯ | F197: ⑮ | G197: ⑭ | H197: ⑬ | I197: ⑫ | J197: ⑪ | K197: ⑩ | L197: ⑨ | M197: ⑧ | N197: ⑦ | O197: ⑥ | P197: ⑤ | Q197: ④ | R197: ③ | S197: ② | T197: ① | U197: 次の［ ］の部分の漢字には読みがなをひらがなで書き、カタカナは漢字に直しなさい。 | V197: 10 | W197: 「漢字の博士検定試験」練習問題
A198: =IF(A196="","",VLOOKUP(A196,漢字書き!$A$2:$N$506,6,0)) -> ［シュウイ］の長さ | B198: =IF(B196="","",VLOOKUP(B196,漢字書き!$A$2:$N$506,6,0)) -> ［シガケン］の名物 | C198: =IF(C196="","",VLOOKUP(C196,漢字書き!$A$2:$N$506,6,0)) -> はがきに絵を［ス］る | D198: =IF(D196="","",VLOOKUP(D196,漢字書き!$A$2:$N$506,6,0)) -> ［トモダチ］とわかれる | E198: =IF(E196="","",VLOOKUP(E196,漢字書き!$A$2:$N$506,6,0)) -> 人生の［フシメ］ | F198: =IF(F196="","",VLOOKUP(F196,漢字書き!$A$2:$N$506,6,0)) -> [ハツ]もうでに行く | G198: =IF(G196="","",VLOOKUP(G196,漢字書き!$A$2:$N$506,6,0)) -> 一位を［アラソ］う | H198: =IF(H196="","",VLOOKUP(H196,漢字書き!$A$2:$N$506,6,0)) -> ［ジュンバン］を待つ | I198: =IF(I196="","",VLOOKUP(I196,漢字書き!$A$2:$N$506,6,0)) -> ［シャッキン］をする | J198: =IF(J196="","",VLOOKUP(J196,漢字書き!$A$2:$N$506,6,0)) -> ［ミギガワ］を通る | K198: =IF(K196="","",VLOOKUP(K196,漢字読み!$A$2:$O$506,6,0)) -> ［長崎県］のカステラ | L198: =IF(L196="","",VLOOKUP(L196,漢字読み!$A$2:$O$506,6,0)) -> お茶の［香］り | M198: =IF(M196="","",VLOOKUP(M196,漢字読み!$A$2:$O$506,6,0)) -> ［給食］のおかず | N198: =IF(N196="","",VLOOKUP(N196,漢字読み!$A$2:$O$506,6,0)) -> 土を[固]める | O198: =IF(O196="","",VLOOKUP(O196,漢字読み!$A$2:$O$506,6,0)) -> マイナス[極] | P198: =IF(P196="","",VLOOKUP(P196,漢字読み!$A$2:$O$506,6,0)) -> 作り方を［説明］する | Q198: =IF(Q196="","",VLOOKUP(Q196,漢字読み!$A$2:$O$506,6,0)) -> テストの［結果］ | R198: =IF(R196="","",VLOOKUP(R196,漢字読み!$A$2:$O$506,6,0)) -> ［直径］五センチの円 | S198: =IF(S196="","",VLOOKUP(S196,漢字読み!$A$2:$O$506,6,0)) -> ［友達］と遊ぶ | T198: =IF(T196="","",VLOOKUP(T196,漢字読み!$A$2:$O$506,6,0)) -> 紙にもようを［刷］る | V198: 級
A199: =IF(A$16="","",VLOOKUP(A196,漢字書き!$A$2:$O$506,8,0)) -> 周囲 | B199: =IF(B$16="","",VLOOKUP(B196,漢字書き!$A$2:$O$506,8,0)) -> 滋賀県 | C199: =IF(C$16="","",VLOOKUP(C196,漢字書き!$A$2:$O$506,8,0)) -> 刷 | D199: =IF(D$16="","",VLOOKUP(D196,漢字書き!$A$2:$O$506,8,0)) -> 友達 | E199: =IF(E$16="","",VLOOKUP(E196,漢字書き!$A$2:$O$506,8,0)) -> 節目 | F199: =IF(F$16="","",VLOOKUP(F196,漢字書き!$A$2:$O$506,8,0)) -> 初 | G199: =IF(G$16="","",VLOOKUP(G196,漢字書き!$A$2:$O$506,8,0)) -> 争 | H199: =IF(H$16="","",VLOOKUP(H196,漢字書き!$A$2:$O$506,8,0)) -> 順番 | I199: =IF(I$16="","",VLOOKUP(I196,漢字書き!$A$2:$O$506,8,0)) -> 借金 | J199: =IF(J$16="","",VLOOKUP(J196,漢字書き!$A$2:$O$506,8,0)) -> 右側 | K199: =IF(K$16="","",VLOOKUP(K196,漢字読み!$A$2:$O$506,8,0)) -> ながさきけん | L199: =IF(L$16="","",VLOOKUP(L196,漢字読み!$A$2:$O$506,8,0)) -> かお | M199: =IF(M$16="","",VLOOKUP(M196,漢字読み!$A$2:$O$506,8,0)) -> きゅうしょく | N199: =IF(N$16="","",VLOOKUP(N196,漢字読み!$A$2:$O$506,8,0)) -> かた | O199: =IF(O$16="","",VLOOKUP(O196,漢字読み!$A$2:$O$506,8,0)) -> きょく | P199: =IF(P$16="","",VLOOKUP(P196,漢字読み!$A$2:$O$506,8,0)) -> せつめい | Q199: =IF(Q$16="","",VLOOKUP(Q196,漢字読み!$A$2:$O$506,8,0)) -> けっか | R199: =IF(R$16="","",VLOOKUP(R196,漢字読み!$A$2:$O$506,8,0)) -> ちょっけい | S199: =IF(S$16="","",VLOOKUP(S196,漢字読み!$A$2:$O$506,8,0)) -> ともだち | T199: =IF(T$16="","",VLOOKUP(T196,漢字読み!$A$2:$O$506,8,0)) -> す | V199: 名前
A200: =IF(A196="","",IF(VLOOKUP(A196,漢字書き!$A$2:$N$502,7,0)=0,"",VLOOKUP(A196,漢字書き!$A$2:$N$502,7,0))) ->  | B200: =IF(B196="","",IF(VLOOKUP(B196,漢字書き!$A$2:$N$502,7,0)=0,"",VLOOKUP(B196,漢字書き!$A$2:$N$502,7,0))) ->  | C200: =IF(C196="","",IF(VLOOKUP(C196,漢字書き!$A$2:$N$502,7,0)=0,"",VLOOKUP(C196,漢字書き!$A$2:$N$502,7,0))) -> る | D200: =IF(D196="","",IF(VLOOKUP(D196,漢字書き!$A$2:$N$502,7,0)=0,"",VLOOKUP(D196,漢字書き!$A$2:$N$502,7,0))) ->  | E200: =IF(E196="","",IF(VLOOKUP(E196,漢字書き!$A$2:$N$502,7,0)=0,"",VLOOKUP(E196,漢字書き!$A$2:$N$502,7,0))) ->  | F200: =IF(F196="","",IF(VLOOKUP(F196,漢字書き!$A$2:$N$502,7,0)=0,"",VLOOKUP(F196,漢字書き!$A$2:$N$502,7,0))) -> もうで | G200: =IF(G196="","",IF(VLOOKUP(G196,漢字書き!$A$2:$N$502,7,0)=0,"",VLOOKUP(G196,漢字書き!$A$2:$N$502,7,0))) -> う | H200: =IF(H196="","",IF(VLOOKUP(H196,漢字書き!$A$2:$N$502,7,0)=0,"",VLOOKUP(H196,漢字書き!$A$2:$N$502,7,0))) ->  | I200: =IF(I196="","",IF(VLOOKUP(I196,漢字書き!$A$2:$N$502,7,0)=0,"",VLOOKUP(I196,漢字書き!$A$2:$N$502,7,0))) ->  | J200: =IF(J196="","",IF(VLOOKUP(J196,漢字書き!$A$2:$N$502,7,0)=0,"",VLOOKUP(J196,漢字書き!$A$2:$N$502,7,0))) ->  | K200: =IF(K196="","",IF(VLOOKUP(K196,漢字読み!$A$2:$O$502,7,0)=0,"",VLOOKUP(K196,漢字読み!$A$2:$O$502,7,0))) ->  | L200: =IF(L196="","",IF(VLOOKUP(L196,漢字読み!$A$2:$O$502,7,0)=0,"",VLOOKUP(L196,漢字読み!$A$2:$O$502,7,0))) -> り | M200: =IF(M196="","",IF(VLOOKUP(M196,漢字読み!$A$2:$O$502,7,0)=0,"",VLOOKUP(M196,漢字読み!$A$2:$O$502,7,0))) ->  | N200: =IF(N196="","",IF(VLOOKUP(N196,漢字読み!$A$2:$O$502,7,0)=0,"",VLOOKUP(N196,漢字読み!$A$2:$O$502,7,0))) -> める | O200: =IF(O196="","",IF(VLOOKUP(O196,漢字読み!$A$2:$O$502,7,0)=0,"",VLOOKUP(O196,漢字読み!$A$2:$O$502,7,0))) ->  | P200: =IF(P196="","",IF(VLOOKUP(P196,漢字読み!$A$2:$O$502,7,0)=0,"",VLOOKUP(P196,漢字読み!$A$2:$O$502,7,0))) -> する | Q200: =IF(Q196="","",IF(VLOOKUP(Q196,漢字読み!$A$2:$O$502,7,0)=0,"",VLOOKUP(Q196,漢字読み!$A$2:$O$502,7,0))) ->  | R200: =IF(R196="","",IF(VLOOKUP(R196,漢字読み!$A$2:$O$502,7,0)=0,"",VLOOKUP(R196,漢字読み!$A$2:$O$502,7,0))) ->  | S200: =IF(S196="","",IF(VLOOKUP(S196,漢字読み!$A$2:$O$502,7,0)=0,"",VLOOKUP(S196,漢字読み!$A$2:$O$502,7,0))) ->  | T200: =IF(T196="","",IF(VLOOKUP(T196,漢字読み!$A$2:$O$502,7,0)=0,"",VLOOKUP(T196,漢字読み!$A$2:$O$502,7,0))) -> る | W200: 和歌山県教育委員会
... 220 more rows

Sheet 漢字読み
A1: 通し番号 | B1: 問題番号 | C1: 漢字 | D1: 読み | E1: 音訓 | F1: 問題 | G1: 送り仮名 | H1: 読み方
A2: 1 | B2: 1 | C2: 給 | D2: キュウ | E2: 1 | F2: ［給食］のおかず | H2: きゅうしょく
A3: 2 | B3: 1 | C3: 給 | D3: キュウ | E3: 1 | F3: 食べ物を［配給］する | G3: する | H3: はいきゅう
A4: 3 | B4: 2 | C4: 挙 | D4: キョ | E4: 1 | F4: ［選挙］を行う | H4: せんきょ
A5: 4 | B5: 2 | C5: 挙 | D5: キョ | E5: 2 | F5: 手が［挙］がる | G5: がる | H5: あ
A6: 5 | B6: 2 | C6: 挙 | D6: キョ | E6: 2 | F6: 両手を［挙］げる | G6: げる | H6: あ
A7: 6 | B7: 3 | C7: 漁 | D7: ギョ | E7: 1 | F7: ［漁業］の町 | H7: ぎょぎょう
A8: 7 | B8: 3 | C8: 漁 | D8: ギョ | E8: 1 | F8: 今日は［大漁］だ | H8: たいりょう
A9: 8 | B9: 3 | C9: 漁 | D9: ギョ | E9: 1 | F9: ［漁］に出る | H9: りょう
A10: 9 | B10: 4 | C10: 共 | D10: キョウ | E10: 1 | F10: ［共同］で取り組む | H10: きょうどう
A11: 10 | B11: 4 | C11: 共 | D11: キョウ | E11: 2 | F11: ［共］に歌おう | H11: とも
A12: 11 | B12: 5 | C12: 協 | D12: キョウ | E12: 1 | F12: みんなで［協力］する | G12: する | H12: きょうりょく
A13: 12 | B13: 5 | C13: 協 | D13: キョウ | E13: 1 | F13: 体育［協会］に入る | H13: きょうかい
A14: 13 | B14: 6 | C14: 鏡 | D14: キョウ | E14: 1 | F14: 母の［鏡台］ | H14: きょうだい
A15: 14 | B15: 6 | C15: 鏡 | D15: キョウ | E15: 2 | F15: ［鏡］を見る | H15: かがみ
A16: 15 | B16: 7 | C16: 競 | D16: キョウ | E16: 1 | F16: 百メートル［競走］ | H16: きょうそう
A17: 16 | B17: 7 | C17: 競 | D17: キョウ | E17: 2 | F17: 力を［競］う | G17: う | H17: きそ
A18: 17 | B18: 8 | C18: 極 | D18: キョク | E18: 1 | F18: ［北極］の白クマ | H18: ほっきょく
A19: 18 | B19: 8 | C19: 極 | D19: キョク | E19: 1 | F19: マイナス[極] | H19: きょく
A20: 19 | B20: 9 | C20: 訓 | D20: クン | E20: 1 | F20: ひなん［訓練］ | H20: くんれん
A21: 20 | B21: 9 | C21: 訓 | D21: クン | E21: 1 | F21: ［訓読］みの漢字 | G21: み | H21: くんよ
A22: 21 | B22: 10 | C22: 軍 | D22: グン | E22: 1 | F22: ［一軍］の選手になる | H22: いちぐん
A23: 22 | B23: 11 | C23: 郡 | D23: グン | E23: 1 | F23: ［郡］と町村 | H23: ぐん
A24: 23 | B24: 12 | C24: 径 | D24: ケイ | E24: 1 | F24: 円の［半径］ | H24: はんけい
A25: 24 | B25: 12 | C25: 径 | D25: ケイ | E25: 1 | F25: ［直径］五センチの円 | H25: ちょっけい
A26: 25 | B26: 13 | C26: 泣 | D26: キュウ | E26: 2 | F26: 声を上げて［泣］く | G26: く | H26: な
A27: 26 | B27: 13 | C27: 泣 | D27: キュウ | E27: 2 | F27: ［泣］きっ面にハチ | G27: きっ面 | H27: な
A28: 27 | B28: 14 | C28: 景 | D28: ケイ | E28: 1 | F28: すばらしい［風景］ | H28: ふうけい
A29: 28 | B29: 14 | C29: 景 | D29: ケイ | E29: 1 | F29: ［景品］をもらう | H29: けいひん
A30: 29 | B30: 14 | C30: 景 | D30: ケイ | E30: 2 | F30: ［景色］をながめる | H30: けしき
A31: 30 | B31: 15 | C31: 芸 | D31: ゲイ | E31: 1 | F31: ［園芸］用品を買う | H31: えんげい
A32: 31 | B32: 15 | C32: 芸 | D32: ゲイ | E32: 1 | F32: ［学芸会］でげきをする | H32: がくげいかい
A33: 32 | B33: 16 | C33: 欠 | D33: ケツ | E33: 1 | F33: じゅ業を［欠席］する | G33: する | H33: けっせき
A34: 33 | B34: 16 | C34: 欠 | D34: ケツ | E34: 2 | F34: 月が［欠］ける | G34: ける | H34: か
A35: 34 | B35: 17 | C35: 結 | D35: ケツ | E35: 1 | F35: テストの［結果］ | H35: けっか
A36: 35 | B36: 17 | C36: 結 | D36: ケツ | E36: 2 | F36: ひもを［結］ぶ | G36: ぶ | H36: むす
A37: 36 | B37: 17 | C37: 結 | D37: ケツ | E37: 1 | F37: 列車をれん[結]する | G37: する | H37: けつ
A38: 37 | B38: 18 | C38: 建 | D38: ケン | E38: 1 | F38: ビルの［建］ちく | G38: ちく | H38: けん
A39: 38 | B39: 18 | C39: 建 | D39: ケン | E39: 2 | F39: 家を［建］てる | G39: てる | H39: た
A40: 39 | B40: 19 | C40: 健 | D40: ケン | E40: 1 | F40: ほ［健室］の先生 | H40: けんしつ
A41: 40 | B41: 19 | C41: 健 | D41: ケン | E41: 1 | F41: [健全]な体 | G41: な | H41: けんぜん
A42: 41 | B42: 20 | C42: 験 | D42: ケン | E42: 1 | F42: ［体験］を語る | H42: たいけん
A43: 42 | B43: 21 | C43: 固 | D43: コ | E43: 1 | F43: ロープで［固定］する | G43: する | H43: こてい
A44: 43 | B44: 21 | C44: 固 | D44: コ | E44: 2 | F44: 土を[固]める | G44: める | H44: かた
A45: 44 | B45: 21 | C45: 固 | D45: コ | E45: 2 | F45: ［固］い友情 | G45: い | H45: かた
A46: 45 | B46: 22 | C46: 功 | D46: コウ | E46: 1 | F46: ［成功］をおさめる | H46: せいこう
A47: 46 | B47: 23 | C47: 好 | D47: コウ | E47: 1 | F47: ［好物］のケーキ | H47: こうぶつ
A48: 47 | B48: 23 | C48: 好 | D48: コウ | E48: 2 | F48: 犬が［好］き | G48: き | H48: す
A49: 48 | B49: 23 | C49: 好 | D49: コウ | E49: 2 | F49: 人に［好］まれる | G49: まれる | H49: この
A50: 49 | B50: 24 | C50: 候 | D50: コウ | E50: 1 | F50: あたたかい［気候］ | H50: きこう
A51: 50 | B51: 24 | C51: 候 | D51: コウ | E51: 1 | F51: 書記に［立候］ほする | G51: ほ | H51: りっこう
A52: 51 | B52: 25 | C52: 沖 | D52: チュウ | E52: 2 | F52: ［沖縄県］産のフルーツ | H52: おきなわけん
A53: 52 | B53: 25 | C53: 沖 | D53: チュウ | E53: 2 | F53: ［沖合］漁業 | H53: おきあい
A54: 53 | B54: 26 | C54: 康 | D54: コウ | E54: 1 | F54: ［健康］な体 | G54: な | H54: けんこう
A55: 54 | B55: 27 | C55: 崎 | D55: サキ | E55: 2 | F55: ［長崎県］のカステラ | H55: ながさきけん
A56: 55 | B56: 27 | C56: 崎 | D56: サキ | E56: 2 | F56: ［宮崎県］のマンゴー | H56: みやざきけん
A57: 56 | B57: 28 | C57: 差 | D57: サ | E57: 1 | F57: ライバルに［差］をつける | H57: さ
A58: 57 | B58: 28 | C58: 差 | D58: サ | E58: 1 | F58: ［交差］点をわたる | G58: 点 | H58: こうさ
A59: 58 | B59: 28 | C59: 差 | D59: サ | E59: 2 | F59: 夕日が［差］す | G59: す | H59: さ
A60: 59 | B60: 29 | C60: 菜 | D60: サイ | E60: 1 | F60: ［野菜］を育てる | H60: やさい
A61: 60 | B61: 29 | C61: 菜 | D61: サイ | E61: 2 | F61: ［菜］の花畑で遊ぶ | H61: な
A62: 61 | B62: 30 | C62: 最 | D62: サイ | E62: 1 | F62: ［最高］の気分 | H62: さいこう
A63: 62 | B63: 30 | C63: 最 | D63: サイ | E63: 2 | F63: ［最］も高い山 | G63: も | H63: もっと
A64: 63 | B64: 31 | C64: 材 | D64: ザイ | E64: 1 | F64: ［木材］を運ぶ | H64: もくざい
A65: 64 | B65: 32 | C65: 昨 | D65: サク | E65: 1 | F65: ［昨日］の天気 | H65: さくじつ・きのう
A66: 65 | B66: 32 | C66: 昨 | D66: サク | E66: 1 | F66: ［昨年］の夏 | H66: さくねん
A67: 66 | B67: 33 | C67: 札 | D67: サツ | E67: 1 | F67: ［表札］をかける | H67: ひょうさつ
A68: 67 | B68: 33 | C68: 札 | D68: サツ | E68: 2 | F68: ［名札］をつける | H68: なふだ
A69: 68 | B69: 34 | C69: 刷 | D69: サツ | E69: 1 | F69: はがきの［印刷］ | H69: いんさつ
A70: 69 | B70: 34 | C70: 刷 | D70: サツ | E70: 2 | F70: 紙にもようを［刷］る | G70: る | H70: す
A71: 70 | B71: 35 | C71: 香 | D71: コウ | E71: 2 | F71: お茶の［香］り | G71: り | H71: かお
A72: 71 | B72: 35 | C72: 香 | D72: コウ | E72: 2 | F72: ［香川県］の名物 | H72: かがわけん
A73: 72 | B73: 35 | C73: 香 | D73: コウ | E73: 2 | F73: みかんの花が［香］る | G73: る | H73: かお
A74: 73 | B74: 36 | C74: 察 | D74: サツ | E74: 1 | F74: ありを［観察］する | G74: する | H74: かんさつ
A75: 74 | B75: 36 | C75: 察 | D75: サツ | E75: 1 | F75: けい［察官］になる | H75: さつかん
A76: 75 | B76: 37 | C76: 参 | D76: サン | E76: 1 | F76: 大会に［参加］する | G76: する | H76: さんか
A77: 76 | B77: 37 | C77: 参 | D77: サン | E77: 2 | F77: お宮［参］り | G77: り | H77: まい
A78: 77 | B78: 38 | C78: 産 | D78: サン | E78: 1 | F78: 工場で［生産］する | G78: する | H78: せいさん
A79: 78 | B79: 38 | C79: 産 | D79: サン | E79: 1 | F79: さかんな地場[産業] | H79: さんぎょう
A80: 79 | B80: 38 | C80: 産 | D80: サン | E80: 2 | F80: 子犬を［産］む | G80: む | H80: う
A81: 80 | B81: 38 | C81: 産 | D81: サン | E81: 2 | F81: 卵が［産］まれる | G81: まれる | H81: う
A82: 81 | B82: 39 | C82: 散 | D82: サン | E82: 1 | F82: 朝の［散歩］ | H82: さんぽ
A83: 82 | B83: 39 | C83: 散 | D83: サン | E83: 2 | F83: サクラが［散］る | G83: る | H83: ち
A84: 83 | B84: 39 | C84: 散 | D84: サン | E84: 2 | F84: 部屋を［散］らかす | G84: らかす | H84: ち
A85: 84 | B85: 40 | C85: 残 | D85: ザン | E85: 1 | F85: ［無残］なすがた | G85: な | H85: むざん
A86: 85 | B86: 40 | C86: 残 | D86: ザン | E86: 2 | F86: ［残］りの絵を仕上げる | G86: り | H86: のこ
A87: 86 | B87: 41 | C87: 茨 | D87: イバラ | E87: 1 | F87: ［茨城県］から来た人 | H87: いばらきけん
A88: 87 | B88: 42 | C88: 氏 | D88: シ | E88: 1 | F88: ［氏名］を書く | H88: しめい
A89: 88 | B89: 42 | C89: 氏 | D89: シ | E89: 1 | F89: [平氏]が栄える | H89: へいし
A90: 89 | B90: 43 | C90: 滋 | D90: シ | E90: 1 | F90: ［滋賀県］にある湖 | H90: しがけん
A91: 90 | B91: 44 | C91: 司 | D91: シ | E91: 1 | F91: ［司会］をする | H91: しかい
A92: 91 | B92: 45 | C92: 試 | D92: シ | E92: 1 | F92: ［試合］の結果 | H92: しあい
A93: 92 | B93: 45 | C93: 試 | D93: シ | E93: 2 | F93: 新しいやり方を［試］みる | G93: みる | H93: こころ
A94: 93 | B94: 45 | C94: 試 | D94: シ | E94: 1 | F94: ケーキを[試作]する | G94: する | H94: しさく
A95: 94 | B95: 46 | C95: 児 | D95: ジ | E95: 1 | F95: ［育児］はたいへんだ | H95: いくじ
A96: 95 | B96: 46 | C96: 児 | D96: ジ | E96: 1 | F96: [園児]を見送る | H96: えんじ
A97: 96 | B97: 46 | C97: 児 | D97: ジ | E97: 1 | F97: ［児童］画を観る | G97: 画 | H97: じどう
A98: 97 | B98: 47 | C98: 治 | D98: チ | E98: 1 | F98: かぜが［完治］する | G98: する | H98: かんち
A99: 98 | B99: 47 | C99: 治 | D99: チ | E99: 2 | F99: 国を［治］める | G99: める | H99: おさ
A100: 99 | B100: 47 | C100: 治 | D100: チ | E100: 2 | F100: 病気を［治］す | G100: す | H100: なお
A101: 100 | B101: 47 | C101: 治 | D101: チ | E101: 2 | F101: きずが［治］る | G101: る | H101: なお
A102: 101 | B102: 48 | C102: 辞 | D102: ジ | E102: 1 | F102: ［辞書］をひく | H102: じしょ
A103: 102 | B103: 48 | C103: 辞 | D103: ジ | E103: 1 | F103: [祝辞]をのべる | H103: しゅくじ
A104: 103 | B104: 49 | C104: 失 | D104: シツ | E104: 1 | F104: [失意]のどん底 | H104: しつい
A105: 104 | B105: 49 | C105: 失 | D105: シツ | E105: 2 | F105: 気を［失］う | G105: う | H105: うしな
A106: 105 | B106: 50 | C106: 借 | D106: シャク | E106: 1 | F106: ［借金］をする | H106: しゃっきん
A107: 106 | B107: 50 | C107: 借 | D107: シャク | E107: 2 | F107: 本を［借］りる | G107: りる | H107: か
A108: 107 | B108: 51 | C108: 種 | D108: シュ | E108: 1 | F108: 大会の［種目］ | H108: しゅもく
A109: 108 | B109: 51 | C109: 種 | D109: シュ | E109: 2 | F109: 花の［種］をまく | H109: たね
A110: 109 | B110: 52 | C110: 周 | D110: シュウ | E110: 1 | F110: 池の［周囲］ | H110: しゅうい
A111: 110 | B111: 52 | C111: 周 | D111: シュウ | E111: 2 | F111: 家の［周］り | G111: り | H111: まわ
A112: 111 | B112: 53 | C112: 祝 | D112: シュク | E112: 1 | F112: ［祝福］を受ける | H112: しゅくふく
A113: 112 | B113: 53 | C113: 祝 | D113: シュク | E113: 2 | F113: 進学［祝］いをいただく | G113: い | H113: いわ
A114: 113 | B114: 54 | C114: 順 | D114: ジュン | E114: 1 | F114: ［順調］に進む | G114: に | H114: じゅんちょう
A115: 114 | B115: 54 | C115: 順 | D115: ジュン | E115: 1 | F115: ［順番］を待つ | H115: じゅんばん
A116: 115 | B116: 55 | C116: 初 | D116: ショ | E116: 1 | F116: ［最初］から見る | H116: さいしょ
A117: 116 | B117: 55 | C117: 初 | D117: ショ | E117: 2 | F117: ［初］めて聞く話 | G117: めて | H117: はじ
A118: 117 | B118: 55 | C118: 初 | D118: ショ | E118: 2 | F118: ［初］もうでに行く | G118: もうで | H118: はつ
A119: 118 | B119: 55 | C119: 初 | D119: ショ | E119: 2 | F119: [初雪]がふる | H119: はつゆき
A120: 119 | B120: 55 | C120: 初 | D120: ショ | E120: 2 | F120: 夏の[初]め | G120: め | H120: はじ
A121: 120 | B121: 56 | C121: 松 | D121: ショウ | E121: 2 | F121: 海岸の［松林］ | H121: まつばやし
A122: 121 | B122: 57 | C122: 笑 | D122: ショウ | E122: 2 | F122: [笑]い話を聞く | G122: い話 | H122: わら
A123: 122 | B123: 57 | C123: 笑 | D123: ショウ | E123: 2 | F123: 子どもの［笑］い声 | G123: い声 | H123: わら
A124: 123 | B124: 57 | C124: 笑 | D124: ショウ | E124: 2 | F124: にっこりと[笑]う | G124: う | H124: わら
A125: 124 | B125: 58 | C125: 唱 | D125: ショウ | E125: 1 | F125: ［合唱］コンクール | H125: がっしょう
A126: 125 | B126: 58 | C126: 唱 | D126: ショウ | E126: 1 | F126: 全員で［唱和］する | G126: する | H126: しょうわ
A127: 126 | B127: 58 | C127: 唱 | D127: ショウ | E127: 2 | F127: ねんぶつを［唱］える | G127: える | H127: とな
A128: 127 | B128: 59 | C128: 焼 | D128: ショウ | E128: 2 | F128: 日に[焼]ける | G128: ける | H128: や
A129: 128 | B129: 59 | C129: 焼 | D129: ショウ | E129: 2 | F129: ［石焼］きいも | G129: き | H129: いしや
A130: 129 | B130: 60 | C130: 城 | D130: ジョウ | E130: 2 | F130: 和歌山県のお［城］ | H130: しろ
A131: 130 | B131: 60 | C131: 城 | D131: ジョウ | E131: 1 | F131: 有名な［城下町］ | H131: じょうかまち
A132: 131 | B132: 61 | C132: 照 | D132: ショウ | E132: 1 | F132: 部屋の［照明］ | H132: しょうめい
A133: 132 | B133: 61 | C133: 照 | D133: ショウ | E133: 2 | F133: ［照］り焼きハンバーグ | G133: り焼き | H133: て
A134: 133 | B134: 61 | C134: 照 | D134: ショウ | E134: 2 | F134: 人前で［照］れる | G134: れる | H134: て
A135: 134 | B135: 61 | C135: 照 | D135: ショウ | E135: 2 | F135: ［日照］りが続く | G135: り | H135: ひで
A136: 135 | B136: 62 | C136: 鹿 | D136: シカ | E136: 2 | F136: ［鹿］の角 | H136: しか
A137: 136 | B137: 62 | C137: 鹿 | D137: シカ | E137: 1 | F137: ［鹿児島県］産の肉 | G137: 産 | H137: かごしまけん
A138: 137 | B138: 63 | C138: 臣 | D138: ジン | E138: 1 | F138: ［大臣］になる | H138: だいじん
A139: 138 | B139: 63 | C139: 臣 | D139: ジン | E139: 1 | F139: ［家臣］をしたがえる | H139: かしん
A140: 139 | B140: 64 | C140: 信 | D140: シン | E140: 1 | F140: ［自信］がつく | H140: じしん
A141: 140 | B141: 64 | C141: 信 | D141: シン | E141: 1 | F141: 自分を［信］じる | G141: じる | H141: しん
A142: 141 | B142: 65 | C142: 成 | D142: セイ | E142: 1 | F142: 絵が［完成］する | G142: する | H142: かんせい
A143: 142 | B143: 65 | C143: 成 | D143: セイ | E143: 1 | F143: ［成果］をおさめる | H143: せいか
A144: 143 | B144: 65 | C144: 成 | D144: セイ | E144: 2 | F144: おそれを［成］す | G144: す | H144: な
A145: 144 | B145: 65 | C145: 成 | D145: セイ | E145: 2 | F145: ［成］り上がり者だ | G145: り | H145: な
A146: 145 | B146: 66 | C146: 省 | D146: セイ | E146: 1 | F146: ［反省］する | G146: する | H146: はんせい
A147: 146 | B147: 66 | C147: 省 | D147: ショウ | E147: 2 | F147: 説明を［省］く | G147: く | H147: はぶ
A148: 147 | B148: 67 | C148: 清 | D148: セイ | E148: 1 | F148: 川の［清流］ | H148: せいりゅう
A149: 148 | B149: 67 | C149: 清 | D149: セイ | E149: 2 | F149: ［清］らかな水 | G149: らかな | H149: きよ
A150: 149 | B150: 68 | C150: 静 | D150: セイ | E150: 1 | F150: ［静物］画をかく | G150: 画 | H150: せいぶつ
A151: 150 | B151: 68 | C151: 静 | D151: セイ | E151: 2 | F151: ［静］かな音楽 | G151: かな | H151: しず
A152: 151 | B152: 69 | C152: 席 | D152: セキ | E152: 1 | F152: かぜで［欠席］する | G152: する | H152: けっせき
A153: 152 | B153: 69 | C153: 席 | D153: セキ | E153: 1 | F153: すぐに［着席］する | G153: する | H153: ちゃくせき
A154: 153 | B154: 70 | C154: 積 | D154: セキ | E154: 1 | F154: 長方形の［面積］ | H154: めんせき
A155: 154 | B155: 70 | C155: 積 | D155: セキ | E155: 2 | F155: はこを［積］む | G155: む | H155: つ
A156: 155 | B156: 71 | C156: 折 | D156: セツ | E156: 1 | F156: ［折角］だが留守だ | H156: せっかく
A157: 156 | B157: 71 | C157: 折 | D157: セツ | E157: 2 | F157: 木を［折］る | G157: る | H157: お
A158: 157 | B158: 71 | C158: 折 | D158: セツ | E158: 2 | F158: [折]をみて話す | H158: おり
A159: 158 | B159: 72 | C159: 節 | D159: セツ | E159: 1 | F159: ［季節］がかわる | H159: きせつ
A160: 159 | B160: 72 | C160: 節 | D160: セツ | E160: 1 | F160: ［節分］の日 | H160: せつぶん
A161: 160 | B161: 72 | C161: 節 | D161: セツ | E161: 2 | F161: 竹の［節］の部分 | H161: ふし
A162: 161 | B162: 73 | C162: 説 | D162: セツ | E162: 1 | F162: 作り方を［説明］する | G162: する | H162: せつめい
A163: 162 | B163: 73 | C163: 説 | D163: セツ | E163: 1 | F163: 子どもに［説教］する | G163: する | H163: せっきょう
A164: 163 | B164: 73 | C164: 説 | D164: セツ | E164: 1 | F164: ［小説］を読む | H164: しょうせつ
A165: 164 | B165: 73 | C165: 説 | D165: セツ | E165: 2 | F165: 子どもに教えを［説］く | G165: く | H165: と
A166: 165 | B166: 74 | C166: 浅 | D166: セン | E166: 2 | F166: ［浅］い湖 | G166: い | H166: あさ
A167: 166 | B167: 75 | C167: 戦 | D167: セン | E167: 1 | F167: ［作戦］をたてる | H167: せくせん
A168: 167 | B168: 75 | C168: 戦 | D168: セン | E168: 1 | F168: [決勝戦]に出る | H168: けっしょうせん
A169: 168 | B169: 75 | C169: 戦 | D169: セン | E169: 2 | F169: 最後まで［戦］う | G169: う | H169: たたか
A170: 169 | B170: 76 | C170: 選 | D170: セン | E170: 1 | F170: マラソン［選手］ | H170: せんしゅ
A171: 170 | B171: 76 | C171: 選 | D171: セン | E171: 1 | F171: 委員を［選］ぶ | G171: ぶ | H171: えら
A172: 171 | B172: 77 | C172: 然 | D172: ゼン | E172: 1 | F172: ［自然］を守る | H172: しぜん
A173: 172 | B173: 77 | C173: 然 | D173: ゼン | E173: 1 | F173: ［天然］のうなぎ | H173: てんねん
A174: 173 | B174: 78 | C174: 争 | D174: ソウ | E174: 1 | F174: ［戦争］が起こる | H174: せんそう
A175: 174 | B175: 78 | C175: 争 | D175: ソウ | E175: 2 | F175: ［争］いをさける | G175: い | H175: あらそ
A176: 175 | B176: 79 | C176: 倉 | D176: ソウ | E176: 1 | F176: ［倉庫］に運ぶ | H176: そうこ
A177: 176 | B177: 79 | C177: 倉 | D177: ソウ | E177: 2 | F177: 高ゆか式の［倉］ | H177: くら
A178: 177 | B178: 80 | C178: 巣 | D178: ソウ | E178: 2 | F178: [巣立]ちの時がくる | G178: ち | H178: すだ
A179: 178 | B179: 80 | C179: 巣 | D179: ソウ | E179: 2 | F179: つばめの［巣］ | H179: す
A180: 179 | B180: 80 | C180: 巣 | D180: ソウ | E180: 2 | F180: ［巣箱］を作る | H180: すばこ
A181: 180 | B181: 81 | C181: 束 | D181: ソク | E181: 1 | F181: ［二束］三文のねだん | H181: にそく
A182: 181 | B182: 81 | C182: 束 | D182: ソク | E182: 2 | F182: 大きな［花束］ | H182: はなたば
A183: 182 | B183: 82 | C183: 側 | D183: ソク | E183: 1 | F183: 物事の［側面］ | H183: そくめん
A184: 183 | B184: 82 | C184: 側 | D184: ソク | E184: 1 | F184: ［側道］を走る | H184: そくどう
A185: 184 | B185: 82 | C185: 側 | D185: ソク | E185: 2 | F185: ［右側］に立つ | H185: みぎがわ
A186: 185 | B186: 83 | C186: 続 | D186: ゾク | E186: 1 | F186: 物語の［続］へん | G186: へん | H186: ぞく
A187: 186 | B187: 83 | C187: 続 | D187: ゾク | E187: 2 | F187: けいこを［続］ける | G187: ける | H187: つづ
A188: 187 | B188: 83 | C188: 続 | D188: ゾク | E188: 2 | F188: 道が［続］く | G188: く | H188: つづ
A189: 188 | B189: 84 | C189: 卒 | D189: ソツ | E189: 1 | F189: 小学校の［卒業］式 | G189: 式 | H189: そつぎょう
A190: 189 | B190: 84 | C190: 卒 | D190: ソツ | E190: 1 | F190: ［卒園］する | G190: する | H190: そつえん
A191: 190 | B191: 85 | C191: 孫 | D191: ソン | E191: 1 | F191: ［子孫］を残す | H191: しそん
A192: 191 | B192: 85 | C192: 孫 | D192: ソン | E192: 2 | F192: ［孫］と遊ぶ | H192: まご
A193: 192 | B193: 86 | C193: 帯 | D193: タイ | E193: 1 | F193: ほう［帯］をまく | H193: たい
A194: 193 | B194: 86 | C194: 帯 | D194: タイ | E194: 1 | F194: けい[帯]電話 | H194: たい
A195: 194 | B195: 86 | C195: 帯 | D195: タイ | E195: 2 | F195: ［帯］を結ぶ | H195: おび
A196: 195 | B196: 86 | C196: 帯 | D196: タイ | E196: 2 | F196: 電気を［帯］びる | G196: びる | H196: お
A197: 196 | B197: 87 | C197: 隊 | D197: タイ | E197: 1 | F197: ［軍隊］に入る | H197: ぐんたい
A198: 197 | B198: 88 | C198: 達 | D198: タツ | E198: 1 | F198: ［友達］と遊ぶ | H198: ともだち
A199: 198 | B199: 88 | C199: 達 | D199: タツ | E199: 1 | F199: 字が［上達］する | G199: する | H199: じょうたつ
A200: 199 | B200: 88 | C200: 達 | D200: タツ | E200: 1 | F200: 新聞を［配達］する | G200: する | H200: はいたつ
... 24 more rows

Sheet 漢字書き
A1: 通し番号 | B1: 問題番号 | C1: 漢字 | D1: 読み | E1: 音訓 | F1: 問題 | G1: 送り仮名 | H1: 漢字
A2: 1 | B2: 1 | C2: 給 | D2: キュウ | E2: 1 | F2: おいしい［キュウショク］ | H2: 給食
A3: 2 | B3: 2 | C3: 挙 | D3: キョ | E3: 1 | F3: ［イッキョ］にふえる | G3: に | H3: 一挙
A4: 3 | B4: 2 | C4: 挙 | D4: キョ | E4: 2 | F4: 例を［ア］げて話す | G4: げて | H4: 挙
A5: 4 | B5: 3 | C5: 漁 | D5: ギョ | E5: 1 | F5: ［ギョセン］に乗る | H5: 漁船
A6: 5 | B6: 3 | C6: 漁 | D6: ギョ | E6: 1 | F6: 魚の［リョウ］に出る | H6: 漁
A7: 6 | B7: 4 | C7: 共 | D7: キョウ | E7: 1 | F7: ［キョウドウ］で使用する | H7: 共同
A8: 7 | B8: 4 | C8: 共 | D8: キョウ | E8: 1 | F8: 相手に［キョウカン］する | G8: する | H8: 共感
A9: 8 | B9: 4 | C9: 共 | D9: キョウ | E9: 2 | F9: 友人と［トモ］に行く | G9: に | H9: 共
A10: 9 | B10: 5 | C10: 協 | D10: キョウ | E10: 1 | F10: ［キョウリョク］する | G10: する | H10: 協力
A11: 10 | B11: 6 | C11: 鏡 | D11: キョウ | E11: 1 | F11: ［サンメンキョウ］で写す | H11: 三面鏡
A12: 11 | B12: 6 | C12: 鏡 | D12: キョウ | E12: 2 | F12: ［カガミ］をみがく | H12: 鏡
A13: 12 | B13: 6 | C13: 鏡 | D13: キョウ | E13: 2 | F13: 母の［テカガミ］ | H13: 手鏡
A14: 13 | B14: 7 | C14: 競 | D14: キョウ | E14: 1 | F14: パン食い［キョウソウ］ | H14: 競争
A15: 14 | B15: 7 | C15: 競 | D15: キョウ | E15: 2 | F15: わざを［キソ］う | G15: う | H15: 競
A16: 15 | B16: 8 | C16: 極 | D16: キョク | E16: 1 | F16: ［ナンキョク］の氷 | H16: 南極
A17: 16 | B17: 8 | C17: 極 | D17: キョク | E17: 1 | F17: ［キョク］たんな意見 | G17: たんな | H17: 極
A18: 17 | B18: 8 | C18: 極 | D18: キョク | E18: 1 | F18: プラス[キョク] | H18: 極
A19: 18 | B19: 9 | C19: 訓 | D19: クン | E19: 1 | F19: ［クンヨ］みの漢字 | G19: み | H19: 訓読
A20: 19 | B20: 9 | C20: 訓 | D20: クン | E20: 1 | F20: ひなん［クンレン］ | H20: 訓練
A21: 20 | B21: 10 | C21: 軍 | D21: グン | E21: 1 | F21: ［イチグン］の選手になる | H21: 一軍
A22: 21 | B22: 10 | C22: 軍 | D22: グン | E22: 1 | F22: いさましい[グンカ] | H22: 軍歌
A23: 22 | B23: 11 | C23: 郡 | D23: グン | E23: 1 | F23: 和歌山県有田［グン］ | H23: 郡
A24: 23 | B24: 12 | C24: 径 | D24: ケイ | E24: 1 | F24: 円の［チョッケイ］ | H24: 直径
A25: 24 | B25: 13 | C25: 泣 | D25: キュウ | E25: 2 | F25: ［ナ］き顔を見せない | G25: き顔 | H25: 泣
A26: 25 | B26: 13 | C26: 泣 | D26: キュウ | E26: 2 | F26: 赤ちゃんが［ナ］き止む | G26: き止む | H26: 泣
A27: 26 | B27: 14 | C27: 景 | D27: ケイ | E27: 1 | F27: ［ケイヒン］をもらう | H27: 景品
A28: 27 | B28: 14 | C28: 景 | D28: ケイ | E28: 1 | F28: 海の［ケシキ］ | H28: 景色
A29: 28 | B29: 15 | C29: 芸 | D29: ゲイ | E29: 1 | F29: ［ゲイ］は身を助ける | H29: 芸
A30: 29 | B30: 16 | C30: 欠 | D30: ケツ | E30: 1 | F30: かぜで［ケッセキ］する | G30: する | H30: 欠席
A31: 30 | B31: 16 | C31: 欠 | D31: ケツ | E31: 2 | F31: 生活に［カ］くことができない | G31: く | H31: 欠
A32: 31 | B32: 16 | C32: 欠 | D32: ケツ | E32: 2 | F32: 月のみち［カ］け | G32: け | H32: 欠
A33: 32 | B33: 17 | C33: 結 | D33: ケツ | E33: 1 | F33: テストの［ケッカ］ | H33: 結果
A34: 33 | B34: 17 | C34: 結 | D34: ケツ | E34: 2 | F34: ひもを［ムス］ぶ | G34: ぶ | H34: 結
A35: 34 | B35: 17 | C35: 結 | D35: ケツ | E35: 1 | F35: [ケツ]ろんをのべる | G35: ろん | H35: 結
A36: 35 | B36: 18 | C36: 建 | D36: ケン | E36: 1 | F36: ［ケンコク］記ねんの日 | H36: 建国
A37: 36 | B37: 18 | C37: 建 | D37: ケン | E37: 2 | F37: 家を［タ］てる | G37: てる | H37: 建
A38: 37 | B38: 19 | C38: 健 | D38: ケン | E38: 1 | F38: ［ケンゼン］な心 | G38: な | H38: 健全
A39: 38 | B39: 19 | C39: 健 | D39: ケン | E39: 1 | F39: ほ［ケンシツ］の先生 | H39: 健室
A40: 39 | B40: 20 | C40: 験 | D40: ケン | E40: 1 | F40: おそろしい[タイケン] | H40: 体験
A41: 40 | B41: 20 | C41: 験 | D41: ケン | E41: 1 | F41: 理科の［ジッケン］ | H41: 実験
A42: 41 | B42: 21 | C42: 固 | D42: コ | E42: 1 | F42: ［キョウコ］な思い | G42: な | H42: 強固
A43: 42 | B43: 21 | C43: 固 | D43: コ | E43: 1 | F43: ねじで［コテイ］する | G43: する | H43: 固定
A44: 43 | B44: 21 | C44: 固 | D44: コ | E44: 1 | F44: 土を［カタ］める | G44: める | H44: 固
A45: 44 | B45: 21 | C45: 固 | D45: コ | E45: 2 | F45: ［カタ］くしばる | G45: く | H45: 固
A46: 45 | B46: 22 | C46: 功 | D46: コウ | E46: 1 | F46: ［セイコウ］をおさめる | H46: 成功
A47: 46 | B47: 23 | C47: 好 | D47: コウ | E47: 1 | F47: 大［コウブツ］のカレー | H47: 好物
A48: 47 | B48: 23 | C48: 好 | D48: コウ | E48: 2 | F48: ［ス］きな歌を聞く | G48: きな | H48: 好
A49: 48 | B49: 23 | C49: 好 | D49: コウ | E49: 2 | F49: ［コノ］みの洋服 | G49: み | H49: 好
A50: 49 | B50: 24 | C50: 候 | D50: コウ | E50: 1 | F50: ［キコウ］がよい | H50: 気候
A51: 50 | B51: 24 | C51: 候 | D51: コウ | E51: 1 | F51: ［テンコウ］が変わる | H51: 天候
A52: 51 | B52: 25 | C52: 沖 | D52: チュウ | E52: 1 | F52: ［オキナワケン］のシーサー | H52: 沖縄県
A53: 52 | B53: 26 | C53: 康 | D53: コウ | E53: 1 | F53: ［ケンコウ］にすごす | H53: 健康
A54: 53 | B54: 27 | C54: 崎 | D54: サキ | E54: 2 | F54: ［ミヤザキケン］に行く | H54: 宮崎県
A55: 54 | B55: 27 | C55: 崎 | D55: サキ | E55: 2 | F55: ［ナガサキケン］から来た人 | H55: 長崎県
A56: 55 | B56: 28 | C56: 差 | D56: サ | E56: 1 | F56: ［コウサ］点をわたる | G56: 点 | H56: 交差
A57: 56 | B57: 28 | C57: 差 | D57: サ | E57: 2 | F57: 日が［サ］してきた | G57: して | H57: 差
A58: 57 | B58: 29 | C58: 菜 | D58: サイ | E58: 1 | F58: ［ヤサイ］を作る | H58: 野菜
A59: 58 | B59: 29 | C59: 菜 | D59: サイ | E59: 2 | F59: ［ナ］の花 | H59: 菜
A60: 59 | B60: 30 | C60: 最 | D60: サイ | E60: 1 | F60: ［サイコウ］にうれしい | G60: に | H60: 最高
A61: 60 | B61: 30 | C61: 最 | D61: サイ | E61: 2 | F61: ［モット］も高い山 | G61: も | H61: 最
A62: 61 | B62: 31 | C62: 材 | D62: ザイ | E62: 1 | F62: ［モクザイ］を運ぶ | H62: 木材
A63: 62 | B63: 32 | C63: 昨 | D63: サク | E63: 1 | F63: ［キノウ］の出来事 | H63: 昨日
A64: 63 | B64: 32 | C64: 昨 | D64: サク | E64: 1 | F64: ［サクヤ］は雨だった | H64: 昨夜
A65: 64 | B65: 33 | C65: 札 | D65: サツ | E65: 1 | F65: 千円［サツ］を使う | H65: 札
A66: 65 | B66: 33 | C66: 札 | D66: サツ | E66: 1 | F66: お［フダ］をはる | H66: 札
A67: 66 | B67: 34 | C67: 刷 | D67: サツ | E67: 1 | F67: 紙に［インサツ］する | G67: する | H67: 印刷
A68: 67 | B68: 34 | C68: 刷 | D68: サツ | E68: 2 | F68: はがきに絵を［ス］る | G68: る | H68: 刷
A69: 68 | B69: 35 | C69: 香 | D69: コウ | E69: 2 | F69: ［カガワケン］のうどん | H69: 香川県
A70: 69 | B70: 35 | C70: 香 | D70: コウ | E70: 2 | F70: 花が［カオ］る | G70: る | H70: 香
A71: 70 | B71: 35 | C71: 香 | D71: コウ | E71: 2 | F71: ［カオ］りのよい部屋 | G71: り | H71: 香
A72: 71 | B72: 36 | C72: 察 | D72: サツ | E72: 1 | F72: 星の［カンサツ］ | H72: 観察
A73: 72 | B73: 37 | C73: 参 | D73: サン | E73: 1 | F73: お宮に［マイ］る | G73: る | H73: 参
A74: 73 | B74: 37 | C74: 参 | D74: サン | E74: 1 | F74: イベントに［サンカ］する | G74: する | H74: 参加
A75: 74 | B75: 38 | C75: 産 | D75: サン | E75: 1 | F75: ［サンギョウ］が栄える | H75: 産業
A76: 75 | B76: 38 | C76: 産 | D76: サン | E76: 1 | F76: 野菜の［サンチ］ | H76: 産地
A77: 76 | B77: 38 | C77: 産 | D77: サン | E77: 1 | F77: ウミガメの［サン］らん | H77: 産
A78: 77 | B78: 38 | C78: 産 | D78: サン | E78: 1 | F78: 和歌山[サン]の米 | H78: 産
A79: 78 | B79: 39 | C79: 散 | D79: サン | E79: 1 | F79: 公園を［サンポ］する | G79: する | H79: 散歩
A80: 79 | B80: 39 | C80: 散 | D80: サン | E80: 2 | F80: 花が［チ］る | G80: る | H80: 散
A81: 80 | B81: 40 | C81: 残 | D81: ザン | E81: 2 | F81: ［ザンショ］お見まいを送る | H81: 残暑
A82: 81 | B82: 40 | C82: 残 | D82: ザン | E82: 2 | F82: 足あとが［ノコ］る | G82: る | H82: 残
A83: 82 | B83: 41 | C83: 茨 | D83: イバラ | E83: 1 | F83: ［イバラキケン］に行く | H83: 茨城県
A84: 83 | B84: 42 | C84: 氏 | D84: シ | E84: 1 | F84: ［シメイ］を記入する | H84: 氏名
A85: 84 | B85: 43 | C85: 滋 | D85: ジ | E85: 1 | F85: ［シガケン］の名物 | H85: 滋賀県
A86: 85 | B86: 43 | C86: 司 | D86: シ | E86: 1 | F86: 図書館の[シショ] | H86: 司書
A87: 86 | B87: 44 | C87: 司 | D87: シ | E87: 1 | F87: 学級会の［シカイ］をする | H87: 司会
A88: 87 | B88: 45 | C88: 試 | D88: シ | E88: 1 | F88: 野球の［シアイ］ | H88: 試合
A89: 88 | B89: 45 | C89: 試 | D89: シ | E89: 2 | F89: 実験を［ココロ］みる | G89: みる | H89: 試
A90: 89 | B90: 45 | C90: 試 | D90: シ | E90: 1 | F90: 入学[シケン]を受ける | H90: 試験
A91: 90 | B91: 46 | C91: 児 | D91: ジ | E91: 1 | F91: 小学校の［ジドウ］ | H91: 児童
A92: 91 | B92: 46 | C92: 児 | D92: ジ | E92: 1 | F92: [イクジ]休かをとる | G92: 休か | H92: 育児
A93: 92 | B93: 47 | C93: 治 | D93: ジ | E93: 1 | F93: 地方［ジチ］体の仕事 | G93: 体 | H93: 自治
A94: 93 | B94: 47 | C94: 治 | D94: ジ | E94: 1 | F94: けがが［カンチ］する | G94: する | H94: 完治
A95: 94 | B95: 47 | C95: 治 | D95: ジ | E95: 2 | F95: 国を［オサ］める | G95: める | H95: 治
A96: 95 | B96: 47 | C96: 治 | D96: ジ | E96: 2 | F96: いたみが［オサ］まる | G96: まる | H96: 治
A97: 96 | B97: 47 | C97: 治 | D97: ジ | E97: 2 | F97: 病気を［ナオ］す | G97: す | H97: 治
A98: 97 | B98: 47 | C98: 治 | D98: ジ | E98: 2 | F98: 病気が［ナオ］る | G98: る | H98: 治
A99: 98 | B99: 48 | C99: 辞 | D99: ジ | E99: 1 | F99: ［ジショ］を買う | H99: 辞書
A100: 99 | B100: 48 | C100: 辞 | D100: ジ | E100: 1 | F100: [シュクジ]をのべる | H100: 食事
A101: 100 | B101: 49 | C101: 失 | D101: シツ | E101: 1 | F101: ［シツレイ］します | H101: 失礼
A102: 101 | B102: 49 | C102: 失 | D102: シツ | E102: 2 | F102: ［ウシナ］われた自然 | G102: われた | H102: 失
A103: 102 | B103: 50 | C103: 借 | D103: シャク | E103: 1 | F103: ［シャッキン］をする | H103: 借金
A104: 103 | B104: 50 | C104: 借 | D104: シャク | E104: 2 | F104: ノートを［カ］りる | G104: りる | H104: 借
A105: 104 | B105: 51 | C105: 種 | D105: シュ | E105: 1 | F105: ヒマワリの［シュシ］ | H105: 旬
A106: 105 | B106: 51 | C106: 種 | D106: シュ | E106: 2 | F106: ［タネ］をまく | H106: 種
A107: 106 | B107: 52 | C107: 周 | D107: シュウ | E107: 1 | F107: ［シュウイ］の長さ | H107: 周囲
A108: 107 | B108: 52 | C108: 周 | D108: シュウ | E108: 2 | F108: ［マワ］りの人 | G108: り | H108: 周
A109: 108 | B109: 53 | C109: 祝 | D109: シュク | E109: 1 | F109: ［シュクショウ］会をする | G109: 会 | H109: 祝勝
A110: 109 | B110: 53 | C110: 祝 | D110: シュク | E110: 2 | F110: たん生日を［イワ］う | G110: う | H110: 祝
A111: 110 | B111: 54 | C111: 順 | D111: ジュン | E111: 1 | F111: ［ジュンバン］を待つ | H111: 順番
A112: 111 | B112: 54 | C112: 順 | D112: ジュン | E112: 1 | F112: 計画が［ジュンチョウ］に進む | G112: に | H112: 順調
A113: 112 | B113: 55 | C113: 初 | D113: ショ | E113: 1 | F113: ［サイショ］が大切だ | H113: 最初
A114: 113 | B114: 55 | C114: 初 | D114: ショ | E114: 2 | F114: ［ハジ］めてのけい験 | G114: めて | H114: 初
A115: 114 | B115: 55 | C115: 初 | D115: ショ | E115: 2 | F115: ［ハツユキ］がふる | H115: 初雪
A116: 115 | B116: 55 | C116: 初 | D116: ショ | E116: 1 | F116: [ショシン]に返る | H116: 初心
A117: 116 | B117: 55 | C117: 初 | D117: ショ | E117: 2 | F117: [ハツ]もうでに行く | G117: もうで | H117: 初
A118: 117 | B118: 55 | C118: 初 | D118: ショ | E118: 2 | F118: 夏の［ハジ］め | G118: め | H118: 初
A119: 118 | B119: 56 | C119: 松 | D119: ショウ | E119: 1 | F119: [ショウチクバイ] | H119: 松竹梅
A120: 119 | B120: 56 | C120: 松 | D120: ショウ | E120: 2 | F120: ［マツバヤシ］の中 | H120: 松林
A121: 120 | B121: 57 | C121: 笑 | D121: ショウ | E121: 2 | F121: 子どもの［ワラ］い声 | G121: い声 | H121: 笑
A122: 121 | B122: 57 | C122: 笑 | D122: ショウ | E122: 2 | F122: にっこりと[ワラ]う | G122: う | H122: 笑
A123: 122 | B123: 58 | C123: 唱 | D123: ショウ | E123: 1 | F123: こん声［ガッショウ］ | H123: 合唱
A124: 123 | B124: 58 | C124: 唱 | D124: ショウ | E124: 2 | F124: 平和を［トナ］える | G124: える | H124: 唱
A125: 124 | B125: 59 | C125: 焼 | D125: ショウ | E125: 2 | F125: [ヤ]きめしを食べる | G125: きめし | H125: 焼
A126: 125 | B126: 59 | C126: 焼 | D126: ショウ | E126: 2 | F126: きれいな［ユウヤ］け | G126: け | H126: 夕焼
A127: 126 | B127: 59 | C127: 焼 | D127: ショウ | E127: 2 | F127: さつまいもを［ヤ］く | G127: く | H127: 焼
A128: 127 | B128: 61 | C128: 照 | D128: ショウ | E128: 1 | F128: ［ニッショウ］時間 | H128: 日照
A129: 128 | B129: 61 | C129: 照 | D129: ショウ | E129: 1 | F129: ［ショウメイ］をつける | H129: 照明
A130: 129 | B130: 61 | C130: 照 | D130: ショウ | E130: 2 | F130: ぶりの［テ］り焼き | G130: り焼き | H130: 照
A131: 130 | B131: 61 | C131: 照 | D131: ショウ | E131: 2 | F131: 日に［テ］らされる | G131: らされる | H131: 照
A132: 131 | B132: 61 | C132: 照 | D132: ショウ | E132: 2 | F132: ほめられると［テ］れる | G132: れる | H132: 照
A133: 132 | B133: 62 | C133: 鹿 | D133: シカ | E133: 1 | F133: [カゴシマ]県の名物 | G133: 県 | H133: 鹿児島
A134: 133 | B134: 63 | C134: 臣 | D134: シン | E134: 1 | F134: 文部科学［ダイジン］ | H134: 大臣
A135: 134 | B135: 64 | C135: 信 | D135: シン | E135: 1 | F135: 人を［シン］じる | G135: じる | H135: 信
A136: 135 | B136: 64 | C136: 信 | D136: シン | E136: 1 | F136: ［ジシン］をもってやる | H136: 自信
A137: 136 | B137: 65 | C137: 成 | D137: セイ | E137: 1 | F137: ビルが［カンセイ］する | G137: する | H137: 完成
A138: 137 | B138: 65 | C138: 成 | D138: セイ | E138: 2 | F138: 漢字の［ナ］り立ち | G138: り立ち | H138: 成
A139: 138 | B139: 65 | C139: 成 | D139: セイ | E139: 2 | F139: 最後まで［ナ］しとげる | G139: し | H139: 成
A140: 139 | B140: 66 | C140: 省 | D140: セイ | E140: 1 | F140: しっかり［ハンセイ］する | G140: する | H140: 反省
A141: 140 | B141: 66 | C141: 省 | D141: セイ | E141: 1 | F141: 以下、［ショウ］りゃく | G141: りゃく | H141: 省
A142: 141 | B142: 66 | C142: 省 | D142: セイ | E142: 1 | F142: [ショウ]エネルギー | G142: エネルギー | H142: 省
A143: 142 | B143: 66 | C143: 省 | D143: セイ | E143: 2 | F143: いらない部分を［ハブ］く | G143: く | H143: 省
A144: 143 | B144: 67 | C144: 清 | D144: セイ | E144: 1 | F144: 字を［セイショ］する | G144: する | H144: 清書
A145: 144 | B145: 67 | C145: 清 | D145: セイ | E145: 2 | F145: ［キヨ］らかな流れ | G145: らかな | H145: 清
A146: 145 | B146: 67 | C146: 清 | D146: セイ | E146: 2 | F146: 心を［キヨ］める | G146: める | H146: 清
A147: 146 | B147: 68 | C147: 静 | D147: セイ | E147: 1 | F147: ［セイデンキ］が起こる | H147: 静電気
A148: 147 | B148: 68 | C148: 静 | D148: セイ | E148: 1 | F148: さわぎが［シズ］まる | G148: まる | H148: 静
A149: 148 | B149: 68 | C149: 静 | D149: セイ | E149: 2 | F149: ［シズ］かな教室 | G149: かな | H149: 静
A150: 149 | B150: 69 | C150: 席 | D150: セキ | E150: 1 | F150: 会ぎに[シュッセキ]する | G150: する | H150: 出席
A151: 150 | B151: 69 | C151: 席 | D151: セキ | E151: 1 | F151: ［セキ］にすわる | H151: 席
A152: 151 | B152: 70 | C152: 積 | D152: セキ | E152: 1 | F152: ［タイセキ］を計る | H152: 体積
A153: 152 | B153: 70 | C153: 積 | D153: セキ | E153: 1 | F153: 図形の［メンセキ］ | H153: 面積
A154: 153 | B154: 70 | C154: 積 | D154: セキ | E154: 2 | F154: 雪が［ツ］もる | G154: もる | H154: 積
A155: 154 | B155: 71 | C155: 折 | D155: セツ | E155: 1 | F155: 指をこっ［セツ］する | G155: する | H155: 折
A156: 155 | B156: 71 | C156: 折 | D156: セツ | E156: 2 | F156: ［オ］り紙をおる | H156: 折
A157: 156 | B157: 71 | C157: 折 | D157: セツ | E157: 2 | F157: ［オ］り目をつける | G157: り目 | H157: 折
A158: 157 | B158: 72 | C158: 節 | D158: セツ | E158: 1 | F158: ［セツブン］に豆をまく | H158: 節分
A159: 158 | B159: 72 | C159: 節 | D159: セツ | E159: 1 | F159: よい［キセツ］ | H159: 季節
A160: 159 | B160: 72 | C160: 節 | D160: セツ | E160: 1 | F160: 電気を［セツヤク］する | G160: する | H160: 節約
A161: 160 | B161: 72 | C161: 節 | D161: セツ | E161: 2 | F161: 人生の［フシメ］ | H161: 節目
A162: 161 | B162: 73 | C162: 説 | D162: セツ | E162: 1 | F162: くわしく［セツメイ］する | G162: する | H162: 説明
A163: 162 | B163: 73 | C163: 説 | D163: セツ | E163: 2 | F163: 教えを皆に［ト］く | G163: く | H163: 説
A164: 163 | B164: 74 | C164: 浅 | D164: セン | E164: 2 | F164: ［アサ］い川 | G164: い | H164: 浅
A165: 164 | B165: 74 | C165: 浅 | D165: セン | E165: 2 | F165: 日が［アサ］い | G165: い | H165: 浅
A166: 165 | B166: 75 | C166: 戦 | D166: セン | E166: 1 | F166: ［サクセン］を立てる | H166: 作戦
A167: 166 | B167: 75 | C167: 戦 | D167: セン | E167: 1 | F167: 決勝[セン]に出る | H167: 戦
A168: 167 | B168: 75 | C168: 戦 | D168: セン | E168: 2 | F168: てきと［タタカ］う | G168: う | H168: 戦
A169: 168 | B169: 76 | C169: 選 | D169: セン | E169: 1 | F169: あこがれの［センシュ］ | H169: 選手
A170: 169 | B170: 76 | C170: 選 | D170: セン | E170: 2 | F170: プレゼントを［エラ］ぶ | G170: ぶ | H170: 選
A171: 170 | B171: 76 | C171: 選 | D171: セン | E171: 2 | F171: 委員に［エラ］ばれる | G171: ばれる | H171: 選
A172: 171 | B172: 77 | C172: 然 | D172: ゼン | E172: 1 | F172: ［シゼン］を大切にする | H172: 自然
A173: 172 | B173: 77 | C173: 然 | D173: ゼン | E173: 1 | F173: ［テンネン］記ねん物 | H173: 天然
A174: 173 | B174: 78 | C174: 争 | D174: ソウ | E174: 1 | F174: ［センソウ］がおこる | H174: 戦争
A175: 174 | B175: 78 | C175: 争 | D175: ソウ | E175: 2 | F175: 一位を［アラソ］う | G175: う | H175: 争
A176: 175 | B176: 79 | C176: 倉 | D176: ソウ | E176: 1 | F176: ［ソウコ］にかたづける | H176: 倉庫
A177: 176 | B177: 79 | C177: 倉 | D177: ソウ | E177: 2 | F177: ［クラ］にしまいこむ | H177: 倉
A178: 177 | B178: 80 | C178: 巣 | D178: ソウ | E178: 2 | F178: ハチの［ス］を見つける | H178: 巣
A179: 178 | B179: 81 | C179: 束 | D179: ソク | E179: 1 | F179: やく［ソク］を果たす | H179: 束
A180: 179 | B180: 81 | C180: 束 | D180: ソク | E180: 2 | F180: 花を［タバ］ねる | G180: ねる | H180: 束
A181: 180 | B181: 82 | C181: 側 | D181: ソク | E181: 1 | F181: 円柱の［ソクメン］ | H181: 側面
A182: 181 | B182: 82 | C182: 側 | D182: ソク | E182: 2 | F182: ［ミギガワ］を通る | H182: 右側
A183: 182 | B183: 83 | C183: 続 | D183: ゾク | E183: 2 | F183: けいこを[ツヅ]ける | G183: ける | H183: 続
A184: 183 | B184: 84 | C184: 卒 | D184: ソツ | E184: 1 | F184: ［ソツギョウシキ］に出る | H184: 卒業式
A185: 184 | B185: 85 | C185: 孫 | D185: ソン | E185: 1 | F185: ［シソン］を残す | H185: 子孫
A186: 185 | B186: 85 | C186: 孫 | D186: ソン | E186: 2 | F186: かわいい［マゴ］ | H186: 孫
A187: 186 | B187: 86 | C187: 帯 | D187: タイ | E187: 1 | F187: ねっ［タイ］地方 | H187: 帯
A188: 187 | B188: 86 | C188: 帯 | D188: タイ | E188: 2 | F188: ［オビ］を結ぶ | H188: 帯
A189: 188 | B189: 87 | C189: 隊 | D189: タイ | E189: 1 | F189: ［オンガクタイ］が来る | H189: 音楽隊
A190: 189 | B190: 88 | C190: 達 | D190: タツ | E190: 1 | F190: ［トモダチ］とわかれる | H190: 友達
A191: 190 | B191: 88 | C191: 達 | D191: タツ | E191: 1 | F191: 目ひょうを［タッセイ］する | G191: する | H191: 達成
A192: 191 | B192: 89 | C192: 単 | D192: タン | E192: 1 | F192: ［タンゴ］を覚える | H192: 単語
A193: 192 | B193: 90 | C193: 置 | D193: チ | E193: 1 | F193: ［イチ］を決める | H193: 位置
A194: 193 | B194: 90 | C194: 置 | D194: チ | E194: 2 | F194: ぬいぐるみを［オ］く | G194: く | H194: 置
A195: 194 | B195: 91 | C195: 仲 | D195: チュウ | E195: 2 | F195: 新しい［ナカマ］ | H195: 仲間
A196: 195 | B196: 92 | C196: 佐 | D196: サ | E196: 1 | F196: [サガケン]の地図 | H196: 佐賀県
A197: 196 | B197: 93 | C197: 兆 | D197: チョウ | E197: 1 | F197: よい［チョウコウ］が見える | H197: 兆候
A198: 197 | B198: 93 | C198: 兆 | D198: チョウ | E198: 1 | F198: 一[チョウ]円の予算 | G198: 円 | H198: 兆
A199: 198 | B199: 94 | C199: 縄 | D199: ジョウ | E199: 2 | F199: [ナワ]とびをする | G199: とび | H199: 縄
A200: 199 | B200: 94 | C200: 縄 | D200: ジョウ | E200: 2 | F200: [オキナワケン]から来る | H200: 沖縄県
... 12 more rows

Sheet 関数（読み）
A1: 番号 | B1: ランダム | C1: 順位
A2: 1 | B2: =RAND() -> 0.4664561081 | C2: =RANK(B2,$B$2:$B$223) -> 128
A3: 2 | B3: =RAND() -> 0.8460649062 | C3: =RANK(B3,$B$2:$B$223) -> 38
A4: 3 | B4: 0.8677339087 | C4: 33
A5: 4 | B5: 0.3584274441 | C5: 141
A6: 5 | B6: 0.136027908 | C6: 191
A7: 6 | B7: 0.3526498744 | C7: 146
A8: 7 | B8: 0.7064557772 | C8: 76
A9: 8 | B9: 0.2419102292 | C9: 173
A10: 9 | B10: 0.9096300048 | C10: 26
A11: 10 | B11: 0.6308699348 | C11: 91
A12: 11 | B12: 0.3329736171 | C12: 150
A13: 12 | B13: 0.5723793398 | C13: 104
A14: 13 | B14: 0.5671278647 | C14: 105
A15: 14 | B15: 0.677918116 | C15: 80
A16: 15 | B16: 0.8017974637 | C16: 47
A17: 16 | B17: 0.2421860919 | C17: 172
A18: 17 | B18: 0.5246612567 | C18: 113
A19: 18 | B19: 0.6443029349 | C19: 89
A20: 19 | B20: 0.337993804 | C20: 149
A21: 20 | B21: 0.4599500334 | C21: 131
A22: 21 | B22: 0.3562635462 | C22: 143
A23: 22 | B23: 0.6097820953 | C23: 95
A24: 23 | B24: 0.1665689504 | C24: 186
A25: 24 | B25: 0.9381193426 | C25: 17
A26: 25 | B26: 0.2094985306 | C26: 179
A27: 26 | B27: 0.1892756344 | C27: 183
A28: 27 | B28: 0.5981458866 | C28: 97
A29: 28 | B29: 0.258333031 | C29: 170
A30: 29 | B30: 0.3240702642 | C30: 152
A31: 30 | B31: 0.2714951596 | C31: 169
A32: 31 | B32: 0.5330188286 | C32: 110
A33: 32 | B33: 0.07446388046 | C33: 204
A34: 33 | B34: 0.6012606967 | C34: 96
A35: 34 | B35: 0.8508306201 | C35: 36
A36: 35 | B36: 0.758264699 | C36: 65
A37: 36 | B37: 0.5367723935 | C37: 109
A38: 37 | B38: 0.07019505837 | C38: 206
A39: 38 | B39: 0.2009699063 | C39: 181
A40: 39 | B40: 0.8466767643 | C40: 37
A41: 40 | B41: 0.1666997007 | C41: 185
A42: 41 | B42: 0.7690720012 | C42: 62
A43: 42 | B43: 0.7812568626 | C43: 59
A44: 43 | B44: 0.4892678753 | C44: 121
A45: 44 | B45: 0.6543225769 | C45: 85
A46: 45 | B46: 0.3541787357 | C46: 145
A47: 46 | B47: 0.3486588662 | C47: 147
A48: 47 | B48: 0.01654319823 | C48: 219
A49: 48 | B49: 0.8692032071 | C49: 32
A50: 49 | B50: 0.06776751176 | C50: 211
A51: 50 | B51: 0.9631756637 | C51: 12
A52: 51 | B52: 0.7599956669 | C52: 64
A53: 52 | B53: 0.0684005048 | C53: 209
A54: 53 | B54: 0.7556978409 | C54: 67
A55: 54 | B55: 0.1776020952 | C55: 184
A56: 55 | B56: 0.972906973 | C56: 10
A57: 56 | B57: 0.9874668958 | C57: 3
A58: 57 | B58: 0.2858062904 | C58: 162
A59: 58 | B59: 0.7175095834 | C59: 74
A60: 59 | B60: 0.4795520174 | C60: 125
A61: 60 | B61: 0.6453409179 | C61: 87
A62: 61 | B62: 0.6895200406 | C62: 78
A63: 62 | B63: 0.3192823898 | C63: 154
A64: 63 | B64: 0.3152226614 | C64: 156
A65: 64 | B65: 0.7918238209 | C65: 55
A66: 65 | B66: 0.4873583684 | C66: 122
A67: 66 | B67: =RAND() -> 0.9785283964 | C67: =RANK(B67,$B$2:$B$223) -> 7
A68: 67 | B68: 0.08260232613 | C68: 200
A69: 68 | B69: 0.3690992747 | C69: 139
A70: 69 | B70: 0.5033072578 | C70: 119
A71: 70 | B71: 0.5863180372 | C71: 100
A72: 71 | B72: 0.7576592153 | C72: 66
A73: 72 | B73: 0.03471431175 | C73: 217
A74: 73 | B74: 0.7194122256 | C74: 73
A75: 74 | B75: 0.1905490101 | C75: 182
A76: 75 | B76: 0.1060459973 | C76: 195
A77: 76 | B77: 0.740133253 | C77: 71
A78: 77 | B78: 0.8831558334 | C78: 29
A79: 78 | B79: 0.9674070576 | C79: 11
A80: 79 | B80: 0.9815966068 | C80: 5
A81: 80 | B81: 0.4381668537 | C81: 132
A82: 81 | B82: 0.51428505 | C82: 116
A83: 82 | B83: 0.4813223803 | C83: 123
A84: 83 | B84: 0.5665790407 | C84: 106
A85: 84 | B85: 0.6113786314 | C85: 94
A86: 85 | B86: 0.9815088964 | C86: 6
A87: 86 | B87: 0.9406300866 | C87: 16
A88: 87 | B88: 0.7225876386 | C88: 72
A89: 88 | B89: 0.973886048 | C89: 9
A90: 89 | B90: 0.3045336903 | C90: 159
A91: 90 | B91: 0.9317334398 | C91: 19
A92: 91 | B92: 0.4670416308 | C92: 127
A93: 92 | B93: 0.5926677476 | C93: 98
A94: 93 | B94: 0.115389249 | C94: 193
A95: 94 | B95: 0.3444526963 | C95: 148
A96: 95 | B96: 0.8343351641 | C96: 40
A97: 96 | B97: 0.9870462846 | C97: 4
A98: 97 | B98: 0.03553450408 | C98: 216
A99: 98 | B99: 0.9466065067 | C99: 15
A100: 99 | B100: 0.930580079 | C100: 20
A101: 100 | B101: 0.08171729196 | C101: 202
A102: 101 | B102: 0.9768295366 | C102: 8
A103: 102 | B103: 0.9597389662 | C103: 13
A104: 103 | B104: 0.7037075213 | C104: 77
A105: 104 | B105: 0.8525801801 | C105: 35
A106: 105 | B106: 0.9058611537 | C106: 27
A107: 106 | B107: 0.5165326344 | C107: 114
A108: 107 | B108: 0.2291770252 | C108: 175
A109: 108 | B109: 0.9236248793 | C109: 22
A110: 109 | B110: 0.6195367174 | C110: 92
A111: 110 | B111: 0.8769009202 | C111: 31
A112: 111 | B112: 0.7694048688 | C112: 61
A113: 112 | B113: 0.3542406428 | C113: 144
A114: 113 | B114: 0.08366163609 | C114: 199
A115: 114 | B115: 0.4646227662 | C115: 129
A116: 115 | B116: 0.002512539643 | C116: 222
A117: 116 | B117: 0.5041866768 | C117: 118
A118: 117 | B118: 0.4269578559 | C118: 134
A119: 118 | B119: 0.9142326511 | C119: 25
A120: 119 | B120: 0.7958302741 | C120: 53
A121: 120 | B121: 0.6597707229 | C121: 83
A122: 121 | B122: 0.4985984388 | C122: 120
A123: 122 | B123: 0.784934329 | C123: 56
A124: 123 | B124: 0.670209009 | C124: 82
A125: 124 | B125: 0.2523289773 | C125: 171
A126: 125 | B126: 0.8082396013 | C126: 45
A127: 126 | B127: 0.358015907 | C127: 142
A128: 127 | B128: 0.3887608815 | C128: 137
A129: 128 | B129: 0.332267476 | C129: 151
A130: 129 | B130: 0.6588009538 | C130: 84
A131: 130 | B131: =RAND() -> 0.3226514695 | C131: =RANK(B131,$B$2:$B$223) -> 153
A132: 131 | B132: 0.2855344634 | C132: 163
A133: 132 | B133: 0.2285723509 | C133: 177
A134: 133 | B134: 0.8106972094 | C134: 44
A135: 134 | B135: 0.710352914 | C135: 75
A136: 135 | B136: 0.6143628254 | C136: 93
A137: 136 | B137: 0.09263997795 | C137: 198
A138: 137 | B138: 0.7785558424 | C138: 60
A139: 138 | B139: 0.7847123805 | C139: 57
A140: 139 | B140: 0.06837885136 | C140: 210
A141: 140 | B141: 0.7974570319 | C141: 51
A142: 141 | B142: 0.9490340049 | C142: 14
A143: 142 | B143: 0.5555661488 | C143: 107
A144: 143 | B144: 0.07128346218 | C144: 205
A145: 144 | B145: 0.5868390824 | C145: 99
A146: 145 | B146: 0.7833130796 | C146: 58
A147: 146 | B147: 0.3176750837 | C147: 155
A148: 147 | B148: 0.1362468195 | C148: 190
A149: 148 | B149: 0.6447715255 | C149: 88
A150: 149 | B150: 0.2057290067 | C150: 180
A151: 150 | B151: 0.2845226337 | C151: 164
A152: 151 | B152: 0.1640586975 | C152: 187
A153: 152 | B153: 0.7545368508 | C153: 68
A154: 153 | B154: 0.3127834138 | C154: 157
A155: 154 | B155: 0.3944645091 | C155: 136
A156: 155 | B156: 0.07720018441 | C156: 203
A157: 156 | B157: 0.2265421817 | C157: 178
A158: 157 | B158: 0.9920414235 | C158: 2
A159: 158 | B159: 0.0439913431 | C159: 215
A160: 159 | B160: 0.2809973467 | C160: 166
A161: 160 | B161: 0.1007969778 | C161: 196
A162: 161 | B162: 0.3011068966 | C162: 160
A163: 162 | B163: 0.3090109178 | C163: 158
A164: 163 | B164: 0.6866571054 | C164: 79
A165: 164 | B165: 0.228731574 | C165: 176
A166: 165 | B166: 0.8222026135 | C166: 41
A167: 166 | B167: 0.01620942036 | C167: 220
A168: 167 | B168: 0.3642708217 | C168: 140
A169: 168 | B169: 0.08194674402 | C169: 201
A170: 169 | B170: 0.6376811727 | C170: 90
A171: 170 | B171: 0.7980830016 | C171: 50
A172: 171 | B172: 0.7987204542 | C172: 49
A173: 172 | B173: 0.5283173578 | C173: 112
A174: 173 | B174: 0.4096647728 | C174: 135
A175: 174 | B175: 0.5144720651 | C175: 115
A176: 175 | B176: 0.4630953482 | C176: 130
A177: 176 | B177: 0.1607731948 | C177: 188
A178: 177 | B178: 0.5855010328 | C178: 102
A179: 178 | B179: 0.6718953186 | C179: 81
A180: 179 | B180: 0.5313513233 | C180: 111
A181: 180 | B181: 0.1177050227 | C181: 192
A182: 181 | B182: 0.796666149 | C182: 52
A183: 182 | B183: 0.2783028856 | C183: 167
A184: 183 | B184: 0.4288812762 | C184: 133
A185: 184 | B185: 0.2418590631 | C185: 174
A186: 185 | B186: 0.3709528993 | C186: 138
A187: 186 | B187: 0.03369865502 | C187: 218
A188: 187 | B188: 0.8389828105 | C188: 39
A189: 188 | B189: 0.05694458487 | C189: 212
A190: 189 | B190: 0.06970312304 | C190: 207
A191: 190 | B191: 0.8205379546 | C191: 42
A192: 191 | B192: 0.7952386662 | C192: 54
A193: 192 | B193: 0.7480418638 | C193: 70
A194: 193 | B194: 0.9963119477 | C194: 1
A195: 194 | B195: =RAND() -> 0.8177418033 | C195: =RANK(B195,$B$2:$B$223) -> 43
A196: 195 | B196: 0.9320005896 | C196: 18
A197: 196 | B197: 0.2951477326 | C197: 161
A198: 197 | B198: 0.8535157346 | C198: 34
A199: 198 | B199: 0.9221349059 | C199: 24
A200: 199 | B200: 0.09510880099 | C200: 197
... 23 more rows

Sheet 関数（書き）
A1: 番号 | B1: ランダム | C1: 順位
A2: 1 | B2: =RAND() -> 0.6230302529 | C2: =RANK(B2,$B$2:$B$212) -> 79
A3: 2 | B3: =RAND() -> 0.5168336181 | C3: =RANK(B3,$B$2:$B$212) -> 101
A4: 3 | B4: 0.09749831507 | C4: 188
A5: 4 | B5: 0.4161345005 | C5: 121
A6: 5 | B6: 0.8124017031 | C6: 34
A7: 6 | B7: 0.508434592 | C7: 105
A8: 7 | B8: 0.4076920584 | C8: 123
A9: 8 | B9: 0.1773233952 | C9: 171
A10: 9 | B10: 0.9818810985 | C10: 1
A11: 10 | B11: 0.1888834196 | C11: 166
A12: 11 | B12: 0.2791057116 | C12: 150
A13: 12 | B13: 0.580662818 | C13: 91
A14: 13 | B14: 0.7675509701 | C14: 44
A15: 14 | B15: 0.8636909182 | C15: 25
A16: 15 | B16: 0.4904091736 | C16: 109
A17: 16 | B17: 0.1346277813 | C17: 179
A18: 17 | B18: 0.6928665067 | C18: 58
A19: 18 | B19: 0.1243696679 | C19: 180
A20: 19 | B20: 0.533299733 | C20: 100
A21: 20 | B21: 0.653641245 | C21: 70
A22: 21 | B22: 0.1513265758 | C22: 172
A23: 22 | B23: 0.7043888884 | C23: 56
A24: 23 | B24: 0.9800269949 | C24: 2
A25: 24 | B25: 0.1916959074 | C25: 165
A26: 25 | B26: 0.6158217981 | C26: 80
A27: 26 | B27: 0.09956703823 | C27: 185
A28: 27 | B28: 0.5483352841 | C28: 97
A29: 28 | B29: 0.2734756015 | C29: 151
A30: 29 | B30: 0.6505266581 | C30: 71
A31: 30 | B31: 0.7809803298 | C31: 42
A32: 31 | B32: 0.8298119615 | C32: 30
A33: 32 | B33: 0.6264877889 | C33: 76
A34: 33 | B34: 0.3334549694 | C34: 136
A35: 34 | B35: 0.5601196599 | C35: 93
A36: 35 | B36: 0.2551769156 | C36: 154
A37: 36 | B37: 0.5931744619 | C37: 85
A38: 37 | B38: 0.6281350775 | C38: 75
A39: 38 | B39: 0.3263230112 | C39: 138
A40: 39 | B40: 0.09271244308 | C40: 191
A41: 40 | B41: 0.5034675003 | C41: 107
A42: 41 | B42: 0.6871186416 | C42: 59
A43: 42 | B43: 0.2694342048 | C43: 153
A44: 43 | B44: 0.5347851544 | C44: 99
A45: 44 | B45: 0.3045459107 | C45: 142
A46: 45 | B46: 0.7922314056 | C46: 39
A47: 46 | B47: 0.6250532681 | C47: 78
A48: 47 | B48: 0.6463296472 | C48: 73
A49: 48 | B49: 0.4712671355 | C49: 112
A50: 49 | B50: 0.6349043939 | C50: 74
A51: 50 | B51: 0.6817148869 | C51: 62
A52: 51 | B52: 0.3600844339 | C52: 132
A53: 52 | B53: 0.8937006706 | C53: 20
A54: 53 | B54: 0.05429912789 | C54: 199
A55: 54 | B55: 0.3810070841 | C55: 128
A56: 55 | B56: 0.4401016962 | C56: 118
A57: 56 | B57: 0.1496841859 | C57: 173
A58: 57 | B58: 0.4016788755 | C58: 124
A59: 58 | B59: 0.9037435799 | C59: 18
A60: 59 | B60: 0.06001576711 | C60: 197
A61: 60 | B61: 0.5521318423 | C61: 96
A62: 61 | B62: 0.6606289206 | C62: 68
A63: 62 | B63: 0.3446514066 | C63: 135
A64: 63 | B64: 0.7670189751 | C64: 45
A65: 64 | B65: 0.9341887636 | C65: 14
A66: 65 | B66: 0.9481675545 | C66: 11
A67: 66 | B67: =RAND() -> 0.346864908 | C67: =RANK(B67,$B$2:$B$212) -> 134
A68: 67 | B68: 0.3212488445 | C68: 140
A69: 68 | B69: 0.02148224513 | C69: 204
A70: 69 | B70: 0.2696315478 | C70: 152
A71: 70 | B71: 0.1878070063 | C71: 167
A72: 71 | B72: 0.2270206013 | C72: 159
A73: 72 | B73: 0.08914944179 | C73: 192
A74: 73 | B74: 0.0849769121 | C74: 193
A75: 74 | B75: 0.853311221 | C75: 27
A76: 75 | B76: 0.9448897579 | C76: 12
A77: 76 | B77: 0.6555627779 | C77: 69
A78: 77 | B78: 0.8555180333 | C78: 26
A79: 78 | B79: 0.07878583246 | C79: 194
A80: 79 | B80: 0.5720428926 | C80: 92
A81: 80 | B81: 0.7429552236 | C81: 48
A82: 81 | B82: 0.5121390084 | C82: 104
A83: 82 | B83: 0.819673104 | C83: 32
A84: 83 | B84: 0.06513748636 | C84: 195
A85: 84 | B85: 0.649525983 | C85: 72
A86: 85 | B86: 0.3686296975 | C86: 130
A87: 86 | B87: 0.142358494 | C87: 177
A88: 87 | B88: 0.7489278446 | C88: 47
A89: 88 | B89: 0.8034743328 | C89: 36
A90: 89 | B90: 0.8247121415 | C90: 31
A91: 90 | B91: 0.6869860068 | C91: 60
A92: 91 | B92: 0.2197120348 | C92: 161
A93: 92 | B93: 0.3233457886 | C93: 139
A94: 93 | B94: 0.6778922754 | C94: 64
A95: 94 | B95: 0.8037668123 | C95: 35
A96: 95 | B96: 0.4316784652 | C96: 120
A97: 96 | B97: 0.5547395548 | C97: 94
A98: 97 | B98: 0.3024573584 | C98: 143
A99: 98 | B99: 0.7236605395 | C99: 51
A100: 99 | B100: 0.02072386697 | C100: 206
A101: 100 | B101: 0.5853950927 | C101: 89
A102: 101 | B102: 0.7259961112 | C102: 50
A103: 102 | B103: 0.7986957413 | C103: 38
A104: 103 | B104: 0.0214380061 | C104: 205
A105: 104 | B105: 0.2064190149 | C105: 163
A106: 105 | B106: 0.05482365807 | C106: 198
A107: 106 | B107: 0.2380675224 | C107: 158
A108: 107 | B108: 0.5863827037 | C108: 88
A109: 108 | B109: 0.01844350107 | C109: 207
A110: 109 | B110: 0.8965138583 | C110: 19
A111: 110 | B111: 0.2986319852 | C111: 144
A112: 111 | B112: 0.371472719 | C112: 129
A113: 112 | B113: 0.04870973761 | C113: 200
A114: 113 | B114: 0.3326666233 | C114: 137
A115: 114 | B115: 0.2915761077 | C115: 148
A116: 115 | B116: 0.1790997451 | C116: 170
A117: 116 | B117: 0.1444795542 | C117: 175
A118: 117 | B118: 0.2933051931 | C118: 147
A119: 118 | B119: 0.8148503221 | C119: 33
A120: 119 | B120: 0.4355904191 | C120: 119
A121: 120 | B121: 0.5460918527 | C121: 98
A122: 121 | B122: 0.9674851569 | C122: 4
A123: 122 | B123: 0.9607665004 | C123: 6
A124: 123 | B124: 0.9375124639 | C124: 13
A125: 124 | B125: 0.6021447633 | C125: 82
A126: 125 | B126: 0.09536680385 | C126: 190
A127: 126 | B127: 0.4581574036 | C127: 115
A128: 127 | B128: 0.5526093431 | C128: 95
A129: 128 | B129: 0.0650021679 | C129: 196
A130: 129 | B130: 0.3489009615 | C130: 133
A131: 130 | B131: =RAND() -> 0.9530664082 | C131: =RANK(B131,$B$2:$B$212) -> 9
A132: 131 | B132: 0.5133430703 | C132: 103
A133: 132 | B133: 0.8430358604 | C133: 29
A134: 133 | B134: 0.712785499 | C134: 52
A135: 134 | B135: 0.1069786437 | C135: 184
A136: 135 | B136: 0.1992271052 | C136: 164
A137: 136 | B137: 0.1102752605 | C137: 183
A138: 137 | B138: 0.848104042 | C138: 28
A139: 138 | B139: 0.7511757101 | C139: 46
A140: 139 | B140: 0.6976340623 | C140: 57
A141: 140 | B141: 0.2959858353 | C141: 146
A142: 141 | B142: 0.3833261621 | C142: 127
A143: 142 | B143: 0.6264422296 | C143: 77
A144: 143 | B144: 0.7775548951 | C144: 43
A145: 144 | B145: 0.009506428035 | C145: 209
A146: 145 | B146: 0.01213251829 | C146: 208
A147: 146 | B147: 0.8667709726 | C147: 24
A148: 147 | B148: 0.09951105469 | C148: 186
A149: 148 | B149: 0.2410476051 | C149: 157
A150: 149 | B150: 0.9200053878 | C150: 16
A151: 150 | B151: 0.3079589616 | C151: 141
A152: 151 | B152: 0.2525292106 | C152: 156
A153: 152 | B153: 0.003543799939 | C153: 211
A154: 153 | B154: 0.5874247472 | C154: 87
A155: 154 | B155: 0.8009208604 | C155: 37
A156: 155 | B156: 0.5988751738 | C156: 83
A157: 156 | B157: 0.4112484071 | C157: 122
A158: 157 | B158: 0.3623395652 | C158: 131
A159: 158 | B159: 0.7861375232 | C159: 40
A160: 159 | B160: 0.9255036306 | C160: 15
A161: 160 | B161: 0.4685552152 | C161: 113
A162: 161 | B162: 0.02999916482 | C162: 201
A163: 162 | B163: 0.3952111647 | C163: 125
A164: 163 | B164: 0.4406747343 | C164: 117
A165: 164 | B165: 0.1161612102 | C165: 182
A166: 165 | B166: 0.179641404 | C166: 169
A167: 166 | B167: 0.02775494761 | C167: 202
A168: 167 | B168: 0.706251082 | C168: 53
A169: 168 | B169: 0.7428356408 | C169: 49
A170: 169 | B170: 0.4800924326 | C170: 111
A171: 170 | B171: 0.9549424049 | C171: 7
A172: 171 | B172: 0.610175509 | C172: 81
A173: 172 | B173: 0.1383737901 | C173: 178
A174: 173 | B174: 0.6761527501 | C174: 65
A175: 174 | B175: 0.879136368 | C175: 22
A176: 175 | B176: 0.02318096631 | C176: 203
A177: 176 | B177: 0.1427852029 | C177: 176
A178: 177 | B178: 0.9139585513 | C178: 17
A179: 178 | B179: 0.9743984557 | C179: 3
A180: 179 | B180: 0.9521172229 | C180: 10
A181: 180 | B181: 0.7826699405 | C181: 41
A182: 181 | B182: 0.6809709762 | C182: 63
A183: 182 | B183: 0.460536403 | C183: 114
A184: 183 | B184: 0.2163923676 | C184: 162
A185: 184 | B185: 0.7050558528 | C185: 55
A186: 185 | B186: 0.8824658534 | C186: 21
A187: 186 | B187: 0.7051524173 | C187: 54
A188: 187 | B188: 0.4982896298 | C188: 108
A189: 188 | B189: 0.004673062635 | C189: 210
A190: 189 | B190: 0.8687203165 | C190: 23
A191: 190 | B191: 0.3856275116 | C191: 126
A192: 191 | B192: 0.5069915836 | C192: 106
A193: 192 | B193: 0.5946442002 | C193: 84
A194: 193 | B194: 0.6624687009 | C194: 67
A195: 194 | B195: =RAND() -> 0.09568452536 | C195: =RANK(B195,$B$2:$B$212) -> 189
A196: 195 | B196: 0.225059064 | C196: 160
A197: 196 | B197: 0.4498693164 | C197: 116
A198: 197 | B198: 0.145936951 | C198: 174
A199: 198 | B199: 0.4901080881 | C199: 110
A200: 199 | B200: 0.5141035414 | C200: 102
... 12 more rows
